Workbook

Sheet Sample Report (hidden)
A2: Date
A3: Hen
A4: Program
A5: Start at 999999
A6: Sequence component 1 | B6: Time 1 | C6: Seqeunce Component 2 | D6: Time 2 | E6: Seqeunce Component 3 | F6: Time 3 | G6: Correct 0 = No 1=Yes | J6: Seqeunce | K6: Time
A7: 12 | B7: 7 | C7: 12 | D7: 42 | E7: 13 | F7: 18 | G7: if 77 new line, if 31 or 41 = yes new line on 77, | J7: =string of Seqeunce compponent 1, 2 & 3 | K7: =time 3
A8: This continues until ther is a 1 on its own to indicate start of summary data
J9: 10-19 =1
A10: Summary Data | J10: 20-29 =2
A11: Correct | B11: Incorrect | C11: Rft | D11: total | E11: Av Correct | F11: Av Incorrect | G11: Percent correct | H11: Time | J11: in this example the seqeunce would be 111
A12: 40 | B12: 33 | C12: 40 | D12: 73 | E12: 23.95 | F12: 15 | G12: 54 | H12: 806

Sheet Summary
A2: Day | B2: Date | C2: Average Response Rate | D2: Target % | E2: RF for non correct sequence | F2: U Value | K2: Block 1 | L2: Block 2 | M2: Block 3 | N2: Block 4 | O2: Block 5 | P2: Block 6
A3: 1 | B3: ='!M830B1B.AXT'!B2:C2 -> <date> | C3: =('!M830B1B.AXT'!F7/60)/'!M830B1B.AXT'!Q3 -> 0 | D3: ='!M830B1B.AXT'!N20/'!M830B1B.AXT'!Q3 -> 0 | E3: =SUM('!M830B1B.AXT'!L20:Q20)/'!M830B1B.AXT'!Q3 -> 0 | F3: 0 | J3: Average Response Rate | K3: =AVERAGE(C3:C7) -> 34.92380952 | L3: =AVERAGE(C8:C12) -> 38.29303752 | M3: =AVERAGE(C13:C17) -> 14.7419697 | N3: =AVERAGE(C18:C22) -> 64.64146825 | O3: =AVERAGE(C23:C27) -> 25.38377778 | P3: =AVERAGE(C28:C31) -> 14.03888889
A4: 2 | B4: ='!M831B1B.AXT'!B2:C2 -> <date> | C4: =('!M831B1B.AXT'!F13/60)/'!M831B1B.AXT'!Q3 -> 56.51904762 | D4: ='!M831B1B.AXT'!N20/'!M831B1B.AXT'!Q3 -> 0 | E4: =SUM('!M831B1B.AXT'!L20:Q20)/'!M831B1B.AXT'!Q3 -> 0.2857142857 | F4: ='!M831B1B.AXT'!Q16 -> 0.6562657891 | J4: Target % | K4: =AVERAGE(D3:D7) -> 0.05 | L4: =AVERAGE(D8:D12) -> 0.05714285714 | M4: =AVERAGE(D13:D17) -> 0 | N4: =AVERAGE(D18:D22) -> 0 | O4: =AVERAGE(D23:D27) -> 0.04 | P4: =AVERAGE(D28:D31) -> 0.03
A5: 3 | B5: ='!M901A0B.AXT'!B2:C2 -> <date> | C5: =('!M901A0B.AXT'!F8/60)/'!M901A0B.AXT'!Q3 -> 9.841666667 | D5: ='!M901A0B.AXT'!N20/'!M901A0B.AXT'!Q3 -> 0 | E5: =SUM('!M901A0B.AXT'!L20:Q20)/'!M901A0B.AXT'!Q3 -> 0.5 | F5: ='!M901A0B.AXT'!Q16 -> 0 | J5: CCRF | K5: =AVERAGE(E3:E7) -> 0.3071428571 | L5: =AVERAGE(E8:E12) -> 0.3608225108 | M5: =AVERAGE(E13:E17) -> 0.3643939394 | N5: =AVERAGE(E18:E22) -> 0.3404761905 | O5: =AVERAGE(E23:E27) -> 0.2866666667 | P5: =AVERAGE(E28:E31) -> 1.528333333
A6: 4 | B6: ='!M902A1B.AXT'!B2:C2 -> <date> | C6: =('!M902A1B.AXT'!F9/60)/'!M902A1B.AXT'!Q3 -> 11.95 | D6: ='!M902A1B.AXT'!N20/'!M902A1B.AXT'!Q3 -> 0 | E6: =SUM('!M902A1B.AXT'!L20:Q20)/'!M902A1B.AXT'!Q3 -> 0.25 | F6: ='!M902A1B.AXT'!Q16 -> 0 | J6: U Value | K6: =AVERAGE(F3:F7) -> 0.3312531578 | L6: =AVERAGE(F8:F12) -> 0.8324111892 | M6: =AVERAGE(F13:F17) -> 0.5129802653 | N6: =AVERAGE(F18:F22) -> 0.9131457236 | O6: =AVERAGE(F23:F27) -> 0.2339632895 | P6: =AVERAGE(F28:F31) -> 0.524751999
A7: 5 | B7: ='!M903C3B.AXT'!B2:C2 -> <date> | C7: =('!M903C3B.AXT'!F10/60)/'!M903C3B.AXT'!Q3 -> 96.30833333 | D7: ='!M903C3B.AXT'!N20/'!M903C3B.AXT'!Q3 -> 0.25 | E7: =SUM('!M903C3B.AXT'!L20:Q20)/'!M903C3B.AXT'!Q3 -> 0.5 | F7: ='!M903C3B.AXT'!Q16 -> 1
A8: 6 | B8: ='!M904A4B.AXT'!B2:C2 -> <date> | C8: =('!M904A4B.AXT'!F12/60)/'!M904A4B.AXT'!Q3 -> 13.62380952 | D8: ='!M904A4B.AXT'!N20/'!M904A4B.AXT'!Q3 -> 0.1428571429 | E8: =SUM('!M904A4B.AXT'!L20:Q20)/'!M904A4B.AXT'!Q3 -> 0.4285714286 | F8: ='!M904A4B.AXT'!Q16 -> 1
A9: 7 | B9: ='!M905A4B.AXT'!B2:C2 -> <date> | C9: =('!M905A4B.AXT'!F8/60)/'!M905A4B.AXT'!Q3 -> 1.705555556 | D9: ='!M905A4B.AXT'!N20/'!M905A4B.AXT'!Q3 -> 0 | E9: =SUM('!M905A4B.AXT'!L20:Q20)/'!M905A4B.AXT'!Q3 -> 0.3333333333 | F9: ='!M905A4B.AXT'!Q16 -> 1 | G9: =K3 -> 34.92380952 | H9: =L3 -> 38.29303752 | I9: 14.7419697 | J9: 64.64146825 | K9: 25.38377778 | L9: 14.03888889 | M9: =K4 -> 0.05 | N9: =L4 -> 0.05714285714 | O9: 0 | P9: 0 | Q9: 0.04 | R9: 0.03 | S9: =K6 -> 0.3312531578 | T9: =L6 -> 0.8324111892 | U9: 0.5129802653 | V9: 0.9131457236 | W9: 0.2339632895 | X9: 0.524751999
A10: 8 | B10: ='!M906B1B.AXT'!B2:C2 -> <date> | C10: =('!M906B1B.AXT'!F17/60)/'!M906B1B.AXT'!Q3 -> 29.62272727 | D10: ='!M906B1B.AXT'!N20/'!M906B1B.AXT'!Q3 -> 0 | E10: =SUM('!M906B1B.AXT'!L20:Q20)/'!M906B1B.AXT'!Q3 -> 0.3636363636 | F10: ='!M906B1B.AXT'!Q16 -> 0.717376392
A11: 9 | B11: ='!M907A5B.AXT'!B2:C2 -> <date> | C11: =('!M907A5B.AXT'!F10/60)/'!M907A5B.AXT'!Q3 -> 93.40833333 | D11: ='!M907A5B.AXT'!N20/'!M907A5B.AXT'!Q3 -> 0 | E11: =SUM('!M907A5B.AXT'!L20:Q20)/'!M907A5B.AXT'!Q3 -> 0.25 | F11: ='!M907A5B.AXT'!Q16 -> 0.75
A12: 10 | B12: ='!M908A5B.AXT'!B2:C2 -> <date> | C12: =('!M908A5B.AXT'!F13/60)/'!M908A5B.AXT'!Q3 -> 53.1047619 | D12: ='!M908A5B.AXT'!N20/'!M908A5B.AXT'!Q3 -> 0.1428571429 | E12: =SUM('!M908A5B.AXT'!L20:Q20)/'!M908A5B.AXT'!Q3 -> 0.4285714286 | F12: ='!M908A5B.AXT'!Q16 -> 0.6946795539
A13: 11 | B13: ='!M909A5B.AXT'!B2:C2 -> <date> | C13: =('!M909A5B.AXT'!F9/60)/'!M909A5B.AXT'!Q3 -> 3.5 | D13: ='!M909A5B.AXT'!N20/'!M909A5B.AXT'!Q3 -> 0 | E13: =SUM('!M909A5B.AXT'!L20:Q20)/'!M909A5B.AXT'!Q3 -> 0.3333333333 | F13: ='!M909A5B.AXT'!Q16 -> 0.5793801643
A14: 12 | B14: ='!M910B5B.AXT'!B2:C2 -> <date> | C14: =('!M910B5B.AXT'!F17/60)/'!M910B5B.AXT'!Q3 -> 34.98484848 | D14: ='!M910B5B.AXT'!N20/'!M910B5B.AXT'!Q3 -> 0 | E14: =SUM('!M910B5B.AXT'!L20:Q20)/'!M910B5B.AXT'!Q3 -> 0.3636363636 | F14: ='!M910B5B.AXT'!Q16 -> 0.4310288552
A15: 13 | B15: ='!M911A3B.AXT'!B2:C2 -> <date> | C15: =('!M911A3B.AXT'!F9/60)/'!M911A3B.AXT'!Q3 -> 1.3375 | D15: ='!M911A3B.AXT'!N20/'!M911A3B.AXT'!Q3 -> 0 | E15: =SUM('!M911A3B.AXT'!L20:Q20)/'!M911A3B.AXT'!Q3 -> 0.25 | F15: ='!M911A3B.AXT'!Q16 -> 1
A16: 14 | B16: ='!M912A4B.AXT'!B2:C2 -> <date> | C16: =('!M912A4B.AXT'!F8/60)/'!M912A4B.AXT'!Q3 -> 28.85 | D16: ='!M912A4B.AXT'!N20/'!M912A4B.AXT'!Q3 -> 0 | E16: =SUM('!M912A4B.AXT'!L20:Q20)/'!M912A4B.AXT'!Q3 -> 0.5 | F16: ='!M912A4B.AXT'!Q16 -> 0
A17: 15 | B17: ='!M913A0B.AXT'!B2:C2 -> <date> | C17: =('!M913A0B.AXT'!F13/60)/'!M913A0B.AXT'!Q3 -> 5.0375 | D17: ='!M913A0B.AXT'!N20/'!M913A0B.AXT'!Q3 -> 0 | E17: =SUM('!M913A0B.AXT'!L20:Q20)/'!M913A0B.AXT'!Q3 -> 0.375 | F17: ='!M913A0B.AXT'!Q16 -> 0.5544923071
A18: 16 | B18: ='!M914B3B.AXT'!B2:C2 -> <date> | C18: =('!M914B3B.AXT'!F12/60)/'!M914B3B.AXT'!Q3 -> 66.02222222 | D18: ='!M914B3B.AXT'!N20/'!M914B3B.AXT'!Q3 -> 0 | E18: =SUM('!M914B3B.AXT'!L20:Q20)/'!M914B3B.AXT'!Q3 -> 0.3333333333 | F18: ='!M914B3B.AXT'!Q16 -> 0.8710490643
A19: 17 | B19: ='!M915B2B.AXT'!B2:C2 -> <date> | C19: =('!M915B2B.AXT'!F9/60)/'!M915B2B.AXT'!Q3 -> 3.279166667 | D19: ='!M915B2B.AXT'!N20/'!M915B2B.AXT'!Q3 -> 0 | E19: =SUM('!M915B2B.AXT'!L20:Q20)/'!M915B2B.AXT'!Q3 -> 0.25 | F19: ='!M915B2B.AXT'!Q16 -> 1
A20: 18 | B20: ='!M916A4B.AXT'!B2:C2 -> <date> | C20: =('!M916A4B.AXT'!F8/60)/'!M916A4B.AXT'!Q3 -> 16.51666667 | D20: ='!M916A4B.AXT'!N20/'!M916A4B.AXT'!Q3 -> 0 | E20: =SUM('!M916A4B.AXT'!L20:Q20)/'!M916A4B.AXT'!Q3 -> 0.3333333333 | F20: ='!M916A4B.AXT'!Q16 -> 1
A21: 19 | B21: ='!M917A4B.AXT'!B2:C2 -> <date> | C21: =('!M917A4B.AXT'!F8/60)/'!M917A4B.AXT'!Q3 -> 194.3083333 | D21: ='!M917A4B.AXT'!N20/'!M917A4B.AXT'!Q3 -> 0 | E21: =SUM('!M917A4B.AXT'!L20:Q20)/'!M917A4B.AXT'!Q3 -> 0.5 | F21: ='!M917A4B.AXT'!Q16 -> 1
A22: 20 | B22: ='!M918B2B.AXT'!B2:C2 -> <date> | C22: =('!M918B2B.AXT'!F13/60)/'!M918B2B.AXT'!Q3 -> 43.08095238 | D22: ='!M918B2B.AXT'!N20/'!M918B2B.AXT'!Q3 -> 0 | E22: =SUM('!M918B2B.AXT'!L20:Q20)/'!M918B2B.AXT'!Q3 -> 0.2857142857 | F22: ='!M918B2B.AXT'!Q16 -> 0.6946795539
A23: 21 | B23: ='!M919A3B.AXT'!B2:C2 -> <date> | C23: =('!M919A3B.AXT'!F7/60)/'!M919A3B.AXT'!Q3 -> 0 | D23: ='!M919A3B.AXT'!N20/'!M919A3B.AXT'!Q3 -> 0 | E23: =SUM('!M919A3B.AXT'!L20:Q20)/'!M919A3B.AXT'!Q3 -> 0 | F23: 0
A24: 22 | B24: ='!M92095B.AXT'!B2:C2 -> <date> | C24: =('!M92095B.AXT'!F9/60)/'!M92095B.AXT'!Q3 -> 30.82222222 | D24: ='!M92095B.AXT'!N20/'!M92095B.AXT'!Q3 -> 0 | E24: =SUM('!M92095B.AXT'!L20:Q20)/'!M92095B.AXT'!Q3 -> 0.3333333333 | F24: ='!M92095B.AXT'!Q16 -> 0.5793801643
A25: 23 | B25: ='!M92190B.AXT'!B2:C2 -> <date> | C25: =('!M92190B.AXT'!F7/60)/'!M92190B.AXT'!Q3 -> 24.1 | D25: ='!M92190B.AXT'!N20/'!M92190B.AXT'!Q3 -> 0 | E25: =SUM('!M92190B.AXT'!L20:Q20)/'!M92190B.AXT'!Q3 -> 0.5 | F25: 0
A26: 24 | B26: ='!M922B2B.AXT'!B2:C2 -> <date> | C26: =('!M922B2B.AXT'!F11/60)/'!M922B2B.AXT'!Q3 -> 71.99666667 | D26: ='!M922B2B.AXT'!N20/'!M922B2B.AXT'!Q3 -> 0.2 | E26: =SUM('!M922B2B.AXT'!L20:Q20)/'!M922B2B.AXT'!Q3 -> 0.6 | F26: ='!M922B2B.AXT'!Q16 -> 0.5904362833
A27: 25 | B27: ='!M922C1B.AXT'!B2:C2 -> <date> | C27: 0 | D27: 0 | E27: 0 | F27: 0
A28: 26 | B28: ='!M923A0B.AXT'!B2:C2 -> <date> | C28: =('!M923A0B.AXT'!F8/60)/'!M923A0B.AXT'!Q3 -> 2.033333333 | D28: ='!M923A0B.AXT'!N20/'!M923A0B.AXT'!Q3 -> 0 | E28: =SUM('!M923A0B.AXT'!L20:Q20)/'!M923A0B.AXT'!Q3 -> 0.5 | F28: ='!M923A0B.AXT'!Q16 -> 1
A29: 27 | B29: ='!M924B0B.AXT'!B2:C2 -> <date> | C29: =('!M924B0B.AXT'!F12/60)/'!M924B0B.AXT'!Q3 -> 38.93888889 | D29: ='!M924B0B.AXT'!N20/'!M924B0B.AXT'!Q3 -> 0 | E29: =SUM('!M924B0B.AXT'!L20:Q20)/'!M924B0B.AXT'!Q3 -> 0.3333333333 | F29: ='!M924B0B.AXT'!Q16 -> 0.5644754679
A30: 28 | B30: ='!M92592B.AXT'!B2:C2 -> <date> | C30: 0 | D30: 0 | E30: 0 | F30: 0
A31: 29 | B31: ='!M92693B.AXT'!B2:C2 -> <date> | C31: =('!M927A2B.AXT'!F31/60)/'!M927A2B.AXT'!Q3 -> 15.18333333 | D31: ='!M927A2B.AXT'!N20/'!M927A2B.AXT'!Q3 -> 0.12 | E31: =SUM('!M927A2B.AXT'!L20:Q20)/'!M927A2B.AXT'!Q3 -> 5.28 | F31: ='!M927A2B.AXT'!Q16 -> 0.5345325281
A32: 30 | B32: ='!M927A2B.AXT'!B2:C2 -> <date> | C32: =('!M92891B.AXT'!F13/60)/'!M92891B.AXT'!Q3 -> 3.966666667 | D32: ='!M92891B.AXT'!N20/'!M92891B.AXT'!Q3 -> 0 | E32: =SUM('!M92891B.AXT'!L20:Q20)/'!M92891B.AXT'!Q3 -> 0.375 | F32: ='!M92891B.AXT'!Q16 -> 0.6562657891
B33: ='!M92891B.AXT'!B2:C2 -> <date>

Sheet Start
F1: Use Folder 51 | H1: Auto Clean Up | J1: Correct sequence
F2: FALSE | H2: TRUE | J2: 221
A4: Working with Folder | G4: Process All/Or Pick A number: ALL or an integer
A5: F:\Possum Chapter\Raw Data\baxter\RRL\ | G5: ALL
A6: Filenames:
A7: !M92592B.AXT | G7: Paint Cells
A8: !M92693B.AXT | G8: FALSE
A9: !M927A2B.AXT
A10: !M92891B.AXT
A11: !M830B1B.AXT
A12: !M831B1B.AXT
A13: !M901A0B.AXT
A14: !M902A1B.AXT
A15: !M903C3B.AXT
A16: !M904A4B.AXT
A17: !M905A4B.AXT
A18: !M906B1B.AXT
A19: !M907A5B.AXT
A20: !M908A5B.AXT
A21: !M909A5B.AXT
A22: !M910B5B.AXT
A23: !M911A3B.AXT
A24: !M912A4B.AXT
A25: !M913A0B.AXT
A26: !M914B3B.AXT
A27: !M915B2B.AXT
A28: !M916A4B.AXT
A29: !M917A4B.AXT
A30: !M918B2B.AXT
A31: !M919A3B.AXT
A32: !M92095B.AXT
A33: !M92190B.AXT
A34: !M922B2B.AXT
A35: !M922C1B.AXT
A36: !M923A0B.AXT
A37: !M924B0B.AXT

Sheet !M830B1B.AXT
A1: Report for:!M830B1B.AXT
A2: Date: | B2: <date>
A3: Hen: | B3: <hen> | F3: Correct Sequence | G3: =Start!J2 -> 221 | P3: Total Sequences in Data | Q3: =4994-COUNTBLANK(L7:L5000) -> 1 | V3: Total Sequences in Block Data | W3: =COUNTA(L6:L7) -> 2 | AA3: Total Sequences in Block Data | AB3: =COUNTA(L6:L7) -> 2 | AF3: Total Sequences in Block Data | AG3: =COUNTA(L7:L7) -> 1 | AK3: Total Sequences in Block Data | AL3: =COUNTA(L7:L8) -> 1 | AP3: Total Sequences in Block Data | AQ3: =COUNTA(L7:L8) -> 1 | AU3: Total Sequences in Block Data | AV3: =COUNTA(L7:L8) -> 1
P4: Total Sequences in Summary | Q4: =SUM(O7:O14) -> 0 | V4: Total Sequences in Block Summary | W4: =SUM(U7:U14) -> 0 | AA4: Total Sequences in Block Summary | AB4: =SUM(Z7:Z14) -> 0 | AF4: Total Sequences in Block Summary | AG4: =SUM(AE7:AE14) -> 0 | AK4: Total Sequences in Block Summary | AL4: =SUM(AJ7:AJ14) -> 0 | AP4: Total Sequences in Block Summary | AQ4: =SUM(AO7:AO14) -> 0 | AU4: Total Sequences in Block Summary | AV4: =SUM(AT7:AT14) -> 0
T5: Block 1 | Y5: Block 2 | AD5: Block 3 | AI5: Block 4 | AN5: Block 5 | AS5: Block 6
A6: Sequence Component 1 | B6: Time 1 | C6: Sequence Component 2 | D6: Time 2 | E6: Sequence Component 3 | F6: Time 3 | G6: Sequence Component 4 | H6: Time 4 | I6: Sequence Component 5 | J6: Time 5 | K6: Correct? 0=No 1=Yes | L6: Sequence | N6: Frequency | P6: Relative Frequency | Q6: Variability | T6: Frequency | V6: Relative Frequency | W6: Variability | Y6: Frequency | AA6: Relative Frequency | AB6: Variability | AD6: Frequency | AF6: Relative Frequency | AG6: Variability | AI6: Frequency | AK6: Relative Frequency | AL6: Variability | AN6: Frequency | AP6: Relative Frequency | AQ6: Variability | AS6: Frequency | AU6: Relative Frequency | AV6: Variability
A7: 22 | B7: 9716 | L7: 2 | N7: 111 | O7: =COUNTIF($L$7:$L$500,N7) -> 0 | P7: =O7/$Q$4 ->  | Q7: =IF(P7=0,0,(P7*((LOG(P7))/LOG(2)))) ->  | T7: =N7 -> 111 | U7: =COUNTIF(L6:L7,T7) -> 0 | V7: =U7/(W4-U13) ->  | W7: =IF(V7=0,0,(V7*((LOG(V7))/LOG(2)))) ->  | Y7: =N7 -> 111 | Z7: =COUNTIF(L6:L7,Y7) -> 0 | AA7: =Z7/(AB4-Z13) ->  | AB7: =IF(AA7=0,0,(AA7*((LOG(AA7))/LOG(2)))) ->  | AD7: =N7 -> 111 | AE7: =COUNTIF(L7:L7,AD7) -> 0 | AF7: =AE7/(AG4-AE13) ->  | AG7: =IF(AF7=0,0,(AF7*((LOG(AF7))/LOG(2)))) ->  | AI7: =N7 -> 111 | AJ7: =COUNTIF(L7:L8,AI7) -> 0 | AK7: =AJ7/(AL4-AJ13) ->  | AL7: =IF(AK7=0,0,(AK7*((LOG(AK7))/LOG(2)))) ->  | AN7: =N7 -> 111 | AO7: =COUNTIF(L7:L8,AN7) -> 0 | AP7: =AO7/(AQ4-AO13) ->  | AQ7: =IF(AP7=0,0,(AP7*((LOG(AP7))/LOG(2)))) ->  | AS7: =N7 -> 111 | AT7: =COUNTIF(L7:L8,AS7) -> 0 | AU7: =AT7/(AV4-AT13) ->  | AV7: =IF(AU7=0,0,(AU7*((LOG(AU7))/LOG(2)))) -> 
N8: 112 | O8: 0 | T8: 112 | U8: =COUNTIF(L6:L7,T8) -> 0 | V8: =U8/(W4-U13) ->  | Y8: 112 | Z8: =COUNTIF(L6:L7,Y8) -> 0 | AA8: =Z8/(AB4-Z13) ->  | AD8: 112 | AE8: =COUNTIF(L7:L7,AD8) -> 0 | AF8: =AE8/(AG4-AE13) ->  | AI8: 112 | AJ8: =COUNTIF(L7:L8,AI8) -> 0 | AK8: =AJ8/(AL4-AJ13) ->  | AN8: 112 | AO8: =COUNTIF(L7:L8,AN8) -> 0 | AP8: =AO8/(AQ4-AO13) ->  | AS8: 112 | AT8: =COUNTIF(L7:L8,AS8) -> 0 | AU8: =AT8/(AV4-AT13) -> 
N9: 121 | O9: 0 | T9: 121 | U9: =COUNTIF(L6:L7,T9) -> 0 | V9: =U9/(W4-U13) ->  | Y9: 121 | Z9: =COUNTIF(L6:L7,Y9) -> 0 | AA9: =Z9/(AB4-Z13) ->  | AD9: 121 | AE9: =COUNTIF(L7:L7,AD9) -> 0 | AF9: =AE9/(AG4-AE13) ->  | AI9: 121 | AJ9: =COUNTIF(L7:L8,AI9) -> 0 | AK9: =AJ9/(AL4-AJ13) ->  | AN9: 121 | AO9: =COUNTIF(L7:L8,AN9) -> 0 | AP9: =AO9/(AQ4-AO13) ->  | AS9: 121 | AT9: =COUNTIF(L7:L8,AS9) -> 0 | AU9: =AT9/(AV4-AT13) -> 
N10: 122 | O10: 0 | T10: 122 | U10: =COUNTIF(L6:L7,T10) -> 0 | V10: =U10/(W4-U13) ->  | Y10: 122 | Z10: =COUNTIF(L6:L7,Y10) -> 0 | AA10: =Z10/(AB4-Z13) ->  | AD10: 122 | AE10: =COUNTIF(L7:L7,AD10) -> 0 | AF10: =AE10/(AG4-AE13) ->  | AI10: 122 | AJ10: =COUNTIF(L7:L8,AI10) -> 0 | AK10: =AJ10/(AL4-AJ13) ->  | AN10: 122 | AO10: =COUNTIF(L7:L8,AN10) -> 0 | AP10: =AO10/(AQ4-AO13) ->  | AS10: 122 | AT10: =COUNTIF(L7:L8,AS10) -> 0 | AU10: =AT10/(AV4-AT13) -> 
N11: 211 | O11: 0 | T11: 211 | U11: =COUNTIF(L6:L7,T11) -> 0 | V11: =U11/(W4-U13) ->  | Y11: 211 | Z11: =COUNTIF(L6:L7,Y11) -> 0 | AA11: =Z11/(AB4-Z13) ->  | AD11: 211 | AE11: =COUNTIF(L7:L7,AD11) -> 0 | AF11: =AE11/(AG4-AE13) ->  | AI11: 211 | AJ11: =COUNTIF(L7:L8,AI11) -> 0 | AK11: =AJ11/(AL4-AJ13) ->  | AN11: 211 | AO11: =COUNTIF(L7:L8,AN11) -> 0 | AP11: =AO11/(AQ4-AO13) ->  | AS11: 211 | AT11: =COUNTIF(L7:L8,AS11) -> 0 | AU11: =AT11/(AV4-AT13) -> 
N12: 212 | O12: 0 | T12: 212 | U12: =COUNTIF(L6:L7,T12) -> 0 | V12: =U12/(W4-U13) ->  | Y12: 212 | Z12: =COUNTIF(L6:L7,Y12) -> 0 | AA12: =Z12/(AB4-Z13) ->  | AD12: 212 | AE12: =COUNTIF(L7:L7,AD12) -> 0 | AF12: =AE12/(AG4-AE13) ->  | AI12: 212 | AJ12: =COUNTIF(L7:L8,AI12) -> 0 | AK12: =AJ12/(AL4-AJ13) ->  | AN12: 212 | AO12: =COUNTIF(L7:L8,AN12) -> 0 | AP12: =AO12/(AQ4-AO13) ->  | AS12: 212 | AT12: =COUNTIF(L7:L8,AS12) -> 0 | AU12: =AT12/(AV4-AT13) -> 
N13: 221 | O13: 0 | T13: 221 | U13: =COUNTIF(L6:L7,T13) -> 0 | Y13: 221 | Z13: =COUNTIF(L6:L7,Y13) -> 0 | AD13: 221 | AE13: =COUNTIF(L7:L7,AD13) -> 0 | AI13: 221 | AJ13: =COUNTIF(L7:L8,AI13) -> 0 | AN13: 221 | AO13: =COUNTIF(L7:L8,AN13) -> 0 | AS13: 221 | AT13: =COUNTIF(L7:L8,AS13) -> 0
N14: 222 | O14: 0 | T14: 222 | U14: =COUNTIF(L6:L7,T14) -> 0 | V14: =U14/(W4-U13) ->  | W14: =IF(V14=0,0,(V14*((LOG(V14))/LOG(2)))) ->  | Y14: 222 | Z14: =COUNTIF(L6:L7,Y14) -> 0 | AA14: =Z14/(AB4-Z13) ->  | AB14: =IF(AA14=0,0,(AA14*((LOG(AA14))/LOG(2)))) ->  | AD14: 222 | AE14: =COUNTIF(L7:L7,AD14) -> 0 | AF14: =AE14/(AG4-AE13) ->  | AG14: =IF(AF14=0,0,(AF14*((LOG(AF14))/LOG(2)))) ->  | AI14: 222 | AJ14: =COUNTIF(L7:L8,AI14) -> 0 | AK14: =AJ14/(AL4-AJ13) ->  | AL14: =IF(AK14=0,0,(AK14*((LOG(AK14))/LOG(2)))) ->  | AN14: 222 | AO14: =COUNTIF(L7:L8,AN14) -> 0 | AP14: =AO14/(AQ4-AO13) ->  | AQ14: =IF(AP14=0,0,(AP14*((LOG(AP14))/LOG(2)))) ->  | AS14: 222 | AT14: =COUNTIF(L7:L8,AS14) -> 0 | AU14: =AT14/(AV4-AT13) ->  | AV14: =IF(AU14=0,0,(AU14*((LOG(AU14))/LOG(2)))) -> 
P15: =SUM(P7:P14) ->  | Q15: =-SUM(Q7:Q14) ->  | V15: =SUM(V7:V14) ->  | W15: =-SUM(W7:W14) ->  | AA15: =SUM(AA7:AA14) ->  | AB15: =-SUM(AB7:AB14) ->  | AF15: =SUM(AF7:AF14) ->  | AG15: =-SUM(AG7:AG14) ->  | AK15: =SUM(AK7:AK14) ->  | AL15: =-SUM(AL7:AL14) ->  | AP15: =SUM(AP7:AP14) ->  | AQ15: =-SUM(AQ7:AQ14) ->  | AU15: =SUM(AU7:AU14) ->  | AV15: =-SUM(AV7:AV14) -> 
P16: U= | Q16: =Q15/(LOG(Q4)/LOG(2)) ->  | V16: U1= | W16: =W15/(LOG(W4)/LOG(2)) ->  | AA16: U2= | AB16: =AB15/(LOG(AB4)/LOG(2)) ->  | AF16: U3= | AG16: =AG15/(LOG(AG4)/LOG(2)) ->  | AK16: U4= | AL16: =AL15/(LOG(AL4)/LOG(2)) ->  | AP16: U5= | AQ16: =AQ15/(LOG(AQ4)/LOG(2)) ->  | AU16: U6= | AV16: =AV15/(LOG(AV4)/LOG(2)) -> 
N19: Total Target Seq
N20: =COUNTIF(L7:L7,G3) -> 0 | P20: 0 | Q20: 0 | R20: 1 | S20: 0 | T20: 0 | U20: 0
P21: % of reinforcement given in 6 equal intervals based on number of trials
P22: %_1 | Q22: %_2 | R22: %_3 | S22: %_4 | T22: %_5 | U22: %_6
O23: target sequence | P23: =$G$3 -> 221 | Q23: 221 | R23: 221 | S23: 221 | T23: 221 | U23: 221
O24: total reinforcement | P24: =U13 -> 0 | Q24: =Z13 -> 0 | R24: =AE13 -> 0 | S24: =AJ13 -> 0 | T24: =AO13 -> 0 | U24: =AT13 -> 0
O25: % target
O26: CCRF
O27: % CCRf
O28: average response rate | P28: =F6/P20 ->  | Q28: =(F6-F6)/Q20 ->  | R28: =(F7-F6)/R20 ->  | S28: =(F7-F7)/S20 ->  | T28: =(F7-F7)/T20 ->  | U28: =(F7-F7)/U20 -> 

Sheet !M831B1B.AXT
A1: Report for:!M831B1B.AXT
A2: Date: | B2: <date>
A3: Hen: | B3: <hen> | F3: Correct Sequence | G3: =Start!J2 -> 221 | P3: Total Sequences in Data | Q3: =4994-COUNTBLANK(L7:L5000) -> 7 | V3: Total Sequences in Block Data | W3: =COUNTA(L7:L7) -> 1 | AA3: Total Sequences in Block Data | AB3: =COUNTA(L8:L8) -> 1 | AF3: Total Sequences in Block Data | AG3: =COUNTA(L9:L10) -> 2 | AK3: Total Sequences in Block Data | AL3: =COUNTA(L11:L11) -> 1 | AP3: Total Sequences in Block Data | AQ3: =COUNTA(L12:L12) -> 1 | AU3: Total Sequences in Block Data | AV3: =COUNTA(L13:L13) -> 1
P4: Total Sequences in Summary | Q4: =SUM(O7:O14) -> 7 | V4: Total Sequences in Block Summary | W4: =SUM(U7:U14) -> 1 | AA4: Total Sequences in Block Summary | AB4: =SUM(Z7:Z14) -> 1 | AF4: Total Sequences in Block Summary | AG4: =SUM(AE7:AE14) -> 2 | AK4: Total Sequences in Block Summary | AL4: =SUM(AJ7:AJ14) -> 1 | AP4: Total Sequences in Block Summary | AQ4: =SUM(AO7:AO14) -> 1 | AU4: Total Sequences in Block Summary | AV4: =SUM(AT7:AT14) -> 1
T5: Block 1 | Y5: Block 2 | AD5: Block 3 | AI5: Block 4 | AN5: Block 5 | AS5: Block 6
A6: Sequence Component 1 | B6: Time 1 | C6: Sequence Component 2 | D6: Time 2 | E6: Sequence Component 3 | F6: Time 3 | G6: Sequence Component 4 | H6: Time 4 | I6: Sequence Component 5 | J6: Time 5 | K6: Correct? 0=No 1=Yes | L6: Sequence | N6: Frequency | P6: Relative Frequency | Q6: Variability | T6: Frequency | V6: Relative Frequency | W6: Variability | Y6: Frequency | AA6: Relative Frequency | AB6: Variability | AD6: Frequency | AF6: Relative Frequency | AG6: Variability | AI6: Frequency | AK6: Relative Frequency | AL6: Variability | AN6: Frequency | AP6: Relative Frequency | AQ6: Variability | AS6: Frequency | AU6: Relative Frequency | AV6: Variability
A7: 11 | B7: 101 | C7: 21 | D7: 115 | E7: 22 | F7: 128 | K7: 0 | L7: 122 | N7: 111 | O7: =COUNTIF($L$7:$L$500,N7) -> 2 | P7: =O7/$Q$4 -> 0.2857142857 | Q7: =IF(P7=0,0,(P7*((LOG(P7))/LOG(2)))) -> -0.5163871206 | T7: =N7 -> 111 | U7: =COUNTIF(L7:L7,T7) -> 0 | V7: =U7/(W4-U13) -> 0 | W7: =IF(V7=0,0,(V7*((LOG(V7))/LOG(2)))) -> 0 | Y7: =N7 -> 111 | Z7: =COUNTIF(L8:L8,Y7) -> 0 | AA7: =Z7/(AB4-Z13) -> 0 | AB7: =IF(AA7=0,0,(AA7*((LOG(AA7))/LOG(2)))) -> 0 | AD7: =N7 -> 111 | AE7: =COUNTIF(L9:L10,AD7) -> 1 | AF7: =AE7/(AG4-AE13) -> 0.5 | AG7: =IF(AF7=0,0,(AF7*((LOG(AF7))/LOG(2)))) -> -0.5 | AI7: =N7 -> 111 | AJ7: =COUNTIF(L11:L11,AI7) -> 0 | AK7: =AJ7/(AL4-AJ13) -> 0 | AL7: =IF(AK7=0,0,(AK7*((LOG(AK7))/LOG(2)))) -> 0 | AN7: =N7 -> 111 | AO7: =COUNTIF(L12:L12,AN7) -> 1 | AP7: =AO7/(AQ4-AO13) -> 1 | AQ7: =IF(AP7=0,0,(AP7*((LOG(AP7))/LOG(2)))) -> 0 | AS7: =N7 -> 111 | AT7: =COUNTIF(L13:L13,AS7) -> 0 | AU7: =AT7/(AV4-AT13) -> 0 | AV7: =IF(AU7=0,0,(AU7*((LOG(AU7))/LOG(2)))) -> 0
A8: 11 | B8: 266 | C8: 21 | D8: 280 | E8: 22 | F8: 308 | K8: 0 | L8: 122 | N8: 112 | O8: 0 | P8: 0 | Q8: 0 | T8: 112 | U8: =COUNTIF(L7:L7,T8) -> 0 | V8: =U8/(W4-U13) -> 0 | W8: 0 | Y8: 112 | Z8: =COUNTIF(L8:L8,Y8) -> 0 | AA8: =Z8/(AB4-Z13) -> 0 | AB8: 0 | AD8: 112 | AE8: =COUNTIF(L9:L10,AD8) -> 0 | AF8: =AE8/(AG4-AE13) -> 0 | AG8: 0 | AI8: 112 | AJ8: =COUNTIF(L11:L11,AI8) -> 0 | AK8: =AJ8/(AL4-AJ13) -> 0 | AL8: 0 | AN8: 112 | AO8: =COUNTIF(L12:L12,AN8) -> 0 | AP8: =AO8/(AQ4-AO13) -> 0 | AQ8: 0 | AS8: 112 | AT8: =COUNTIF(L13:L13,AS8) -> 0 | AU8: =AT8/(AV4-AT13) -> 0 | AV8: 0
A9: 22 | B9: 509 | C9: 23 | D9: 522 | E9: 24 | F9: 550 | K9: 0 | L9: 222 | N9: 121 | O9: 0 | P9: 0 | Q9: 0 | T9: 121 | U9: =COUNTIF(L7:L7,T9) -> 0 | V9: =U9/(W4-U13) -> 0 | W9: 0 | Y9: 121 | Z9: =COUNTIF(L8:L8,Y9) -> 0 | AA9: =Z9/(AB4-Z13) -> 0 | AB9: 0 | AD9: 121 | AE9: =COUNTIF(L9:L10,AD9) -> 0 | AF9: =AE9/(AG4-AE13) -> 0 | AG9: 0 | AI9: 121 | AJ9: =COUNTIF(L11:L11,AI9) -> 0 | AK9: =AJ9/(AL4-AJ13) -> 0 | AL9: 0 | AN9: 121 | AO9: =COUNTIF(L12:L12,AN9) -> 0 | AP9: =AO9/(AQ4-AO13) -> 0 | AQ9: 0 | AS9: 121 | AT9: =COUNTIF(L13:L13,AS9) -> 0 | AU9: =AT9/(AV4-AT13) -> 0 | AV9: 0
A10: 11 | B10: 810 | C10: 12 | D10: 815 | E10: 13 | F10: 827 | K10: 0 | L10: 111 | N10: 122 | O10: 3 | P10: 0.4285714286 | Q10: -0.5238824663 | T10: 122 | U10: =COUNTIF(L7:L7,T10) -> 1 | V10: =U10/(W4-U13) -> 1 | W10: 0 | Y10: 122 | Z10: =COUNTIF(L8:L8,Y10) -> 1 | AA10: =Z10/(AB4-Z13) -> 1 | AB10: 0 | AD10: 122 | AE10: =COUNTIF(L9:L10,AD10) -> 0 | AF10: =AE10/(AG4-AE13) -> 0 | AG10: 0 | AI10: 122 | AJ10: =COUNTIF(L11:L11,AI10) -> 1 | AK10: =AJ10/(AL4-AJ13) -> 1 | AL10: 0 | AN10: 122 | AO10: =COUNTIF(L12:L12,AN10) -> 0 | AP10: =AO10/(AQ4-AO13) -> 0 | AQ10: 0 | AS10: 122 | AT10: =COUNTIF(L13:L13,AS10) -> 0 | AU10: =AT10/(AV4-AT13) -> 0 | AV10: 0
A11: 11 | B11: 1271 | C11: 21 | D11: 1279 | E11: 22 | F11: 1319 | K11: 0 | L11: 122 | N11: 211 | O11: 1 | P11: 0.1428571429 | Q11: -0.4010507032 | T11: 211 | U11: =COUNTIF(L7:L7,T11) -> 0 | V11: =U11/(W4-U13) -> 0 | W11: 0 | Y11: 211 | Z11: =COUNTIF(L8:L8,Y11) -> 0 | AA11: =Z11/(AB4-Z13) -> 0 | AB11: 0 | AD11: 211 | AE11: =COUNTIF(L9:L10,AD11) -> 0 | AF11: =AE11/(AG4-AE13) -> 0 | AG11: 0 | AI11: 211 | AJ11: =COUNTIF(L11:L11,AI11) -> 0 | AK11: =AJ11/(AL4-AJ13) -> 0 | AL11: 0 | AN11: 211 | AO11: =COUNTIF(L12:L12,AN11) -> 0 | AP11: =AO11/(AQ4-AO13) -> 0 | AQ11: 0 | AS11: 211 | AT11: =COUNTIF(L13:L13,AS11) -> 1 | AU11: =AT11/(AV4-AT13) -> 1 | AV11: 0
A12: 11 | B12: 1458 | C12: 12 | D12: 1465 | E12: 13 | F12: 1472 | K12: 0 | L12: 111 | N12: 212 | O12: 0 | P12: 0 | Q12: 0 | T12: 212 | U12: =COUNTIF(L7:L7,T12) -> 0 | V12: =U12/(W4-U13) -> 0 | W12: 0 | Y12: 212 | Z12: =COUNTIF(L8:L8,Y12) -> 0 | AA12: =Z12/(AB4-Z13) -> 0 | AB12: 0 | AD12: 212 | AE12: =COUNTIF(L9:L10,AD12) -> 0 | AF12: =AE12/(AG4-AE13) -> 0 | AG12: 0 | AI12: 212 | AJ12: =COUNTIF(L11:L11,AI12) -> 0 | AK12: =AJ12/(AL4-AJ13) -> 0 | AL12: 0 | AN12: 212 | AO12: =COUNTIF(L12:L12,AN12) -> 0 | AP12: =AO12/(AQ4-AO13) -> 0 | AQ12: 0 | AS12: 212 | AT12: =COUNTIF(L13:L13,AS12) -> 0 | AU12: =AT12/(AV4-AT13) -> 0 | AV12: 0
A13: 22 | B13: 21005 | C13: 14 | D13: 23735 | E13: 13 | F13: 23738 | K13: 0 | L13: 211 | N13: 221 | O13: 0 | P13: 0 | Q13: 0 | T13: 221 | U13: =COUNTIF(L7:L7,T13) -> 0 | Y13: 221 | Z13: =COUNTIF(L8:L8,Y13) -> 0 | AD13: 221 | AE13: =COUNTIF(L9:L10,AD13) -> 0 | AI13: 221 | AJ13: =COUNTIF(L11:L11,AI13) -> 0 | AN13: 221 | AO13: =COUNTIF(L12:L12,AN13) -> 0 | AS13: 221 | AT13: =COUNTIF(L13:L13,AS13) -> 0
N14: 222 | O14: 1 | P14: 0.1428571429 | Q14: -0.4010507032 | T14: 222 | U14: =COUNTIF(L7:L7,T14) -> 0 | V14: =U14/(W4-U13) -> 0 | W14: =IF(V14=0,0,(V14*((LOG(V14))/LOG(2)))) -> 0 | Y14: 222 | Z14: =COUNTIF(L8:L8,Y14) -> 0 | AA14: =Z14/(AB4-Z13) -> 0 | AB14: =IF(AA14=0,0,(AA14*((LOG(AA14))/LOG(2)))) -> 0 | AD14: 222 | AE14: =COUNTIF(L9:L10,AD14) -> 1 | AF14: =AE14/(AG4-AE13) -> 0.5 | AG14: =IF(AF14=0,0,(AF14*((LOG(AF14))/LOG(2)))) -> -0.5 | AI14: 222 | AJ14: =COUNTIF(L11:L11,AI14) -> 0 | AK14: =AJ14/(AL4-AJ13) -> 0 | AL14: =IF(AK14=0,0,(AK14*((LOG(AK14))/LOG(2)))) -> 0 | AN14: 222 | AO14: =COUNTIF(L12:L12,AN14) -> 0 | AP14: =AO14/(AQ4-AO13) -> 0 | AQ14: =IF(AP14=0,0,(AP14*((LOG(AP14))/LOG(2)))) -> 0 | AS14: 222 | AT14: =COUNTIF(L13:L13,AS14) -> 0 | AU14: =AT14/(AV4-AT13) -> 0 | AV14: =IF(AU14=0,0,(AU14*((LOG(AU14))/LOG(2)))) -> 0
P15: =SUM(P7:P14) -> 1 | Q15: =-SUM(Q7:Q14) -> 1.842370993 | V15: =SUM(V7:V14) -> 1 | W15: =-SUM(W7:W14) -> 0 | AA15: =SUM(AA7:AA14) -> 1 | AB15: =-SUM(AB7:AB14) -> 0 | AF15: =SUM(AF7:AF14) -> 1 | AG15: =-SUM(AG7:AG14) -> 1 | AK15: =SUM(AK7:AK14) -> 1 | AL15: =-SUM(AL7:AL14) -> 0 | AP15: =SUM(AP7:AP14) -> 1 | AQ15: =-SUM(AQ7:AQ14) -> 0 | AU15: =SUM(AU7:AU14) -> 1 | AV15: =-SUM(AV7:AV14) -> 0
P16: U= | Q16: =Q15/(LOG(Q4)/LOG(2)) -> 0.6562657891 | V16: U1= | W16: =W15/(LOG(W4)/LOG(2)) ->  | AA16: U2= | AB16: =AB15/(LOG(AB4)/LOG(2)) ->  | AF16: U3= | AG16: =AG15/(LOG(AG4)/LOG(2)) -> 1 | AK16: U4= | AL16: =AL15/(LOG(AL4)/LOG(2)) ->  | AP16: U5= | AQ16: =AQ15/(LOG(AQ4)/LOG(2)) ->  | AU16: U6= | AV16: =AV15/(LOG(AV4)/LOG(2)) -> 
N19: Total Target Seq
N20: =COUNTIF(L7:L13,G3) -> 0 | P20: 1 | Q20: 1 | R20: 2 | S20: 1 | T20: 1 | U20: 1
P21: % of reinforcement given in 6 equal intervals based on number of trials
P22: %_1 | Q22: %_2 | R22: %_3 | S22: %_4 | T22: %_5 | U22: %_6
O23: target sequence | P23: =$G$3 -> 221 | Q23: 221 | R23: 221 | S23: 221 | T23: 221 | U23: 221
O24: total reinforcement | P24: =U13 -> 0 | Q24: =Z13 -> 0 | R24: =AE13 -> 0 | S24: =AJ13 -> 0 | T24: =AO13 -> 0 | U24: =AT13 -> 0
O25: % target
O26: CCRF
O27: % CCRf
O28: average response rate | P28: =F7/P20 -> 128 | Q28: =(F8-F7)/Q20 -> 180 | R28: =(F10-F8)/R20 -> 259.5 | S28: =(F11-F10)/S20 -> 492 | T28: =(F12-F11)/T20 -> 153 | U28: =(F13-F12)/U20 -> 22266

Sheet !M901A0B.AXT
A1: Report for:!M901A0B.AXT
A2: Date: | B2: <date>
A3: Hen: | B3: <hen> | F3: Correct Sequence | G3: =Start!J2 -> 221 | P3: Total Sequences in Data | Q3: =4994-COUNTBLANK(L7:L5000) -> 2 | V3: Total Sequences in Block Data | W3: =COUNTA(L6:L7) -> 2 | AA3: Total Sequences in Block Data | AB3: =COUNTA(L7:L7) -> 1 | AF3: Total Sequences in Block Data | AG3: =COUNTA(L7:L8) -> 2 | AK3: Total Sequences in Block Data | AL3: =COUNTA(L7:L8) -> 2 | AP3: Total Sequences in Block Data | AQ3: =COUNTA(L8:L8) -> 1 | AU3: Total Sequences in Block Data | AV3: =COUNTA(L8:L9) -> 1
P4: Total Sequences in Summary | Q4: =SUM(O7:O14) -> 2 | V4: Total Sequences in Block Summary | W4: =SUM(U7:U14) -> 1 | AA4: Total Sequences in Block Summary | AB4: =SUM(Z7:Z14) -> 1 | AF4: Total Sequences in Block Summary | AG4: =SUM(AE7:AE14) -> 2 | AK4: Total Sequences in Block Summary | AL4: =SUM(AJ7:AJ14) -> 2 | AP4: Total Sequences in Block Summary | AQ4: =SUM(AO7:AO14) -> 1 | AU4: Total Sequences in Block Summary | AV4: =SUM(AT7:AT14) -> 1
T5: Block 1 | Y5: Block 2 | AD5: Block 3 | AI5: Block 4 | AN5: Block 5 | AS5: Block 6
A6: Sequence Component 1 | B6: Time 1 | C6: Sequence Component 2 | D6: Time 2 | E6: Sequence Component 3 | F6: Time 3 | G6: Sequence Component 4 | H6: Time 4 | I6: Sequence Component 5 | J6: Time 5 | K6: Correct? 0=No 1=Yes | L6: Sequence | N6: Frequency | P6: Relative Frequency | Q6: Variability | T6: Frequency | V6: Relative Frequency | W6: Variability | Y6: Frequency | AA6: Relative Frequency | AB6: Variability | AD6: Frequency | AF6: Relative Frequency | AG6: Variability | AI6: Frequency | AK6: Relative Frequency | AL6: Variability | AN6: Frequency | AP6: Relative Frequency | AQ6: Variability | AS6: Frequency | AU6: Relative Frequency | AV6: Variability
A7: 11 | B7: 471 | C7: 12 | D7: 495 | E7: 13 | F7: 500 | K7: 0 | L7: 111 | N7: 111 | O7: =COUNTIF($L$7:$L$500,N7) -> 2 | P7: =O7/$Q$4 -> 1 | Q7: =IF(P7=0,0,(P7*((LOG(P7))/LOG(2)))) -> 0 | T7: =N7 -> 111 | U7: =COUNTIF(L6:L7,T7) -> 1 | V7: =U7/(W4-U13) -> 1 | W7: =IF(V7=0,0,(V7*((LOG(V7))/LOG(2)))) -> 0 | Y7: =N7 -> 111 | Z7: =COUNTIF(L7:L7,Y7) -> 1 | AA7: =Z7/(AB4-Z13) -> 1 | AB7: =IF(AA7=0,0,(AA7*((LOG(AA7))/LOG(2)))) -> 0 | AD7: =N7 -> 111 | AE7: =COUNTIF(L7:L8,AD7) -> 2 | AF7: =AE7/(AG4-AE13) -> 1 | AG7: =IF(AF7=0,0,(AF7*((LOG(AF7))/LOG(2)))) -> 0 | AI7: =N7 -> 111 | AJ7: =COUNTIF(L7:L8,AI7) -> 2 | AK7: =AJ7/(AL4-AJ13) -> 1 | AL7: =IF(AK7=0,0,(AK7*((LOG(AK7))/LOG(2)))) -> 0 | AN7: =N7 -> 111 | AO7: =COUNTIF(L8:L8,AN7) -> 1 | AP7: =AO7/(AQ4-AO13) -> 1 | AQ7: =IF(AP7=0,0,(AP7*((LOG(AP7))/LOG(2)))) -> 0 | AS7: =N7 -> 111 | AT7: =COUNTIF(L8:L9,AS7) -> 1 | AU7: =AT7/(AV4-AT13) -> 1 | AV7: =IF(AU7=0,0,(AU7*((LOG(AU7))/LOG(2)))) -> 0
A8: 11 | B8: 1162 | C8: 12 | D8: 1175 | E8: 13 | F8: 1181 | K8: 0 | L8: 111 | N8: 112 | O8: 0 | P8: 0 | Q8: 0 | T8: 112 | U8: =COUNTIF(L6:L7,T8) -> 0 | V8: =U8/(W4-U13) -> 0 | W8: 0 | Y8: 112 | Z8: =COUNTIF(L7:L7,Y8) -> 0 | AA8: =Z8/(AB4-Z13) -> 0 | AB8: 0 | AD8: 112 | AE8: =COUNTIF(L7:L8,AD8) -> 0 | AF8: =AE8/(AG4-AE13) -> 0 | AG8: 0 | AI8: 112 | AJ8: =COUNTIF(L7:L8,AI8) -> 0 | AK8: =AJ8/(AL4-AJ13) -> 0 | AL8: 0 | AN8: 112 | AO8: =COUNTIF(L8:L8,AN8) -> 0 | AP8: =AO8/(AQ4-AO13) -> 0 | AQ8: 0 | AS8: 112 | AT8: =COUNTIF(L8:L9,AS8) -> 0 | AU8: =AT8/(AV4-AT13) -> 0 | AV8: 0
N9: 121 | O9: 0 | P9: 0 | Q9: 0 | T9: 121 | U9: =COUNTIF(L6:L7,T9) -> 0 | V9: =U9/(W4-U13) -> 0 | W9: 0 | Y9: 121 | Z9: =COUNTIF(L7:L7,Y9) -> 0 | AA9: =Z9/(AB4-Z13) -> 0 | AB9: 0 | AD9: 121 | AE9: =COUNTIF(L7:L8,AD9) -> 0 | AF9: =AE9/(AG4-AE13) -> 0 | AG9: 0 | AI9: 121 | AJ9: =COUNTIF(L7:L8,AI9) -> 0 | AK9: =AJ9/(AL4-AJ13) -> 0 | AL9: 0 | AN9: 121 | AO9: =COUNTIF(L8:L8,AN9) -> 0 | AP9: =AO9/(AQ4-AO13) -> 0 | AQ9: 0 | AS9: 121 | AT9: =COUNTIF(L8:L9,AS9) -> 0 | AU9: =AT9/(AV4-AT13) -> 0 | AV9: 0
N10: 122 | O10: 0 | P10: 0 | Q10: 0 | T10: 122 | U10: =COUNTIF(L6:L7,T10) -> 0 | V10: =U10/(W4-U13) -> 0 | W10: 0 | Y10: 122 | Z10: =COUNTIF(L7:L7,Y10) -> 0 | AA10: =Z10/(AB4-Z13) -> 0 | AB10: 0 | AD10: 122 | AE10: =COUNTIF(L7:L8,AD10) -> 0 | AF10: =AE10/(AG4-AE13) -> 0 | AG10: 0 | AI10: 122 | AJ10: =COUNTIF(L7:L8,AI10) -> 0 | AK10: =AJ10/(AL4-AJ13) -> 0 | AL10: 0 | AN10: 122 | AO10: =COUNTIF(L8:L8,AN10) -> 0 | AP10: =AO10/(AQ4-AO13) -> 0 | AQ10: 0 | AS10: 122 | AT10: =COUNTIF(L8:L9,AS10) -> 0 | AU10: =AT10/(AV4-AT13) -> 0 | AV10: 0
N11: 211 | O11: 0 | P11: 0 | Q11: 0 | T11: 211 | U11: =COUNTIF(L6:L7,T11) -> 0 | V11: =U11/(W4-U13) -> 0 | W11: 0 | Y11: 211 | Z11: =COUNTIF(L7:L7,Y11) -> 0 | AA11: =Z11/(AB4-Z13) -> 0 | AB11: 0 | AD11: 211 | AE11: =COUNTIF(L7:L8,AD11) -> 0 | AF11: =AE11/(AG4-AE13) -> 0 | AG11: 0 | AI11: 211 | AJ11: =COUNTIF(L7:L8,AI11) -> 0 | AK11: =AJ11/(AL4-AJ13) -> 0 | AL11: 0 | AN11: 211 | AO11: =COUNTIF(L8:L8,AN11) -> 0 | AP11: =AO11/(AQ4-AO13) -> 0 | AQ11: 0 | AS11: 211 | AT11: =COUNTIF(L8:L9,AS11) -> 0 | AU11: =AT11/(AV4-AT13) -> 0 | AV11: 0
N12: 212 | O12: 0 | P12: 0 | Q12: 0 | T12: 212 | U12: =COUNTIF(L6:L7,T12) -> 0 | V12: =U12/(W4-U13) -> 0 | W12: 0 | Y12: 212 | Z12: =COUNTIF(L7:L7,Y12) -> 0 | AA12: =Z12/(AB4-Z13) -> 0 | AB12: 0 | AD12: 212 | AE12: =COUNTIF(L7:L8,AD12) -> 0 | AF12: =AE12/(AG4-AE13) -> 0 | AG12: 0 | AI12: 212 | AJ12: =COUNTIF(L7:L8,AI12) -> 0 | AK12: =AJ12/(AL4-AJ13) -> 0 | AL12: 0 | AN12: 212 | AO12: =COUNTIF(L8:L8,AN12) -> 0 | AP12: =AO12/(AQ4-AO13) -> 0 | AQ12: 0 | AS12: 212 | AT12: =COUNTIF(L8:L9,AS12) -> 0 | AU12: =AT12/(AV4-AT13) -> 0 | AV12: 0
N13: 221 | O13: 0 | P13: 0 | Q13: 0 | T13: 221 | U13: =COUNTIF(L6:L7,T13) -> 0 | Y13: 221 | Z13: =COUNTIF(L7:L7,Y13) -> 0 | AD13: 221 | AE13: =COUNTIF(L7:L8,AD13) -> 0 | AI13: 221 | AJ13: =COUNTIF(L7:L8,AI13) -> 0 | AN13: 221 | AO13: =COUNTIF(L8:L8,AN13) -> 0 | AS13: 221 | AT13: =COUNTIF(L8:L9,AS13) -> 0
N14: 222 | O14: 0 | P14: 0 | Q14: 0 | T14: 222 | U14: =COUNTIF(L6:L7,T14) -> 0 | V14: =U14/(W4-U13) -> 0 | W14: =IF(V14=0,0,(V14*((LOG(V14))/LOG(2)))) -> 0 | Y14: 222 | Z14: =COUNTIF(L7:L7,Y14) -> 0 | AA14: =Z14/(AB4-Z13) -> 0 | AB14: =IF(AA14=0,0,(AA14*((LOG(AA14))/LOG(2)))) -> 0 | AD14: 222 | AE14: =COUNTIF(L7:L8,AD14) -> 0 | AF14: =AE14/(AG4-AE13) -> 0 | AG14: =IF(AF14=0,0,(AF14*((LOG(AF14))/LOG(2)))) -> 0 | AI14: 222 | AJ14: =COUNTIF(L7:L8,AI14) -> 0 | AK14: =AJ14/(AL4-AJ13) -> 0 | AL14: =IF(AK14=0,0,(AK14*((LOG(AK14))/LOG(2)))) -> 0 | AN14: 222 | AO14: =COUNTIF(L8:L8,AN14) -> 0 | AP14: =AO14/(AQ4-AO13) -> 0 | AQ14: =IF(AP14=0,0,(AP14*((LOG(AP14))/LOG(2)))) -> 0 | AS14: 222 | AT14: =COUNTIF(L8:L9,AS14) -> 0 | AU14: =AT14/(AV4-AT13) -> 0 | AV14: =IF(AU14=0,0,(AU14*((LOG(AU14))/LOG(2)))) -> 0
P15: =SUM(P7:P14) -> 1 | Q15: =-SUM(Q7:Q14) -> 0 | V15: =SUM(V7:V14) -> 1 | W15: =-SUM(W7:W14) -> 0 | AA15: =SUM(AA7:AA14) -> 1 | AB15: =-SUM(AB7:AB14) -> 0 | AF15: =SUM(AF7:AF14) -> 1 | AG15: =-SUM(AG7:AG14) -> 0 | AK15: =SUM(AK7:AK14) -> 1 | AL15: =-SUM(AL7:AL14) -> 0 | AP15: =SUM(AP7:AP14) -> 1 | AQ15: =-SUM(AQ7:AQ14) -> 0 | AU15: =SUM(AU7:AU14) -> 1 | AV15: =-SUM(AV7:AV14) -> 0
P16: U= | Q16: =Q15/(LOG(Q4)/LOG(2)) -> 0 | V16: U1= | W16: =W15/(LOG(W4)/LOG(2)) ->  | AA16: U2= | AB16: =AB15/(LOG(AB4)/LOG(2)) ->  | AF16: U3= | AG16: =AG15/(LOG(AG4)/LOG(2)) -> 0 | AK16: U4= | AL16: =AL15/(LOG(AL4)/LOG(2)) -> 0 | AP16: U5= | AQ16: =AQ15/(LOG(AQ4)/LOG(2)) ->  | AU16: U6= | AV16: =AV15/(LOG(AV4)/LOG(2)) -> 
N19: Total Target Seq
N20: =COUNTIF(L7:L8,G3) -> 0 | P20: 0 | Q20: 1 | R20: 0 | S20: 0 | T20: 1 | U20: 0
P21: % of reinforcement given in 6 equal intervals based on number of trials
P22: %_1 | Q22: %_2 | R22: %_3 | S22: %_4 | T22: %_5 | U22: %_6
O23: target sequence | P23: =$G$3 -> 221 | Q23: 221 | R23: 221 | S23: 221 | T23: 221 | U23: 221
O24: total reinforcement | P24: =U13 -> 0 | Q24: =Z13 -> 0 | R24: =AE13 -> 0 | S24: =AJ13 -> 0 | T24: =AO13 -> 0 | U24: =AT13 -> 0
O25: % target
O26: CCRF
O27: % CCRf
O28: average response rate | P28: =F6/P20 ->  | Q28: =(F7-F6)/Q20 ->  | R28: =(F7-F7)/R20 ->  | S28: =(F7-F7)/S20 ->  | T28: =(F8-F7)/T20 -> 681 | U28: =(F8-F8)/U20 -> 

Sheet !M902A1B.AXT
A1: Report for:!M902A1B.AXT
A2: Date: | B2: <date>
A3: Hen: | B3: <hen> | F3: Correct Sequence | G3: =Start!J2 -> 221 | P3: Total Sequences in Data | Q3: =4994-COUNTBLANK(L7:L5000) -> 4 | V3: Total Sequences in Block Data | W3: =COUNTA(L7:L7) -> 1 | AA3: Total Sequences in Block Data | AB3: =COUNTA(L7:L8) -> 2 | AF3: Total Sequences in Block Data | AG3: =COUNTA(L8:L8) -> 1 | AK3: Total Sequences in Block Data | AL3: =COUNTA(L9:L9) -> 1 | AP3: Total Sequences in Block Data | AQ3: =COUNTA(L9:L10) -> 2 | AU3: Total Sequences in Block Data | AV3: =COUNTA(L10:L10) -> 1
P4: Total Sequences in Summary | Q4: =SUM(O7:O14) -> 3 | V4: Total Sequences in Block Summary | W4: =SUM(U7:U14) -> 1 | AA4: Total Sequences in Block Summary | AB4: =SUM(Z7:Z14) -> 2 | AF4: Total Sequences in Block Summary | AG4: =SUM(AE7:AE14) -> 1 | AK4: Total Sequences in Block Summary | AL4: =SUM(AJ7:AJ14) -> 1 | AP4: Total Sequences in Block Summary | AQ4: =SUM(AO7:AO14) -> 1 | AU4: Total Sequences in Block Summary | AV4: =SUM(AT7:AT14) -> 0
T5: Block 1 | Y5: Block 2 | AD5: Block 3 | AI5: Block 4 | AN5: Block 5 | AS5: Block 6
A6: Sequence Component 1 | B6: Time 1 | C6: Sequence Component 2 | D6: Time 2 | E6: Sequence Component 3 | F6: Time 3 | G6: Sequence Component 4 | H6: Time 4 | I6: Sequence Component 5 | J6: Time 5 | K6: Correct? 0=No 1=Yes | L6: Sequence | N6: Frequency | P6: Relative Frequency | Q6: Variability | T6: Frequency | V6: Relative Frequency | W6: Variability | Y6: Frequency | AA6: Relative Frequency | AB6: Variability | AD6: Frequency | AF6: Relative Frequency | AG6: Variability | AI6: Frequency | AK6: Relative Frequency | AL6: Variability | AN6: Frequency | AP6: Relative Frequency | AQ6: Variability | AS6: Frequency | AU6: Relative Frequency | AV6: Variability
A7: 22 | B7: 754 | C7: 23 | D7: 780 | E7: 24 | F7: 789 | K7: 0 | L7: 222 | N7: 111 | O7: =COUNTIF($L$7:$L$500,N7) -> 0 | P7: =O7/$Q$4 -> 0 | Q7: =IF(P7=0,0,(P7*((LOG(P7))/LOG(2)))) -> 0 | T7: =N7 -> 111 | U7: =COUNTIF(L7:L7,T7) -> 0 | V7: =U7/(W4-U13) -> 0 | W7: =IF(V7=0,0,(V7*((LOG(V7))/LOG(2)))) -> 0 | Y7: =N7 -> 111 | Z7: =COUNTIF(L7:L8,Y7) -> 0 | AA7: =Z7/(AB4-Z13) -> 0 | AB7: =IF(AA7=0,0,(AA7*((LOG(AA7))/LOG(2)))) -> 0 | AD7: =N7 -> 111 | AE7: =COUNTIF(L8:L8,AD7) -> 0 | AF7: =AE7/(AG4-AE13) -> 0 | AG7: =IF(AF7=0,0,(AF7*((LOG(AF7))/LOG(2)))) -> 0 | AI7: =N7 -> 111 | AJ7: =COUNTIF(L9:L9,AI7) -> 0 | AK7: =AJ7/(AL4-AJ13) -> 0 | AL7: =IF(AK7=0,0,(AK7*((LOG(AK7))/LOG(2)))) -> 0 | AN7: =N7 -> 111 | AO7: =COUNTIF(L9:L10,AN7) -> 0 | AP7: =AO7/(AQ4-AO13) -> 0 | AQ7: =IF(AP7=0,0,(AP7*((LOG(AP7))/LOG(2)))) -> 0 | AS7: =N7 -> 111 | AT7: =COUNTIF(L10:L10,AS7) -> 0 | AU7: =AT7/(AV4-AT13) ->  | AV7: =IF(AU7=0,0,(AU7*((LOG(AU7))/LOG(2)))) -> 
A8: 22 | B8: 2708 | C8: 23 | D8: 2722 | E8: 24 | F8: 2733 | K8: 0 | L8: 222 | N8: 112 | O8: 0 | P8: 0 | Q8: 0 | T8: 112 | U8: =COUNTIF(L7:L7,T8) -> 0 | V8: =U8/(W4-U13) -> 0 | W8: 0 | Y8: 112 | Z8: =COUNTIF(L7:L8,Y8) -> 0 | AA8: =Z8/(AB4-Z13) -> 0 | AB8: 0 | AD8: 112 | AE8: =COUNTIF(L8:L8,AD8) -> 0 | AF8: =AE8/(AG4-AE13) -> 0 | AG8: 0 | AI8: 112 | AJ8: =COUNTIF(L9:L9,AI8) -> 0 | AK8: =AJ8/(AL4-AJ13) -> 0 | AL8: 0 | AN8: 112 | AO8: =COUNTIF(L9:L10,AN8) -> 0 | AP8: =AO8/(AQ4-AO13) -> 0 | AQ8: 0 | AS8: 112 | AT8: =COUNTIF(L10:L10,AS8) -> 0 | AU8: =AT8/(AV4-AT13) -> 
A9: 22 | B9: 2845 | C9: 23 | D9: 2856 | E9: 24 | F9: 2868 | K9: 0 | L9: 222 | N9: 121 | O9: 0 | P9: 0 | Q9: 0 | T9: 121 | U9: =COUNTIF(L7:L7,T9) -> 0 | V9: =U9/(W4-U13) -> 0 | W9: 0 | Y9: 121 | Z9: =COUNTIF(L7:L8,Y9) -> 0 | AA9: =Z9/(AB4-Z13) -> 0 | AB9: 0 | AD9: 121 | AE9: =COUNTIF(L8:L8,AD9) -> 0 | AF9: =AE9/(AG4-AE13) -> 0 | AG9: 0 | AI9: 121 | AJ9: =COUNTIF(L9:L9,AI9) -> 0 | AK9: =AJ9/(AL4-AJ13) -> 0 | AL9: 0 | AN9: 121 | AO9: =COUNTIF(L9:L10,AN9) -> 0 | AP9: =AO9/(AQ4-AO13) -> 0 | AQ9: 0 | AS9: 121 | AT9: =COUNTIF(L10:L10,AS9) -> 0 | AU9: =AT9/(AV4-AT13) -> 
A10: 22 | B10: 3268 | L10: 2 | N10: 122 | O10: 0 | P10: 0 | Q10: 0 | T10: 122 | U10: =COUNTIF(L7:L7,T10) -> 0 | V10: =U10/(W4-U13) -> 0 | W10: 0 | Y10: 122 | Z10: =COUNTIF(L7:L8,Y10) -> 0 | AA10: =Z10/(AB4-Z13) -> 0 | AB10: 0 | AD10: 122 | AE10: =COUNTIF(L8:L8,AD10) -> 0 | AF10: =AE10/(AG4-AE13) -> 0 | AG10: 0 | AI10: 122 | AJ10: =COUNTIF(L9:L9,AI10) -> 0 | AK10: =AJ10/(AL4-AJ13) -> 0 | AL10: 0 | AN10: 122 | AO10: =COUNTIF(L9:L10,AN10) -> 0 | AP10: =AO10/(AQ4-AO13) -> 0 | AQ10: 0 | AS10: 122 | AT10: =COUNTIF(L10:L10,AS10) -> 0 | AU10: =AT10/(AV4-AT13) -> 
N11: 211 | O11: 0 | P11: 0 | Q11: 0 | T11: 211 | U11: =COUNTIF(L7:L7,T11) -> 0 | V11: =U11/(W4-U13) -> 0 | W11: 0 | Y11: 211 | Z11: =COUNTIF(L7:L8,Y11) -> 0 | AA11: =Z11/(AB4-Z13) -> 0 | AB11: 0 | AD11: 211 | AE11: =COUNTIF(L8:L8,AD11) -> 0 | AF11: =AE11/(AG4-AE13) -> 0 | AG11: 0 | AI11: 211 | AJ11: =COUNTIF(L9:L9,AI11) -> 0 | AK11: =AJ11/(AL4-AJ13) -> 0 | AL11: 0 | AN11: 211 | AO11: =COUNTIF(L9:L10,AN11) -> 0 | AP11: =AO11/(AQ4-AO13) -> 0 | AQ11: 0 | AS11: 211 | AT11: =COUNTIF(L10:L10,AS11) -> 0 | AU11: =AT11/(AV4-AT13) -> 
N12: 212 | O12: 0 | P12: 0 | Q12: 0 | T12: 212 | U12: =COUNTIF(L7:L7,T12) -> 0 | V12: =U12/(W4-U13) -> 0 | W12: 0 | Y12: 212 | Z12: =COUNTIF(L7:L8,Y12) -> 0 | AA12: =Z12/(AB4-Z13) -> 0 | AB12: 0 | AD12: 212 | AE12: =COUNTIF(L8:L8,AD12) -> 0 | AF12: =AE12/(AG4-AE13) -> 0 | AG12: 0 | AI12: 212 | AJ12: =COUNTIF(L9:L9,AI12) -> 0 | AK12: =AJ12/(AL4-AJ13) -> 0 | AL12: 0 | AN12: 212 | AO12: =COUNTIF(L9:L10,AN12) -> 0 | AP12: =AO12/(AQ4-AO13) -> 0 | AQ12: 0 | AS12: 212 | AT12: =COUNTIF(L10:L10,AS12) -> 0 | AU12: =AT12/(AV4-AT13) -> 
N13: 221 | O13: 0 | P13: 0 | Q13: 0 | T13: 221 | U13: =COUNTIF(L7:L7,T13) -> 0 | Y13: 221 | Z13: =COUNTIF(L7:L8,Y13) -> 0 | AD13: 221 | AE13: =COUNTIF(L8:L8,AD13) -> 0 | AI13: 221 | AJ13: =COUNTIF(L9:L9,AI13) -> 0 | AN13: 221 | AO13: =COUNTIF(L9:L10,AN13) -> 0 | AS13: 221 | AT13: =COUNTIF(L10:L10,AS13) -> 0
N14: 222 | O14: 3 | P14: 1 | Q14: 0 | T14: 222 | U14: =COUNTIF(L7:L7,T14) -> 1 | V14: =U14/(W4-U13) -> 1 | W14: =IF(V14=0,0,(V14*((LOG(V14))/LOG(2)))) -> 0 | Y14: 222 | Z14: =COUNTIF(L7:L8,Y14) -> 2 | AA14: =Z14/(AB4-Z13) -> 1 | AB14: =IF(AA14=0,0,(AA14*((LOG(AA14))/LOG(2)))) -> 0 | AD14: 222 | AE14: =COUNTIF(L8:L8,AD14) -> 1 | AF14: =AE14/(AG4-AE13) -> 1 | AG14: =IF(AF14=0,0,(AF14*((LOG(AF14))/LOG(2)))) -> 0 | AI14: 222 | AJ14: =COUNTIF(L9:L9,AI14) -> 1 | AK14: =AJ14/(AL4-AJ13) -> 1 | AL14: =IF(AK14=0,0,(AK14*((LOG(AK14))/LOG(2)))) -> 0 | AN14: 222 | AO14: =COUNTIF(L9:L10,AN14) -> 1 | AP14: =AO14/(AQ4-AO13) -> 1 | AQ14: =IF(AP14=0,0,(AP14*((LOG(AP14))/LOG(2)))) -> 0 | AS14: 222 | AT14: =COUNTIF(L10:L10,AS14) -> 0 | AU14: =AT14/(AV4-AT13) ->  | AV14: =IF(AU14=0,0,(AU14*((LOG(AU14))/LOG(2)))) -> 
P15: =SUM(P7:P14) -> 1 | Q15: =-SUM(Q7:Q14) -> 0 | V15: =SUM(V7:V14) -> 1 | W15: =-SUM(W7:W14) -> 0 | AA15: =SUM(AA7:AA14) -> 1 | AB15: =-SUM(AB7:AB14) -> 0 | AF15: =SUM(AF7:AF14) -> 1 | AG15: =-SUM(AG7:AG14) -> 0 | AK15: =SUM(AK7:AK14) -> 1 | AL15: =-SUM(AL7:AL14) -> 0 | AP15: =SUM(AP7:AP14) -> 1 | AQ15: =-SUM(AQ7:AQ14) -> 0 | AU15: =SUM(AU7:AU14) ->  | AV15: =-SUM(AV7:AV14) -> 
P16: U= | Q16: =Q15/(LOG(Q4)/LOG(2)) -> 0 | V16: U1= | W16: =W15/(LOG(W4)/LOG(2)) ->  | AA16: U2= | AB16: =AB15/(LOG(AB4)/LOG(2)) -> 0 | AF16: U3= | AG16: =AG15/(LOG(AG4)/LOG(2)) ->  | AK16: U4= | AL16: =AL15/(LOG(AL4)/LOG(2)) ->  | AP16: U5= | AQ16: =AQ15/(LOG(AQ4)/LOG(2)) ->  | AU16: U6= | AV16: =AV15/(LOG(AV4)/LOG(2)) -> 
N19: Total Target Seq
N20: =COUNTIF(L7:L10,G3) -> 0 | P20: 1 | Q20: 0 | R20: 1 | S20: 1 | T20: 0 | U20: 1
P21: % of reinforcement given in 6 equal intervals based on number of trials
P22: %_1 | Q22: %_2 | R22: %_3 | S22: %_4 | T22: %_5 | U22: %_6
O23: target sequence | P23: =$G$3 -> 221 | Q23: 221 | R23: 221 | S23: 221 | T23: 221 | U23: 221
O24: total reinforcement | P24: =U13 -> 0 | Q24: =Z13 -> 0 | R24: =AE13 -> 0 | S24: =AJ13 -> 0 | T24: =AO13 -> 0 | U24: =AT13 -> 0
O25: % target
O26: CCRF
O27: % CCRf
O28: average response rate | P28: =F7/P20 -> 789 | Q28: =(F7-F7)/Q20 ->  | R28: =(F8-F7)/R20 -> 1944 | S28: =(F9-F8)/S20 -> 135 | T28: =(F9-F9)/T20 ->  | U28: =(F10-F9)/U20 -> -2868

Sheet !M903C3B.AXT
A1: Report for:!M903C3B.AXT
A2: Date: | B2: <date>
A3: Hen: | B3: <hen> | F3: Correct Sequence | G3: =Start!J2 -> 221 | P3: Total Sequences in Data | Q3: =4994-COUNTBLANK(L7:L5000) -> 4 | V3: Total Sequences in Block Data | W3: =COUNTA(L7:L7) -> 1 | AA3: Total Sequences in Block Data | AB3: =COUNTA(L7:L8) -> 2 | AF3: Total Sequences in Block Data | AG3: =COUNTA(L8:L8) -> 1 | AK3: Total Sequences in Block Data | AL3: =COUNTA(L9:L9) -> 1 | AP3: Total Sequences in Block Data | AQ3: =COUNTA(L9:L10) -> 2 | AU3: Total Sequences in Block Data | AV3: =COUNTA(L10:L10) -> 1
P4: Total Sequences in Summary | Q4: =SUM(O7:O14) -> 4 | V4: Total Sequences in Block Summary | W4: =SUM(U7:U14) -> 1 | AA4: Total Sequences in Block Summary | AB4: =SUM(Z7:Z14) -> 2 | AF4: Total Sequences in Block Summary | AG4: =SUM(AE7:AE14) -> 1 | AK4: Total Sequences in Block Summary | AL4: =SUM(AJ7:AJ14) -> 1 | AP4: Total Sequences in Block Summary | AQ4: =SUM(AO7:AO14) -> 2 | AU4: Total Sequences in Block Summary | AV4: =SUM(AT7:AT14) -> 1
T5: Block 1 | Y5: Block 2 | AD5: Block 3 | AI5: Block 4 | AN5: Block 5 | AS5: Block 6
A6: Sequence Component 1 | B6: Time 1 | C6: Sequence Component 2 | D6: Time 2 | E6: Sequence Component 3 | F6: Time 3 | G6: Sequence Component 4 | H6: Time 4 | I6: Sequence Component 5 | J6: Time 5 | K6: Correct? 0=No 1=Yes | L6: Sequence | N6: Frequency | P6: Relative Frequency | Q6: Variability | T6: Frequency | V6: Relative Frequency | W6: Variability | Y6: Frequency | AA6: Relative Frequency | AB6: Variability | AD6: Frequency | AF6: Relative Frequency | AG6: Variability | AI6: Frequency | AK6: Relative Frequency | AL6: Variability | AN6: Frequency | AP6: Relative Frequency | AQ6: Variability | AS6: Frequency | AU6: Relative Frequency | AV6: Variability
A7: 22 | B7: 243 | C7: 23 | D7: 268 | E7: 13 | F7: 278 | K7: 0 | L7: 221 | N7: 111 | O7: =COUNTIF($L$7:$L$500,N7) -> 1 | P7: =O7/$Q$4 -> 0.25 | Q7: =IF(P7=0,0,(P7*((LOG(P7))/LOG(2)))) -> -0.5 | T7: =N7 -> 111 | U7: =COUNTIF(L7:L7,T7) -> 0 | V7: =U7/(W4-U13) ->  | W7: =IF(V7=0,0,(V7*((LOG(V7))/LOG(2)))) ->  | Y7: =N7 -> 111 | Z7: =COUNTIF(L7:L8,Y7) -> 0 | AA7: =Z7/(AB4-Z13) -> 0 | AB7: =IF(AA7=0,0,(AA7*((LOG(AA7))/LOG(2)))) -> 0 | AD7: =N7 -> 111 | AE7: =COUNTIF(L8:L8,AD7) -> 0 | AF7: =AE7/(AG4-AE13) -> 0 | AG7: =IF(AF7=0,0,(AF7*((LOG(AF7))/LOG(2)))) -> 0 | AI7: =N7 -> 111 | AJ7: =COUNTIF(L9:L9,AI7) -> 1 | AK7: =AJ7/(AL4-AJ13) -> 1 | AL7: =IF(AK7=0,0,(AK7*((LOG(AK7))/LOG(2)))) -> 0 | AN7: =N7 -> 111 | AO7: =COUNTIF(L9:L10,AN7) -> 1 | AP7: =AO7/(AQ4-AO13) -> 0.5 | AQ7: =IF(AP7=0,0,(AP7*((LOG(AP7))/LOG(2)))) -> -0.5 | AS7: =N7 -> 111 | AT7: =COUNTIF(L10:L10,AS7) -> 0 | AU7: =AT7/(AV4-AT13) -> 0 | AV7: =IF(AU7=0,0,(AU7*((LOG(AU7))/LOG(2)))) -> 0
A8: 11 | B8: 665 | C8: 21 | D8: 695 | E8: 22 | F8: 701 | K8: 0 | L8: 122 | N8: 112 | O8: 0 | P8: 0 | Q8: 0 | T8: 112 | U8: =COUNTIF(L7:L7,T8) -> 0 | V8: =U8/(W4-U13) ->  | Y8: 112 | Z8: =COUNTIF(L7:L8,Y8) -> 0 | AA8: =Z8/(AB4-Z13) -> 0 | AB8: 0 | AD8: 112 | AE8: =COUNTIF(L8:L8,AD8) -> 0 | AF8: =AE8/(AG4-AE13) -> 0 | AG8: 0 | AI8: 112 | AJ8: =COUNTIF(L9:L9,AI8) -> 0 | AK8: =AJ8/(AL4-AJ13) -> 0 | AL8: 0 | AN8: 112 | AO8: =COUNTIF(L9:L10,AN8) -> 0 | AP8: =AO8/(AQ4-AO13) -> 0 | AQ8: 0 | AS8: 112 | AT8: =COUNTIF(L10:L10,AS8) -> 0 | AU8: =AT8/(AV4-AT13) -> 0 | AV8: 0
A9: 11 | B9: 1144 | C9: 12 | D9: 1148 | E9: 13 | F9: 8609 | K9: 0 | L9: 111 | N9: 121 | O9: 0 | P9: 0 | Q9: 0 | T9: 121 | U9: =COUNTIF(L7:L7,T9) -> 0 | V9: =U9/(W4-U13) ->  | Y9: 121 | Z9: =COUNTIF(L7:L8,Y9) -> 0 | AA9: =Z9/(AB4-Z13) -> 0 | AB9: 0 | AD9: 121 | AE9: =COUNTIF(L8:L8,AD9) -> 0 | AF9: =AE9/(AG4-AE13) -> 0 | AG9: 0 | AI9: 121 | AJ9: =COUNTIF(L9:L9,AI9) -> 0 | AK9: =AJ9/(AL4-AJ13) -> 0 | AL9: 0 | AN9: 121 | AO9: =COUNTIF(L9:L10,AN9) -> 0 | AP9: =AO9/(AQ4-AO13) -> 0 | AQ9: 0 | AS9: 121 | AT9: =COUNTIF(L10:L10,AS9) -> 0 | AU9: =AT9/(AV4-AT13) -> 0 | AV9: 0
A10: 22 | B10: 15251 | C10: 14 | D10: 23111 | E10: 13 | F10: 23114 | K10: 0 | L10: 211 | N10: 122 | O10: 1 | P10: 0.25 | Q10: -0.5 | T10: 122 | U10: =COUNTIF(L7:L7,T10) -> 0 | V10: =U10/(W4-U13) ->  | Y10: 122 | Z10: =COUNTIF(L7:L8,Y10) -> 1 | AA10: =Z10/(AB4-Z13) -> 1 | AB10: 0 | AD10: 122 | AE10: =COUNTIF(L8:L8,AD10) -> 1 | AF10: =AE10/(AG4-AE13) -> 1 | AG10: 0 | AI10: 122 | AJ10: =COUNTIF(L9:L9,AI10) -> 0 | AK10: =AJ10/(AL4-AJ13) -> 0 | AL10: 0 | AN10: 122 | AO10: =COUNTIF(L9:L10,AN10) -> 0 | AP10: =AO10/(AQ4-AO13) -> 0 | AQ10: 0 | AS10: 122 | AT10: =COUNTIF(L10:L10,AS10) -> 0 | AU10: =AT10/(AV4-AT13) -> 0 | AV10: 0
N11: 211 | O11: 1 | P11: 0.25 | Q11: -0.5 | T11: 211 | U11: =COUNTIF(L7:L7,T11) -> 0 | V11: =U11/(W4-U13) ->  | Y11: 211 | Z11: =COUNTIF(L7:L8,Y11) -> 0 | AA11: =Z11/(AB4-Z13) -> 0 | AB11: 0 | AD11: 211 | AE11: =COUNTIF(L8:L8,AD11) -> 0 | AF11: =AE11/(AG4-AE13) -> 0 | AG11: 0 | AI11: 211 | AJ11: =COUNTIF(L9:L9,AI11) -> 0 | AK11: =AJ11/(AL4-AJ13) -> 0 | AL11: 0 | AN11: 211 | AO11: =COUNTIF(L9:L10,AN11) -> 1 | AP11: =AO11/(AQ4-AO13) -> 0.5 | AQ11: -0.5 | AS11: 211 | AT11: =COUNTIF(L10:L10,AS11) -> 1 | AU11: =AT11/(AV4-AT13) -> 1 | AV11: 0
N12: 212 | O12: 0 | P12: 0 | Q12: 0 | T12: 212 | U12: =COUNTIF(L7:L7,T12) -> 0 | V12: =U12/(W4-U13) ->  | Y12: 212 | Z12: =COUNTIF(L7:L8,Y12) -> 0 | AA12: =Z12/(AB4-Z13) -> 0 | AB12: 0 | AD12: 212 | AE12: =COUNTIF(L8:L8,AD12) -> 0 | AF12: =AE12/(AG4-AE13) -> 0 | AG12: 0 | AI12: 212 | AJ12: =COUNTIF(L9:L9,AI12) -> 0 | AK12: =AJ12/(AL4-AJ13) -> 0 | AL12: 0 | AN12: 212 | AO12: =COUNTIF(L9:L10,AN12) -> 0 | AP12: =AO12/(AQ4-AO13) -> 0 | AQ12: 0 | AS12: 212 | AT12: =COUNTIF(L10:L10,AS12) -> 0 | AU12: =AT12/(AV4-AT13) -> 0 | AV12: 0
N13: 221 | O13: 1 | P13: 0.25 | Q13: -0.5 | T13: 221 | U13: =COUNTIF(L7:L7,T13) -> 1 | Y13: 221 | Z13: =COUNTIF(L7:L8,Y13) -> 1 | AD13: 221 | AE13: =COUNTIF(L8:L8,AD13) -> 0 | AI13: 221 | AJ13: =COUNTIF(L9:L9,AI13) -> 0 | AN13: 221 | AO13: =COUNTIF(L9:L10,AN13) -> 0 | AS13: 221 | AT13: =COUNTIF(L10:L10,AS13) -> 0
N14: 222 | O14: 0 | P14: 0 | Q14: 0 | T14: 222 | U14: =COUNTIF(L7:L7,T14) -> 0 | V14: =U14/(W4-U13) ->  | W14: =IF(V14=0,0,(V14*((LOG(V14))/LOG(2)))) ->  | Y14: 222 | Z14: =COUNTIF(L7:L8,Y14) -> 0 | AA14: =Z14/(AB4-Z13) -> 0 | AB14: =IF(AA14=0,0,(AA14*((LOG(AA14))/LOG(2)))) -> 0 | AD14: 222 | AE14: =COUNTIF(L8:L8,AD14) -> 0 | AF14: =AE14/(AG4-AE13) -> 0 | AG14: =IF(AF14=0,0,(AF14*((LOG(AF14))/LOG(2)))) -> 0 | AI14: 222 | AJ14: =COUNTIF(L9:L9,AI14) -> 0 | AK14: =AJ14/(AL4-AJ13) -> 0 | AL14: =IF(AK14=0,0,(AK14*((LOG(AK14))/LOG(2)))) -> 0 | AN14: 222 | AO14: =COUNTIF(L9:L10,AN14) -> 0 | AP14: =AO14/(AQ4-AO13) -> 0 | AQ14: =IF(AP14=0,0,(AP14*((LOG(AP14))/LOG(2)))) -> 0 | AS14: 222 | AT14: =COUNTIF(L10:L10,AS14) -> 0 | AU14: =AT14/(AV4-AT13) -> 0 | AV14: =IF(AU14=0,0,(AU14*((LOG(AU14))/LOG(2)))) -> 0
P15: =SUM(P7:P14) -> 1 | Q15: =-SUM(Q7:Q14) -> 2 | V15: =SUM(V7:V14) ->  | W15: =-SUM(W7:W14) ->  | AA15: =SUM(AA7:AA14) -> 1 | AB15: =-SUM(AB7:AB14) -> 0 | AF15: =SUM(AF7:AF14) -> 1 | AG15: =-SUM(AG7:AG14) -> 0 | AK15: =SUM(AK7:AK14) -> 1 | AL15: =-SUM(AL7:AL14) -> 0 | AP15: =SUM(AP7:AP14) -> 1 | AQ15: =-SUM(AQ7:AQ14) -> 1 | AU15: =SUM(AU7:AU14) -> 1 | AV15: =-SUM(AV7:AV14) -> 0
P16: U= | Q16: =Q15/(LOG(Q4)/LOG(2)) -> 1 | V16: U1= | W16: =W15/(LOG(W4)/LOG(2)) ->  | AA16: U2= | AB16: =AB15/(LOG(AB4)/LOG(2)) -> 0 | AF16: U3= | AG16: =AG15/(LOG(AG4)/LOG(2)) ->  | AK16: U4= | AL16: =AL15/(LOG(AL4)/LOG(2)) ->  | AP16: U5= | AQ16: =AQ15/(LOG(AQ4)/LOG(2)) -> 1 | AU16: U6= | AV16: =AV15/(LOG(AV4)/LOG(2)) -> 
N19: Total Target Seq
N20: =COUNTIF(L7:L10,G3) -> 1 | P20: 1 | Q20: 0 | R20: 1 | S20: 1 | T20: 0 | U20: 1
P21: % of reinforcement given in 6 equal intervals based on number of trials
P22: %_1 | Q22: %_2 | R22: %_3 | S22: %_4 | T22: %_5 | U22: %_6
O23: target sequence | P23: =$G$3 -> 221 | Q23: 221 | R23: 221 | S23: 221 | T23: 221 | U23: 221
O24: total reinforcement | P24: =U13 -> 1 | Q24: =Z13 -> 1 | R24: =AE13 -> 0 | S24: =AJ13 -> 0 | T24: =AO13 -> 0 | U24: =AT13 -> 0
O25: % target
O26: CCRF
O27: % CCRf
O28: average response rate | P28: =F7/P20 -> 278 | Q28: =(F7-F7)/Q20 ->  | R28: =(F8-F7)/R20 -> 423 | S28: =(F9-F8)/S20 -> 7908 | T28: =(F9-F9)/T20 ->  | U28: =(F10-F9)/U20 -> 14505

Sheet !M904A4B.AXT
A1: Report for:!M904A4B.AXT
A2: Date: | B2: <date>
A3: Hen: | B3: <hen> | F3: Correct Sequence | G3: =Start!J2 -> 221 | P3: Total Sequences in Data | Q3: =4994-COUNTBLANK(L7:L5000) -> 7 | V3: Total Sequences in Block Data | W3: =COUNTA(L7:L7) -> 1 | AA3: Total Sequences in Block Data | AB3: =COUNTA(L8:L8) -> 1 | AF3: Total Sequences in Block Data | AG3: =COUNTA(L9:L10) -> 2 | AK3: Total Sequences in Block Data | AL3: =COUNTA(L11:L11) -> 1 | AP3: Total Sequences in Block Data | AQ3: =COUNTA(L12:L12) -> 1 | AU3: Total Sequences in Block Data | AV3: =COUNTA(L13:L13) -> 1
P4: Total Sequences in Summary | Q4: =SUM(O7:O14) -> 6 | V4: Total Sequences in Block Summary | W4: =SUM(U7:U14) -> 1 | AA4: Total Sequences in Block Summary | AB4: =SUM(Z7:Z14) -> 1 | AF4: Total Sequences in Block Summary | AG4: =SUM(AE7:AE14) -> 2 | AK4: Total Sequences in Block Summary | AL4: =SUM(AJ7:AJ14) -> 1 | AP4: Total Sequences in Block Summary | AQ4: =SUM(AO7:AO14) -> 1 | AU4: Total Sequences in Block Summary | AV4: =SUM(AT7:AT14) -> 0
T5: Block 1 | Y5: Block 2 | AD5: Block 3 | AI5: Block 4 | AN5: Block 5 | AS5: Block 6
A6: Sequence Component 1 | B6: Time 1 | C6: Sequence Component 2 | D6: Time 2 | E6: Sequence Component 3 | F6: Time 3 | G6: Sequence Component 4 | H6: Time 4 | I6: Sequence Component 5 | J6: Time 5 | K6: Correct? 0=No 1=Yes | L6: Sequence | N6: Frequency | P6: Relative Frequency | Q6: Variability | T6: Frequency | V6: Relative Frequency | W6: Variability | Y6: Frequency | AA6: Relative Frequency | AB6: Variability | AD6: Frequency | AF6: Relative Frequency | AG6: Variability | AI6: Frequency | AK6: Relative Frequency | AL6: Variability | AN6: Frequency | AP6: Relative Frequency | AQ6: Variability | AS6: Frequency | AU6: Relative Frequency | AV6: Variability
A7: 11 | B7: 844 | C7: 21 | D7: 849 | E7: 22 | F7: 861 | K7: 0 | L7: 122 | N7: 111 | O7: =COUNTIF($L$7:$L$500,N7) -> 1 | P7: =O7/$Q$4 -> 0.1666666667 | Q7: =IF(P7=0,0,(P7*((LOG(P7))/LOG(2)))) -> -0.4308270835 | T7: =N7 -> 111 | U7: =COUNTIF(L7:L7,T7) -> 0 | V7: =U7/(W4-U13) -> 0 | W7: =IF(V7=0,0,(V7*((LOG(V7))/LOG(2)))) -> 0 | Y7: =N7 -> 111 | Z7: =COUNTIF(L8:L8,Y7) -> 0 | AA7: =Z7/(AB4-Z13) -> 0 | AB7: =IF(AA7=0,0,(AA7*((LOG(AA7))/LOG(2)))) -> 0 | AD7: =N7 -> 111 | AE7: =COUNTIF(L9:L10,AD7) -> 0 | AF7: =AE7/(AG4-AE13) -> 0 | AG7: =IF(AF7=0,0,(AF7*((LOG(AF7))/LOG(2)))) -> 0 | AI7: =N7 -> 111 | AJ7: =COUNTIF(L11:L11,AI7) -> 1 | AK7: =AJ7/(AL4-AJ13) -> 1 | AL7: =IF(AK7=0,0,(AK7*((LOG(AK7))/LOG(2)))) -> 0 | AN7: =N7 -> 111 | AO7: =COUNTIF(L12:L12,AN7) -> 0 | AP7: =AO7/(AQ4-AO13) -> 0 | AQ7: =IF(AP7=0,0,(AP7*((LOG(AP7))/LOG(2)))) -> 0 | AS7: =N7 -> 111 | AT7: =COUNTIF(L13:L13,AS7) -> 0 | AU7: =AT7/(AV4-AT13) ->  | AV7: =IF(AU7=0,0,(AU7*((LOG(AU7))/LOG(2)))) -> 
A8: 22 | B8: 983 | C8: 14 | D8: 1015 | E8: 24 | F8: 1028 | K8: 0 | L8: 212 | N8: 112 | O8: 1 | P8: 0.1666666667 | Q8: -0.4308270835 | T8: 112 | U8: =COUNTIF(L7:L7,T8) -> 0 | V8: =U8/(W4-U13) -> 0 | W8: 0 | Y8: 112 | Z8: =COUNTIF(L8:L8,Y8) -> 0 | AA8: =Z8/(AB4-Z13) -> 0 | AB8: 0 | AD8: 112 | AE8: =COUNTIF(L9:L10,AD8) -> 1 | AF8: =AE8/(AG4-AE13) -> 1 | AG8: 0 | AI8: 112 | AJ8: =COUNTIF(L11:L11,AI8) -> 0 | AK8: =AJ8/(AL4-AJ13) -> 0 | AL8: 0 | AN8: 112 | AO8: =COUNTIF(L12:L12,AN8) -> 0 | AP8: =AO8/(AQ4-AO13) -> 0 | AQ8: 0 | AS8: 112 | AT8: =COUNTIF(L13:L13,AS8) -> 0 | AU8: =AT8/(AV4-AT13) -> 
A9: 22 | B9: 1133 | C9: 23 | D9: 1134 | E9: 13 | F9: 1525 | K9: 0 | L9: 221 | N9: 121 | O9: 0 | P9: 0 | Q9: 0 | T9: 121 | U9: =COUNTIF(L7:L7,T9) -> 0 | V9: =U9/(W4-U13) -> 0 | W9: 0 | Y9: 121 | Z9: =COUNTIF(L8:L8,Y9) -> 0 | AA9: =Z9/(AB4-Z13) -> 0 | AB9: 0 | AD9: 121 | AE9: =COUNTIF(L9:L10,AD9) -> 0 | AF9: =AE9/(AG4-AE13) -> 0 | AG9: 0 | AI9: 121 | AJ9: =COUNTIF(L11:L11,AI9) -> 0 | AK9: =AJ9/(AL4-AJ13) -> 0 | AL9: 0 | AN9: 121 | AO9: =COUNTIF(L12:L12,AN9) -> 0 | AP9: =AO9/(AQ4-AO13) -> 0 | AQ9: 0 | AS9: 121 | AT9: =COUNTIF(L13:L13,AS9) -> 0 | AU9: =AT9/(AV4-AT13) -> 
A10: 11 | B10: 4399 | C10: 12 | D10: 4404 | E10: 24 | F10: 4406 | K10: 0 | L10: 112 | N10: 122 | O10: 1 | P10: 0.1666666667 | Q10: -0.4308270835 | T10: 122 | U10: =COUNTIF(L7:L7,T10) -> 1 | V10: =U10/(W4-U13) -> 1 | W10: 0 | Y10: 122 | Z10: =COUNTIF(L8:L8,Y10) -> 0 | AA10: =Z10/(AB4-Z13) -> 0 | AB10: 0 | AD10: 122 | AE10: =COUNTIF(L9:L10,AD10) -> 0 | AF10: =AE10/(AG4-AE13) -> 0 | AG10: 0 | AI10: 122 | AJ10: =COUNTIF(L11:L11,AI10) -> 0 | AK10: =AJ10/(AL4-AJ13) -> 0 | AL10: 0 | AN10: 122 | AO10: =COUNTIF(L12:L12,AN10) -> 0 | AP10: =AO10/(AQ4-AO13) -> 0 | AQ10: 0 | AS10: 122 | AT10: =COUNTIF(L13:L13,AS10) -> 0 | AU10: =AT10/(AV4-AT13) -> 
A11: 11 | B11: 4552 | C11: 12 | D11: 4553 | E11: 13 | F11: 4585 | K11: 0 | L11: 111 | N11: 211 | O11: 1 | P11: 0.1666666667 | Q11: -0.4308270835 | T11: 211 | U11: =COUNTIF(L7:L7,T11) -> 0 | V11: =U11/(W4-U13) -> 0 | W11: 0 | Y11: 211 | Z11: =COUNTIF(L8:L8,Y11) -> 0 | AA11: =Z11/(AB4-Z13) -> 0 | AB11: 0 | AD11: 211 | AE11: =COUNTIF(L9:L10,AD11) -> 0 | AF11: =AE11/(AG4-AE13) -> 0 | AG11: 0 | AI11: 211 | AJ11: =COUNTIF(L11:L11,AI11) -> 0 | AK11: =AJ11/(AL4-AJ13) -> 0 | AL11: 0 | AN11: 211 | AO11: =COUNTIF(L12:L12,AN11) -> 1 | AP11: =AO11/(AQ4-AO13) -> 1 | AQ11: 0 | AS11: 211 | AT11: =COUNTIF(L13:L13,AS11) -> 0 | AU11: =AT11/(AV4-AT13) -> 
A12: 22 | B12: 5680 | C12: 14 | D12: 5685 | E12: 13 | F12: 5722 | K12: 0 | L12: 211 | N12: 212 | O12: 1 | P12: 0.1666666667 | Q12: -0.4308270835 | T12: 212 | U12: =COUNTIF(L7:L7,T12) -> 0 | V12: =U12/(W4-U13) -> 0 | W12: 0 | Y12: 212 | Z12: =COUNTIF(L8:L8,Y12) -> 1 | AA12: =Z12/(AB4-Z13) -> 1 | AB12: 0 | AD12: 212 | AE12: =COUNTIF(L9:L10,AD12) -> 0 | AF12: =AE12/(AG4-AE13) -> 0 | AG12: 0 | AI12: 212 | AJ12: =COUNTIF(L11:L11,AI12) -> 0 | AK12: =AJ12/(AL4-AJ13) -> 0 | AL12: 0 | AN12: 212 | AO12: =COUNTIF(L12:L12,AN12) -> 0 | AP12: =AO12/(AQ4-AO13) -> 0 | AQ12: 0 | AS12: 212 | AT12: =COUNTIF(L13:L13,AS12) -> 0 | AU12: =AT12/(AV4-AT13) -> 
A13: 22 | B13: 8293 | C13: 23 | D13: 19911 | L13: 22 | N13: 221 | O13: 1 | P13: 0.1666666667 | Q13: -0.4308270835 | T13: 221 | U13: =COUNTIF(L7:L7,T13) -> 0 | Y13: 221 | Z13: =COUNTIF(L8:L8,Y13) -> 0 | AD13: 221 | AE13: =COUNTIF(L9:L10,AD13) -> 1 | AI13: 221 | AJ13: =COUNTIF(L11:L11,AI13) -> 0 | AN13: 221 | AO13: =COUNTIF(L12:L12,AN13) -> 0 | AS13: 221 | AT13: =COUNTIF(L13:L13,AS13) -> 0
N14: 222 | O14: 0 | P14: 0 | Q14: 0 | T14: 222 | U14: =COUNTIF(L7:L7,T14) -> 0 | V14: =U14/(W4-U13) -> 0 | W14: =IF(V14=0,0,(V14*((LOG(V14))/LOG(2)))) -> 0 | Y14: 222 | Z14: =COUNTIF(L8:L8,Y14) -> 0 | AA14: =Z14/(AB4-Z13) -> 0 | AB14: =IF(AA14=0,0,(AA14*((LOG(AA14))/LOG(2)))) -> 0 | AD14: 222 | AE14: =COUNTIF(L9:L10,AD14) -> 0 | AF14: =AE14/(AG4-AE13) -> 0 | AG14: =IF(AF14=0,0,(AF14*((LOG(AF14))/LOG(2)))) -> 0 | AI14: 222 | AJ14: =COUNTIF(L11:L11,AI14) -> 0 | AK14: =AJ14/(AL4-AJ13) -> 0 | AL14: =IF(AK14=0,0,(AK14*((LOG(AK14))/LOG(2)))) -> 0 | AN14: 222 | AO14: =COUNTIF(L12:L12,AN14) -> 0 | AP14: =AO14/(AQ4-AO13) -> 0 | AQ14: =IF(AP14=0,0,(AP14*((LOG(AP14))/LOG(2)))) -> 0 | AS14: 222 | AT14: =COUNTIF(L13:L13,AS14) -> 0 | AU14: =AT14/(AV4-AT13) ->  | AV14: =IF(AU14=0,0,(AU14*((LOG(AU14))/LOG(2)))) -> 
P15: =SUM(P7:P14) -> 1 | Q15: =-SUM(Q7:Q14) -> 2.584962501 | V15: =SUM(V7:V14) -> 1 | W15: =-SUM(W7:W14) -> 0 | AA15: =SUM(AA7:AA14) -> 1 | AB15: =-SUM(AB7:AB14) -> 0 | AF15: =SUM(AF7:AF14) -> 1 | AG15: =-SUM(AG7:AG14) -> 0 | AK15: =SUM(AK7:AK14) -> 1 | AL15: =-SUM(AL7:AL14) -> 0 | AP15: =SUM(AP7:AP14) -> 1 | AQ15: =-SUM(AQ7:AQ14) -> 0 | AU15: =SUM(AU7:AU14) ->  | AV15: =-SUM(AV7:AV14) -> 
P16: U= | Q16: =Q15/(LOG(Q4)/LOG(2)) -> 1 | V16: U1= | W16: =W15/(LOG(W4)/LOG(2)) ->  | AA16: U2= | AB16: =AB15/(LOG(AB4)/LOG(2)) ->  | AF16: U3= | AG16: =AG15/(LOG(AG4)/LOG(2)) -> 0 | AK16: U4= | AL16: =AL15/(LOG(AL4)/LOG(2)) ->  | AP16: U5= | AQ16: =AQ15/(LOG(AQ4)/LOG(2)) ->  | AU16: U6= | AV16: =AV15/(LOG(AV4)/LOG(2)) -> 
N19: Total Target Seq
N20: =COUNTIF(L7:L13,G3) -> 1 | P20: 1 | Q20: 1 | R20: 2 | S20: 1 | T20: 1 | U20: 1
P21: % of reinforcement given in 6 equal intervals based on number of trials
P22: %_1 | Q22: %_2 | R22: %_3 | S22: %_4 | T22: %_5 | U22: %_6
O23: target sequence | P23: =$G$3 -> 221 | Q23: 221 | R23: 221 | S23: 221 | T23: 221 | U23: 221
O24: total reinforcement | P24: =U13 -> 0 | Q24: =Z13 -> 0 | R24: =AE13 -> 1 | S24: =AJ13 -> 0 | T24: =AO13 -> 0 | U24: =AT13 -> 0
O25: % target
O26: CCRF
O27: % CCRf
O28: average response rate | P28: =F7/P20 -> 861 | Q28: =(F8-F7)/Q20 -> 167 | R28: =(F10-F8)/R20 -> 1689 | S28: =(F11-F10)/S20 -> 179 | T28: =(F12-F11)/T20 -> 1137 | U28: =(F13-F12)/U20 -> -5722

Sheet !M905A4B.AXT
A1: Report for:!M905A4B.AXT
A2: Date: | B2: <date>
A3: Hen: | B3: <hen> | F3: Correct Sequence | G3: =Start!J2 -> 221 | P3: Total Sequences in Data | Q3: =4994-COUNTBLANK(L7:L5000) -> 3 | V3: Total Sequences in Block Data | W3: =COUNTA(L7:L7) -> 1 | AA3: Total Sequences in Block Data | AB3: =COUNTA(L7:L8) -> 2 | AF3: Total Sequences in Block Data | AG3: =COUNTA(L8:L8) -> 1 | AK3: Total Sequences in Block Data | AL3: =COUNTA(L8:L9) -> 2 | AP3: Total Sequences in Block Data | AQ3: =COUNTA(L9:L9) -> 1 | AU3: Total Sequences in Block Data | AV3: =COUNTA(L9:L10) -> 1
P4: Total Sequences in Summary | Q4: =SUM(O7:O14) -> 2 | V4: Total Sequences in Block Summary | W4: =SUM(U7:U14) -> 1 | AA4: Total Sequences in Block Summary | AB4: =SUM(Z7:Z14) -> 2 | AF4: Total Sequences in Block Summary | AG4: =SUM(AE7:AE14) -> 1 | AK4: Total Sequences in Block Summary | AL4: =SUM(AJ7:AJ14) -> 1 | AP4: Total Sequences in Block Summary | AQ4: =SUM(AO7:AO14) -> 0 | AU4: Total Sequences in Block Summary | AV4: =SUM(AT7:AT14) -> 0
T5: Block 1 | Y5: Block 2 | AD5: Block 3 | AI5: Block 4 | AN5: Block 5 | AS5: Block 6
A6: Sequence Component 1 | B6: Time 1 | C6: Sequence Component 2 | D6: Time 2 | E6: Sequence Component 3 | F6: Time 3 | G6: Sequence Component 4 | H6: Time 4 | I6: Sequence Component 5 | J6: Time 5 | K6: Correct? 0=No 1=Yes | L6: Sequence | N6: Frequency | P6: Relative Frequency | Q6: Variability | T6: Frequency | V6: Relative Frequency | W6: Variability | Y6: Frequency | AA6: Relative Frequency | AB6: Variability | AD6: Frequency | AF6: Relative Frequency | AG6: Variability | AI6: Frequency | AK6: Relative Frequency | AL6: Variability | AN6: Frequency | AP6: Relative Frequency | AQ6: Variability | AS6: Frequency | AU6: Relative Frequency | AV6: Variability
A7: 22 | B7: 3 | C7: 14 | D7: 113 | E7: 24 | F7: 123 | K7: 0 | L7: 212 | N7: 111 | O7: =COUNTIF($L$7:$L$500,N7) -> 1 | P7: =O7/$Q$4 -> 0.5 | Q7: =IF(P7=0,0,(P7*((LOG(P7))/LOG(2)))) -> -0.5 | T7: =N7 -> 111 | U7: =COUNTIF(L7:L7,T7) -> 0 | V7: =U7/(W4-U13) -> 0 | W7: =IF(V7=0,0,(V7*((LOG(V7))/LOG(2)))) -> 0 | Y7: =N7 -> 111 | Z7: =COUNTIF(L7:L8,Y7) -> 1 | AA7: =Z7/(AB4-Z13) -> 0.5 | AB7: =IF(AA7=0,0,(AA7*((LOG(AA7))/LOG(2)))) -> -0.5 | AD7: =N7 -> 111 | AE7: =COUNTIF(L8:L8,AD7) -> 1 | AF7: =AE7/(AG4-AE13) -> 1 | AG7: =IF(AF7=0,0,(AF7*((LOG(AF7))/LOG(2)))) -> 0 | AI7: =N7 -> 111 | AJ7: =COUNTIF(L8:L9,AI7) -> 1 | AK7: =AJ7/(AL4-AJ13) -> 1 | AL7: =IF(AK7=0,0,(AK7*((LOG(AK7))/LOG(2)))) -> 0 | AN7: =N7 -> 111 | AO7: =COUNTIF(L9:L9,AN7) -> 0 | AP7: =AO7/(AQ4-AO13) ->  | AQ7: =IF(AP7=0,0,(AP7*((LOG(AP7))/LOG(2)))) ->  | AS7: =N7 -> 111 | AT7: =COUNTIF(L9:L10,AS7) -> 0 | AU7: =AT7/(AV4-AT13) ->  | AV7: =IF(AU7=0,0,(AU7*((LOG(AU7))/LOG(2)))) -> 
A8: 11 | B8: 285 | C8: 12 | D8: 303 | E8: 13 | F8: 307 | K8: 0 | L8: 111 | N8: 112 | O8: 0 | P8: 0 | Q8: 0 | T8: 112 | U8: =COUNTIF(L7:L7,T8) -> 0 | V8: =U8/(W4-U13) -> 0 | W8: 0 | Y8: 112 | Z8: =COUNTIF(L7:L8,Y8) -> 0 | AA8: =Z8/(AB4-Z13) -> 0 | AB8: 0 | AD8: 112 | AE8: =COUNTIF(L8:L8,AD8) -> 0 | AF8: =AE8/(AG4-AE13) -> 0 | AG8: 0 | AI8: 112 | AJ8: =COUNTIF(L8:L9,AI8) -> 0 | AK8: =AJ8/(AL4-AJ13) -> 0 | AL8: 0 | AN8: 112 | AO8: =COUNTIF(L9:L9,AN8) -> 0 | AP8: =AO8/(AQ4-AO13) ->  | AS8: 112 | AT8: =COUNTIF(L9:L10,AS8) -> 0 | AU8: =AT8/(AV4-AT13) -> 
A9: 11 | B9: 15671 | C9: 12 | D9: 18013 | L9: 11 | N9: 121 | O9: 0 | P9: 0 | Q9: 0 | T9: 121 | U9: =COUNTIF(L7:L7,T9) -> 0 | V9: =U9/(W4-U13) -> 0 | W9: 0 | Y9: 121 | Z9: =COUNTIF(L7:L8,Y9) -> 0 | AA9: =Z9/(AB4-Z13) -> 0 | AB9: 0 | AD9: 121 | AE9: =COUNTIF(L8:L8,AD9) -> 0 | AF9: =AE9/(AG4-AE13) -> 0 | AG9: 0 | AI9: 121 | AJ9: =COUNTIF(L8:L9,AI9) -> 0 | AK9: =AJ9/(AL4-AJ13) -> 0 | AL9: 0 | AN9: 121 | AO9: =COUNTIF(L9:L9,AN9) -> 0 | AP9: =AO9/(AQ4-AO13) ->  | AS9: 121 | AT9: =COUNTIF(L9:L10,AS9) -> 0 | AU9: =AT9/(AV4-AT13) -> 
N10: 122 | O10: 0 | P10: 0 | Q10: 0 | T10: 122 | U10: =COUNTIF(L7:L7,T10) -> 0 | V10: =U10/(W4-U13) -> 0 | W10: 0 | Y10: 122 | Z10: =COUNTIF(L7:L8,Y10) -> 0 | AA10: =Z10/(AB4-Z13) -> 0 | AB10: 0 | AD10: 122 | AE10: =COUNTIF(L8:L8,AD10) -> 0 | AF10: =AE10/(AG4-AE13) -> 0 | AG10: 0 | AI10: 122 | AJ10: =COUNTIF(L8:L9,AI10) -> 0 | AK10: =AJ10/(AL4-AJ13) -> 0 | AL10: 0 | AN10: 122 | AO10: =COUNTIF(L9:L9,AN10) -> 0 | AP10: =AO10/(AQ4-AO13) ->  | AS10: 122 | AT10: =COUNTIF(L9:L10,AS10) -> 0 | AU10: =AT10/(AV4-AT13) -> 
N11: 211 | O11: 0 | P11: 0 | Q11: 0 | T11: 211 | U11: =COUNTIF(L7:L7,T11) -> 0 | V11: =U11/(W4-U13) -> 0 | W11: 0 | Y11: 211 | Z11: =COUNTIF(L7:L8,Y11) -> 0 | AA11: =Z11/(AB4-Z13) -> 0 | AB11: 0 | AD11: 211 | AE11: =COUNTIF(L8:L8,AD11) -> 0 | AF11: =AE11/(AG4-AE13) -> 0 | AG11: 0 | AI11: 211 | AJ11: =COUNTIF(L8:L9,AI11) -> 0 | AK11: =AJ11/(AL4-AJ13) -> 0 | AL11: 0 | AN11: 211 | AO11: =COUNTIF(L9:L9,AN11) -> 0 | AP11: =AO11/(AQ4-AO13) ->  | AS11: 211 | AT11: =COUNTIF(L9:L10,AS11) -> 0 | AU11: =AT11/(AV4-AT13) -> 
N12: 212 | O12: 1 | P12: 0.5 | Q12: -0.5 | T12: 212 | U12: =COUNTIF(L7:L7,T12) -> 1 | V12: =U12/(W4-U13) -> 1 | W12: 0 | Y12: 212 | Z12: =COUNTIF(L7:L8,Y12) -> 1 | AA12: =Z12/(AB4-Z13) -> 0.5 | AB12: -0.5 | AD12: 212 | AE12: =COUNTIF(L8:L8,AD12) -> 0 | AF12: =AE12/(AG4-AE13) -> 0 | AG12: 0 | AI12: 212 | AJ12: =COUNTIF(L8:L9,AI12) -> 0 | AK12: =AJ12/(AL4-AJ13) -> 0 | AL12: 0 | AN12: 212 | AO12: =COUNTIF(L9:L9,AN12) -> 0 | AP12: =AO12/(AQ4-AO13) ->  | AS12: 212 | AT12: =COUNTIF(L9:L10,AS12) -> 0 | AU12: =AT12/(AV4-AT13) -> 
N13: 221 | O13: 0 | P13: 0 | Q13: 0 | T13: 221 | U13: =COUNTIF(L7:L7,T13) -> 0 | Y13: 221 | Z13: =COUNTIF(L7:L8,Y13) -> 0 | AD13: 221 | AE13: =COUNTIF(L8:L8,AD13) -> 0 | AI13: 221 | AJ13: =COUNTIF(L8:L9,AI13) -> 0 | AN13: 221 | AO13: =COUNTIF(L9:L9,AN13) -> 0 | AS13: 221 | AT13: =COUNTIF(L9:L10,AS13) -> 0
N14: 222 | O14: 0 | P14: 0 | Q14: 0 | T14: 222 | U14: =COUNTIF(L7:L7,T14) -> 0 | V14: =U14/(W4-U13) -> 0 | W14: =IF(V14=0,0,(V14*((LOG(V14))/LOG(2)))) -> 0 | Y14: 222 | Z14: =COUNTIF(L7:L8,Y14) -> 0 | AA14: =Z14/(AB4-Z13) -> 0 | AB14: =IF(AA14=0,0,(AA14*((LOG(AA14))/LOG(2)))) -> 0 | AD14: 222 | AE14: =COUNTIF(L8:L8,AD14) -> 0 | AF14: =AE14/(AG4-AE13) -> 0 | AG14: =IF(AF14=0,0,(AF14*((LOG(AF14))/LOG(2)))) -> 0 | AI14: 222 | AJ14: =COUNTIF(L8:L9,AI14) -> 0 | AK14: =AJ14/(AL4-AJ13) -> 0 | AL14: =IF(AK14=0,0,(AK14*((LOG(AK14))/LOG(2)))) -> 0 | AN14: 222 | AO14: =COUNTIF(L9:L9,AN14) -> 0 | AP14: =AO14/(AQ4-AO13) ->  | AQ14: =IF(AP14=0,0,(AP14*((LOG(AP14))/LOG(2)))) ->  | AS14: 222 | AT14: =COUNTIF(L9:L10,AS14) -> 0 | AU14: =AT14/(AV4-AT13) ->  | AV14: =IF(AU14=0,0,(AU14*((LOG(AU14))/LOG(2)))) -> 
P15: =SUM(P7:P14) -> 1 | Q15: =-SUM(Q7:Q14) -> 1 | V15: =SUM(V7:V14) -> 1 | W15: =-SUM(W7:W14) -> 0 | AA15: =SUM(AA7:AA14) -> 1 | AB15: =-SUM(AB7:AB14) -> 1 | AF15: =SUM(AF7:AF14) -> 1 | AG15: =-SUM(AG7:AG14) -> 0 | AK15: =SUM(AK7:AK14) -> 1 | AL15: =-SUM(AL7:AL14) -> 0 | AP15: =SUM(AP7:AP14) ->  | AQ15: =-SUM(AQ7:AQ14) ->  | AU15: =SUM(AU7:AU14) ->  | AV15: =-SUM(AV7:AV14) -> 
P16: U= | Q16: =Q15/(LOG(Q4)/LOG(2)) -> 1 | V16: U1= | W16: =W15/(LOG(W4)/LOG(2)) ->  | AA16: U2= | AB16: =AB15/(LOG(AB4)/LOG(2)) -> 1 | AF16: U3= | AG16: =AG15/(LOG(AG4)/LOG(2)) ->  | AK16: U4= | AL16: =AL15/(LOG(AL4)/LOG(2)) ->  | AP16: U5= | AQ16: =AQ15/(LOG(AQ4)/LOG(2)) ->  | AU16: U6= | AV16: =AV15/(LOG(AV4)/LOG(2)) -> 
N19: Total Target Seq
N20: =COUNTIF(L7:L9,G3) -> 0 | P20: 1 | Q20: 0 | R20: 1 | S20: 0 | T20: 1 | U20: 0
P21: % of reinforcement given in 6 equal intervals based on number of trials
P22: %_1 | Q22: %_2 | R22: %_3 | S22: %_4 | T22: %_5 | U22: %_6
O23: target sequence | P23: =$G$3 -> 221 | Q23: 221 | R23: 221 | S23: 221 | T23: 221 | U23: 221
O24: total reinforcement | P24: =U13 -> 0 | Q24: =Z13 -> 0 | R24: =AE13 -> 0 | S24: =AJ13 -> 0 | T24: =AO13 -> 0 | U24: =AT13 -> 0
O25: % target
O26: CCRF
O27: % CCRf
O28: average response rate | P28: =F7/P20 -> 123 | Q28: =(F7-F7)/Q20 ->  | R28: =(F8-F7)/R20 -> 184 | S28: =(F8-F8)/S20 ->  | T28: =(F9-F8)/T20 -> -307 | U28: =(F9-F9)/U20 -> 

Sheet !M906B1B.AXT
A1: Report for:!M906B1B.AXT
A2: Date: | B2: <date>
A3: Hen: | B3: <hen> | F3: Correct Sequence | G3: =Start!J2 -> 221 | P3: Total Sequences in Data | Q3: =4994-COUNTBLANK(L7:L5000) -> 11 | V3: Total Sequences in Block Data | W3: =COUNTA(L7:L8) -> 2 | AA3: Total Sequences in Block Data | AB3: =COUNTA(L9:L10) -> 2 | AF3: Total Sequences in Block Data | AG3: =COUNTA(L11:L11) -> 1 | AK3: Total Sequences in Block Data | AL3: =COUNTA(L12:L13) -> 2 | AP3: Total Sequences in Block Data | AQ3: =COUNTA(L14:L15) -> 2 | AU3: Total Sequences in Block Data | AV3: =COUNTA(L16:L17) -> 2
P4: Total Sequences in Summary | Q4: =SUM(O7:O14) -> 11 | V4: Total Sequences in Block Summary | W4: =SUM(U7:U14) -> 2 | AA4: Total Sequences in Block Summary | AB4: =SUM(Z7:Z14) -> 2 | AF4: Total Sequences in Block Summary | AG4: =SUM(AE7:AE14) -> 1 | AK4: Total Sequences in Block Summary | AL4: =SUM(AJ7:AJ14) -> 2 | AP4: Total Sequences in Block Summary | AQ4: =SUM(AO7:AO14) -> 2 | AU4: Total Sequences in Block Summary | AV4: =SUM(AT7:AT14) -> 2
T5: Block 1 | Y5: Block 2 | AD5: Block 3 | AI5: Block 4 | AN5: Block 5 | AS5: Block 6
A6: Sequence Component 1 | B6: Time 1 | C6: Sequence Component 2 | D6: Time 2 | E6: Sequence Component 3 | F6: Time 3 | G6: Sequence Component 4 | H6: Time 4 | I6: Sequence Component 5 | J6: Time 5 | K6: Correct? 0=No 1=Yes | L6: Sequence | N6: Frequency | P6: Relative Frequency | Q6: Variability | T6: Frequency | V6: Relative Frequency | W6: Variability | Y6: Frequency | AA6: Relative Frequency | AB6: Variability | AD6: Frequency | AF6: Relative Frequency | AG6: Variability | AI6: Frequency | AK6: Relative Frequency | AL6: Variability | AN6: Frequency | AP6: Relative Frequency | AQ6: Variability | AS6: Frequency | AU6: Relative Frequency | AV6: Variability
A7: 11 | B7: 173 | C7: 21 | D7: 194 | E7: 11 | F7: 196 | K7: 0 | L7: 121 | N7: 111 | O7: =COUNTIF($L$7:$L$500,N7) -> 0 | P7: =O7/$Q$4 -> 0 | Q7: =IF(P7=0,0,(P7*((LOG(P7))/LOG(2)))) -> 0 | T7: =N7 -> 111 | U7: =COUNTIF(L7:L8,T7) -> 0 | V7: =U7/(W4-U13) -> 0 | W7: =IF(V7=0,0,(V7*((LOG(V7))/LOG(2)))) -> 0 | Y7: =N7 -> 111 | Z7: =COUNTIF(L9:L10,Y7) -> 0 | AA7: =Z7/(AB4-Z13) -> 0 | AB7: =IF(AA7=0,0,(AA7*((LOG(AA7))/LOG(2)))) -> 0 | AD7: =N7 -> 111 | AE7: =COUNTIF(L11:L11,AD7) -> 0 | AF7: =AE7/(AG4-AE13) -> 0 | AG7: =IF(AF7=0,0,(AF7*((LOG(AF7))/LOG(2)))) -> 0 | AI7: =N7 -> 111 | AJ7: =COUNTIF(L12:L13,AI7) -> 0 | AK7: =AJ7/(AL4-AJ13) -> 0 | AL7: =IF(AK7=0,0,(AK7*((LOG(AK7))/LOG(2)))) -> 0 | AN7: =N7 -> 111 | AO7: =COUNTIF(L14:L15,AN7) -> 0 | AP7: =AO7/(AQ4-AO13) -> 0 | AQ7: =IF(AP7=0,0,(AP7*((LOG(AP7))/LOG(2)))) -> 0 | AS7: =N7 -> 111 | AT7: =COUNTIF(L16:L17,AS7) -> 0 | AU7: =AT7/(AV4-AT13) -> 0 | AV7: =IF(AU7=0,0,(AU7*((LOG(AU7))/LOG(2)))) -> 0
A8: 22 | B8: 400 | C8: 23 | D8: 409 | E8: 24 | F8: 415 | K8: 0 | L8: 222 | N8: 112 | O8: 1 | P8: 0.09090909091 | Q8: -0.3144937835 | T8: 112 | U8: =COUNTIF(L7:L8,T8) -> 0 | V8: =U8/(W4-U13) -> 0 | W8: 0 | Y8: 112 | Z8: =COUNTIF(L9:L10,Y8) -> 0 | AA8: =Z8/(AB4-Z13) -> 0 | AB8: 0 | AD8: 112 | AE8: =COUNTIF(L11:L11,AD8) -> 0 | AF8: =AE8/(AG4-AE13) -> 0 | AG8: 0 | AI8: 112 | AJ8: =COUNTIF(L12:L13,AI8) -> 0 | AK8: =AJ8/(AL4-AJ13) -> 0 | AL8: 0 | AN8: 112 | AO8: =COUNTIF(L14:L15,AN8) -> 0 | AP8: =AO8/(AQ4-AO13) -> 0 | AQ8: 0 | AS8: 112 | AT8: =COUNTIF(L16:L17,AS8) -> 1 | AU8: =AT8/(AV4-AT13) -> 0.5 | AV8: -0.5
A9: 11 | B9: 510 | C9: 21 | D9: 515 | E9: 11 | F9: 529 | K9: 0 | L9: 121 | N9: 121 | O9: 2 | P9: 0.1818181818 | Q9: -0.4471693852 | T9: 121 | U9: =COUNTIF(L7:L8,T9) -> 1 | V9: =U9/(W4-U13) -> 0.5 | W9: -0.5 | Y9: 121 | Z9: =COUNTIF(L9:L10,Y9) -> 1 | AA9: =Z9/(AB4-Z13) -> 0.5 | AB9: -0.5 | AD9: 121 | AE9: =COUNTIF(L11:L11,AD9) -> 0 | AF9: =AE9/(AG4-AE13) -> 0 | AG9: 0 | AI9: 121 | AJ9: =COUNTIF(L12:L13,AI9) -> 0 | AK9: =AJ9/(AL4-AJ13) -> 0 | AL9: 0 | AN9: 121 | AO9: =COUNTIF(L14:L15,AN9) -> 0 | AP9: =AO9/(AQ4-AO13) -> 0 | AQ9: 0 | AS9: 121 | AT9: =COUNTIF(L16:L17,AS9) -> 0 | AU9: =AT9/(AV4-AT13) -> 0 | AV9: 0
A10: 22 | B10: 923 | C10: 14 | D10: 942 | E10: 24 | F10: 946 | K10: 0 | L10: 212 | N10: 122 | O10: 2 | P10: 0.1818181818 | Q10: -0.4471693852 | T10: 122 | U10: =COUNTIF(L7:L8,T10) -> 0 | V10: =U10/(W4-U13) -> 0 | W10: 0 | Y10: 122 | Z10: =COUNTIF(L9:L10,Y10) -> 0 | AA10: =Z10/(AB4-Z13) -> 0 | AB10: 0 | AD10: 122 | AE10: =COUNTIF(L11:L11,AD10) -> 0 | AF10: =AE10/(AG4-AE13) -> 0 | AG10: 0 | AI10: 122 | AJ10: =COUNTIF(L12:L13,AI10) -> 1 | AK10: =AJ10/(AL4-AJ13) -> 0.5 | AL10: -0.5 | AN10: 122 | AO10: =COUNTIF(L14:L15,AN10) -> 1 | AP10: =AO10/(AQ4-AO13) -> 0.5 | AQ10: -0.5 | AS10: 122 | AT10: =COUNTIF(L16:L17,AS10) -> 0 | AU10: =AT10/(AV4-AT13) -> 0 | AV10: 0
A11: 22 | B11: 1063 | C11: 23 | D11: 1066 | E11: 24 | F11: 1074 | K11: 0 | L11: 222 | N11: 211 | O11: 1 | P11: 0.09090909091 | Q11: -0.3144937835 | T11: 211 | U11: =COUNTIF(L7:L8,T11) -> 0 | V11: =U11/(W4-U13) -> 0 | W11: 0 | Y11: 211 | Z11: =COUNTIF(L9:L10,Y11) -> 0 | AA11: =Z11/(AB4-Z13) -> 0 | AB11: 0 | AD11: 211 | AE11: =COUNTIF(L11:L11,AD11) -> 0 | AF11: =AE11/(AG4-AE13) -> 0 | AG11: 0 | AI11: 211 | AJ11: =COUNTIF(L12:L13,AI11) -> 0 | AK11: =AJ11/(AL4-AJ13) -> 0 | AL11: 0 | AN11: 211 | AO11: =COUNTIF(L14:L15,AN11) -> 1 | AP11: =AO11/(AQ4-AO13) -> 0.5 | AQ11: -0.5 | AS11: 211 | AT11: =COUNTIF(L16:L17,AS11) -> 0 | AU11: =AT11/(AV4-AT13) -> 0 | AV11: 0
A12: 22 | B12: 1176 | C12: 23 | D12: 1185 | E12: 24 | F12: 1188 | K12: 0 | L12: 222 | N12: 212 | O12: 2 | P12: 0.1818181818 | Q12: -0.4471693852 | T12: 212 | U12: =COUNTIF(L7:L8,T12) -> 0 | V12: =U12/(W4-U13) -> 0 | W12: 0 | Y12: 212 | Z12: =COUNTIF(L9:L10,Y12) -> 1 | AA12: =Z12/(AB4-Z13) -> 0.5 | AB12: -0.5 | AD12: 212 | AE12: =COUNTIF(L11:L11,AD12) -> 0 | AF12: =AE12/(AG4-AE13) -> 0 | AG12: 0 | AI12: 212 | AJ12: =COUNTIF(L12:L13,AI12) -> 0 | AK12: =AJ12/(AL4-AJ13) -> 0 | AL12: 0 | AN12: 212 | AO12: =COUNTIF(L14:L15,AN12) -> 0 | AP12: =AO12/(AQ4-AO13) -> 0 | AQ12: 0 | AS12: 212 | AT12: =COUNTIF(L16:L17,AS12) -> 1 | AU12: =AT12/(AV4-AT13) -> 0.5 | AV12: -0.5
A13: 11 | B13: 1899 | C13: 21 | D13: 1919 | E13: 22 | F13: 1932 | K13: 0 | L13: 122 | N13: 221 | O13: 0 | P13: 0 | Q13: 0 | T13: 221 | U13: =COUNTIF(L7:L8,T13) -> 0 | Y13: 221 | Z13: =COUNTIF(L9:L10,Y13) -> 0 | AD13: 221 | AE13: =COUNTIF(L11:L11,AD13) -> 0 | AI13: 221 | AJ13: =COUNTIF(L12:L13,AI13) -> 0 | AN13: 221 | AO13: =COUNTIF(L14:L15,AN13) -> 0 | AS13: 221 | AT13: =COUNTIF(L16:L17,AS13) -> 0
A14: 11 | B14: 2030 | C14: 21 | D14: 2036 | E14: 22 | F14: 2044 | K14: 0 | L14: 122 | N14: 222 | O14: 3 | P14: 0.2727272727 | Q14: -0.5112188503 | T14: 222 | U14: =COUNTIF(L7:L8,T14) -> 1 | V14: =U14/(W4-U13) -> 0.5 | W14: =IF(V14=0,0,(V14*((LOG(V14))/LOG(2)))) -> -0.5 | Y14: 222 | Z14: =COUNTIF(L9:L10,Y14) -> 0 | AA14: =Z14/(AB4-Z13) -> 0 | AB14: =IF(AA14=0,0,(AA14*((LOG(AA14))/LOG(2)))) -> 0 | AD14: 222 | AE14: =COUNTIF(L11:L11,AD14) -> 1 | AF14: =AE14/(AG4-AE13) -> 1 | AG14: =IF(AF14=0,0,(AF14*((LOG(AF14))/LOG(2)))) -> 0 | AI14: 222 | AJ14: =COUNTIF(L12:L13,AI14) -> 1 | AK14: =AJ14/(AL4-AJ13) -> 0.5 | AL14: =IF(AK14=0,0,(AK14*((LOG(AK14))/LOG(2)))) -> -0.5 | AN14: 222 | AO14: =COUNTIF(L14:L15,AN14) -> 0 | AP14: =AO14/(AQ4-AO13) -> 0 | AQ14: =IF(AP14=0,0,(AP14*((LOG(AP14))/LOG(2)))) -> 0 | AS14: 222 | AT14: =COUNTIF(L16:L17,AS14) -> 0 | AU14: =AT14/(AV4-AT13) -> 0 | AV14: =IF(AU14=0,0,(AU14*((LOG(AU14))/LOG(2)))) -> 0
A15: 22 | B15: 15452 | C15: 14 | D15: 18806 | E15: 13 | F15: 18807 | K15: 0 | L15: 211 | P15: =SUM(P7:P14) -> 1 | Q15: =-SUM(Q7:Q14) -> 2.481714573 | V15: =SUM(V7:V14) -> 1 | W15: =-SUM(W7:W14) -> 1 | AA15: =SUM(AA7:AA14) -> 1 | AB15: =-SUM(AB7:AB14) -> 1 | AF15: =SUM(AF7:AF14) -> 1 | AG15: =-SUM(AG7:AG14) -> 0 | AK15: =SUM(AK7:AK14) -> 1 | AL15: =-SUM(AL7:AL14) -> 1 | AP15: =SUM(AP7:AP14) -> 1 | AQ15: =-SUM(AQ7:AQ14) -> 1 | AU15: =SUM(AU7:AU14) -> 1 | AV15: =-SUM(AV7:AV14) -> 1
A16: 22 | B16: 19383 | C16: 14 | D16: 19402 | E16: 24 | F16: 19403 | K16: 0 | L16: 212 | P16: U= | Q16: =Q15/(LOG(Q4)/LOG(2)) -> 0.717376392 | V16: U1= | W16: =W15/(LOG(W4)/LOG(2)) -> 1 | AA16: U2= | AB16: =AB15/(LOG(AB4)/LOG(2)) -> 1 | AF16: U3= | AG16: =AG15/(LOG(AG4)/LOG(2)) ->  | AK16: U4= | AL16: =AL15/(LOG(AL4)/LOG(2)) -> 1 | AP16: U5= | AQ16: =AQ15/(LOG(AQ4)/LOG(2)) -> 1 | AU16: U6= | AV16: =AV15/(LOG(AV4)/LOG(2)) -> 1
A17: 11 | B17: 19535 | C17: 12 | D17: 19543 | E17: 24 | F17: 19551 | K17: 0 | L17: 112
N19: Total Target Seq
N20: =COUNTIF(L7:L17,G3) -> 0 | P20: 2 | Q20: 2 | R20: 1 | S20: 2 | T20: 2 | U20: 2
P21: % of reinforcement given in 6 equal intervals based on number of trials
P22: %_1 | Q22: %_2 | R22: %_3 | S22: %_4 | T22: %_5 | U22: %_6
O23: target sequence | P23: =$G$3 -> 221 | Q23: 221 | R23: 221 | S23: 221 | T23: 221 | U23: 221
O24: total reinforcement | P24: =U13 -> 0 | Q24: =Z13 -> 0 | R24: =AE13 -> 0 | S24: =AJ13 -> 0 | T24: =AO13 -> 0 | U24: =AT13 -> 0
O25: % target
O26: CCRF
O27: % CCRf
O28: average response rate | P28: =F8/P20 -> 207.5 | Q28: =(F10-F8)/Q20 -> 265.5 | R28: =(F11-F10)/R20 -> 128 | S28: =(F13-F11)/S20 -> 429 | T28: =(F15-F13)/T20 -> 8437.5 | U28: =(F17-F15)/U20 -> 372

Sheet !M907A5B.AXT
A1: Report for:!M907A5B.AXT
A2: Date: | B2: <date>
A3: Hen: | B3: <hen> | F3: Correct Sequence | G3: =Start!J2 -> 221 | P3: Total Sequences in Data | Q3: =4994-COUNTBLANK(L7:L5000) -> 4 | V3: Total Sequences in Block Data | W3: =COUNTA(L7:L7) -> 1 | AA3: Total Sequences in Block Data | AB3: =COUNTA(L7:L8) -> 2 | AF3: Total Sequences in Block Data | AG3: =COUNTA(L8:L8) -> 1 | AK3: Total Sequences in Block Data | AL3: =COUNTA(L9:L9) -> 1 | AP3: Total Sequences in Block Data | AQ3: =COUNTA(L9:L10) -> 2 | AU3: Total Sequences in Block Data | AV3: =COUNTA(L10:L10) -> 1
P4: Total Sequences in Summary | Q4: =SUM(O7:O14) -> 4 | V4: Total Sequences in Block Summary | W4: =SUM(U7:U14) -> 1 | AA4: Total Sequences in Block Summary | AB4: =SUM(Z7:Z14) -> 2 | AF4: Total Sequences in Block Summary | AG4: =SUM(AE7:AE14) -> 1 | AK4: Total Sequences in Block Summary | AL4: =SUM(AJ7:AJ14) -> 1 | AP4: Total Sequences in Block Summary | AQ4: =SUM(AO7:AO14) -> 2 | AU4: Total Sequences in Block Summary | AV4: =SUM(AT7:AT14) -> 1
T5: Block 1 | Y5: Block 2 | AD5: Block 3 | AI5: Block 4 | AN5: Block 5 | AS5: Block 6
A6: Sequence Component 1 | B6: Time 1 | C6: Sequence Component 2 | D6: Time 2 | E6: Sequence Component 3 | F6: Time 3 | G6: Sequence Component 4 | H6: Time 4 | I6: Sequence Component 5 | J6: Time 5 | K6: Correct? 0=No 1=Yes | L6: Sequence | N6: Frequency | P6: Relative Frequency | Q6: Variability | T6: Frequency | V6: Relative Frequency | W6: Variability | Y6: Frequency | AA6: Relative Frequency | AB6: Variability | AD6: Frequency | AF6: Relative Frequency | AG6: Variability | AI6: Frequency | AK6: Relative Frequency | AL6: Variability | AN6: Frequency | AP6: Relative Frequency | AQ6: Variability | AS6: Frequency | AU6: Relative Frequency | AV6: Variability
A7: 22 | B7: 49 | C7: 23 | D7: 78 | E7: 24 | F7: 87 | K7: 0 | L7: 222 | N7: 111 | O7: =COUNTIF($L$7:$L$500,N7) -> 0 | P7: =O7/$Q$4 -> 0 | Q7: =IF(P7=0,0,(P7*((LOG(P7))/LOG(2)))) -> 0 | T7: =N7 -> 111 | U7: =COUNTIF(L7:L7,T7) -> 0 | V7: =U7/(W4-U13) -> 0 | W7: =IF(V7=0,0,(V7*((LOG(V7))/LOG(2)))) -> 0 | Y7: =N7 -> 111 | Z7: =COUNTIF(L7:L8,Y7) -> 0 | AA7: =Z7/(AB4-Z13) -> 0 | AB7: =IF(AA7=0,0,(AA7*((LOG(AA7))/LOG(2)))) -> 0 | AD7: =N7 -> 111 | AE7: =COUNTIF(L8:L8,AD7) -> 0 | AF7: =AE7/(AG4-AE13) -> 0 | AG7: =IF(AF7=0,0,(AF7*((LOG(AF7))/LOG(2)))) -> 0 | AI7: =N7 -> 111 | AJ7: =COUNTIF(L9:L9,AI7) -> 0 | AK7: =AJ7/(AL4-AJ13) -> 0 | AL7: =IF(AK7=0,0,(AK7*((LOG(AK7))/LOG(2)))) -> 0 | AN7: =N7 -> 111 | AO7: =COUNTIF(L9:L10,AN7) -> 0 | AP7: =AO7/(AQ4-AO13) -> 0 | AQ7: =IF(AP7=0,0,(AP7*((LOG(AP7))/LOG(2)))) -> 0 | AS7: =N7 -> 111 | AT7: =COUNTIF(L10:L10,AS7) -> 0 | AU7: =AT7/(AV4-AT13) -> 0 | AV7: =IF(AU7=0,0,(AU7*((LOG(AU7))/LOG(2)))) -> 0
A8: 11 | B8: 342 | C8: 21 | D8: 352 | E8: 22 | F8: 360 | K8: 0 | L8: 122 | N8: 112 | O8: 1 | P8: 0.25 | Q8: -0.5 | T8: 112 | U8: =COUNTIF(L7:L7,T8) -> 0 | V8: =U8/(W4-U13) -> 0 | W8: 0 | Y8: 112 | Z8: =COUNTIF(L7:L8,Y8) -> 0 | AA8: =Z8/(AB4-Z13) -> 0 | AB8: 0 | AD8: 112 | AE8: =COUNTIF(L8:L8,AD8) -> 0 | AF8: =AE8/(AG4-AE13) -> 0 | AG8: 0 | AI8: 112 | AJ8: =COUNTIF(L9:L9,AI8) -> 1 | AK8: =AJ8/(AL4-AJ13) -> 1 | AL8: 0 | AN8: 112 | AO8: =COUNTIF(L9:L10,AN8) -> 1 | AP8: =AO8/(AQ4-AO13) -> 0.5 | AQ8: -0.5 | AS8: 112 | AT8: =COUNTIF(L10:L10,AS8) -> 0 | AU8: =AT8/(AV4-AT13) -> 0 | AV8: 0
A9: 11 | B9: 640 | C9: 12 | D9: 645 | E9: 24 | F9: 656 | K9: 0 | L9: 112 | N9: 121 | O9: 0 | P9: 0 | Q9: 0 | T9: 121 | U9: =COUNTIF(L7:L7,T9) -> 0 | V9: =U9/(W4-U13) -> 0 | W9: 0 | Y9: 121 | Z9: =COUNTIF(L7:L8,Y9) -> 0 | AA9: =Z9/(AB4-Z13) -> 0 | AB9: 0 | AD9: 121 | AE9: =COUNTIF(L8:L8,AD9) -> 0 | AF9: =AE9/(AG4-AE13) -> 0 | AG9: 0 | AI9: 121 | AJ9: =COUNTIF(L9:L9,AI9) -> 0 | AK9: =AJ9/(AL4-AJ13) -> 0 | AL9: 0 | AN9: 121 | AO9: =COUNTIF(L9:L10,AN9) -> 0 | AP9: =AO9/(AQ4-AO13) -> 0 | AQ9: 0 | AS9: 121 | AT9: =COUNTIF(L10:L10,AS9) -> 0 | AU9: =AT9/(AV4-AT13) -> 0 | AV9: 0
A10: 22 | B10: 11468 | C10: 23 | D10: 11469 | E10: 24 | F10: 22418 | K10: 0 | L10: 222 | N10: 122 | O10: 1 | P10: 0.25 | Q10: -0.5 | T10: 122 | U10: =COUNTIF(L7:L7,T10) -> 0 | V10: =U10/(W4-U13) -> 0 | W10: 0 | Y10: 122 | Z10: =COUNTIF(L7:L8,Y10) -> 1 | AA10: =Z10/(AB4-Z13) -> 0.5 | AB10: -0.5 | AD10: 122 | AE10: =COUNTIF(L8:L8,AD10) -> 1 | AF10: =AE10/(AG4-AE13) -> 1 | AG10: 0 | AI10: 122 | AJ10: =COUNTIF(L9:L9,AI10) -> 0 | AK10: =AJ10/(AL4-AJ13) -> 0 | AL10: 0 | AN10: 122 | AO10: =COUNTIF(L9:L10,AN10) -> 0 | AP10: =AO10/(AQ4-AO13) -> 0 | AQ10: 0 | AS10: 122 | AT10: =COUNTIF(L10:L10,AS10) -> 0 | AU10: =AT10/(AV4-AT13) -> 0 | AV10: 0
N11: 211 | O11: 0 | P11: 0 | Q11: 0 | T11: 211 | U11: =COUNTIF(L7:L7,T11) -> 0 | V11: =U11/(W4-U13) -> 0 | W11: 0 | Y11: 211 | Z11: =COUNTIF(L7:L8,Y11) -> 0 | AA11: =Z11/(AB4-Z13) -> 0 | AB11: 0 | AD11: 211 | AE11: =COUNTIF(L8:L8,AD11) -> 0 | AF11: =AE11/(AG4-AE13) -> 0 | AG11: 0 | AI11: 211 | AJ11: =COUNTIF(L9:L9,AI11) -> 0 | AK11: =AJ11/(AL4-AJ13) -> 0 | AL11: 0 | AN11: 211 | AO11: =COUNTIF(L9:L10,AN11) -> 0 | AP11: =AO11/(AQ4-AO13) -> 0 | AQ11: 0 | AS11: 211 | AT11: =COUNTIF(L10:L10,AS11) -> 0 | AU11: =AT11/(AV4-AT13) -> 0 | AV11: 0
N12: 212 | O12: 0 | P12: 0 | Q12: 0 | T12: 212 | U12: =COUNTIF(L7:L7,T12) -> 0 | V12: =U12/(W4-U13) -> 0 | W12: 0 | Y12: 212 | Z12: =COUNTIF(L7:L8,Y12) -> 0 | AA12: =Z12/(AB4-Z13) -> 0 | AB12: 0 | AD12: 212 | AE12: =COUNTIF(L8:L8,AD12) -> 0 | AF12: =AE12/(AG4-AE13) -> 0 | AG12: 0 | AI12: 212 | AJ12: =COUNTIF(L9:L9,AI12) -> 0 | AK12: =AJ12/(AL4-AJ13) -> 0 | AL12: 0 | AN12: 212 | AO12: =COUNTIF(L9:L10,AN12) -> 0 | AP12: =AO12/(AQ4-AO13) -> 0 | AQ12: 0 | AS12: 212 | AT12: =COUNTIF(L10:L10,AS12) -> 0 | AU12: =AT12/(AV4-AT13) -> 0 | AV12: 0
N13: 221 | O13: 0 | P13: 0 | Q13: 0 | T13: 221 | U13: =COUNTIF(L7:L7,T13) -> 0 | Y13: 221 | Z13: =COUNTIF(L7:L8,Y13) -> 0 | AD13: 221 | AE13: =COUNTIF(L8:L8,AD13) -> 0 | AI13: 221 | AJ13: =COUNTIF(L9:L9,AI13) -> 0 | AN13: 221 | AO13: =COUNTIF(L9:L10,AN13) -> 0 | AS13: 221 | AT13: =COUNTIF(L10:L10,AS13) -> 0
N14: 222 | O14: 2 | P14: 0.5 | Q14: -0.5 | T14: 222 | U14: =COUNTIF(L7:L7,T14) -> 1 | V14: =U14/(W4-U13) -> 1 | W14: =IF(V14=0,0,(V14*((LOG(V14))/LOG(2)))) -> 0 | Y14: 222 | Z14: =COUNTIF(L7:L8,Y14) -> 1 | AA14: =Z14/(AB4-Z13) -> 0.5 | AB14: =IF(AA14=0,0,(AA14*((LOG(AA14))/LOG(2)))) -> -0.5 | AD14: 222 | AE14: =COUNTIF(L8:L8,AD14) -> 0 | AF14: =AE14/(AG4-AE13) -> 0 | AG14: =IF(AF14=0,0,(AF14*((LOG(AF14))/LOG(2)))) -> 0 | AI14: 222 | AJ14: =COUNTIF(L9:L9,AI14) -> 0 | AK14: =AJ14/(AL4-AJ13) -> 0 | AL14: =IF(AK14=0,0,(AK14*((LOG(AK14))/LOG(2)))) -> 0 | AN14: 222 | AO14: =COUNTIF(L9:L10,AN14) -> 1 | AP14: =AO14/(AQ4-AO13) -> 0.5 | AQ14: =IF(AP14=0,0,(AP14*((LOG(AP14))/LOG(2)))) -> -0.5 | AS14: 222 | AT14: =COUNTIF(L10:L10,AS14) -> 1 | AU14: =AT14/(AV4-AT13) -> 1 | AV14: =IF(AU14=0,0,(AU14*((LOG(AU14))/LOG(2)))) -> 0
P15: =SUM(P7:P14) -> 1 | Q15: =-SUM(Q7:Q14) -> 1.5 | V15: =SUM(V7:V14) -> 1 | W15: =-SUM(W7:W14) -> 0 | AA15: =SUM(AA7:AA14) -> 1 | AB15: =-SUM(AB7:AB14) -> 1 | AF15: =SUM(AF7:AF14) -> 1 | AG15: =-SUM(AG7:AG14) -> 0 | AK15: =SUM(AK7:AK14) -> 1 | AL15: =-SUM(AL7:AL14) -> 0 | AP15: =SUM(AP7:AP14) -> 1 | AQ15: =-SUM(AQ7:AQ14) -> 1 | AU15: =SUM(AU7:AU14) -> 1 | AV15: =-SUM(AV7:AV14) -> 0
P16: U= | Q16: =Q15/(LOG(Q4)/LOG(2)) -> 0.75 | V16: U1= | W16: =W15/(LOG(W4)/LOG(2)) ->  | AA16: U2= | AB16: =AB15/(LOG(AB4)/LOG(2)) -> 1 | AF16: U3= | AG16: =AG15/(LOG(AG4)/LOG(2)) ->  | AK16: U4= | AL16: =AL15/(LOG(AL4)/LOG(2)) ->  | AP16: U5= | AQ16: =AQ15/(LOG(AQ4)/LOG(2)) -> 1 | AU16: U6= | AV16: =AV15/(LOG(AV4)/LOG(2)) -> 
N19: Total Target Seq
N20: =COUNTIF(L7:L10,G3) -> 0 | P20: 1 | Q20: 0 | R20: 1 | S20: 1 | T20: 0 | U20: 1
P21: % of reinforcement given in 6 equal intervals based on number of trials
P22: %_1 | Q22: %_2 | R22: %_3 | S22: %_4 | T22: %_5 | U22: %_6
O23: target sequence | P23: =$G$3 -> 221 | Q23: 221 | R23: 221 | S23: 221 | T23: 221 | U23: 221
O24: total reinforcement | P24: =U13 -> 0 | Q24: =Z13 -> 0 | R24: =AE13 -> 0 | S24: =AJ13 -> 0 | T24: =AO13 -> 0 | U24: =AT13 -> 0
O25: % target
O26: CCRF
O27: % CCRf
O28: average response rate | P28: =F7/P20 -> 87 | Q28: =(F7-F7)/Q20 ->  | R28: =(F8-F7)/R20 -> 273 | S28: =(F9-F8)/S20 -> 296 | T28: =(F9-F9)/T20 ->  | U28: =(F10-F9)/U20 -> 21762

Sheet !M908A5B.AXT
A1: Report for:!M908A5B.AXT
A2: Date: | B2: <date>
A3: Hen: | B3: <hen> | F3: Correct Sequence | G3: =Start!J2 -> 221 | P3: Total Sequences in Data | Q3: =4994-COUNTBLANK(L7:L5000) -> 7 | V3: Total Sequences in Block Data | W3: =COUNTA(L7:L7) -> 1 | AA3: Total Sequences in Block Data | AB3: =COUNTA(L8:L8) -> 1 | AF3: Total Sequences in Block Data | AG3: =COUNTA(L9:L10) -> 2 | AK3: Total Sequences in Block Data | AL3: =COUNTA(L11:L11) -> 1 | AP3: Total Sequences in Block Data | AQ3: =COUNTA(L12:L12) -> 1 | AU3: Total Sequences in Block Data | AV3: =COUNTA(L13:L13) -> 1
P4: Total Sequences in Summary | Q4: =SUM(O7:O14) -> 7 | V4: Total Sequences in Block Summary | W4: =SUM(U7:U14) -> 1 | AA4: Total Sequences in Block Summary | AB4: =SUM(Z7:Z14) -> 1 | AF4: Total Sequences in Block Summary | AG4: =SUM(AE7:AE14) -> 2 | AK4: Total Sequences in Block Summary | AL4: =SUM(AJ7:AJ14) -> 1 | AP4: Total Sequences in Block Summary | AQ4: =SUM(AO7:AO14) -> 1 | AU4: Total Sequences in Block Summary | AV4: =SUM(AT7:AT14) -> 1
T5: Block 1 | Y5: Block 2 | AD5: Block 3 | AI5: Block 4 | AN5: Block 5 | AS5: Block 6
A6: Sequence Component 1 | B6: Time 1 | C6: Sequence Component 2 | D6: Time 2 | E6: Sequence Component 3 | F6: Time 3 | G6: Sequence Component 4 | H6: Time 4 | I6: Sequence Component 5 | J6: Time 5 | K6: Correct? 0=No 1=Yes | L6: Sequence | N6: Frequency | P6: Relative Frequency | Q6: Variability | T6: Frequency | V6: Relative Frequency | W6: Variability | Y6: Frequency | AA6: Relative Frequency | AB6: Variability | AD6: Frequency | AF6: Relative Frequency | AG6: Variability | AI6: Frequency | AK6: Relative Frequency | AL6: Variability | AN6: Frequency | AP6: Relative Frequency | AQ6: Variability | AS6: Frequency | AU6: Relative Frequency | AV6: Variability
A7: 22 | B7: 71 | C7: 23 | D7: 81 | E7: 24 | F7: 90 | K7: 0 | L7: 222 | N7: 111 | O7: =COUNTIF($L$7:$L$500,N7) -> 0 | P7: =O7/$Q$4 -> 0 | Q7: =IF(P7=0,0,(P7*((LOG(P7))/LOG(2)))) -> 0 | T7: =N7 -> 111 | U7: =COUNTIF(L7:L7,T7) -> 0 | V7: =U7/(W4-U13) -> 0 | W7: =IF(V7=0,0,(V7*((LOG(V7))/LOG(2)))) -> 0 | Y7: =N7 -> 111 | Z7: =COUNTIF(L8:L8,Y7) -> 0 | AA7: =Z7/(AB4-Z13) -> 0 | AB7: =IF(AA7=0,0,(AA7*((LOG(AA7))/LOG(2)))) -> 0 | AD7: =N7 -> 111 | AE7: =COUNTIF(L9:L10,AD7) -> 0 | AF7: =AE7/(AG4-AE13) -> 0 | AG7: =IF(AF7=0,0,(AF7*((LOG(AF7))/LOG(2)))) -> 0 | AI7: =N7 -> 111 | AJ7: =COUNTIF(L11:L11,AI7) -> 0 | AK7: =AJ7/(AL4-AJ13) -> 0 | AL7: =IF(AK7=0,0,(AK7*((LOG(AK7))/LOG(2)))) -> 0 | AN7: =N7 -> 111 | AO7: =COUNTIF(L12:L12,AN7) -> 0 | AP7: =AO7/(AQ4-AO13) -> 0 | AQ7: =IF(AP7=0,0,(AP7*((LOG(AP7))/LOG(2)))) -> 0 | AS7: =N7 -> 111 | AT7: =COUNTIF(L13:L13,AS7) -> 0 | AU7: =AT7/(AV4-AT13) -> 0 | AV7: =IF(AU7=0,0,(AU7*((LOG(AU7))/LOG(2)))) -> 0
A8: 22 | B8: 264 | C8: 23 | D8: 296 | E8: 24 | F8: 300 | K8: 0 | L8: 222 | N8: 112 | O8: 2 | P8: 0.2857142857 | Q8: -0.5163871206 | T8: 112 | U8: =COUNTIF(L7:L7,T8) -> 0 | V8: =U8/(W4-U13) -> 0 | W8: 0 | Y8: 112 | Z8: =COUNTIF(L8:L8,Y8) -> 0 | AA8: =Z8/(AB4-Z13) -> 0 | AB8: 0 | AD8: 112 | AE8: =COUNTIF(L9:L10,AD8) -> 0 | AF8: =AE8/(AG4-AE13) -> 0 | AG8: 0 | AI8: 112 | AJ8: =COUNTIF(L11:L11,AI8) -> 0 | AK8: =AJ8/(AL4-AJ13) -> 0 | AL8: 0 | AN8: 112 | AO8: =COUNTIF(L12:L12,AN8) -> 1 | AP8: =AO8/(AQ4-AO13) -> 1 | AQ8: 0 | AS8: 112 | AT8: =COUNTIF(L13:L13,AS8) -> 1 | AU8: =AT8/(AV4-AT13) -> 1 | AV8: 0
A9: 22 | B9: 423 | C9: 23 | D9: 433 | E9: 13 | F9: 449 | K9: 0 | L9: 221 | N9: 121 | O9: 0 | P9: 0 | Q9: 0 | T9: 121 | U9: =COUNTIF(L7:L7,T9) -> 0 | V9: =U9/(W4-U13) -> 0 | W9: 0 | Y9: 121 | Z9: =COUNTIF(L8:L8,Y9) -> 0 | AA9: =Z9/(AB4-Z13) -> 0 | AB9: 0 | AD9: 121 | AE9: =COUNTIF(L9:L10,AD9) -> 0 | AF9: =AE9/(AG4-AE13) -> 0 | AG9: 0 | AI9: 121 | AJ9: =COUNTIF(L11:L11,AI9) -> 0 | AK9: =AJ9/(AL4-AJ13) -> 0 | AL9: 0 | AN9: 121 | AO9: =COUNTIF(L12:L12,AN9) -> 0 | AP9: =AO9/(AQ4-AO13) -> 0 | AQ9: 0 | AS9: 121 | AT9: =COUNTIF(L13:L13,AS9) -> 0 | AU9: =AT9/(AV4-AT13) -> 0 | AV9: 0
A10: 22 | B10: 732 | C10: 14 | D10: 973 | E10: 24 | F10: 980 | K10: 0 | L10: 212 | N10: 122 | O10: 0 | P10: 0 | Q10: 0 | T10: 122 | U10: =COUNTIF(L7:L7,T10) -> 0 | V10: =U10/(W4-U13) -> 0 | W10: 0 | Y10: 122 | Z10: =COUNTIF(L8:L8,Y10) -> 0 | AA10: =Z10/(AB4-Z13) -> 0 | AB10: 0 | AD10: 122 | AE10: =COUNTIF(L9:L10,AD10) -> 0 | AF10: =AE10/(AG4-AE13) -> 0 | AG10: 0 | AI10: 122 | AJ10: =COUNTIF(L11:L11,AI10) -> 0 | AK10: =AJ10/(AL4-AJ13) -> 0 | AL10: 0 | AN10: 122 | AO10: =COUNTIF(L12:L12,AN10) -> 0 | AP10: =AO10/(AQ4-AO13) -> 0 | AQ10: 0 | AS10: 122 | AT10: =COUNTIF(L13:L13,AS10) -> 0 | AU10: =AT10/(AV4-AT13) -> 0 | AV10: 0
A11: 22 | B11: 5868 | C11: 14 | D11: 5963 | E11: 24 | F11: 5974 | K11: 0 | L11: 212 | N11: 211 | O11: 0 | P11: 0 | Q11: 0 | T11: 211 | U11: =COUNTIF(L7:L7,T11) -> 0 | V11: =U11/(W4-U13) -> 0 | W11: 0 | Y11: 211 | Z11: =COUNTIF(L8:L8,Y11) -> 0 | AA11: =Z11/(AB4-Z13) -> 0 | AB11: 0 | AD11: 211 | AE11: =COUNTIF(L9:L10,AD11) -> 0 | AF11: =AE11/(AG4-AE13) -> 0 | AG11: 0 | AI11: 211 | AJ11: =COUNTIF(L11:L11,AI11) -> 0 | AK11: =AJ11/(AL4-AJ13) -> 0 | AL11: 0 | AN11: 211 | AO11: =COUNTIF(L12:L12,AN11) -> 0 | AP11: =AO11/(AQ4-AO13) -> 0 | AQ11: 0 | AS11: 211 | AT11: =COUNTIF(L13:L13,AS11) -> 0 | AU11: =AT11/(AV4-AT13) -> 0 | AV11: 0
A12: 11 | B12: 21648 | C12: 12 | D12: 21652 | E12: 24 | F12: 22115 | K12: 0 | L12: 112 | N12: 212 | O12: 2 | P12: 0.2857142857 | Q12: -0.5163871206 | T12: 212 | U12: =COUNTIF(L7:L7,T12) -> 0 | V12: =U12/(W4-U13) -> 0 | W12: 0 | Y12: 212 | Z12: =COUNTIF(L8:L8,Y12) -> 0 | AA12: =Z12/(AB4-Z13) -> 0 | AB12: 0 | AD12: 212 | AE12: =COUNTIF(L9:L10,AD12) -> 1 | AF12: =AE12/(AG4-AE13) -> 1 | AG12: 0 | AI12: 212 | AJ12: =COUNTIF(L11:L11,AI12) -> 1 | AK12: =AJ12/(AL4-AJ13) -> 1 | AL12: 0 | AN12: 212 | AO12: =COUNTIF(L12:L12,AN12) -> 0 | AP12: =AO12/(AQ4-AO13) -> 0 | AQ12: 0 | AS12: 212 | AT12: =COUNTIF(L13:L13,AS12) -> 0 | AU12: =AT12/(AV4-AT13) -> 0 | AV12: 0
A13: 11 | B13: 22288 | C13: 12 | D13: 22293 | E13: 24 | F13: 22304 | K13: 0 | L13: 112 | N13: 221 | O13: 1 | P13: 0.1428571429 | Q13: -0.4010507032 | T13: 221 | U13: =COUNTIF(L7:L7,T13) -> 0 | Y13: 221 | Z13: =COUNTIF(L8:L8,Y13) -> 0 | AD13: 221 | AE13: =COUNTIF(L9:L10,AD13) -> 1 | AI13: 221 | AJ13: =COUNTIF(L11:L11,AI13) -> 0 | AN13: 221 | AO13: =COUNTIF(L12:L12,AN13) -> 0 | AS13: 221 | AT13: =COUNTIF(L13:L13,AS13) -> 0
N14: 222 | O14: 2 | P14: 0.2857142857 | Q14: -0.5163871206 | T14: 222 | U14: =COUNTIF(L7:L7,T14) -> 1 | V14: =U14/(W4-U13) -> 1 | W14: =IF(V14=0,0,(V14*((LOG(V14))/LOG(2)))) -> 0 | Y14: 222 | Z14: =COUNTIF(L8:L8,Y14) -> 1 | AA14: =Z14/(AB4-Z13) -> 1 | AB14: =IF(AA14=0,0,(AA14*((LOG(AA14))/LOG(2)))) -> 0 | AD14: 222 | AE14: =COUNTIF(L9:L10,AD14) -> 0 | AF14: =AE14/(AG4-AE13) -> 0 | AG14: =IF(AF14=0,0,(AF14*((LOG(AF14))/LOG(2)))) -> 0 | AI14: 222 | AJ14: =COUNTIF(L11:L11,AI14) -> 0 | AK14: =AJ14/(AL4-AJ13) -> 0 | AL14: =IF(AK14=0,0,(AK14*((LOG(AK14))/LOG(2)))) -> 0 | AN14: 222 | AO14: =COUNTIF(L12:L12,AN14) -> 0 | AP14: =AO14/(AQ4-AO13) -> 0 | AQ14: =IF(AP14=0,0,(AP14*((LOG(AP14))/LOG(2)))) -> 0 | AS14: 222 | AT14: =COUNTIF(L13:L13,AS14) -> 0 | AU14: =AT14/(AV4-AT13) -> 0 | AV14: =IF(AU14=0,0,(AU14*((LOG(AU14))/LOG(2)))) -> 0
P15: =SUM(P7:P14) -> 1 | Q15: =-SUM(Q7:Q14) -> 1.950212065 | V15: =SUM(V7:V14) -> 1 | W15: =-SUM(W7:W14) -> 0 | AA15: =SUM(AA7:AA14) -> 1 | AB15: =-SUM(AB7:AB14) -> 0 | AF15: =SUM(AF7:AF14) -> 1 | AG15: =-SUM(AG7:AG14) -> 0 | AK15: =SUM(AK7:AK14) -> 1 | AL15: =-SUM(AL7:AL14) -> 0 | AP15: =SUM(AP7:AP14) -> 1 | AQ15: =-SUM(AQ7:AQ14) -> 0 | AU15: =SUM(AU7:AU14) -> 1 | AV15: =-SUM(AV7:AV14) -> 0
P16: U= | Q16: =Q15/(LOG(Q4)/LOG(2)) -> 0.6946795539 | V16: U1= | W16: =W15/(LOG(W4)/LOG(2)) ->  | AA16: U2= | AB16: =AB15/(LOG(AB4)/LOG(2)) ->  | AF16: U3= | AG16: =AG15/(LOG(AG4)/LOG(2)) -> 0 | AK16: U4= | AL16: =AL15/(LOG(AL4)/LOG(2)) ->  | AP16: U5= | AQ16: =AQ15/(LOG(AQ4)/LOG(2)) ->  | AU16: U6= | AV16: =AV15/(LOG(AV4)/LOG(2)) -> 
N19: Total Target Seq
N20: =COUNTIF(L7:L13,G3) -> 1 | P20: 1 | Q20: 1 | R20: 2 | S20: 1 | T20: 1 | U20: 1
P21: % of reinforcement given in 6 equal intervals based on number of trials
P22: %_1 | Q22: %_2 | R22: %_3 | S22: %_4 | T22: %_5 | U22: %_6
O23: target sequence | P23: =$G$3 -> 221 | Q23: 221 | R23: 221 | S23: 221 | T23: 221 | U23: 221
O24: total reinforcement | P24: =U13 -> 0 | Q24: =Z13 -> 0 | R24: =AE13 -> 1 | S24: =AJ13 -> 0 | T24: =AO13 -> 0 | U24: =AT13 -> 0
O25: % target
O26: CCRF
O27: % CCRf
O28: average response rate | P28: =F7/P20 -> 90 | Q28: =(F8-F7)/Q20 -> 210 | R28: =(F10-F8)/R20 -> 340 | S28: =(F11-F10)/S20 -> 4994 | T28: =(F12-F11)/T20 -> 16141 | U28: =(F13-F12)/U20 -> 189

Sheet !M909A5B.AXT
A1: Report for:!M909A5B.AXT
A2: Date: | B2: <date>
A3: Hen: | B3: <hen> | F3: Correct Sequence | G3: =Start!J2 -> 221 | P3: Total Sequences in Data | Q3: =4994-COUNTBLANK(L7:L5000) -> 3 | V3: Total Sequences in Block Data | W3: =COUNTA(L7:L7) -> 1 | AA3: Total Sequences in Block Data | AB3: =COUNTA(L7:L8) -> 2 | AF3: Total Sequences in Block Data | AG3: =COUNTA(L8:L8) -> 1 | AK3: Total Sequences in Block Data | AL3: =COUNTA(L8:L9) -> 2 | AP3: Total Sequences in Block Data | AQ3: =COUNTA(L9:L9) -> 1 | AU3: Total Sequences in Block Data | AV3: =COUNTA(L9:L10) -> 1
P4: Total Sequences in Summary | Q4: =SUM(O7:O14) -> 3 | V4: Total Sequences in Block Summary | W4: =SUM(U7:U14) -> 1 | AA4: Total Sequences in Block Summary | AB4: =SUM(Z7:Z14) -> 2 | AF4: Total Sequences in Block Summary | AG4: =SUM(AE7:AE14) -> 1 | AK4: Total Sequences in Block Summary | AL4: =SUM(AJ7:AJ14) -> 2 | AP4: Total Sequences in Block Summary | AQ4: =SUM(AO7:AO14) -> 1 | AU4: Total Sequences in Block Summary | AV4: =SUM(AT7:AT14) -> 1
T5: Block 1 | Y5: Block 2 | AD5: Block 3 | AI5: Block 4 | AN5: Block 5 | AS5: Block 6
A6: Sequence Component 1 | B6: Time 1 | C6: Sequence Component 2 | D6: Time 2 | E6: Sequence Component 3 | F6: Time 3 | G6: Sequence Component 4 | H6: Time 4 | I6: Sequence Component 5 | J6: Time 5 | K6: Correct? 0=No 1=Yes | L6: Sequence | N6: Frequency | P6: Relative Frequency | Q6: Variability | T6: Frequency | V6: Relative Frequency | W6: Variability | Y6: Frequency | AA6: Relative Frequency | AB6: Variability | AD6: Frequency | AF6: Relative Frequency | AG6: Variability | AI6: Frequency | AK6: Relative Frequency | AL6: Variability | AN6: Frequency | AP6: Relative Frequency | AQ6: Variability | AS6: Frequency | AU6: Relative Frequency | AV6: Variability
A7: 22 | B7: 200 | C7: 23 | D7: 219 | E7: 24 | F7: 225 | K7: 0 | L7: 222 | N7: 111 | O7: =COUNTIF($L$7:$L$500,N7) -> 0 | P7: =O7/$Q$4 -> 0 | Q7: =IF(P7=0,0,(P7*((LOG(P7))/LOG(2)))) -> 0 | T7: =N7 -> 111 | U7: =COUNTIF(L7:L7,T7) -> 0 | V7: =U7/(W4-U13) -> 0 | W7: =IF(V7=0,0,(V7*((LOG(V7))/LOG(2)))) -> 0 | Y7: =N7 -> 111 | Z7: =COUNTIF(L7:L8,Y7) -> 0 | AA7: =Z7/(AB4-Z13) -> 0 | AB7: =IF(AA7=0,0,(AA7*((LOG(AA7))/LOG(2)))) -> 0 | AD7: =N7 -> 111 | AE7: =COUNTIF(L8:L8,AD7) -> 0 | AF7: =AE7/(AG4-AE13) -> 0 | AG7: =IF(AF7=0,0,(AF7*((LOG(AF7))/LOG(2)))) -> 0 | AI7: =N7 -> 111 | AJ7: =COUNTIF(L8:L9,AI7) -> 0 | AK7: =AJ7/(AL4-AJ13) -> 0 | AL7: =IF(AK7=0,0,(AK7*((LOG(AK7))/LOG(2)))) -> 0 | AN7: =N7 -> 111 | AO7: =COUNTIF(L9:L9,AN7) -> 0 | AP7: =AO7/(AQ4-AO13) -> 0 | AQ7: =IF(AP7=0,0,(AP7*((LOG(AP7))/LOG(2)))) -> 0 | AS7: =N7 -> 111 | AT7: =COUNTIF(L9:L10,AS7) -> 0 | AU7: =AT7/(AV4-AT13) -> 0 | AV7: =IF(AU7=0,0,(AU7*((LOG(AU7))/LOG(2)))) -> 0
A8: 22 | B8: 339 | C8: 23 | D8: 345 | E8: 24 | F8: 353 | K8: 0 | L8: 222 | N8: 112 | O8: 1 | P8: 0.3333333333 | Q8: -0.5283208336 | T8: 112 | U8: =COUNTIF(L7:L7,T8) -> 0 | V8: =U8/(W4-U13) -> 0 | W8: 0 | Y8: 112 | Z8: =COUNTIF(L7:L8,Y8) -> 0 | AA8: =Z8/(AB4-Z13) -> 0 | AB8: 0 | AD8: 112 | AE8: =COUNTIF(L8:L8,AD8) -> 0 | AF8: =AE8/(AG4-AE13) -> 0 | AG8: 0 | AI8: 112 | AJ8: =COUNTIF(L8:L9,AI8) -> 1 | AK8: =AJ8/(AL4-AJ13) -> 0.5 | AL8: -0.5 | AN8: 112 | AO8: =COUNTIF(L9:L9,AN8) -> 1 | AP8: =AO8/(AQ4-AO13) -> 1 | AQ8: 0 | AS8: 112 | AT8: =COUNTIF(L9:L10,AS8) -> 1 | AU8: =AT8/(AV4-AT13) -> 1 | AV8: 0
A9: 11 | B9: 611 | C9: 12 | D9: 616 | E9: 24 | F9: 630 | K9: 0 | L9: 112 | N9: 121 | O9: 0 | P9: 0 | Q9: 0 | T9: 121 | U9: =COUNTIF(L7:L7,T9) -> 0 | V9: =U9/(W4-U13) -> 0 | W9: 0 | Y9: 121 | Z9: =COUNTIF(L7:L8,Y9) -> 0 | AA9: =Z9/(AB4-Z13) -> 0 | AB9: 0 | AD9: 121 | AE9: =COUNTIF(L8:L8,AD9) -> 0 | AF9: =AE9/(AG4-AE13) -> 0 | AG9: 0 | AI9: 121 | AJ9: =COUNTIF(L8:L9,AI9) -> 0 | AK9: =AJ9/(AL4-AJ13) -> 0 | AL9: 0 | AN9: 121 | AO9: =COUNTIF(L9:L9,AN9) -> 0 | AP9: =AO9/(AQ4-AO13) -> 0 | AQ9: 0 | AS9: 121 | AT9: =COUNTIF(L9:L10,AS9) -> 0 | AU9: =AT9/(AV4-AT13) -> 0 | AV9: 0
N10: 122 | O10: 0 | P10: 0 | Q10: 0 | T10: 122 | U10: =COUNTIF(L7:L7,T10) -> 0 | V10: =U10/(W4-U13) -> 0 | W10: 0 | Y10: 122 | Z10: =COUNTIF(L7:L8,Y10) -> 0 | AA10: =Z10/(AB4-Z13) -> 0 | AB10: 0 | AD10: 122 | AE10: =COUNTIF(L8:L8,AD10) -> 0 | AF10: =AE10/(AG4-AE13) -> 0 | AG10: 0 | AI10: 122 | AJ10: =COUNTIF(L8:L9,AI10) -> 0 | AK10: =AJ10/(AL4-AJ13) -> 0 | AL10: 0 | AN10: 122 | AO10: =COUNTIF(L9:L9,AN10) -> 0 | AP10: =AO10/(AQ4-AO13) -> 0 | AQ10: 0 | AS10: 122 | AT10: =COUNTIF(L9:L10,AS10) -> 0 | AU10: =AT10/(AV4-AT13) -> 0 | AV10: 0
N11: 211 | O11: 0 | P11: 0 | Q11: 0 | T11: 211 | U11: =COUNTIF(L7:L7,T11) -> 0 | V11: =U11/(W4-U13) -> 0 | W11: 0 | Y11: 211 | Z11: =COUNTIF(L7:L8,Y11) -> 0 | AA11: =Z11/(AB4-Z13) -> 0 | AB11: 0 | AD11: 211 | AE11: =COUNTIF(L8:L8,AD11) -> 0 | AF11: =AE11/(AG4-AE13) -> 0 | AG11: 0 | AI11: 211 | AJ11: =COUNTIF(L8:L9,AI11) -> 0 | AK11: =AJ11/(AL4-AJ13) -> 0 | AL11: 0 | AN11: 211 | AO11: =COUNTIF(L9:L9,AN11) -> 0 | AP11: =AO11/(AQ4-AO13) -> 0 | AQ11: 0 | AS11: 211 | AT11: =COUNTIF(L9:L10,AS11) -> 0 | AU11: =AT11/(AV4-AT13) -> 0 | AV11: 0
N12: 212 | O12: 0 | P12: 0 | Q12: 0 | T12: 212 | U12: =COUNTIF(L7:L7,T12) -> 0 | V12: =U12/(W4-U13) -> 0 | W12: 0 | Y12: 212 | Z12: =COUNTIF(L7:L8,Y12) -> 0 | AA12: =Z12/(AB4-Z13) -> 0 | AB12: 0 | AD12: 212 | AE12: =COUNTIF(L8:L8,AD12) -> 0 | AF12: =AE12/(AG4-AE13) -> 0 | AG12: 0 | AI12: 212 | AJ12: =COUNTIF(L8:L9,AI12) -> 0 | AK12: =AJ12/(AL4-AJ13) -> 0 | AL12: 0 | AN12: 212 | AO12: =COUNTIF(L9:L9,AN12) -> 0 | AP12: =AO12/(AQ4-AO13) -> 0 | AQ12: 0 | AS12: 212 | AT12: =COUNTIF(L9:L10,AS12) -> 0 | AU12: =AT12/(AV4-AT13) -> 0 | AV12: 0
N13: 221 | O13: 0 | P13: 0 | Q13: 0 | T13: 221 | U13: =COUNTIF(L7:L7,T13) -> 0 | Y13: 221 | Z13: =COUNTIF(L7:L8,Y13) -> 0 | AD13: 221 | AE13: =COUNTIF(L8:L8,AD13) -> 0 | AI13: 221 | AJ13: =COUNTIF(L8:L9,AI13) -> 0 | AN13: 221 | AO13: =COUNTIF(L9:L9,AN13) -> 0 | AS13: 221 | AT13: =COUNTIF(L9:L10,AS13) -> 0
N14: 222 | O14: 2 | P14: 0.6666666667 | Q14: -0.3899750005 | T14: 222 | U14: =COUNTIF(L7:L7,T14) -> 1 | V14: =U14/(W4-U13) -> 1 | W14: =IF(V14=0,0,(V14*((LOG(V14))/LOG(2)))) -> 0 | Y14: 222 | Z14: =COUNTIF(L7:L8,Y14) -> 2 | AA14: =Z14/(AB4-Z13) -> 1 | AB14: =IF(AA14=0,0,(AA14*((LOG(AA14))/LOG(2)))) -> 0 | AD14: 222 | AE14: =COUNTIF(L8:L8,AD14) -> 1 | AF14: =AE14/(AG4-AE13) -> 1 | AG14: =IF(AF14=0,0,(AF14*((LOG(AF14))/LOG(2)))) -> 0 | AI14: 222 | AJ14: =COUNTIF(L8:L9,AI14) -> 1 | AK14: =AJ14/(AL4-AJ13) -> 0.5 | AL14: =IF(AK14=0,0,(AK14*((LOG(AK14))/LOG(2)))) -> -0.5 | AN14: 222 | AO14: =COUNTIF(L9:L9,AN14) -> 0 | AP14: =AO14/(AQ4-AO13) -> 0 | AQ14: =IF(AP14=0,0,(AP14*((LOG(AP14))/LOG(2)))) -> 0 | AS14: 222 | AT14: =COUNTIF(L9:L10,AS14) -> 0 | AU14: =AT14/(AV4-AT13) -> 0 | AV14: =IF(AU14=0,0,(AU14*((LOG(AU14))/LOG(2)))) -> 0
P15: =SUM(P7:P14) -> 1 | Q15: =-SUM(Q7:Q14) -> 0.9182958341 | V15: =SUM(V7:V14) -> 1 | W15: =-SUM(W7:W14) -> 0 | AA15: =SUM(AA7:AA14) -> 1 | AB15: =-SUM(AB7:AB14) -> 0 | AF15: =SUM(AF7:AF14) -> 1 | AG15: =-SUM(AG7:AG14) -> 0 | AK15: =SUM(AK7:AK14) -> 1 | AL15: =-SUM(AL7:AL14) -> 1 | AP15: =SUM(AP7:AP14) -> 1 | AQ15: =-SUM(AQ7:AQ14) -> 0 | AU15: =SUM(AU7:AU14) -> 1 | AV15: =-SUM(AV7:AV14) -> 0
P16: U= | Q16: =Q15/(LOG(Q4)/LOG(2)) -> 0.5793801643 | V16: U1= | W16: =W15/(LOG(W4)/LOG(2)) ->  | AA16: U2= | AB16: =AB15/(LOG(AB4)/LOG(2)) -> 0 | AF16: U3= | AG16: =AG15/(LOG(AG4)/LOG(2)) ->  | AK16: U4= | AL16: =AL15/(LOG(AL4)/LOG(2)) -> 1 | AP16: U5= | AQ16: =AQ15/(LOG(AQ4)/LOG(2)) ->  | AU16: U6= | AV16: =AV15/(LOG(AV4)/LOG(2)) -> 
N19: Total Target Seq
N20: =COUNTIF(L7:L9,G3) -> 0 | P20: 1 | Q20: 0 | R20: 1 | S20: 0 | T20: 1 | U20: 0
P21: % of reinforcement given in 6 equal intervals based on number of trials
P22: %_1 | Q22: %_2 | R22: %_3 | S22: %_4 | T22: %_5 | U22: %_6
O23: target sequence | P23: =$G$3 -> 221 | Q23: 221 | R23: 221 | S23: 221 | T23: 221 | U23: 221
O24: total reinforcement | P24: =U13 -> 0 | Q24: =Z13 -> 0 | R24: =AE13 -> 0 | S24: =AJ13 -> 0 | T24: =AO13 -> 0 | U24: =AT13 -> 0
O25: % target
O26: CCRF
O27: % CCRf
O28: average response rate | P28: =F7/P20 -> 225 | Q28: =(F7-F7)/Q20 ->  | R28: =(F8-F7)/R20 -> 128 | S28: =(F8-F8)/S20 ->  | T28: =(F9-F8)/T20 -> 277 | U28: =(F9-F9)/U20 -> 

Sheet !M910B5B.AXT
A1: Report for:!M910B5B.AXT
A2: Date: | B2: <date>
A3: Hen: | B3: <hen> | F3: Correct Sequence | G3: =Start!J2 -> 221 | P3: Total Sequences in Data | Q3: =4994-COUNTBLANK(L7:L5000) -> 11 | V3: Total Sequences in Block Data | W3: =COUNTA(L7:L8) -> 2 | AA3: Total Sequences in Block Data | AB3: =COUNTA(L9:L10) -> 2 | AF3: Total Sequences in Block Data | AG3: =COUNTA(L11:L11) -> 1 | AK3: Total Sequences in Block Data | AL3: =COUNTA(L12:L13) -> 2 | AP3: Total Sequences in Block Data | AQ3: =COUNTA(L14:L15) -> 2 | AU3: Total Sequences in Block Data | AV3: =COUNTA(L16:L17) -> 2
P4: Total Sequences in Summary | Q4: =SUM(O7:O14) -> 11 | V4: Total Sequences in Block Summary | W4: =SUM(U7:U14) -> 2 | AA4: Total Sequences in Block Summary | AB4: =SUM(Z7:Z14) -> 2 | AF4: Total Sequences in Block Summary | AG4: =SUM(AE7:AE14) -> 1 | AK4: Total Sequences in Block Summary | AL4: =SUM(AJ7:AJ14) -> 2 | AP4: Total Sequences in Block Summary | AQ4: =SUM(AO7:AO14) -> 2 | AU4: Total Sequences in Block Summary | AV4: =SUM(AT7:AT14) -> 2
T5: Block 1 | Y5: Block 2 | AD5: Block 3 | AI5: Block 4 | AN5: Block 5 | AS5: Block 6
A6: Sequence Component 1 | B6: Time 1 | C6: Sequence Component 2 | D6: Time 2 | E6: Sequence Component 3 | F6: Time 3 | G6: Sequence Component 4 | H6: Time 4 | I6: Sequence Component 5 | J6: Time 5 | K6: Correct? 0=No 1=Yes | L6: Sequence | N6: Frequency | P6: Relative Frequency | Q6: Variability | T6: Frequency | V6: Relative Frequency | W6: Variability | Y6: Frequency | AA6: Relative Frequency | AB6: Variability | AD6: Frequency | AF6: Relative Frequency | AG6: Variability | AI6: Frequency | AK6: Relative Frequency | AL6: Variability | AN6: Frequency | AP6: Relative Frequency | AQ6: Variability | AS6: Frequency | AU6: Relative Frequency | AV6: Variability
A7: 22 | B7: 63 | C7: 23 | D7: 76 | E7: 24 | F7: 107 | K7: 0 | L7: 222 | N7: 111 | O7: =COUNTIF($L$7:$L$500,N7) -> 0 | P7: =O7/$Q$4 -> 0 | Q7: =IF(P7=0,0,(P7*((LOG(P7))/LOG(2)))) -> 0 | T7: =N7 -> 111 | U7: =COUNTIF(L7:L8,T7) -> 0 | V7: =U7/(W4-U13) -> 0 | W7: =IF(V7=0,0,(V7*((LOG(V7))/LOG(2)))) -> 0 | Y7: =N7 -> 111 | Z7: =COUNTIF(L9:L10,Y7) -> 0 | AA7: =Z7/(AB4-Z13) -> 0 | AB7: =IF(AA7=0,0,(AA7*((LOG(AA7))/LOG(2)))) -> 0 | AD7: =N7 -> 111 | AE7: =COUNTIF(L11:L11,AD7) -> 0 | AF7: =AE7/(AG4-AE13) -> 0 | AG7: =IF(AF7=0,0,(AF7*((LOG(AF7))/LOG(2)))) -> 0 | AI7: =N7 -> 111 | AJ7: =COUNTIF(L12:L13,AI7) -> 0 | AK7: =AJ7/(AL4-AJ13) -> 0 | AL7: =IF(AK7=0,0,(AK7*((LOG(AK7))/LOG(2)))) -> 0 | AN7: =N7 -> 111 | AO7: =COUNTIF(L14:L15,AN7) -> 0 | AP7: =AO7/(AQ4-AO13) -> 0 | AQ7: =IF(AP7=0,0,(AP7*((LOG(AP7))/LOG(2)))) -> 0 | AS7: =N7 -> 111 | AT7: =COUNTIF(L16:L17,AS7) -> 0 | AU7: =AT7/(AV4-AT13) -> 0 | AV7: =IF(AU7=0,0,(AU7*((LOG(AU7))/LOG(2)))) -> 0
A8: 22 | B8: 4847 | C8: 23 | D8: 4850 | E8: 24 | F8: 4867 | K8: 0 | L8: 222 | N8: 112 | O8: 1 | P8: 0.09090909091 | Q8: -0.3144937835 | T8: 112 | U8: =COUNTIF(L7:L8,T8) -> 0 | V8: =U8/(W4-U13) -> 0 | W8: 0 | Y8: 112 | Z8: =COUNTIF(L9:L10,Y8) -> 0 | AA8: =Z8/(AB4-Z13) -> 0 | AB8: 0 | AD8: 112 | AE8: =COUNTIF(L11:L11,AD8) -> 0 | AF8: =AE8/(AG4-AE13) -> 0 | AG8: 0 | AI8: 112 | AJ8: =COUNTIF(L12:L13,AI8) -> 1 | AK8: =AJ8/(AL4-AJ13) -> 0.5 | AL8: -0.5 | AN8: 112 | AO8: =COUNTIF(L14:L15,AN8) -> 0 | AP8: =AO8/(AQ4-AO13) -> 0 | AQ8: 0 | AS8: 112 | AT8: =COUNTIF(L16:L17,AS8) -> 0 | AU8: =AT8/(AV4-AT13) -> 0 | AV8: 0
A9: 11 | B9: 8395 | C9: 21 | D9: 8402 | E9: 22 | F9: 8408 | K9: 0 | L9: 122 | N9: 121 | O9: 1 | P9: 0.09090909091 | Q9: -0.3144937835 | T9: 121 | U9: =COUNTIF(L7:L8,T9) -> 0 | V9: =U9/(W4-U13) -> 0 | W9: 0 | Y9: 121 | Z9: =COUNTIF(L9:L10,Y9) -> 1 | AA9: =Z9/(AB4-Z13) -> 0.5 | AB9: -0.5 | AD9: 121 | AE9: =COUNTIF(L11:L11,AD9) -> 0 | AF9: =AE9/(AG4-AE13) -> 0 | AG9: 0 | AI9: 121 | AJ9: =COUNTIF(L12:L13,AI9) -> 0 | AK9: =AJ9/(AL4-AJ13) -> 0 | AL9: 0 | AN9: 121 | AO9: =COUNTIF(L14:L15,AN9) -> 0 | AP9: =AO9/(AQ4-AO13) -> 0 | AQ9: 0 | AS9: 121 | AT9: =COUNTIF(L16:L17,AS9) -> 0 | AU9: =AT9/(AV4-AT13) -> 0 | AV9: 0
A10: 11 | B10: 8521 | C10: 21 | D10: 8526 | E10: 11 | F10: 8528 | K10: 0 | L10: 121 | N10: 122 | O10: 2 | P10: 0.1818181818 | Q10: -0.4471693852 | T10: 122 | U10: =COUNTIF(L7:L8,T10) -> 0 | V10: =U10/(W4-U13) -> 0 | W10: 0 | Y10: 122 | Z10: =COUNTIF(L9:L10,Y10) -> 1 | AA10: =Z10/(AB4-Z13) -> 0.5 | AB10: -0.5 | AD10: 122 | AE10: =COUNTIF(L11:L11,AD10) -> 0 | AF10: =AE10/(AG4-AE13) -> 0 | AG10: 0 | AI10: 122 | AJ10: =COUNTIF(L12:L13,AI10) -> 1 | AK10: =AJ10/(AL4-AJ13) -> 0.5 | AL10: -0.5 | AN10: 122 | AO10: =COUNTIF(L14:L15,AN10) -> 0 | AP10: =AO10/(AQ4-AO13) -> 0 | AQ10: 0 | AS10: 122 | AT10: =COUNTIF(L16:L17,AS10) -> 0 | AU10: =AT10/(AV4-AT13) -> 0 | AV10: 0
A11: 22 | B11: 8703 | C11: 23 | D11: 8708 | E11: 24 | F11: 8713 | K11: 0 | L11: 222 | N11: 211 | O11: 0 | P11: 0 | Q11: 0 | T11: 211 | U11: =COUNTIF(L7:L8,T11) -> 0 | V11: =U11/(W4-U13) -> 0 | W11: 0 | Y11: 211 | Z11: =COUNTIF(L9:L10,Y11) -> 0 | AA11: =Z11/(AB4-Z13) -> 0 | AB11: 0 | AD11: 211 | AE11: =COUNTIF(L11:L11,AD11) -> 0 | AF11: =AE11/(AG4-AE13) -> 0 | AG11: 0 | AI11: 211 | AJ11: =COUNTIF(L12:L13,AI11) -> 0 | AK11: =AJ11/(AL4-AJ13) -> 0 | AL11: 0 | AN11: 211 | AO11: =COUNTIF(L14:L15,AN11) -> 0 | AP11: =AO11/(AQ4-AO13) -> 0 | AQ11: 0 | AS11: 211 | AT11: =COUNTIF(L16:L17,AS11) -> 0 | AU11: =AT11/(AV4-AT13) -> 0 | AV11: 0
A12: 11 | B12: 8806 | C12: 12 | D12: 8812 | E12: 24 | F12: 8818 | K12: 0 | L12: 112 | N12: 212 | O12: 0 | P12: 0 | Q12: 0 | T12: 212 | U12: =COUNTIF(L7:L8,T12) -> 0 | V12: =U12/(W4-U13) -> 0 | W12: 0 | Y12: 212 | Z12: =COUNTIF(L9:L10,Y12) -> 0 | AA12: =Z12/(AB4-Z13) -> 0 | AB12: 0 | AD12: 212 | AE12: =COUNTIF(L11:L11,AD12) -> 0 | AF12: =AE12/(AG4-AE13) -> 0 | AG12: 0 | AI12: 212 | AJ12: =COUNTIF(L12:L13,AI12) -> 0 | AK12: =AJ12/(AL4-AJ13) -> 0 | AL12: 0 | AN12: 212 | AO12: =COUNTIF(L14:L15,AN12) -> 0 | AP12: =AO12/(AQ4-AO13) -> 0 | AQ12: 0 | AS12: 212 | AT12: =COUNTIF(L16:L17,AS12) -> 0 | AU12: =AT12/(AV4-AT13) -> 0 | AV12: 0
A13: 11 | B13: 8923 | C13: 21 | D13: 8927 | E13: 22 | F13: 8935 | K13: 0 | L13: 122 | N13: 221 | O13: 0 | P13: 0 | Q13: 0 | T13: 221 | U13: =COUNTIF(L7:L8,T13) -> 0 | Y13: 221 | Z13: =COUNTIF(L9:L10,Y13) -> 0 | AD13: 221 | AE13: =COUNTIF(L11:L11,AD13) -> 0 | AI13: 221 | AJ13: =COUNTIF(L12:L13,AI13) -> 0 | AN13: 221 | AO13: =COUNTIF(L14:L15,AN13) -> 0 | AS13: 221 | AT13: =COUNTIF(L16:L17,AS13) -> 0
A14: 22 | B14: 9047 | C14: 23 | D14: 9051 | E14: 24 | F14: 9078 | K14: 0 | L14: 222 | N14: 222 | O14: 7 | P14: 0.6363636364 | Q14: -0.4149578978 | T14: 222 | U14: =COUNTIF(L7:L8,T14) -> 2 | V14: =U14/(W4-U13) -> 1 | W14: =IF(V14=0,0,(V14*((LOG(V14))/LOG(2)))) -> 0 | Y14: 222 | Z14: =COUNTIF(L9:L10,Y14) -> 0 | AA14: =Z14/(AB4-Z13) -> 0 | AB14: =IF(AA14=0,0,(AA14*((LOG(AA14))/LOG(2)))) -> 0 | AD14: 222 | AE14: =COUNTIF(L11:L11,AD14) -> 1 | AF14: =AE14/(AG4-AE13) -> 1 | AG14: =IF(AF14=0,0,(AF14*((LOG(AF14))/LOG(2)))) -> 0 | AI14: 222 | AJ14: =COUNTIF(L12:L13,AI14) -> 0 | AK14: =AJ14/(AL4-AJ13) -> 0 | AL14: =IF(AK14=0,0,(AK14*((LOG(AK14))/LOG(2)))) -> 0 | AN14: 222 | AO14: =COUNTIF(L14:L15,AN14) -> 2 | AP14: =AO14/(AQ4-AO13) -> 1 | AQ14: =IF(AP14=0,0,(AP14*((LOG(AP14))/LOG(2)))) -> 0 | AS14: 222 | AT14: =COUNTIF(L16:L17,AS14) -> 2 | AU14: =AT14/(AV4-AT13) -> 1 | AV14: =IF(AU14=0,0,(AU14*((LOG(AU14))/LOG(2)))) -> 0
A15: 22 | B15: 9308 | C15: 23 | D15: 9326 | E15: 24 | F15: 9337 | K15: 0 | L15: 222 | P15: =SUM(P7:P14) -> 1 | Q15: =-SUM(Q7:Q14) -> 1.49111485 | V15: =SUM(V7:V14) -> 1 | W15: =-SUM(W7:W14) -> 0 | AA15: =SUM(AA7:AA14) -> 1 | AB15: =-SUM(AB7:AB14) -> 1 | AF15: =SUM(AF7:AF14) -> 1 | AG15: =-SUM(AG7:AG14) -> 0 | AK15: =SUM(AK7:AK14) -> 1 | AL15: =-SUM(AL7:AL14) -> 1 | AP15: =SUM(AP7:AP14) -> 1 | AQ15: =-SUM(AQ7:AQ14) -> 0 | AU15: =SUM(AU7:AU14) -> 1 | AV15: =-SUM(AV7:AV14) -> 0
A16: 22 | B16: 9439 | C16: 23 | D16: 9441 | E16: 24 | F16: 9446 | K16: 0 | L16: 222 | P16: U= | Q16: =Q15/(LOG(Q4)/LOG(2)) -> 0.4310288552 | V16: U1= | W16: =W15/(LOG(W4)/LOG(2)) -> 0 | AA16: U2= | AB16: =AB15/(LOG(AB4)/LOG(2)) -> 1 | AF16: U3= | AG16: =AG15/(LOG(AG4)/LOG(2)) ->  | AK16: U4= | AL16: =AL15/(LOG(AL4)/LOG(2)) -> 1 | AP16: U5= | AQ16: =AQ15/(LOG(AQ4)/LOG(2)) -> 0 | AU16: U6= | AV16: =AV15/(LOG(AV4)/LOG(2)) -> 0
A17: 22 | B17: 15574 | C17: 23 | D17: 15577 | E17: 24 | F17: 23090 | K17: 0 | L17: 222
N19: Total Target Seq
N20: =COUNTIF(L7:L17,G3) -> 0 | P20: 2 | Q20: 2 | R20: 1 | S20: 2 | T20: 2 | U20: 2
P21: % of reinforcement given in 6 equal intervals based on number of trials
P22: %_1 | Q22: %_2 | R22: %_3 | S22: %_4 | T22: %_5 | U22: %_6
O23: target sequence | P23: =$G$3 -> 221 | Q23: 221 | R23: 221 | S23: 221 | T23: 221 | U23: 221
O24: total reinforcement | P24: =U13 -> 0 | Q24: =Z13 -> 0 | R24: =AE13 -> 0 | S24: =AJ13 -> 0 | T24: =AO13 -> 0 | U24: =AT13 -> 0
O25: % target
O26: CCRF
O27: % CCRf
O28: average response rate | P28: =F8/P20 -> 2433.5 | Q28: =(F10-F8)/Q20 -> 1830.5 | R28: =(F11-F10)/R20 -> 185 | S28: =(F13-F11)/S20 -> 111 | T28: =(F15-F13)/T20 -> 201 | U28: =(F17-F15)/U20 -> 6876.5

Sheet !M911A3B.AXT
A1: Report for:!M911A3B.AXT
A2: Date: | B2: <date>
A3: Hen: | B3: <hen> | F3: Correct Sequence | G3: =Start!J2 -> 221 | P3: Total Sequences in Data | Q3: =4994-COUNTBLANK(L7:L5000) -> 4 | V3: Total Sequences in Block Data | W3: =COUNTA(L7:L7) -> 1 | AA3: Total Sequences in Block Data | AB3: =COUNTA(L7:L8) -> 2 | AF3: Total Sequences in Block Data | AG3: =COUNTA(L8:L8) -> 1 | AK3: Total Sequences in Block Data | AL3: =COUNTA(L9:L9) -> 1 | AP3: Total Sequences in Block Data | AQ3: =COUNTA(L9:L10) -> 2 | AU3: Total Sequences in Block Data | AV3: =COUNTA(L10:L10) -> 1
P4: Total Sequences in Summary | Q4: =SUM(O7:O14) -> 3 | V4: Total Sequences in Block Summary | W4: =SUM(U7:U14) -> 1 | AA4: Total Sequences in Block Summary | AB4: =SUM(Z7:Z14) -> 2 | AF4: Total Sequences in Block Summary | AG4: =SUM(AE7:AE14) -> 1 | AK4: Total Sequences in Block Summary | AL4: =SUM(AJ7:AJ14) -> 1 | AP4: Total Sequences in Block Summary | AQ4: =SUM(AO7:AO14) -> 1 | AU4: Total Sequences in Block Summary | AV4: =SUM(AT7:AT14) -> 0
T5: Block 1 | Y5: Block 2 | AD5: Block 3 | AI5: Block 4 | AN5: Block 5 | AS5: Block 6
A6: Sequence Component 1 | B6: Time 1 | C6: Sequence Component 2 | D6: Time 2 | E6: Sequence Component 3 | F6: Time 3 | G6: Sequence Component 4 | H6: Time 4 | I6: Sequence Component 5 | J6: Time 5 | K6: Correct? 0=No 1=Yes | L6: Sequence | N6: Frequency | P6: Relative Frequency | Q6: Variability | T6: Frequency | V6: Relative Frequency | W6: Variability | Y6: Frequency | AA6: Relative Frequency | AB6: Variability | AD6: Frequency | AF6: Relative Frequency | AG6: Variability | AI6: Frequency | AK6: Relative Frequency | AL6: Variability | AN6: Frequency | AP6: Relative Frequency | AQ6: Variability | AS6: Frequency | AU6: Relative Frequency | AV6: Variability
A7: 22 | B7: 54 | C7: 14 | D7: 67 | E7: 24 | F7: 71 | K7: 0 | L7: 212 | N7: 111 | O7: =COUNTIF($L$7:$L$500,N7) -> 0 | P7: =O7/$Q$4 -> 0 | Q7: =IF(P7=0,0,(P7*((LOG(P7))/LOG(2)))) -> 0 | T7: =N7 -> 111 | U7: =COUNTIF(L7:L7,T7) -> 0 | V7: =U7/(W4-U13) -> 0 | W7: =IF(V7=0,0,(V7*((LOG(V7))/LOG(2)))) -> 0 | Y7: =N7 -> 111 | Z7: =COUNTIF(L7:L8,Y7) -> 0 | AA7: =Z7/(AB4-Z13) -> 0 | AB7: =IF(AA7=0,0,(AA7*((LOG(AA7))/LOG(2)))) -> 0 | AD7: =N7 -> 111 | AE7: =COUNTIF(L8:L8,AD7) -> 0 | AF7: =AE7/(AG4-AE13) -> 0 | AG7: =IF(AF7=0,0,(AF7*((LOG(AF7))/LOG(2)))) -> 0 | AI7: =N7 -> 111 | AJ7: =COUNTIF(L9:L9,AI7) -> 0 | AK7: =AJ7/(AL4-AJ13) -> 0 | AL7: =IF(AK7=0,0,(AK7*((LOG(AK7))/LOG(2)))) -> 0 | AN7: =N7 -> 111 | AO7: =COUNTIF(L9:L10,AN7) -> 0 | AP7: =AO7/(AQ4-AO13) -> 0 | AQ7: =IF(AP7=0,0,(AP7*((LOG(AP7))/LOG(2)))) -> 0 | AS7: =N7 -> 111 | AT7: =COUNTIF(L10:L10,AS7) -> 0 | AU7: =AT7/(AV4-AT13) ->  | AV7: =IF(AU7=0,0,(AU7*((LOG(AU7))/LOG(2)))) -> 
A8: 22 | B8: 181 | C8: 23 | D8: 185 | E8: 24 | F8: 189 | K8: 0 | L8: 222 | N8: 112 | O8: 0 | P8: 0 | Q8: 0 | T8: 112 | U8: =COUNTIF(L7:L7,T8) -> 0 | V8: =U8/(W4-U13) -> 0 | W8: 0 | Y8: 112 | Z8: =COUNTIF(L7:L8,Y8) -> 0 | AA8: =Z8/(AB4-Z13) -> 0 | AB8: 0 | AD8: 112 | AE8: =COUNTIF(L8:L8,AD8) -> 0 | AF8: =AE8/(AG4-AE13) -> 0 | AG8: 0 | AI8: 112 | AJ8: =COUNTIF(L9:L9,AI8) -> 0 | AK8: =AJ8/(AL4-AJ13) -> 0 | AL8: 0 | AN8: 112 | AO8: =COUNTIF(L9:L10,AN8) -> 0 | AP8: =AO8/(AQ4-AO13) -> 0 | AQ8: 0 | AS8: 112 | AT8: =COUNTIF(L10:L10,AS8) -> 0 | AU8: =AT8/(AV4-AT13) -> 
A9: 11 | B9: 300 | C9: 21 | D9: 312 | E9: 22 | F9: 321 | K9: 0 | L9: 122 | N9: 121 | O9: 0 | P9: 0 | Q9: 0 | T9: 121 | U9: =COUNTIF(L7:L7,T9) -> 0 | V9: =U9/(W4-U13) -> 0 | W9: 0 | Y9: 121 | Z9: =COUNTIF(L7:L8,Y9) -> 0 | AA9: =Z9/(AB4-Z13) -> 0 | AB9: 0 | AD9: 121 | AE9: =COUNTIF(L8:L8,AD9) -> 0 | AF9: =AE9/(AG4-AE13) -> 0 | AG9: 0 | AI9: 121 | AJ9: =COUNTIF(L9:L9,AI9) -> 0 | AK9: =AJ9/(AL4-AJ13) -> 0 | AL9: 0 | AN9: 121 | AO9: =COUNTIF(L9:L10,AN9) -> 0 | AP9: =AO9/(AQ4-AO13) -> 0 | AQ9: 0 | AS9: 121 | AT9: =COUNTIF(L10:L10,AS9) -> 0 | AU9: =AT9/(AV4-AT13) -> 
A10: 11 | B10: 544 | C10: 21 | D10: 6797 | L10: 12 | N10: 122 | O10: 1 | P10: 0.3333333333 | Q10: -0.5283208336 | T10: 122 | U10: =COUNTIF(L7:L7,T10) -> 0 | V10: =U10/(W4-U13) -> 0 | W10: 0 | Y10: 122 | Z10: =COUNTIF(L7:L8,Y10) -> 0 | AA10: =Z10/(AB4-Z13) -> 0 | AB10: 0 | AD10: 122 | AE10: =COUNTIF(L8:L8,AD10) -> 0 | AF10: =AE10/(AG4-AE13) -> 0 | AG10: 0 | AI10: 122 | AJ10: =COUNTIF(L9:L9,AI10) -> 1 | AK10: =AJ10/(AL4-AJ13) -> 1 | AL10: 0 | AN10: 122 | AO10: =COUNTIF(L9:L10,AN10) -> 1 | AP10: =AO10/(AQ4-AO13) -> 1 | AQ10: 0 | AS10: 122 | AT10: =COUNTIF(L10:L10,AS10) -> 0 | AU10: =AT10/(AV4-AT13) -> 
N11: 211 | O11: 0 | P11: 0 | Q11: 0 | T11: 211 | U11: =COUNTIF(L7:L7,T11) -> 0 | V11: =U11/(W4-U13) -> 0 | W11: 0 | Y11: 211 | Z11: =COUNTIF(L7:L8,Y11) -> 0 | AA11: =Z11/(AB4-Z13) -> 0 | AB11: 0 | AD11: 211 | AE11: =COUNTIF(L8:L8,AD11) -> 0 | AF11: =AE11/(AG4-AE13) -> 0 | AG11: 0 | AI11: 211 | AJ11: =COUNTIF(L9:L9,AI11) -> 0 | AK11: =AJ11/(AL4-AJ13) -> 0 | AL11: 0 | AN11: 211 | AO11: =COUNTIF(L9:L10,AN11) -> 0 | AP11: =AO11/(AQ4-AO13) -> 0 | AQ11: 0 | AS11: 211 | AT11: =COUNTIF(L10:L10,AS11) -> 0 | AU11: =AT11/(AV4-AT13) -> 
N12: 212 | O12: 1 | P12: 0.3333333333 | Q12: -0.5283208336 | T12: 212 | U12: =COUNTIF(L7:L7,T12) -> 1 | V12: =U12/(W4-U13) -> 1 | W12: 0 | Y12: 212 | Z12: =COUNTIF(L7:L8,Y12) -> 1 | AA12: =Z12/(AB4-Z13) -> 0.5 | AB12: -0.5 | AD12: 212 | AE12: =COUNTIF(L8:L8,AD12) -> 0 | AF12: =AE12/(AG4-AE13) -> 0 | AG12: 0 | AI12: 212 | AJ12: =COUNTIF(L9:L9,AI12) -> 0 | AK12: =AJ12/(AL4-AJ13) -> 0 | AL12: 0 | AN12: 212 | AO12: =COUNTIF(L9:L10,AN12) -> 0 | AP12: =AO12/(AQ4-AO13) -> 0 | AQ12: 0 | AS12: 212 | AT12: =COUNTIF(L10:L10,AS12) -> 0 | AU12: =AT12/(AV4-AT13) -> 
N13: 221 | O13: 0 | P13: 0 | Q13: 0 | T13: 221 | U13: =COUNTIF(L7:L7,T13) -> 0 | Y13: 221 | Z13: =COUNTIF(L7:L8,Y13) -> 0 | AD13: 221 | AE13: =COUNTIF(L8:L8,AD13) -> 0 | AI13: 221 | AJ13: =COUNTIF(L9:L9,AI13) -> 0 | AN13: 221 | AO13: =COUNTIF(L9:L10,AN13) -> 0 | AS13: 221 | AT13: =COUNTIF(L10:L10,AS13) -> 0
N14: 222 | O14: 1 | P14: 0.3333333333 | Q14: -0.5283208336 | T14: 222 | U14: =COUNTIF(L7:L7,T14) -> 0 | V14: =U14/(W4-U13) -> 0 | W14: =IF(V14=0,0,(V14*((LOG(V14))/LOG(2)))) -> 0 | Y14: 222 | Z14: =COUNTIF(L7:L8,Y14) -> 1 | AA14: =Z14/(AB4-Z13) -> 0.5 | AB14: =IF(AA14=0,0,(AA14*((LOG(AA14))/LOG(2)))) -> -0.5 | AD14: 222 | AE14: =COUNTIF(L8:L8,AD14) -> 1 | AF14: =AE14/(AG4-AE13) -> 1 | AG14: =IF(AF14=0,0,(AF14*((LOG(AF14))/LOG(2)))) -> 0 | AI14: 222 | AJ14: =COUNTIF(L9:L9,AI14) -> 0 | AK14: =AJ14/(AL4-AJ13) -> 0 | AL14: =IF(AK14=0,0,(AK14*((LOG(AK14))/LOG(2)))) -> 0 | AN14: 222 | AO14: =COUNTIF(L9:L10,AN14) -> 0 | AP14: =AO14/(AQ4-AO13) -> 0 | AQ14: =IF(AP14=0,0,(AP14*((LOG(AP14))/LOG(2)))) -> 0 | AS14: 222 | AT14: =COUNTIF(L10:L10,AS14) -> 0 | AU14: =AT14/(AV4-AT13) ->  | AV14: =IF(AU14=0,0,(AU14*((LOG(AU14))/LOG(2)))) -> 
P15: =SUM(P7:P14) -> 1 | Q15: =-SUM(Q7:Q14) -> 1.584962501 | V15: =SUM(V7:V14) -> 1 | W15: =-SUM(W7:W14) -> 0 | AA15: =SUM(AA7:AA14) -> 1 | AB15: =-SUM(AB7:AB14) -> 1 | AF15: =SUM(AF7:AF14) -> 1 | AG15: =-SUM(AG7:AG14) -> 0 | AK15: =SUM(AK7:AK14) -> 1 | AL15: =-SUM(AL7:AL14) -> 0 | AP15: =SUM(AP7:AP14) -> 1 | AQ15: =-SUM(AQ7:AQ14) -> 0 | AU15: =SUM(AU7:AU14) ->  | AV15: =-SUM(AV7:AV14) -> 
P16: U= | Q16: =Q15/(LOG(Q4)/LOG(2)) -> 1 | V16: U1= | W16: =W15/(LOG(W4)/LOG(2)) ->  | AA16: U2= | AB16: =AB15/(LOG(AB4)/LOG(2)) -> 1 | AF16: U3= | AG16: =AG15/(LOG(AG4)/LOG(2)) ->  | AK16: U4= | AL16: =AL15/(LOG(AL4)/LOG(2)) ->  | AP16: U5= | AQ16: =AQ15/(LOG(AQ4)/LOG(2)) ->  | AU16: U6= | AV16: =AV15/(LOG(AV4)/LOG(2)) -> 
N19: Total Target Seq
N20: =COUNTIF(L7:L10,G3) -> 0 | P20: 1 | Q20: 0 | R20: 1 | S20: 1 | T20: 0 | U20: 1
P21: % of reinforcement given in 6 equal intervals based on number of trials
P22: %_1 | Q22: %_2 | R22: %_3 | S22: %_4 | T22: %_5 | U22: %_6
O23: target sequence | P23: =$G$3 -> 221 | Q23: 221 | R23: 221 | S23: 221 | T23: 221 | U23: 221
O24: total reinforcement | P24: =U13 -> 0 | Q24: =Z13 -> 0 | R24: =AE13 -> 0 | S24: =AJ13 -> 0 | T24: =AO13 -> 0 | U24: =AT13 -> 0
O25: % target
O26: CCRF
O27: % CCRf
O28: average response rate | P28: =F7/P20 -> 71 | Q28: =(F7-F7)/Q20 ->  | R28: =(F8-F7)/R20 -> 118 | S28: =(F9-F8)/S20 -> 132 | T28: =(F9-F9)/T20 ->  | U28: =(F10-F9)/U20 -> -321

Sheet !M912A4B.AXT
A1: Report for:!M912A4B.AXT
A2: Date: | B2: <date>
A3: Hen: | B3: <hen> | F3: Correct Sequence | G3: =Start!J2 -> 221 | P3: Total Sequences in Data | Q3: =4994-COUNTBLANK(L7:L5000) -> 2 | V3: Total Sequences in Block Data | W3: =COUNTA(L6:L7) -> 2 | AA3: Total Sequences in Block Data | AB3: =COUNTA(L7:L7) -> 1 | AF3: Total Sequences in Block Data | AG3: =COUNTA(L7:L8) -> 2 | AK3: Total Sequences in Block Data | AL3: =COUNTA(L7:L8) -> 2 | AP3: Total Sequences in Block Data | AQ3: =COUNTA(L8:L8) -> 1 | AU3: Total Sequences in Block Data | AV3: =COUNTA(L8:L9) -> 1
P4: Total Sequences in Summary | Q4: =SUM(O7:O14) -> 2 | V4: Total Sequences in Block Summary | W4: =SUM(U7:U14) -> 1 | AA4: Total Sequences in Block Summary | AB4: =SUM(Z7:Z14) -> 1 | AF4: Total Sequences in Block Summary | AG4: =SUM(AE7:AE14) -> 2 | AK4: Total Sequences in Block Summary | AL4: =SUM(AJ7:AJ14) -> 2 | AP4: Total Sequences in Block Summary | AQ4: =SUM(AO7:AO14) -> 1 | AU4: Total Sequences in Block Summary | AV4: =SUM(AT7:AT14) -> 1
T5: Block 1 | Y5: Block 2 | AD5: Block 3 | AI5: Block 4 | AN5: Block 5 | AS5: Block 6
A6: Sequence Component 1 | B6: Time 1 | C6: Sequence Component 2 | D6: Time 2 | E6: Sequence Component 3 | F6: Time 3 | G6: Sequence Component 4 | H6: Time 4 | I6: Sequence Component 5 | J6: Time 5 | K6: Correct? 0=No 1=Yes | L6: Sequence | N6: Frequency | P6: Relative Frequency | Q6: Variability | T6: Frequency | V6: Relative Frequency | W6: Variability | Y6: Frequency | AA6: Relative Frequency | AB6: Variability | AD6: Frequency | AF6: Relative Frequency | AG6: Variability | AI6: Frequency | AK6: Relative Frequency | AL6: Variability | AN6: Frequency | AP6: Relative Frequency | AQ6: Variability | AS6: Frequency | AU6: Relative Frequency | AV6: Variability
A7: 22 | B7: 1014 | C7: 23 | D7: 1045 | E7: 24 | F7: 1058 | K7: 0 | L7: 222 | N7: 111 | O7: =COUNTIF($L$7:$L$500,N7) -> 0 | P7: =O7/$Q$4 -> 0 | Q7: =IF(P7=0,0,(P7*((LOG(P7))/LOG(2)))) -> 0 | T7: =N7 -> 111 | U7: =COUNTIF(L6:L7,T7) -> 0 | V7: =U7/(W4-U13) -> 0 | W7: =IF(V7=0,0,(V7*((LOG(V7))/LOG(2)))) -> 0 | Y7: =N7 -> 111 | Z7: =COUNTIF(L7:L7,Y7) -> 0 | AA7: =Z7/(AB4-Z13) -> 0 | AB7: =IF(AA7=0,0,(AA7*((LOG(AA7))/LOG(2)))) -> 0 | AD7: =N7 -> 111 | AE7: =COUNTIF(L7:L8,AD7) -> 0 | AF7: =AE7/(AG4-AE13) -> 0 | AG7: =IF(AF7=0,0,(AF7*((LOG(AF7))/LOG(2)))) -> 0 | AI7: =N7 -> 111 | AJ7: =COUNTIF(L7:L8,AI7) -> 0 | AK7: =AJ7/(AL4-AJ13) -> 0 | AL7: =IF(AK7=0,0,(AK7*((LOG(AK7))/LOG(2)))) -> 0 | AN7: =N7 -> 111 | AO7: =COUNTIF(L8:L8,AN7) -> 0 | AP7: =AO7/(AQ4-AO13) -> 0 | AQ7: =IF(AP7=0,0,(AP7*((LOG(AP7))/LOG(2)))) -> 0 | AS7: =N7 -> 111 | AT7: =COUNTIF(L8:L9,AS7) -> 0 | AU7: =AT7/(AV4-AT13) -> 0 | AV7: =IF(AU7=0,0,(AU7*((LOG(AU7))/LOG(2)))) -> 0
A8: 22 | B8: 3447 | C8: 23 | D8: 3452 | E8: 24 | F8: 3462 | K8: 0 | L8: 222 | N8: 112 | O8: 0 | P8: 0 | Q8: 0 | T8: 112 | U8: =COUNTIF(L6:L7,T8) -> 0 | V8: =U8/(W4-U13) -> 0 | W8: 0 | Y8: 112 | Z8: =COUNTIF(L7:L7,Y8) -> 0 | AA8: =Z8/(AB4-Z13) -> 0 | AB8: 0 | AD8: 112 | AE8: =COUNTIF(L7:L8,AD8) -> 0 | AF8: =AE8/(AG4-AE13) -> 0 | AG8: 0 | AI8: 112 | AJ8: =COUNTIF(L7:L8,AI8) -> 0 | AK8: =AJ8/(AL4-AJ13) -> 0 | AL8: 0 | AN8: 112 | AO8: =COUNTIF(L8:L8,AN8) -> 0 | AP8: =AO8/(AQ4-AO13) -> 0 | AQ8: 0 | AS8: 112 | AT8: =COUNTIF(L8:L9,AS8) -> 0 | AU8: =AT8/(AV4-AT13) -> 0 | AV8: 0
N9: 121 | O9: 0 | P9: 0 | Q9: 0 | T9: 121 | U9: =COUNTIF(L6:L7,T9) -> 0 | V9: =U9/(W4-U13) -> 0 | W9: 0 | Y9: 121 | Z9: =COUNTIF(L7:L7,Y9) -> 0 | AA9: =Z9/(AB4-Z13) -> 0 | AB9: 0 | AD9: 121 | AE9: =COUNTIF(L7:L8,AD9) -> 0 | AF9: =AE9/(AG4-AE13) -> 0 | AG9: 0 | AI9: 121 | AJ9: =COUNTIF(L7:L8,AI9) -> 0 | AK9: =AJ9/(AL4-AJ13) -> 0 | AL9: 0 | AN9: 121 | AO9: =COUNTIF(L8:L8,AN9) -> 0 | AP9: =AO9/(AQ4-AO13) -> 0 | AQ9: 0 | AS9: 121 | AT9: =COUNTIF(L8:L9,AS9) -> 0 | AU9: =AT9/(AV4-AT13) -> 0 | AV9: 0
N10: 122 | O10: 0 | P10: 0 | Q10: 0 | T10: 122 | U10: =COUNTIF(L6:L7,T10) -> 0 | V10: =U10/(W4-U13) -> 0 | W10: 0 | Y10: 122 | Z10: =COUNTIF(L7:L7,Y10) -> 0 | AA10: =Z10/(AB4-Z13) -> 0 | AB10: 0 | AD10: 122 | AE10: =COUNTIF(L7:L8,AD10) -> 0 | AF10: =AE10/(AG4-AE13) -> 0 | AG10: 0 | AI10: 122 | AJ10: =COUNTIF(L7:L8,AI10) -> 0 | AK10: =AJ10/(AL4-AJ13) -> 0 | AL10: 0 | AN10: 122 | AO10: =COUNTIF(L8:L8,AN10) -> 0 | AP10: =AO10/(AQ4-AO13) -> 0 | AQ10: 0 | AS10: 122 | AT10: =COUNTIF(L8:L9,AS10) -> 0 | AU10: =AT10/(AV4-AT13) -> 0 | AV10: 0
N11: 211 | O11: 0 | P11: 0 | Q11: 0 | T11: 211 | U11: =COUNTIF(L6:L7,T11) -> 0 | V11: =U11/(W4-U13) -> 0 | W11: 0 | Y11: 211 | Z11: =COUNTIF(L7:L7,Y11) -> 0 | AA11: =Z11/(AB4-Z13) -> 0 | AB11: 0 | AD11: 211 | AE11: =COUNTIF(L7:L8,AD11) -> 0 | AF11: =AE11/(AG4-AE13) -> 0 | AG11: 0 | AI11: 211 | AJ11: =COUNTIF(L7:L8,AI11) -> 0 | AK11: =AJ11/(AL4-AJ13) -> 0 | AL11: 0 | AN11: 211 | AO11: =COUNTIF(L8:L8,AN11) -> 0 | AP11: =AO11/(AQ4-AO13) -> 0 | AQ11: 0 | AS11: 211 | AT11: =COUNTIF(L8:L9,AS11) -> 0 | AU11: =AT11/(AV4-AT13) -> 0 | AV11: 0
N12: 212 | O12: 0 | P12: 0 | Q12: 0 | T12: 212 | U12: =COUNTIF(L6:L7,T12) -> 0 | V12: =U12/(W4-U13) -> 0 | W12: 0 | Y12: 212 | Z12: =COUNTIF(L7:L7,Y12) -> 0 | AA12: =Z12/(AB4-Z13) -> 0 | AB12: 0 | AD12: 212 | AE12: =COUNTIF(L7:L8,AD12) -> 0 | AF12: =AE12/(AG4-AE13) -> 0 | AG12: 0 | AI12: 212 | AJ12: =COUNTIF(L7:L8,AI12) -> 0 | AK12: =AJ12/(AL4-AJ13) -> 0 | AL12: 0 | AN12: 212 | AO12: =COUNTIF(L8:L8,AN12) -> 0 | AP12: =AO12/(AQ4-AO13) -> 0 | AQ12: 0 | AS12: 212 | AT12: =COUNTIF(L8:L9,AS12) -> 0 | AU12: =AT12/(AV4-AT13) -> 0 | AV12: 0
N13: 221 | O13: 0 | P13: 0 | Q13: 0 | T13: 221 | U13: =COUNTIF(L6:L7,T13) -> 0 | Y13: 221 | Z13: =COUNTIF(L7:L7,Y13) -> 0 | AD13: 221 | AE13: =COUNTIF(L7:L8,AD13) -> 0 | AI13: 221 | AJ13: =COUNTIF(L7:L8,AI13) -> 0 | AN13: 221 | AO13: =COUNTIF(L8:L8,AN13) -> 0 | AS13: 221 | AT13: =COUNTIF(L8:L9,AS13) -> 0
N14: 222 | O14: 2 | P14: 1 | Q14: 0 | T14: 222 | U14: =COUNTIF(L6:L7,T14) -> 1 | V14: =U14/(W4-U13) -> 1 | W14: =IF(V14=0,0,(V14*((LOG(V14))/LOG(2)))) -> 0 | Y14: 222 | Z14: =COUNTIF(L7:L7,Y14) -> 1 | AA14: =Z14/(AB4-Z13) -> 1 | AB14: =IF(AA14=0,0,(AA14*((LOG(AA14))/LOG(2)))) -> 0 | AD14: 222 | AE14: =COUNTIF(L7:L8,AD14) -> 2 | AF14: =AE14/(AG4-AE13) -> 1 | AG14: =IF(AF14=0,0,(AF14*((LOG(AF14))/LOG(2)))) -> 0 | AI14: 222 | AJ14: =COUNTIF(L7:L8,AI14) -> 2 | AK14: =AJ14/(AL4-AJ13) -> 1 | AL14: =IF(AK14=0,0,(AK14*((LOG(AK14))/LOG(2)))) -> 0 | AN14: 222 | AO14: =COUNTIF(L8:L8,AN14) -> 1 | AP14: =AO14/(AQ4-AO13) -> 1 | AQ14: =IF(AP14=0,0,(AP14*((LOG(AP14))/LOG(2)))) -> 0 | AS14: 222 | AT14: =COUNTIF(L8:L9,AS14) -> 1 | AU14: =AT14/(AV4-AT13) -> 1 | AV14: =IF(AU14=0,0,(AU14*((LOG(AU14))/LOG(2)))) -> 0
P15: =SUM(P7:P14) -> 1 | Q15: =-SUM(Q7:Q14) -> 0 | V15: =SUM(V7:V14) -> 1 | W15: =-SUM(W7:W14) -> 0 | AA15: =SUM(AA7:AA14) -> 1 | AB15: =-SUM(AB7:AB14) -> 0 | AF15: =SUM(AF7:AF14) -> 1 | AG15: =-SUM(AG7:AG14) -> 0 | AK15: =SUM(AK7:AK14) -> 1 | AL15: =-SUM(AL7:AL14) -> 0 | AP15: =SUM(AP7:AP14) -> 1 | AQ15: =-SUM(AQ7:AQ14) -> 0 | AU15: =SUM(AU7:AU14) -> 1 | AV15: =-SUM(AV7:AV14) -> 0
P16: U= | Q16: =Q15/(LOG(Q4)/LOG(2)) -> 0 | V16: U1= | W16: =W15/(LOG(W4)/LOG(2)) ->  | AA16: U2= | AB16: =AB15/(LOG(AB4)/LOG(2)) ->  | AF16: U3= | AG16: =AG15/(LOG(AG4)/LOG(2)) -> 0 | AK16: U4= | AL16: =AL15/(LOG(AL4)/LOG(2)) -> 0 | AP16: U5= | AQ16: =AQ15/(LOG(AQ4)/LOG(2)) ->  | AU16: U6= | AV16: =AV15/(LOG(AV4)/LOG(2)) -> 
N19: Total Target Seq
N20: =COUNTIF(L7:L8,G3) -> 0 | P20: 0 | Q20: 1 | R20: 0 | S20: 0 | T20: 1 | U20: 0
P21: % of reinforcement given in 6 equal intervals based on number of trials
P22: %_1 | Q22: %_2 | R22: %_3 | S22: %_4 | T22: %_5 | U22: %_6
O23: target sequence | P23: =$G$3 -> 221 | Q23: 221 | R23: 221 | S23: 221 | T23: 221 | U23: 221
O24: total reinforcement | P24: =U13 -> 0 | Q24: =Z13 -> 0 | R24: =AE13 -> 0 | S24: =AJ13 -> 0 | T24: =AO13 -> 0 | U24: =AT13 -> 0
O25: % target
O26: CCRF
O27: % CCRf
O28: average response rate | P28: =F6/P20 ->  | Q28: =(F7-F6)/Q20 ->  | R28: =(F7-F7)/R20 ->  | S28: =(F7-F7)/S20 ->  | T28: =(F8-F7)/T20 -> 2404 | U28: =(F8-F8)/U20 -> 

Sheet !M913A0B.AXT
A1: Report for:!M913A0B.AXT
A2: Date: | B2: <date>
A3: Hen: | B3: <hen> | F3: Correct Sequence | G3: =Start!J2 -> 221 | P3: Total Sequences in Data | Q3: =4994-COUNTBLANK(L7:L5000) -> 8 | V3: Total Sequences in Block Data | W3: =COUNTA(L7:L7) -> 1 | AA3: Total Sequences in Block Data | AB3: =COUNTA(L8:L9) -> 2 | AF3: Total Sequences in Block Data | AG3: =COUNTA(L10:L10) -> 1 | AK3: Total Sequences in Block Data | AL3: =COUNTA(L11:L11) -> 1 | AP3: Total Sequences in Block Data | AQ3: =COUNTA(L12:L13) -> 2 | AU3: Total Sequences in Block Data | AV3: =COUNTA(L14:L14) -> 1
P4: Total Sequences in Summary | Q4: =SUM(O7:O14) -> 7 | V4: Total Sequences in Block Summary | W4: =SUM(U7:U14) -> 1 | AA4: Total Sequences in Block Summary | AB4: =SUM(Z7:Z14) -> 2 | AF4: Total Sequences in Block Summary | AG4: =SUM(AE7:AE14) -> 1 | AK4: Total Sequences in Block Summary | AL4: =SUM(AJ7:AJ14) -> 1 | AP4: Total Sequences in Block Summary | AQ4: =SUM(AO7:AO14) -> 2 | AU4: Total Sequences in Block Summary | AV4: =SUM(AT7:AT14) -> 0
T5: Block 1 | Y5: Block 2 | AD5: Block 3 | AI5: Block 4 | AN5: Block 5 | AS5: Block 6
A6: Sequence Component 1 | B6: Time 1 | C6: Sequence Component 2 | D6: Time 2 | E6: Sequence Component 3 | F6: Time 3 | G6: Sequence Component 4 | H6: Time 4 | I6: Sequence Component 5 | J6: Time 5 | K6: Correct? 0=No 1=Yes | L6: Sequence | N6: Frequency | P6: Relative Frequency | Q6: Variability | T6: Frequency | V6: Relative Frequency | W6: Variability | Y6: Frequency | AA6: Relative Frequency | AB6: Variability | AD6: Frequency | AF6: Relative Frequency | AG6: Variability | AI6: Frequency | AK6: Relative Frequency | AL6: Variability | AN6: Frequency | AP6: Relative Frequency | AQ6: Variability | AS6: Frequency | AU6: Relative Frequency | AV6: Variability
A7: 11 | B7: 52 | C7: 21 | D7: 77 | E7: 11 | F7: 125 | K7: 0 | L7: 121 | N7: 111 | O7: =COUNTIF($L$7:$L$500,N7) -> 0 | P7: =O7/$Q$4 -> 0 | Q7: =IF(P7=0,0,(P7*((LOG(P7))/LOG(2)))) -> 0 | T7: =N7 -> 111 | U7: =COUNTIF(L7:L7,T7) -> 0 | V7: =U7/(W4-U13) -> 0 | W7: =IF(V7=0,0,(V7*((LOG(V7))/LOG(2)))) -> 0 | Y7: =N7 -> 111 | Z7: =COUNTIF(L8:L9,Y7) -> 0 | AA7: =Z7/(AB4-Z13) -> 0 | AB7: =IF(AA7=0,0,(AA7*((LOG(AA7))/LOG(2)))) -> 0 | AD7: =N7 -> 111 | AE7: =COUNTIF(L10:L10,AD7) -> 0 | AF7: =AE7/(AG4-AE13) -> 0 | AG7: =IF(AF7=0,0,(AF7*((LOG(AF7))/LOG(2)))) -> 0 | AI7: =N7 -> 111 | AJ7: =COUNTIF(L11:L11,AI7) -> 0 | AK7: =AJ7/(AL4-AJ13) -> 0 | AL7: =IF(AK7=0,0,(AK7*((LOG(AK7))/LOG(2)))) -> 0 | AN7: =N7 -> 111 | AO7: =COUNTIF(L12:L13,AN7) -> 0 | AP7: =AO7/(AQ4-AO13) -> 0 | AQ7: =IF(AP7=0,0,(AP7*((LOG(AP7))/LOG(2)))) -> 0 | AS7: =N7 -> 111 | AT7: =COUNTIF(L14:L14,AS7) -> 0 | AU7: =AT7/(AV4-AT13) ->  | AV7: =IF(AU7=0,0,(AU7*((LOG(AU7))/LOG(2)))) -> 
A8: 11 | B8: 222 | C8: 21 | D8: 228 | E8: 22 | F8: 248 | K8: 0 | L8: 122 | N8: 112 | O8: 0 | P8: 0 | Q8: 0 | T8: 112 | U8: =COUNTIF(L7:L7,T8) -> 0 | V8: =U8/(W4-U13) -> 0 | W8: 0 | Y8: 112 | Z8: =COUNTIF(L8:L9,Y8) -> 0 | AA8: =Z8/(AB4-Z13) -> 0 | AB8: 0 | AD8: 112 | AE8: =COUNTIF(L10:L10,AD8) -> 0 | AF8: =AE8/(AG4-AE13) -> 0 | AG8: 0 | AI8: 112 | AJ8: =COUNTIF(L11:L11,AI8) -> 0 | AK8: =AJ8/(AL4-AJ13) -> 0 | AL8: 0 | AN8: 112 | AO8: =COUNTIF(L12:L13,AN8) -> 0 | AP8: =AO8/(AQ4-AO13) -> 0 | AQ8: 0 | AS8: 112 | AT8: =COUNTIF(L14:L14,AS8) -> 0 | AU8: =AT8/(AV4-AT13) -> 
A9: 11 | B9: 398 | C9: 21 | D9: 409 | E9: 11 | F9: 414 | K9: 0 | L9: 121 | N9: 121 | O9: 2 | P9: 0.2857142857 | Q9: -0.5163871206 | T9: 121 | U9: =COUNTIF(L7:L7,T9) -> 1 | V9: =U9/(W4-U13) -> 1 | W9: 0 | Y9: 121 | Z9: =COUNTIF(L8:L9,Y9) -> 1 | AA9: =Z9/(AB4-Z13) -> 0.5 | AB9: -0.5 | AD9: 121 | AE9: =COUNTIF(L10:L10,AD9) -> 0 | AF9: =AE9/(AG4-AE13) -> 0 | AG9: 0 | AI9: 121 | AJ9: =COUNTIF(L11:L11,AI9) -> 0 | AK9: =AJ9/(AL4-AJ13) -> 0 | AL9: 0 | AN9: 121 | AO9: =COUNTIF(L12:L13,AN9) -> 0 | AP9: =AO9/(AQ4-AO13) -> 0 | AQ9: 0 | AS9: 121 | AT9: =COUNTIF(L14:L14,AS9) -> 0 | AU9: =AT9/(AV4-AT13) -> 
A10: 22 | B10: 677 | C10: 23 | D10: 694 | E10: 24 | F10: 697 | K10: 0 | L10: 222 | N10: 122 | O10: 3 | P10: 0.4285714286 | Q10: -0.5238824663 | T10: 122 | U10: =COUNTIF(L7:L7,T10) -> 0 | V10: =U10/(W4-U13) -> 0 | W10: 0 | Y10: 122 | Z10: =COUNTIF(L8:L9,Y10) -> 1 | AA10: =Z10/(AB4-Z13) -> 0.5 | AB10: -0.5 | AD10: 122 | AE10: =COUNTIF(L10:L10,AD10) -> 0 | AF10: =AE10/(AG4-AE13) -> 0 | AG10: 0 | AI10: 122 | AJ10: =COUNTIF(L11:L11,AI10) -> 1 | AK10: =AJ10/(AL4-AJ13) -> 1 | AL10: 0 | AN10: 122 | AO10: =COUNTIF(L12:L13,AN10) -> 1 | AP10: =AO10/(AQ4-AO13) -> 0.5 | AQ10: -0.5 | AS10: 122 | AT10: =COUNTIF(L14:L14,AS10) -> 0 | AU10: =AT10/(AV4-AT13) -> 
A11: 11 | B11: 798 | C11: 21 | D11: 823 | E11: 22 | F11: 832 | K11: 0 | L11: 122 | N11: 211 | O11: 0 | P11: 0 | Q11: 0 | T11: 211 | U11: =COUNTIF(L7:L7,T11) -> 0 | V11: =U11/(W4-U13) -> 0 | W11: 0 | Y11: 211 | Z11: =COUNTIF(L8:L9,Y11) -> 0 | AA11: =Z11/(AB4-Z13) -> 0 | AB11: 0 | AD11: 211 | AE11: =COUNTIF(L10:L10,AD11) -> 0 | AF11: =AE11/(AG4-AE13) -> 0 | AG11: 0 | AI11: 211 | AJ11: =COUNTIF(L11:L11,AI11) -> 0 | AK11: =AJ11/(AL4-AJ13) -> 0 | AL11: 0 | AN11: 211 | AO11: =COUNTIF(L12:L13,AN11) -> 0 | AP11: =AO11/(AQ4-AO13) -> 0 | AQ11: 0 | AS11: 211 | AT11: =COUNTIF(L14:L14,AS11) -> 0 | AU11: =AT11/(AV4-AT13) -> 
A12: 22 | B12: 1199 | C12: 23 | D12: 1224 | E12: 24 | F12: 1235 | K12: 0 | L12: 222 | N12: 212 | O12: 0 | P12: 0 | Q12: 0 | T12: 212 | U12: =COUNTIF(L7:L7,T12) -> 0 | V12: =U12/(W4-U13) -> 0 | W12: 0 | Y12: 212 | Z12: =COUNTIF(L8:L9,Y12) -> 0 | AA12: =Z12/(AB4-Z13) -> 0 | AB12: 0 | AD12: 212 | AE12: =COUNTIF(L10:L10,AD12) -> 0 | AF12: =AE12/(AG4-AE13) -> 0 | AG12: 0 | AI12: 212 | AJ12: =COUNTIF(L11:L11,AI12) -> 0 | AK12: =AJ12/(AL4-AJ13) -> 0 | AL12: 0 | AN12: 212 | AO12: =COUNTIF(L12:L13,AN12) -> 0 | AP12: =AO12/(AQ4-AO13) -> 0 | AQ12: 0 | AS12: 212 | AT12: =COUNTIF(L14:L14,AS12) -> 0 | AU12: =AT12/(AV4-AT13) -> 
A13: 11 | B13: 2403 | C13: 21 | D13: 2415 | E13: 22 | F13: 2418 | K13: 0 | L13: 122 | N13: 221 | O13: 0 | P13: 0 | Q13: 0 | T13: 221 | U13: =COUNTIF(L7:L7,T13) -> 0 | Y13: 221 | Z13: =COUNTIF(L8:L9,Y13) -> 0 | AD13: 221 | AE13: =COUNTIF(L10:L10,AD13) -> 0 | AI13: 221 | AJ13: =COUNTIF(L11:L11,AI13) -> 0 | AN13: 221 | AO13: =COUNTIF(L12:L13,AN13) -> 0 | AS13: 221 | AT13: =COUNTIF(L14:L14,AS13) -> 0
A14: 11 | B14: 22010 | L14: 1 | N14: 222 | O14: 2 | P14: 0.2857142857 | Q14: -0.5163871206 | T14: 222 | U14: =COUNTIF(L7:L7,T14) -> 0 | V14: =U14/(W4-U13) -> 0 | W14: =IF(V14=0,0,(V14*((LOG(V14))/LOG(2)))) -> 0 | Y14: 222 | Z14: =COUNTIF(L8:L9,Y14) -> 0 | AA14: =Z14/(AB4-Z13) -> 0 | AB14: =IF(AA14=0,0,(AA14*((LOG(AA14))/LOG(2)))) -> 0 | AD14: 222 | AE14: =COUNTIF(L10:L10,AD14) -> 1 | AF14: =AE14/(AG4-AE13) -> 1 | AG14: =IF(AF14=0,0,(AF14*((LOG(AF14))/LOG(2)))) -> 0 | AI14: 222 | AJ14: =COUNTIF(L11:L11,AI14) -> 0 | AK14: =AJ14/(AL4-AJ13) -> 0 | AL14: =IF(AK14=0,0,(AK14*((LOG(AK14))/LOG(2)))) -> 0 | AN14: 222 | AO14: =COUNTIF(L12:L13,AN14) -> 1 | AP14: =AO14/(AQ4-AO13) -> 0.5 | AQ14: =IF(AP14=0,0,(AP14*((LOG(AP14))/LOG(2)))) -> -0.5 | AS14: 222 | AT14: =COUNTIF(L14:L14,AS14) -> 0 | AU14: =AT14/(AV4-AT13) ->  | AV14: =IF(AU14=0,0,(AU14*((LOG(AU14))/LOG(2)))) -> 
P15: =SUM(P7:P14) -> 1 | Q15: =-SUM(Q7:Q14) -> 1.556656707 | V15: =SUM(V7:V14) -> 1 | W15: =-SUM(W7:W14) -> 0 | AA15: =SUM(AA7:AA14) -> 1 | AB15: =-SUM(AB7:AB14) -> 1 | AF15: =SUM(AF7:AF14) -> 1 | AG15: =-SUM(AG7:AG14) -> 0 | AK15: =SUM(AK7:AK14) -> 1 | AL15: =-SUM(AL7:AL14) -> 0 | AP15: =SUM(AP7:AP14) -> 1 | AQ15: =-SUM(AQ7:AQ14) -> 1 | AU15: =SUM(AU7:AU14) ->  | AV15: =-SUM(AV7:AV14) -> 
P16: U= | Q16: =Q15/(LOG(Q4)/LOG(2)) -> 0.5544923071 | V16: U1= | W16: =W15/(LOG(W4)/LOG(2)) ->  | AA16: U2= | AB16: =AB15/(LOG(AB4)/LOG(2)) -> 1 | AF16: U3= | AG16: =AG15/(LOG(AG4)/LOG(2)) ->  | AK16: U4= | AL16: =AL15/(LOG(AL4)/LOG(2)) ->  | AP16: U5= | AQ16: =AQ15/(LOG(AQ4)/LOG(2)) -> 1 | AU16: U6= | AV16: =AV15/(LOG(AV4)/LOG(2)) -> 
N19: Total Target Seq
N20: =COUNTIF(L7:L14,G3) -> 0 | P20: 1 | Q20: 2 | R20: 1 | S20: 1 | T20: 2 | U20: 1
P21: % of reinforcement given in 6 equal intervals based on number of trials
P22: %_1 | Q22: %_2 | R22: %_3 | S22: %_4 | T22: %_5 | U22: %_6
O23: target sequence | P23: =$G$3 -> 221 | Q23: 221 | R23: 221 | S23: 221 | T23: 221 | U23: 221
O24: total reinforcement | P24: =U13 -> 0 | Q24: =Z13 -> 0 | R24: =AE13 -> 0 | S24: =AJ13 -> 0 | T24: =AO13 -> 0 | U24: =AT13 -> 0
O25: % target
O26: CCRF
O27: % CCRf
O28: average response rate | P28: =F7/P20 -> 125 | Q28: =(F9-F7)/Q20 -> 144.5 | R28: =(F10-F9)/R20 -> 283 | S28: =(F11-F10)/S20 -> 135 | T28: =(F13-F11)/T20 -> 793 | U28: =(F14-F13)/U20 -> -2418

Sheet !M914B3B.AXT
A1: Report for:!M914B3B.AXT
A2: Date: | B2: <date>
A3: Hen: | B3: <hen> | F3: Correct Sequence | G3: =Start!J2 -> 221 | P3: Total Sequences in Data | Q3: =4994-COUNTBLANK(L7:L5000) -> 6 | V3: Total Sequences in Block Data | W3: =COUNTA(L7:L7) -> 1 | AA3: Total Sequences in Block Data | AB3: =COUNTA(L8:L8) -> 1 | AF3: Total Sequences in Block Data | AG3: =COUNTA(L9:L9) -> 1 | AK3: Total Sequences in Block Data | AL3: =COUNTA(L10:L10) -> 1 | AP3: Total Sequences in Block Data | AQ3: =COUNTA(L11:L11) -> 1 | AU3: Total Sequences in Block Data | AV3: =COUNTA(L12:L12) -> 1
P4: Total Sequences in Summary | Q4: =SUM(O7:O14) -> 6 | V4: Total Sequences in Block Summary | W4: =SUM(U7:U14) -> 1 | AA4: Total Sequences in Block Summary | AB4: =SUM(Z7:Z14) -> 1 | AF4: Total Sequences in Block Summary | AG4: =SUM(AE7:AE14) -> 1 | AK4: Total Sequences in Block Summary | AL4: =SUM(AJ7:AJ14) -> 1 | AP4: Total Sequences in Block Summary | AQ4: =SUM(AO7:AO14) -> 1 | AU4: Total Sequences in Block Summary | AV4: =SUM(AT7:AT14) -> 1
T5: Block 1 | Y5: Block 2 | AD5: Block 3 | AI5: Block 4 | AN5: Block 5 | AS5: Block 6
A6: Sequence Component 1 | B6: Time 1 | C6: Sequence Component 2 | D6: Time 2 | E6: Sequence Component 3 | F6: Time 3 | G6: Sequence Component 4 | H6: Time 4 | I6: Sequence Component 5 | J6: Time 5 | K6: Correct? 0=No 1=Yes | L6: Sequence | N6: Frequency | P6: Relative Frequency | Q6: Variability | T6: Frequency | V6: Relative Frequency | W6: Variability | Y6: Frequency | AA6: Relative Frequency | AB6: Variability | AD6: Frequency | AF6: Relative Frequency | AG6: Variability | AI6: Frequency | AK6: Relative Frequency | AL6: Variability | AN6: Frequency | AP6: Relative Frequency | AQ6: Variability | AS6: Frequency | AU6: Relative Frequency | AV6: Variability
A7: 22 | B7: 6996 | C7: 14 | D7: 11358 | E7: 13 | F7: 11362 | K7: 0 | L7: 211 | N7: 111 | O7: =COUNTIF($L$7:$L$500,N7) -> 2 | P7: =O7/$Q$4 -> 0.3333333333 | Q7: =IF(P7=0,0,(P7*((LOG(P7))/LOG(2)))) -> -0.5283208336 | T7: =N7 -> 111 | U7: =COUNTIF(L7:L7,T7) -> 0 | V7: =U7/(W4-U13) -> 0 | W7: =IF(V7=0,0,(V7*((LOG(V7))/LOG(2)))) -> 0 | Y7: =N7 -> 111 | Z7: =COUNTIF(L8:L8,Y7) -> 1 | AA7: =Z7/(AB4-Z13) -> 1 | AB7: =IF(AA7=0,0,(AA7*((LOG(AA7))/LOG(2)))) -> 0 | AD7: =N7 -> 111 | AE7: =COUNTIF(L9:L9,AD7) -> 0 | AF7: =AE7/(AG4-AE13) -> 0 | AG7: =IF(AF7=0,0,(AF7*((LOG(AF7))/LOG(2)))) -> 0 | AI7: =N7 -> 111 | AJ7: =COUNTIF(L10:L10,AI7) -> 1 | AK7: =AJ7/(AL4-AJ13) -> 1 | AL7: =IF(AK7=0,0,(AK7*((LOG(AK7))/LOG(2)))) -> 0 | AN7: =N7 -> 111 | AO7: =COUNTIF(L11:L11,AN7) -> 0 | AP7: =AO7/(AQ4-AO13) -> 0 | AQ7: =IF(AP7=0,0,(AP7*((LOG(AP7))/LOG(2)))) -> 0 | AS7: =N7 -> 111 | AT7: =COUNTIF(L12:L12,AS7) -> 0 | AU7: =AT7/(AV4-AT13) -> 0 | AV7: =IF(AU7=0,0,(AU7*((LOG(AU7))/LOG(2)))) -> 0
A8: 11 | B8: 11457 | C8: 12 | D8: 11460 | E8: 13 | F8: 11462 | K8: 0 | L8: 111 | N8: 112 | O8: 0 | P8: 0 | Q8: 0 | T8: 112 | U8: =COUNTIF(L7:L7,T8) -> 0 | V8: =U8/(W4-U13) -> 0 | W8: 0 | Y8: 112 | Z8: =COUNTIF(L8:L8,Y8) -> 0 | AA8: =Z8/(AB4-Z13) -> 0 | AB8: 0 | AD8: 112 | AE8: =COUNTIF(L9:L9,AD8) -> 0 | AF8: =AE8/(AG4-AE13) -> 0 | AG8: 0 | AI8: 112 | AJ8: =COUNTIF(L10:L10,AI8) -> 0 | AK8: =AJ8/(AL4-AJ13) -> 0 | AL8: 0 | AN8: 112 | AO8: =COUNTIF(L11:L11,AN8) -> 0 | AP8: =AO8/(AQ4-AO13) -> 0 | AQ8: 0 | AS8: 112 | AT8: =COUNTIF(L12:L12,AS8) -> 0 | AU8: =AT8/(AV4-AT13) -> 0 | AV8: 0
A9: 22 | B9: 11559 | C9: 23 | D9: 11561 | E9: 24 | F9: 11563 | K9: 0 | L9: 222 | N9: 121 | O9: 1 | P9: 0.1666666667 | Q9: -0.4308270835 | T9: 121 | U9: =COUNTIF(L7:L7,T9) -> 0 | V9: =U9/(W4-U13) -> 0 | W9: 0 | Y9: 121 | Z9: =COUNTIF(L8:L8,Y9) -> 0 | AA9: =Z9/(AB4-Z13) -> 0 | AB9: 0 | AD9: 121 | AE9: =COUNTIF(L9:L9,AD9) -> 0 | AF9: =AE9/(AG4-AE13) -> 0 | AG9: 0 | AI9: 121 | AJ9: =COUNTIF(L10:L10,AI9) -> 0 | AK9: =AJ9/(AL4-AJ13) -> 0 | AL9: 0 | AN9: 121 | AO9: =COUNTIF(L11:L11,AN9) -> 1 | AP9: =AO9/(AQ4-AO13) -> 1 | AQ9: 0 | AS9: 121 | AT9: =COUNTIF(L12:L12,AS9) -> 0 | AU9: =AT9/(AV4-AT13) -> 0 | AV9: 0
A10: 11 | B10: 11857 | C10: 12 | D10: 11863 | E10: 13 | F10: 11876 | K10: 0 | L10: 111 | N10: 122 | O10: 1 | P10: 0.1666666667 | Q10: -0.4308270835 | T10: 122 | U10: =COUNTIF(L7:L7,T10) -> 0 | V10: =U10/(W4-U13) -> 0 | W10: 0 | Y10: 122 | Z10: =COUNTIF(L8:L8,Y10) -> 0 | AA10: =Z10/(AB4-Z13) -> 0 | AB10: 0 | AD10: 122 | AE10: =COUNTIF(L9:L9,AD10) -> 0 | AF10: =AE10/(AG4-AE13) -> 0 | AG10: 0 | AI10: 122 | AJ10: =COUNTIF(L10:L10,AI10) -> 0 | AK10: =AJ10/(AL4-AJ13) -> 0 | AL10: 0 | AN10: 122 | AO10: =COUNTIF(L11:L11,AN10) -> 0 | AP10: =AO10/(AQ4-AO13) -> 0 | AQ10: 0 | AS10: 122 | AT10: =COUNTIF(L12:L12,AS10) -> 1 | AU10: =AT10/(AV4-AT13) -> 1 | AV10: 0
A11: 11 | B11: 11973 | C11: 21 | D11: 11978 | E11: 11 | F11: 11997 | K11: 0 | L11: 121 | N11: 211 | O11: 1 | P11: 0.1666666667 | Q11: -0.4308270835 | T11: 211 | U11: =COUNTIF(L7:L7,T11) -> 1 | V11: =U11/(W4-U13) -> 1 | W11: 0 | Y11: 211 | Z11: =COUNTIF(L8:L8,Y11) -> 0 | AA11: =Z11/(AB4-Z13) -> 0 | AB11: 0 | AD11: 211 | AE11: =COUNTIF(L9:L9,AD11) -> 0 | AF11: =AE11/(AG4-AE13) -> 0 | AG11: 0 | AI11: 211 | AJ11: =COUNTIF(L10:L10,AI11) -> 0 | AK11: =AJ11/(AL4-AJ13) -> 0 | AL11: 0 | AN11: 211 | AO11: =COUNTIF(L11:L11,AN11) -> 0 | AP11: =AO11/(AQ4-AO13) -> 0 | AQ11: 0 | AS11: 211 | AT11: =COUNTIF(L12:L12,AS11) -> 0 | AU11: =AT11/(AV4-AT13) -> 0 | AV11: 0
A12: 11 | B12: 23732 | C12: 21 | D12: 23749 | E12: 22 | F12: 23768 | K12: 0 | L12: 122 | N12: 212 | O12: 0 | P12: 0 | Q12: 0 | T12: 212 | U12: =COUNTIF(L7:L7,T12) -> 0 | V12: =U12/(W4-U13) -> 0 | W12: 0 | Y12: 212 | Z12: =COUNTIF(L8:L8,Y12) -> 0 | AA12: =Z12/(AB4-Z13) -> 0 | AB12: 0 | AD12: 212 | AE12: =COUNTIF(L9:L9,AD12) -> 0 | AF12: =AE12/(AG4-AE13) -> 0 | AG12: 0 | AI12: 212 | AJ12: =COUNTIF(L10:L10,AI12) -> 0 | AK12: =AJ12/(AL4-AJ13) -> 0 | AL12: 0 | AN12: 212 | AO12: =COUNTIF(L11:L11,AN12) -> 0 | AP12: =AO12/(AQ4-AO13) -> 0 | AQ12: 0 | AS12: 212 | AT12: =COUNTIF(L12:L12,AS12) -> 0 | AU12: =AT12/(AV4-AT13) -> 0 | AV12: 0
N13: 221 | O13: 0 | P13: 0 | Q13: 0 | T13: 221 | U13: =COUNTIF(L7:L7,T13) -> 0 | Y13: 221 | Z13: =COUNTIF(L8:L8,Y13) -> 0 | AD13: 221 | AE13: =COUNTIF(L9:L9,AD13) -> 0 | AI13: 221 | AJ13: =COUNTIF(L10:L10,AI13) -> 0 | AN13: 221 | AO13: =COUNTIF(L11:L11,AN13) -> 0 | AS13: 221 | AT13: =COUNTIF(L12:L12,AS13) -> 0
N14: 222 | O14: 1 | P14: 0.1666666667 | Q14: -0.4308270835 | T14: 222 | U14: =COUNTIF(L7:L7,T14) -> 0 | V14: =U14/(W4-U13) -> 0 | W14: =IF(V14=0,0,(V14*((LOG(V14))/LOG(2)))) -> 0 | Y14: 222 | Z14: =COUNTIF(L8:L8,Y14) -> 0 | AA14: =Z14/(AB4-Z13) -> 0 | AB14: =IF(AA14=0,0,(AA14*((LOG(AA14))/LOG(2)))) -> 0 | AD14: 222 | AE14: =COUNTIF(L9:L9,AD14) -> 1 | AF14: =AE14/(AG4-AE13) -> 1 | AG14: =IF(AF14=0,0,(AF14*((LOG(AF14))/LOG(2)))) -> 0 | AI14: 222 | AJ14: =COUNTIF(L10:L10,AI14) -> 0 | AK14: =AJ14/(AL4-AJ13) -> 0 | AL14: =IF(AK14=0,0,(AK14*((LOG(AK14))/LOG(2)))) -> 0 | AN14: 222 | AO14: =COUNTIF(L11:L11,AN14) -> 0 | AP14: =AO14/(AQ4-AO13) -> 0 | AQ14: =IF(AP14=0,0,(AP14*((LOG(AP14))/LOG(2)))) -> 0 | AS14: 222 | AT14: =COUNTIF(L12:L12,AS14) -> 0 | AU14: =AT14/(AV4-AT13) -> 0 | AV14: =IF(AU14=0,0,(AU14*((LOG(AU14))/LOG(2)))) -> 0
P15: =SUM(P7:P14) -> 1 | Q15: =-SUM(Q7:Q14) -> 2.251629167 | V15: =SUM(V7:V14) -> 1 | W15: =-SUM(W7:W14) -> 0 | AA15: =SUM(AA7:AA14) -> 1 | AB15: =-SUM(AB7:AB14) -> 0 | AF15: =SUM(AF7:AF14) -> 1 | AG15: =-SUM(AG7:AG14) -> 0 | AK15: =SUM(AK7:AK14) -> 1 | AL15: =-SUM(AL7:AL14) -> 0 | AP15: =SUM(AP7:AP14) -> 1 | AQ15: =-SUM(AQ7:AQ14) -> 0 | AU15: =SUM(AU7:AU14) -> 1 | AV15: =-SUM(AV7:AV14) -> 0
P16: U= | Q16: =Q15/(LOG(Q4)/LOG(2)) -> 0.8710490643 | V16: U1= | W16: =W15/(LOG(W4)/LOG(2)) ->  | AA16: U2= | AB16: =AB15/(LOG(AB4)/LOG(2)) ->  | AF16: U3= | AG16: =AG15/(LOG(AG4)/LOG(2)) ->  | AK16: U4= | AL16: =AL15/(LOG(AL4)/LOG(2)) ->  | AP16: U5= | AQ16: =AQ15/(LOG(AQ4)/LOG(2)) ->  | AU16: U6= | AV16: =AV15/(LOG(AV4)/LOG(2)) -> 
N19: Total Target Seq
N20: =COUNTIF(L7:L12,G3) -> 0 | P20: 1 | Q20: 1 | R20: 1 | S20: 1 | T20: 1 | U20: 1
P21: % of reinforcement given in 6 equal intervals based on number of trials
P22: %_1 | Q22: %_2 | R22: %_3 | S22: %_4 | T22: %_5 | U22: %_6
O23: target sequence | P23: =$G$3 -> 221 | Q23: 221 | R23: 221 | S23: 221 | T23: 221 | U23: 221
O24: total reinforcement | P24: =U13 -> 0 | Q24: =Z13 -> 0 | R24: =AE13 -> 0 | S24: =AJ13 -> 0 | T24: =AO13 -> 0 | U24: =AT13 -> 0
O25: % target
O26: CCRF
O27: % CCRf
O28: average response rate | P28: =F7/P20 -> 11362 | Q28: =(F8-F7)/Q20 -> 100 | R28: =(F9-F8)/R20 -> 101 | S28: =(F10-F9)/S20 -> 313 | T28: =(F11-F10)/T20 -> 121 | U28: =(F12-F11)/U20 -> 11771

Sheet !M915B2B.AXT
A1: Report for:!M915B2B.AXT
A2: Date: | B2: <date>
A3: Hen: | B3: <hen> | F3: Correct Sequence | G3: =Start!J2 -> 221 | P3: Total Sequences in Data | Q3: =4994-COUNTBLANK(L7:L5000) -> 4 | V3: Total Sequences in Block Data | W3: =COUNTA(L7:L7) -> 1 | AA3: Total Sequences in Block Data | AB3: =COUNTA(L7:L8) -> 2 | AF3: Total Sequences in Block Data | AG3: =COUNTA(L8:L8) -> 1 | AK3: Total Sequences in Block Data | AL3: =COUNTA(L9:L9) -> 1 | AP3: Total Sequences in Block Data | AQ3: =COUNTA(L9:L10) -> 2 | AU3: Total Sequences in Block Data | AV3: =COUNTA(L10:L10) -> 1
P4: Total Sequences in Summary | Q4: =SUM(O7:O14) -> 3 | V4: Total Sequences in Block Summary | W4: =SUM(U7:U14) -> 1 | AA4: Total Sequences in Block Summary | AB4: =SUM(Z7:Z14) -> 2 | AF4: Total Sequences in Block Summary | AG4: =SUM(AE7:AE14) -> 1 | AK4: Total Sequences in Block Summary | AL4: =SUM(AJ7:AJ14) -> 1 | AP4: Total Sequences in Block Summary | AQ4: =SUM(AO7:AO14) -> 1 | AU4: Total Sequences in Block Summary | AV4: =SUM(AT7:AT14) -> 0
T5: Block 1 | Y5: Block 2 | AD5: Block 3 | AI5: Block 4 | AN5: Block 5 | AS5: Block 6
A6: Sequence Component 1 | B6: Time 1 | C6: Sequence Component 2 | D6: Time 2 | E6: Sequence Component 3 | F6: Time 3 | G6: Sequence Component 4 | H6: Time 4 | I6: Sequence Component 5 | J6: Time 5 | K6: Correct? 0=No 1=Yes | L6: Sequence | N6: Frequency | P6: Relative Frequency | Q6: Variability | T6: Frequency | V6: Relative Frequency | W6: Variability | Y6: Frequency | AA6: Relative Frequency | AB6: Variability | AD6: Frequency | AF6: Relative Frequency | AG6: Variability | AI6: Frequency | AK6: Relative Frequency | AL6: Variability | AN6: Frequency | AP6: Relative Frequency | AQ6: Variability | AS6: Frequency | AU6: Relative Frequency | AV6: Variability
A7: 22 | B7: 440 | C7: 23 | D7: 450 | E7: 24 | F7: 463 | K7: 0 | L7: 222 | N7: 111 | O7: =COUNTIF($L$7:$L$500,N7) -> 0 | P7: =O7/$Q$4 -> 0 | Q7: =IF(P7=0,0,(P7*((LOG(P7))/LOG(2)))) -> 0 | T7: =N7 -> 111 | U7: =COUNTIF(L7:L7,T7) -> 0 | V7: =U7/(W4-U13) -> 0 | W7: =IF(V7=0,0,(V7*((LOG(V7))/LOG(2)))) -> 0 | Y7: =N7 -> 111 | Z7: =COUNTIF(L7:L8,Y7) -> 0 | AA7: =Z7/(AB4-Z13) -> 0 | AB7: =IF(AA7=0,0,(AA7*((LOG(AA7))/LOG(2)))) -> 0 | AD7: =N7 -> 111 | AE7: =COUNTIF(L8:L8,AD7) -> 0 | AF7: =AE7/(AG4-AE13) -> 0 | AG7: =IF(AF7=0,0,(AF7*((LOG(AF7))/LOG(2)))) -> 0 | AI7: =N7 -> 111 | AJ7: =COUNTIF(L9:L9,AI7) -> 0 | AK7: =AJ7/(AL4-AJ13) -> 0 | AL7: =IF(AK7=0,0,(AK7*((LOG(AK7))/LOG(2)))) -> 0 | AN7: =N7 -> 111 | AO7: =COUNTIF(L9:L10,AN7) -> 0 | AP7: =AO7/(AQ4-AO13) -> 0 | AQ7: =IF(AP7=0,0,(AP7*((LOG(AP7))/LOG(2)))) -> 0 | AS7: =N7 -> 111 | AT7: =COUNTIF(L10:L10,AS7) -> 0 | AU7: =AT7/(AV4-AT13) ->  | AV7: =IF(AU7=0,0,(AU7*((LOG(AU7))/LOG(2)))) -> 
A8: 11 | B8: 606 | C8: 21 | D8: 616 | E8: 22 | F8: 623 | K8: 0 | L8: 122 | N8: 112 | O8: 1 | P8: 0.3333333333 | Q8: -0.5283208336 | T8: 112 | U8: =COUNTIF(L7:L7,T8) -> 0 | V8: =U8/(W4-U13) -> 0 | W8: 0 | Y8: 112 | Z8: =COUNTIF(L7:L8,Y8) -> 0 | AA8: =Z8/(AB4-Z13) -> 0 | AB8: 0 | AD8: 112 | AE8: =COUNTIF(L8:L8,AD8) -> 0 | AF8: =AE8/(AG4-AE13) -> 0 | AG8: 0 | AI8: 112 | AJ8: =COUNTIF(L9:L9,AI8) -> 1 | AK8: =AJ8/(AL4-AJ13) -> 1 | AL8: 0 | AN8: 112 | AO8: =COUNTIF(L9:L10,AN8) -> 1 | AP8: =AO8/(AQ4-AO13) -> 1 | AQ8: 0 | AS8: 112 | AT8: =COUNTIF(L10:L10,AS8) -> 0 | AU8: =AT8/(AV4-AT13) -> 
A9: 11 | B9: 780 | C9: 12 | D9: 783 | E9: 24 | F9: 787 | K9: 0 | L9: 112 | N9: 121 | O9: 0 | P9: 0 | Q9: 0 | T9: 121 | U9: =COUNTIF(L7:L7,T9) -> 0 | V9: =U9/(W4-U13) -> 0 | W9: 0 | Y9: 121 | Z9: =COUNTIF(L7:L8,Y9) -> 0 | AA9: =Z9/(AB4-Z13) -> 0 | AB9: 0 | AD9: 121 | AE9: =COUNTIF(L8:L8,AD9) -> 0 | AF9: =AE9/(AG4-AE13) -> 0 | AG9: 0 | AI9: 121 | AJ9: =COUNTIF(L9:L9,AI9) -> 0 | AK9: =AJ9/(AL4-AJ13) -> 0 | AL9: 0 | AN9: 121 | AO9: =COUNTIF(L9:L10,AN9) -> 0 | AP9: =AO9/(AQ4-AO13) -> 0 | AQ9: 0 | AS9: 121 | AT9: =COUNTIF(L10:L10,AS9) -> 0 | AU9: =AT9/(AV4-AT13) -> 
A10: 11 | B10: 9963 | L10: 1 | N10: 122 | O10: 1 | P10: 0.3333333333 | Q10: -0.5283208336 | T10: 122 | U10: =COUNTIF(L7:L7,T10) -> 0 | V10: =U10/(W4-U13) -> 0 | W10: 0 | Y10: 122 | Z10: =COUNTIF(L7:L8,Y10) -> 1 | AA10: =Z10/(AB4-Z13) -> 0.5 | AB10: -0.5 | AD10: 122 | AE10: =COUNTIF(L8:L8,AD10) -> 1 | AF10: =AE10/(AG4-AE13) -> 1 | AG10: 0 | AI10: 122 | AJ10: =COUNTIF(L9:L9,AI10) -> 0 | AK10: =AJ10/(AL4-AJ13) -> 0 | AL10: 0 | AN10: 122 | AO10: =COUNTIF(L9:L10,AN10) -> 0 | AP10: =AO10/(AQ4-AO13) -> 0 | AQ10: 0 | AS10: 122 | AT10: =COUNTIF(L10:L10,AS10) -> 0 | AU10: =AT10/(AV4-AT13) -> 
N11: 211 | O11: 0 | P11: 0 | Q11: 0 | T11: 211 | U11: =COUNTIF(L7:L7,T11) -> 0 | V11: =U11/(W4-U13) -> 0 | W11: 0 | Y11: 211 | Z11: =COUNTIF(L7:L8,Y11) -> 0 | AA11: =Z11/(AB4-Z13) -> 0 | AB11: 0 | AD11: 211 | AE11: =COUNTIF(L8:L8,AD11) -> 0 | AF11: =AE11/(AG4-AE13) -> 0 | AG11: 0 | AI11: 211 | AJ11: =COUNTIF(L9:L9,AI11) -> 0 | AK11: =AJ11/(AL4-AJ13) -> 0 | AL11: 0 | AN11: 211 | AO11: =COUNTIF(L9:L10,AN11) -> 0 | AP11: =AO11/(AQ4-AO13) -> 0 | AQ11: 0 | AS11: 211 | AT11: =COUNTIF(L10:L10,AS11) -> 0 | AU11: =AT11/(AV4-AT13) -> 
N12: 212 | O12: 0 | P12: 0 | Q12: 0 | T12: 212 | U12: =COUNTIF(L7:L7,T12) -> 0 | V12: =U12/(W4-U13) -> 0 | W12: 0 | Y12: 212 | Z12: =COUNTIF(L7:L8,Y12) -> 0 | AA12: =Z12/(AB4-Z13) -> 0 | AB12: 0 | AD12: 212 | AE12: =COUNTIF(L8:L8,AD12) -> 0 | AF12: =AE12/(AG4-AE13) -> 0 | AG12: 0 | AI12: 212 | AJ12: =COUNTIF(L9:L9,AI12) -> 0 | AK12: =AJ12/(AL4-AJ13) -> 0 | AL12: 0 | AN12: 212 | AO12: =COUNTIF(L9:L10,AN12) -> 0 | AP12: =AO12/(AQ4-AO13) -> 0 | AQ12: 0 | AS12: 212 | AT12: =COUNTIF(L10:L10,AS12) -> 0 | AU12: =AT12/(AV4-AT13) -> 
N13: 221 | O13: 0 | P13: 0 | Q13: 0 | T13: 221 | U13: =COUNTIF(L7:L7,T13) -> 0 | Y13: 221 | Z13: =COUNTIF(L7:L8,Y13) -> 0 | AD13: 221 | AE13: =COUNTIF(L8:L8,AD13) -> 0 | AI13: 221 | AJ13: =COUNTIF(L9:L9,AI13) -> 0 | AN13: 221 | AO13: =COUNTIF(L9:L10,AN13) -> 0 | AS13: 221 | AT13: =COUNTIF(L10:L10,AS13) -> 0
N14: 222 | O14: 1 | P14: 0.3333333333 | Q14: -0.5283208336 | T14: 222 | U14: =COUNTIF(L7:L7,T14) -> 1 | V14: =U14/(W4-U13) -> 1 | W14: =IF(V14=0,0,(V14*((LOG(V14))/LOG(2)))) -> 0 | Y14: 222 | Z14: =COUNTIF(L7:L8,Y14) -> 1 | AA14: =Z14/(AB4-Z13) -> 0.5 | AB14: =IF(AA14=0,0,(AA14*((LOG(AA14))/LOG(2)))) -> -0.5 | AD14: 222 | AE14: =COUNTIF(L8:L8,AD14) -> 0 | AF14: =AE14/(AG4-AE13) -> 0 | AG14: =IF(AF14=0,0,(AF14*((LOG(AF14))/LOG(2)))) -> 0 | AI14: 222 | AJ14: =COUNTIF(L9:L9,AI14) -> 0 | AK14: =AJ14/(AL4-AJ13) -> 0 | AL14: =IF(AK14=0,0,(AK14*((LOG(AK14))/LOG(2)))) -> 0 | AN14: 222 | AO14: =COUNTIF(L9:L10,AN14) -> 0 | AP14: =AO14/(AQ4-AO13) -> 0 | AQ14: =IF(AP14=0,0,(AP14*((LOG(AP14))/LOG(2)))) -> 0 | AS14: 222 | AT14: =COUNTIF(L10:L10,AS14) -> 0 | AU14: =AT14/(AV4-AT13) ->  | AV14: =IF(AU14=0,0,(AU14*((LOG(AU14))/LOG(2)))) -> 
P15: =SUM(P7:P14) -> 1 | Q15: =-SUM(Q7:Q14) -> 1.584962501 | V15: =SUM(V7:V14) -> 1 | W15: =-SUM(W7:W14) -> 0 | AA15: =SUM(AA7:AA14) -> 1 | AB15: =-SUM(AB7:AB14) -> 1 | AF15: =SUM(AF7:AF14) -> 1 | AG15: =-SUM(AG7:AG14) -> 0 | AK15: =SUM(AK7:AK14) -> 1 | AL15: =-SUM(AL7:AL14) -> 0 | AP15: =SUM(AP7:AP14) -> 1 | AQ15: =-SUM(AQ7:AQ14) -> 0 | AU15: =SUM(AU7:AU14) ->  | AV15: =-SUM(AV7:AV14) -> 
P16: U= | Q16: =Q15/(LOG(Q4)/LOG(2)) -> 1 | V16: U1= | W16: =W15/(LOG(W4)/LOG(2)) ->  | AA16: U2= | AB16: =AB15/(LOG(AB4)/LOG(2)) -> 1 | AF16: U3= | AG16: =AG15/(LOG(AG4)/LOG(2)) ->  | AK16: U4= | AL16: =AL15/(LOG(AL4)/LOG(2)) ->  | AP16: U5= | AQ16: =AQ15/(LOG(AQ4)/LOG(2)) ->  | AU16: U6= | AV16: =AV15/(LOG(AV4)/LOG(2)) -> 
N19: Total Target Seq
N20: =COUNTIF(L7:L10,G3) -> 0 | P20: 1 | Q20: 0 | R20: 1 | S20: 1 | T20: 0 | U20: 1
P21: % of reinforcement given in 6 equal intervals based on number of trials
P22: %_1 | Q22: %_2 | R22: %_3 | S22: %_4 | T22: %_5 | U22: %_6
O23: target sequence | P23: =$G$3 -> 221 | Q23: 221 | R23: 221 | S23: 221 | T23: 221 | U23: 221
O24: total reinforcement | P24: =U13 -> 0 | Q24: =Z13 -> 0 | R24: =AE13 -> 0 | S24: =AJ13 -> 0 | T24: =AO13 -> 0 | U24: =AT13 -> 0
O25: % target
O26: CCRF
O27: % CCRf
O28: average response rate | P28: =F7/P20 -> 463 | Q28: =(F7-F7)/Q20 ->  | R28: =(F8-F7)/R20 -> 160 | S28: =(F9-F8)/S20 -> 164 | T28: =(F9-F9)/T20 ->  | U28: =(F10-F9)/U20 -> -787

Sheet !M916A4B.AXT
A1: Report for:!M916A4B.AXT
A2: Date: | B2: <date>
A3: Hen: | B3: <hen> | F3: Correct Sequence | G3: =Start!J2 -> 221 | P3: Total Sequences in Data | Q3: =4994-COUNTBLANK(L7:L5000) -> 3 | V3: Total Sequences in Block Data | W3: =COUNTA(L7:L7) -> 1 | AA3: Total Sequences in Block Data | AB3: =COUNTA(L7:L8) -> 2 | AF3: Total Sequences in Block Data | AG3: =COUNTA(L8:L8) -> 1 | AK3: Total Sequences in Block Data | AL3: =COUNTA(L8:L9) -> 2 | AP3: Total Sequences in Block Data | AQ3: =COUNTA(L9:L9) -> 1 | AU3: Total Sequences in Block Data | AV3: =COUNTA(L9:L10) -> 1
P4: Total Sequences in Summary | Q4: =SUM(O7:O14) -> 2 | V4: Total Sequences in Block Summary | W4: =SUM(U7:U14) -> 1 | AA4: Total Sequences in Block Summary | AB4: =SUM(Z7:Z14) -> 2 | AF4: Total Sequences in Block Summary | AG4: =SUM(AE7:AE14) -> 1 | AK4: Total Sequences in Block Summary | AL4: =SUM(AJ7:AJ14) -> 1 | AP4: Total Sequences in Block Summary | AQ4: =SUM(AO7:AO14) -> 0 | AU4: Total Sequences in Block Summary | AV4: =SUM(AT7:AT14) -> 0
T5: Block 1 | Y5: Block 2 | AD5: Block 3 | AI5: Block 4 | AN5: Block 5 | AS5: Block 6
A6: Sequence Component 1 | B6: Time 1 | C6: Sequence Component 2 | D6: Time 2 | E6: Sequence Component 3 | F6: Time 3 | G6: Sequence Component 4 | H6: Time 4 | I6: Sequence Component 5 | J6: Time 5 | K6: Correct? 0=No 1=Yes | L6: Sequence | N6: Frequency | P6: Relative Frequency | Q6: Variability | T6: Frequency | V6: Relative Frequency | W6: Variability | Y6: Frequency | AA6: Relative Frequency | AB6: Variability | AD6: Frequency | AF6: Relative Frequency | AG6: Variability | AI6: Frequency | AK6: Relative Frequency | AL6: Variability | AN6: Frequency | AP6: Relative Frequency | AQ6: Variability | AS6: Frequency | AU6: Relative Frequency | AV6: Variability
A7: 22 | B7: 323 | C7: 14 | D7: 332 | E7: 24 | F7: 344 | K7: 0 | L7: 212 | N7: 111 | O7: =COUNTIF($L$7:$L$500,N7) -> 0 | P7: =O7/$Q$4 -> 0 | Q7: =IF(P7=0,0,(P7*((LOG(P7))/LOG(2)))) -> 0 | T7: =N7 -> 111 | U7: =COUNTIF(L7:L7,T7) -> 0 | V7: =U7/(W4-U13) -> 0 | W7: =IF(V7=0,0,(V7*((LOG(V7))/LOG(2)))) -> 0 | Y7: =N7 -> 111 | Z7: =COUNTIF(L7:L8,Y7) -> 0 | AA7: =Z7/(AB4-Z13) -> 0 | AB7: =IF(AA7=0,0,(AA7*((LOG(AA7))/LOG(2)))) -> 0 | AD7: =N7 -> 111 | AE7: =COUNTIF(L8:L8,AD7) -> 0 | AF7: =AE7/(AG4-AE13) -> 0 | AG7: =IF(AF7=0,0,(AF7*((LOG(AF7))/LOG(2)))) -> 0 | AI7: =N7 -> 111 | AJ7: =COUNTIF(L8:L9,AI7) -> 0 | AK7: =AJ7/(AL4-AJ13) -> 0 | AL7: =IF(AK7=0,0,(AK7*((LOG(AK7))/LOG(2)))) -> 0 | AN7: =N7 -> 111 | AO7: =COUNTIF(L9:L9,AN7) -> 0 | AP7: =AO7/(AQ4-AO13) ->  | AQ7: =IF(AP7=0,0,(AP7*((LOG(AP7))/LOG(2)))) ->  | AS7: =N7 -> 111 | AT7: =COUNTIF(L9:L10,AS7) -> 0 | AU7: =AT7/(AV4-AT13) ->  | AV7: =IF(AU7=0,0,(AU7*((LOG(AU7))/LOG(2)))) -> 
A8: 11 | B8: 2958 | C8: 21 | D8: 2960 | E8: 22 | F8: 2973 | K8: 0 | L8: 122 | N8: 112 | O8: 0 | P8: 0 | Q8: 0 | T8: 112 | U8: =COUNTIF(L7:L7,T8) -> 0 | V8: =U8/(W4-U13) -> 0 | W8: 0 | Y8: 112 | Z8: =COUNTIF(L7:L8,Y8) -> 0 | AA8: =Z8/(AB4-Z13) -> 0 | AB8: 0 | AD8: 112 | AE8: =COUNTIF(L8:L8,AD8) -> 0 | AF8: =AE8/(AG4-AE13) -> 0 | AG8: 0 | AI8: 112 | AJ8: =COUNTIF(L8:L9,AI8) -> 0 | AK8: =AJ8/(AL4-AJ13) -> 0 | AL8: 0 | AN8: 112 | AO8: =COUNTIF(L9:L9,AN8) -> 0 | AP8: =AO8/(AQ4-AO13) ->  | AS8: 112 | AT8: =COUNTIF(L9:L10,AS8) -> 0 | AU8: =AT8/(AV4-AT13) -> 
A9: 22 | B9: 19184 | C9: 14 | D9: 19310 | L9: 21 | N9: 121 | O9: 0 | P9: 0 | Q9: 0 | T9: 121 | U9: =COUNTIF(L7:L7,T9) -> 0 | V9: =U9/(W4-U13) -> 0 | W9: 0 | Y9: 121 | Z9: =COUNTIF(L7:L8,Y9) -> 0 | AA9: =Z9/(AB4-Z13) -> 0 | AB9: 0 | AD9: 121 | AE9: =COUNTIF(L8:L8,AD9) -> 0 | AF9: =AE9/(AG4-AE13) -> 0 | AG9: 0 | AI9: 121 | AJ9: =COUNTIF(L8:L9,AI9) -> 0 | AK9: =AJ9/(AL4-AJ13) -> 0 | AL9: 0 | AN9: 121 | AO9: =COUNTIF(L9:L9,AN9) -> 0 | AP9: =AO9/(AQ4-AO13) ->  | AS9: 121 | AT9: =COUNTIF(L9:L10,AS9) -> 0 | AU9: =AT9/(AV4-AT13) -> 
N10: 122 | O10: 1 | P10: 0.5 | Q10: -0.5 | T10: 122 | U10: =COUNTIF(L7:L7,T10) -> 0 | V10: =U10/(W4-U13) -> 0 | W10: 0 | Y10: 122 | Z10: =COUNTIF(L7:L8,Y10) -> 1 | AA10: =Z10/(AB4-Z13) -> 0.5 | AB10: -0.5 | AD10: 122 | AE10: =COUNTIF(L8:L8,AD10) -> 1 | AF10: =AE10/(AG4-AE13) -> 1 | AG10: 0 | AI10: 122 | AJ10: =COUNTIF(L8:L9,AI10) -> 1 | AK10: =AJ10/(AL4-AJ13) -> 1 | AL10: 0 | AN10: 122 | AO10: =COUNTIF(L9:L9,AN10) -> 0 | AP10: =AO10/(AQ4-AO13) ->  | AS10: 122 | AT10: =COUNTIF(L9:L10,AS10) -> 0 | AU10: =AT10/(AV4-AT13) -> 
N11: 211 | O11: 0 | P11: 0 | Q11: 0 | T11: 211 | U11: =COUNTIF(L7:L7,T11) -> 0 | V11: =U11/(W4-U13) -> 0 | W11: 0 | Y11: 211 | Z11: =COUNTIF(L7:L8,Y11) -> 0 | AA11: =Z11/(AB4-Z13) -> 0 | AB11: 0 | AD11: 211 | AE11: =COUNTIF(L8:L8,AD11) -> 0 | AF11: =AE11/(AG4-AE13) -> 0 | AG11: 0 | AI11: 211 | AJ11: =COUNTIF(L8:L9,AI11) -> 0 | AK11: =AJ11/(AL4-AJ13) -> 0 | AL11: 0 | AN11: 211 | AO11: =COUNTIF(L9:L9,AN11) -> 0 | AP11: =AO11/(AQ4-AO13) ->  | AS11: 211 | AT11: =COUNTIF(L9:L10,AS11) -> 0 | AU11: =AT11/(AV4-AT13) -> 
N12: 212 | O12: 1 | P12: 0.5 | Q12: -0.5 | T12: 212 | U12: =COUNTIF(L7:L7,T12) -> 1 | V12: =U12/(W4-U13) -> 1 | W12: 0 | Y12: 212 | Z12: =COUNTIF(L7:L8,Y12) -> 1 | AA12: =Z12/(AB4-Z13) -> 0.5 | AB12: -0.5 | AD12: 212 | AE12: =COUNTIF(L8:L8,AD12) -> 0 | AF12: =AE12/(AG4-AE13) -> 0 | AG12: 0 | AI12: 212 | AJ12: =COUNTIF(L8:L9,AI12) -> 0 | AK12: =AJ12/(AL4-AJ13) -> 0 | AL12: 0 | AN12: 212 | AO12: =COUNTIF(L9:L9,AN12) -> 0 | AP12: =AO12/(AQ4-AO13) ->  | AS12: 212 | AT12: =COUNTIF(L9:L10,AS12) -> 0 | AU12: =AT12/(AV4-AT13) -> 
N13: 221 | O13: 0 | P13: 0 | Q13: 0 | T13: 221 | U13: =COUNTIF(L7:L7,T13) -> 0 | Y13: 221 | Z13: =COUNTIF(L7:L8,Y13) -> 0 | AD13: 221 | AE13: =COUNTIF(L8:L8,AD13) -> 0 | AI13: 221 | AJ13: =COUNTIF(L8:L9,AI13) -> 0 | AN13: 221 | AO13: =COUNTIF(L9:L9,AN13) -> 0 | AS13: 221 | AT13: =COUNTIF(L9:L10,AS13) -> 0
N14: 222 | O14: 0 | P14: 0 | Q14: 0 | T14: 222 | U14: =COUNTIF(L7:L7,T14) -> 0 | V14: =U14/(W4-U13) -> 0 | W14: =IF(V14=0,0,(V14*((LOG(V14))/LOG(2)))) -> 0 | Y14: 222 | Z14: =COUNTIF(L7:L8,Y14) -> 0 | AA14: =Z14/(AB4-Z13) -> 0 | AB14: =IF(AA14=0,0,(AA14*((LOG(AA14))/LOG(2)))) -> 0 | AD14: 222 | AE14: =COUNTIF(L8:L8,AD14) -> 0 | AF14: =AE14/(AG4-AE13) -> 0 | AG14: =IF(AF14=0,0,(AF14*((LOG(AF14))/LOG(2)))) -> 0 | AI14: 222 | AJ14: =COUNTIF(L8:L9,AI14) -> 0 | AK14: =AJ14/(AL4-AJ13) -> 0 | AL14: =IF(AK14=0,0,(AK14*((LOG(AK14))/LOG(2)))) -> 0 | AN14: 222 | AO14: =COUNTIF(L9:L9,AN14) -> 0 | AP14: =AO14/(AQ4-AO13) ->  | AQ14: =IF(AP14=0,0,(AP14*((LOG(AP14))/LOG(2)))) ->  | AS14: 222 | AT14: =COUNTIF(L9:L10,AS14) -> 0 | AU14: =AT14/(AV4-AT13) ->  | AV14: =IF(AU14=0,0,(AU14*((LOG(AU14))/LOG(2)))) -> 
P15: =SUM(P7:P14) -> 1 | Q15: =-SUM(Q7:Q14) -> 1 | V15: =SUM(V7:V14) -> 1 | W15: =-SUM(W7:W14) -> 0 | AA15: =SUM(AA7:AA14) -> 1 | AB15: =-SUM(AB7:AB14) -> 1 | AF15: =SUM(AF7:AF14) -> 1 | AG15: =-SUM(AG7:AG14) -> 0 | AK15: =SUM(AK7:AK14) -> 1 | AL15: =-SUM(AL7:AL14) -> 0 | AP15: =SUM(AP7:AP14) ->  | AQ15: =-SUM(AQ7:AQ14) ->  | AU15: =SUM(AU7:AU14) ->  | AV15: =-SUM(AV7:AV14) -> 
P16: U= | Q16: =Q15/(LOG(Q4)/LOG(2)) -> 1 | V16: U1= | W16: =W15/(LOG(W4)/LOG(2)) ->  | AA16: U2= | AB16: =AB15/(LOG(AB4)/LOG(2)) -> 1 | AF16: U3= | AG16: =AG15/(LOG(AG4)/LOG(2)) ->  | AK16: U4= | AL16: =AL15/(LOG(AL4)/LOG(2)) ->  | AP16: U5= | AQ16: =AQ15/(LOG(AQ4)/LOG(2)) ->  | AU16: U6= | AV16: =AV15/(LOG(AV4)/LOG(2)) -> 
N19: Total Target Seq
N20: =COUNTIF(L7:L9,G3) -> 0 | P20: 1 | Q20: 0 | R20: 1 | S20: 0 | T20: 1 | U20: 0
P21: % of reinforcement given in 6 equal intervals based on number of trials
P22: %_1 | Q22: %_2 | R22: %_3 | S22: %_4 | T22: %_5 | U22: %_6
O23: target sequence | P23: =$G$3 -> 221 | Q23: 221 | R23: 221 | S23: 221 | T23: 221 | U23: 221
O24: total reinforcement | P24: =U13 -> 0 | Q24: =Z13 -> 0 | R24: =AE13 -> 0 | S24: =AJ13 -> 0 | T24: =AO13 -> 0 | U24: =AT13 -> 0
O25: % target
O26: CCRF
O27: % CCRf
O28: average response rate | P28: =F7/P20 -> 344 | Q28: =(F7-F7)/Q20 ->  | R28: =(F8-F7)/R20 -> 2629 | S28: =(F8-F8)/S20 ->  | T28: =(F9-F8)/T20 -> -2973 | U28: =(F9-F9)/U20 -> 

Sheet !M917A4B.AXT
A1: Report for:!M917A4B.AXT
A2: Date: | B2: <date>
A3: Hen: | B3: <hen> | F3: Correct Sequence | G3: =Start!J2 -> 221 | P3: Total Sequences in Data | Q3: =4994-COUNTBLANK(L7:L5000) -> 2 | V3: Total Sequences in Block Data | W3: =COUNTA(L6:L7) -> 2 | AA3: Total Sequences in Block Data | AB3: =COUNTA(L7:L7) -> 1 | AF3: Total Sequences in Block Data | AG3: =COUNTA(L7:L8) -> 2 | AK3: Total Sequences in Block Data | AL3: =COUNTA(L7:L8) -> 2 | AP3: Total Sequences in Block Data | AQ3: =COUNTA(L8:L8) -> 1 | AU3: Total Sequences in Block Data | AV3: =COUNTA(L8:L9) -> 1
P4: Total Sequences in Summary | Q4: =SUM(O7:O14) -> 2 | V4: Total Sequences in Block Summary | W4: =SUM(U7:U14) -> 1 | AA4: Total Sequences in Block Summary | AB4: =SUM(Z7:Z14) -> 1 | AF4: Total Sequences in Block Summary | AG4: =SUM(AE7:AE14) -> 2 | AK4: Total Sequences in Block Summary | AL4: =SUM(AJ7:AJ14) -> 2 | AP4: Total Sequences in Block Summary | AQ4: =SUM(AO7:AO14) -> 1 | AU4: Total Sequences in Block Summary | AV4: =SUM(AT7:AT14) -> 1
T5: Block 1 | Y5: Block 2 | AD5: Block 3 | AI5: Block 4 | AN5: Block 5 | AS5: Block 6
A6: Sequence Component 1 | B6: Time 1 | C6: Sequence Component 2 | D6: Time 2 | E6: Sequence Component 3 | F6: Time 3 | G6: Sequence Component 4 | H6: Time 4 | I6: Sequence Component 5 | J6: Time 5 | K6: Correct? 0=No 1=Yes | L6: Sequence | N6: Frequency | P6: Relative Frequency | Q6: Variability | T6: Frequency | V6: Relative Frequency | W6: Variability | Y6: Frequency | AA6: Relative Frequency | AB6: Variability | AD6: Frequency | AF6: Relative Frequency | AG6: Variability | AI6: Frequency | AK6: Relative Frequency | AL6: Variability | AN6: Frequency | AP6: Relative Frequency | AQ6: Variability | AS6: Frequency | AU6: Relative Frequency | AV6: Variability
A7: 11 | B7: 14271 | C7: 12 | D7: 17492 | E7: 24 | F7: 17504 | K7: 0 | L7: 112 | N7: 111 | O7: =COUNTIF($L$7:$L$500,N7) -> 0 | P7: =O7/$Q$4 -> 0 | Q7: =IF(P7=0,0,(P7*((LOG(P7))/LOG(2)))) -> 0 | T7: =N7 -> 111 | U7: =COUNTIF(L6:L7,T7) -> 0 | V7: =U7/(W4-U13) -> 0 | W7: =IF(V7=0,0,(V7*((LOG(V7))/LOG(2)))) -> 0 | Y7: =N7 -> 111 | Z7: =COUNTIF(L7:L7,Y7) -> 0 | AA7: =Z7/(AB4-Z13) -> 0 | AB7: =IF(AA7=0,0,(AA7*((LOG(AA7))/LOG(2)))) -> 0 | AD7: =N7 -> 111 | AE7: =COUNTIF(L7:L8,AD7) -> 0 | AF7: =AE7/(AG4-AE13) -> 0 | AG7: =IF(AF7=0,0,(AF7*((LOG(AF7))/LOG(2)))) -> 0 | AI7: =N7 -> 111 | AJ7: =COUNTIF(L7:L8,AI7) -> 0 | AK7: =AJ7/(AL4-AJ13) -> 0 | AL7: =IF(AK7=0,0,(AK7*((LOG(AK7))/LOG(2)))) -> 0 | AN7: =N7 -> 111 | AO7: =COUNTIF(L8:L8,AN7) -> 0 | AP7: =AO7/(AQ4-AO13) -> 0 | AQ7: =IF(AP7=0,0,(AP7*((LOG(AP7))/LOG(2)))) -> 0 | AS7: =N7 -> 111 | AT7: =COUNTIF(L8:L9,AS7) -> 0 | AU7: =AT7/(AV4-AT13) -> 0 | AV7: =IF(AU7=0,0,(AU7*((LOG(AU7))/LOG(2)))) -> 0
A8: 11 | B8: 22140 | C8: 21 | D8: 22147 | E8: 22 | F8: 23317 | K8: 0 | L8: 122 | N8: 112 | O8: 1 | P8: 0.5 | Q8: -0.5 | T8: 112 | U8: =COUNTIF(L6:L7,T8) -> 1 | V8: =U8/(W4-U13) -> 1 | W8: 0 | Y8: 112 | Z8: =COUNTIF(L7:L7,Y8) -> 1 | AA8: =Z8/(AB4-Z13) -> 1 | AB8: 0 | AD8: 112 | AE8: =COUNTIF(L7:L8,AD8) -> 1 | AF8: =AE8/(AG4-AE13) -> 0.5 | AG8: -0.5 | AI8: 112 | AJ8: =COUNTIF(L7:L8,AI8) -> 1 | AK8: =AJ8/(AL4-AJ13) -> 0.5 | AL8: -0.5 | AN8: 112 | AO8: =COUNTIF(L8:L8,AN8) -> 0 | AP8: =AO8/(AQ4-AO13) -> 0 | AQ8: 0 | AS8: 112 | AT8: =COUNTIF(L8:L9,AS8) -> 0 | AU8: =AT8/(AV4-AT13) -> 0 | AV8: 0
N9: 121 | O9: 0 | P9: 0 | Q9: 0 | T9: 121 | U9: =COUNTIF(L6:L7,T9) -> 0 | V9: =U9/(W4-U13) -> 0 | W9: 0 | Y9: 121 | Z9: =COUNTIF(L7:L7,Y9) -> 0 | AA9: =Z9/(AB4-Z13) -> 0 | AB9: 0 | AD9: 121 | AE9: =COUNTIF(L7:L8,AD9) -> 0 | AF9: =AE9/(AG4-AE13) -> 0 | AG9: 0 | AI9: 121 | AJ9: =COUNTIF(L7:L8,AI9) -> 0 | AK9: =AJ9/(AL4-AJ13) -> 0 | AL9: 0 | AN9: 121 | AO9: =COUNTIF(L8:L8,AN9) -> 0 | AP9: =AO9/(AQ4-AO13) -> 0 | AQ9: 0 | AS9: 121 | AT9: =COUNTIF(L8:L9,AS9) -> 0 | AU9: =AT9/(AV4-AT13) -> 0 | AV9: 0
N10: 122 | O10: 1 | P10: 0.5 | Q10: -0.5 | T10: 122 | U10: =COUNTIF(L6:L7,T10) -> 0 | V10: =U10/(W4-U13) -> 0 | W10: 0 | Y10: 122 | Z10: =COUNTIF(L7:L7,Y10) -> 0 | AA10: =Z10/(AB4-Z13) -> 0 | AB10: 0 | AD10: 122 | AE10: =COUNTIF(L7:L8,AD10) -> 1 | AF10: =AE10/(AG4-AE13) -> 0.5 | AG10: -0.5 | AI10: 122 | AJ10: =COUNTIF(L7:L8,AI10) -> 1 | AK10: =AJ10/(AL4-AJ13) -> 0.5 | AL10: -0.5 | AN10: 122 | AO10: =COUNTIF(L8:L8,AN10) -> 1 | AP10: =AO10/(AQ4-AO13) -> 1 | AQ10: 0 | AS10: 122 | AT10: =COUNTIF(L8:L9,AS10) -> 1 | AU10: =AT10/(AV4-AT13) -> 1 | AV10: 0
N11: 211 | O11: 0 | P11: 0 | Q11: 0 | T11: 211 | U11: =COUNTIF(L6:L7,T11) -> 0 | V11: =U11/(W4-U13) -> 0 | W11: 0 | Y11: 211 | Z11: =COUNTIF(L7:L7,Y11) -> 0 | AA11: =Z11/(AB4-Z13) -> 0 | AB11: 0 | AD11: 211 | AE11: =COUNTIF(L7:L8,AD11) -> 0 | AF11: =AE11/(AG4-AE13) -> 0 | AG11: 0 | AI11: 211 | AJ11: =COUNTIF(L7:L8,AI11) -> 0 | AK11: =AJ11/(AL4-AJ13) -> 0 | AL11: 0 | AN11: 211 | AO11: =COUNTIF(L8:L8,AN11) -> 0 | AP11: =AO11/(AQ4-AO13) -> 0 | AQ11: 0 | AS11: 211 | AT11: =COUNTIF(L8:L9,AS11) -> 0 | AU11: =AT11/(AV4-AT13) -> 0 | AV11: 0
N12: 212 | O12: 0 | P12: 0 | Q12: 0 | T12: 212 | U12: =COUNTIF(L6:L7,T12) -> 0 | V12: =U12/(W4-U13) -> 0 | W12: 0 | Y12: 212 | Z12: =COUNTIF(L7:L7,Y12) -> 0 | AA12: =Z12/(AB4-Z13) -> 0 | AB12: 0 | AD12: 212 | AE12: =COUNTIF(L7:L8,AD12) -> 0 | AF12: =AE12/(AG4-AE13) -> 0 | AG12: 0 | AI12: 212 | AJ12: =COUNTIF(L7:L8,AI12) -> 0 | AK12: =AJ12/(AL4-AJ13) -> 0 | AL12: 0 | AN12: 212 | AO12: =COUNTIF(L8:L8,AN12) -> 0 | AP12: =AO12/(AQ4-AO13) -> 0 | AQ12: 0 | AS12: 212 | AT12: =COUNTIF(L8:L9,AS12) -> 0 | AU12: =AT12/(AV4-AT13) -> 0 | AV12: 0
N13: 221 | O13: 0 | P13: 0 | Q13: 0 | T13: 221 | U13: =COUNTIF(L6:L7,T13) -> 0 | Y13: 221 | Z13: =COUNTIF(L7:L7,Y13) -> 0 | AD13: 221 | AE13: =COUNTIF(L7:L8,AD13) -> 0 | AI13: 221 | AJ13: =COUNTIF(L7:L8,AI13) -> 0 | AN13: 221 | AO13: =COUNTIF(L8:L8,AN13) -> 0 | AS13: 221 | AT13: =COUNTIF(L8:L9,AS13) -> 0
N14: 222 | O14: 0 | P14: 0 | Q14: 0 | T14: 222 | U14: =COUNTIF(L6:L7,T14) -> 0 | V14: =U14/(W4-U13) -> 0 | W14: =IF(V14=0,0,(V14*((LOG(V14))/LOG(2)))) -> 0 | Y14: 222 | Z14: =COUNTIF(L7:L7,Y14) -> 0 | AA14: =Z14/(AB4-Z13) -> 0 | AB14: =IF(AA14=0,0,(AA14*((LOG(AA14))/LOG(2)))) -> 0 | AD14: 222 | AE14: =COUNTIF(L7:L8,AD14) -> 0 | AF14: =AE14/(AG4-AE13) -> 0 | AG14: =IF(AF14=0,0,(AF14*((LOG(AF14))/LOG(2)))) -> 0 | AI14: 222 | AJ14: =COUNTIF(L7:L8,AI14) -> 0 | AK14: =AJ14/(AL4-AJ13) -> 0 | AL14: =IF(AK14=0,0,(AK14*((LOG(AK14))/LOG(2)))) -> 0 | AN14: 222 | AO14: =COUNTIF(L8:L8,AN14) -> 0 | AP14: =AO14/(AQ4-AO13) -> 0 | AQ14: =IF(AP14=0,0,(AP14*((LOG(AP14))/LOG(2)))) -> 0 | AS14: 222 | AT14: =COUNTIF(L8:L9,AS14) -> 0 | AU14: =AT14/(AV4-AT13) -> 0 | AV14: =IF(AU14=0,0,(AU14*((LOG(AU14))/LOG(2)))) -> 0
P15: =SUM(P7:P14) -> 1 | Q15: =-SUM(Q7:Q14) -> 1 | V15: =SUM(V7:V14) -> 1 | W15: =-SUM(W7:W14) -> 0 | AA15: =SUM(AA7:AA14) -> 1 | AB15: =-SUM(AB7:AB14) -> 0 | AF15: =SUM(AF7:AF14) -> 1 | AG15: =-SUM(AG7:AG14) -> 1 | AK15: =SUM(AK7:AK14) -> 1 | AL15: =-SUM(AL7:AL14) -> 1 | AP15: =SUM(AP7:AP14) -> 1 | AQ15: =-SUM(AQ7:AQ14) -> 0 | AU15: =SUM(AU7:AU14) -> 1 | AV15: =-SUM(AV7:AV14) -> 0
P16: U= | Q16: =Q15/(LOG(Q4)/LOG(2)) -> 1 | V16: U1= | W16: =W15/(LOG(W4)/LOG(2)) ->  | AA16: U2= | AB16: =AB15/(LOG(AB4)/LOG(2)) ->  | AF16: U3= | AG16: =AG15/(LOG(AG4)/LOG(2)) -> 1 | AK16: U4= | AL16: =AL15/(LOG(AL4)/LOG(2)) -> 1 | AP16: U5= | AQ16: =AQ15/(LOG(AQ4)/LOG(2)) ->  | AU16: U6= | AV16: =AV15/(LOG(AV4)/LOG(2)) -> 
N19: Total Target Seq
N20: =COUNTIF(L7:L8,G3) -> 0 | P20: 0 | Q20: 1 | R20: 0 | S20: 0 | T20: 1 | U20: 0
P21: % of reinforcement given in 6 equal intervals based on number of trials
P22: %_1 | Q22: %_2 | R22: %_3 | S22: %_4 | T22: %_5 | U22: %_6
O23: target sequence | P23: =$G$3 -> 221 | Q23: 221 | R23: 221 | S23: 221 | T23: 221 | U23: 221
O24: total reinforcement | P24: =U13 -> 0 | Q24: =Z13 -> 0 | R24: =AE13 -> 0 | S24: =AJ13 -> 0 | T24: =AO13 -> 0 | U24: =AT13 -> 0
O25: % target
O26: CCRF
O27: % CCRf
O28: average response rate | P28: =F6/P20 ->  | Q28: =(F7-F6)/Q20 ->  | R28: =(F7-F7)/R20 ->  | S28: =(F7-F7)/S20 ->  | T28: =(F8-F7)/T20 -> 5813 | U28: =(F8-F8)/U20 -> 

Sheet !M918B2B.AXT
A1: Report for:!M918B2B.AXT
A2: Date: | B2: <date>
A3: Hen: | B3: <hen> | F3: Correct Sequence | G3: =Start!J2 -> 221 | P3: Total Sequences in Data | Q3: =4994-COUNTBLANK(L7:L5000) -> 7 | V3: Total Sequences in Block Data | W3: =COUNTA(L7:L7) -> 1 | AA3: Total Sequences in Block Data | AB3: =COUNTA(L8:L8) -> 1 | AF3: Total Sequences in Block Data | AG3: =COUNTA(L9:L10) -> 2 | AK3: Total Sequences in Block Data | AL3: =COUNTA(L11:L11) -> 1 | AP3: Total Sequences in Block Data | AQ3: =COUNTA(L12:L12) -> 1 | AU3: Total Sequences in Block Data | AV3: =COUNTA(L13:L13) -> 1
P4: Total Sequences in Summary | Q4: =SUM(O7:O14) -> 7 | V4: Total Sequences in Block Summary | W4: =SUM(U7:U14) -> 1 | AA4: Total Sequences in Block Summary | AB4: =SUM(Z7:Z14) -> 1 | AF4: Total Sequences in Block Summary | AG4: =SUM(AE7:AE14) -> 2 | AK4: Total Sequences in Block Summary | AL4: =SUM(AJ7:AJ14) -> 1 | AP4: Total Sequences in Block Summary | AQ4: =SUM(AO7:AO14) -> 1 | AU4: Total Sequences in Block Summary | AV4: =SUM(AT7:AT14) -> 1
T5: Block 1 | Y5: Block 2 | AD5: Block 3 | AI5: Block 4 | AN5: Block 5 | AS5: Block 6
A6: Sequence Component 1 | B6: Time 1 | C6: Sequence Component 2 | D6: Time 2 | E6: Sequence Component 3 | F6: Time 3 | G6: Sequence Component 4 | H6: Time 4 | I6: Sequence Component 5 | J6: Time 5 | K6: Correct? 0=No 1=Yes | L6: Sequence | N6: Frequency | P6: Relative Frequency | Q6: Variability | T6: Frequency | V6: Relative Frequency | W6: Variability | Y6: Frequency | AA6: Relative Frequency | AB6: Variability | AD6: Frequency | AF6: Relative Frequency | AG6: Variability | AI6: Frequency | AK6: Relative Frequency | AL6: Variability | AN6: Frequency | AP6: Relative Frequency | AQ6: Variability | AS6: Frequency | AU6: Relative Frequency | AV6: Variability
A7: 22 | B7: 3438 | C7: 23 | D7: 3453 | E7: 24 | F7: 3474 | K7: 0 | L7: 222 | N7: 111 | O7: =COUNTIF($L$7:$L$500,N7) -> 0 | P7: =O7/$Q$4 -> 0 | Q7: =IF(P7=0,0,(P7*((LOG(P7))/LOG(2)))) -> 0 | T7: =N7 -> 111 | U7: =COUNTIF(L7:L7,T7) -> 0 | V7: =U7/(W4-U13) -> 0 | W7: =IF(V7=0,0,(V7*((LOG(V7))/LOG(2)))) -> 0 | Y7: =N7 -> 111 | Z7: =COUNTIF(L8:L8,Y7) -> 0 | AA7: =Z7/(AB4-Z13) -> 0 | AB7: =IF(AA7=0,0,(AA7*((LOG(AA7))/LOG(2)))) -> 0 | AD7: =N7 -> 111 | AE7: =COUNTIF(L9:L10,AD7) -> 0 | AF7: =AE7/(AG4-AE13) -> 0 | AG7: =IF(AF7=0,0,(AF7*((LOG(AF7))/LOG(2)))) -> 0 | AI7: =N7 -> 111 | AJ7: =COUNTIF(L11:L11,AI7) -> 0 | AK7: =AJ7/(AL4-AJ13) -> 0 | AL7: =IF(AK7=0,0,(AK7*((LOG(AK7))/LOG(2)))) -> 0 | AN7: =N7 -> 111 | AO7: =COUNTIF(L12:L12,AN7) -> 0 | AP7: =AO7/(AQ4-AO13) -> 0 | AQ7: =IF(AP7=0,0,(AP7*((LOG(AP7))/LOG(2)))) -> 0 | AS7: =N7 -> 111 | AT7: =COUNTIF(L13:L13,AS7) -> 0 | AU7: =AT7/(AV4-AT13) -> 0 | AV7: =IF(AU7=0,0,(AU7*((LOG(AU7))/LOG(2)))) -> 0
A8: 11 | B8: 4964 | C8: 21 | D8: 4975 | E8: 22 | F8: 4978 | K8: 0 | L8: 122 | N8: 112 | O8: 0 | P8: 0 | Q8: 0 | T8: 112 | U8: =COUNTIF(L7:L7,T8) -> 0 | V8: =U8/(W4-U13) -> 0 | W8: 0 | Y8: 112 | Z8: =COUNTIF(L8:L8,Y8) -> 0 | AA8: =Z8/(AB4-Z13) -> 0 | AB8: 0 | AD8: 112 | AE8: =COUNTIF(L9:L10,AD8) -> 0 | AF8: =AE8/(AG4-AE13) -> 0 | AG8: 0 | AI8: 112 | AJ8: =COUNTIF(L11:L11,AI8) -> 0 | AK8: =AJ8/(AL4-AJ13) -> 0 | AL8: 0 | AN8: 112 | AO8: =COUNTIF(L12:L12,AN8) -> 0 | AP8: =AO8/(AQ4-AO13) -> 0 | AQ8: 0 | AS8: 112 | AT8: =COUNTIF(L13:L13,AS8) -> 0 | AU8: =AT8/(AV4-AT13) -> 0 | AV8: 0
A9: 22 | B9: 5148 | C9: 23 | D9: 5151 | E9: 24 | F9: 5160 | K9: 0 | L9: 222 | N9: 121 | O9: 2 | P9: 0.2857142857 | Q9: -0.5163871206 | T9: 121 | U9: =COUNTIF(L7:L7,T9) -> 0 | V9: =U9/(W4-U13) -> 0 | W9: 0 | Y9: 121 | Z9: =COUNTIF(L8:L8,Y9) -> 0 | AA9: =Z9/(AB4-Z13) -> 0 | AB9: 0 | AD9: 121 | AE9: =COUNTIF(L9:L10,AD9) -> 0 | AF9: =AE9/(AG4-AE13) -> 0 | AG9: 0 | AI9: 121 | AJ9: =COUNTIF(L11:L11,AI9) -> 0 | AK9: =AJ9/(AL4-AJ13) -> 0 | AL9: 0 | AN9: 121 | AO9: =COUNTIF(L12:L12,AN9) -> 1 | AP9: =AO9/(AQ4-AO13) -> 1 | AQ9: 0 | AS9: 121 | AT9: =COUNTIF(L13:L13,AS9) -> 1 | AU9: =AT9/(AV4-AT13) -> 1 | AV9: 0
A10: 22 | B10: 8051 | C10: 14 | D10: 9517 | E10: 24 | F10: 9524 | K10: 0 | L10: 212 | N10: 122 | O10: 1 | P10: 0.1428571429 | Q10: -0.4010507032 | T10: 122 | U10: =COUNTIF(L7:L7,T10) -> 0 | V10: =U10/(W4-U13) -> 0 | W10: 0 | Y10: 122 | Z10: =COUNTIF(L8:L8,Y10) -> 1 | AA10: =Z10/(AB4-Z13) -> 1 | AB10: 0 | AD10: 122 | AE10: =COUNTIF(L9:L10,AD10) -> 0 | AF10: =AE10/(AG4-AE13) -> 0 | AG10: 0 | AI10: 122 | AJ10: =COUNTIF(L11:L11,AI10) -> 0 | AK10: =AJ10/(AL4-AJ13) -> 0 | AL10: 0 | AN10: 122 | AO10: =COUNTIF(L12:L12,AN10) -> 0 | AP10: =AO10/(AQ4-AO13) -> 0 | AQ10: 0 | AS10: 122 | AT10: =COUNTIF(L13:L13,AS10) -> 0 | AU10: =AT10/(AV4-AT13) -> 0 | AV10: 0
A11: 22 | B11: 11387 | C11: 14 | D11: 11944 | E11: 24 | F11: 11949 | K11: 0 | L11: 212 | N11: 211 | O11: 0 | P11: 0 | Q11: 0 | T11: 211 | U11: =COUNTIF(L7:L7,T11) -> 0 | V11: =U11/(W4-U13) -> 0 | W11: 0 | Y11: 211 | Z11: =COUNTIF(L8:L8,Y11) -> 0 | AA11: =Z11/(AB4-Z13) -> 0 | AB11: 0 | AD11: 211 | AE11: =COUNTIF(L9:L10,AD11) -> 0 | AF11: =AE11/(AG4-AE13) -> 0 | AG11: 0 | AI11: 211 | AJ11: =COUNTIF(L11:L11,AI11) -> 0 | AK11: =AJ11/(AL4-AJ13) -> 0 | AL11: 0 | AN11: 211 | AO11: =COUNTIF(L12:L12,AN11) -> 0 | AP11: =AO11/(AQ4-AO13) -> 0 | AQ11: 0 | AS11: 211 | AT11: =COUNTIF(L13:L13,AS11) -> 0 | AU11: =AT11/(AV4-AT13) -> 0 | AV11: 0
A12: 11 | B12: 12731 | C12: 21 | D12: 12737 | E12: 11 | F12: 16613 | K12: 0 | L12: 121 | N12: 212 | O12: 2 | P12: 0.2857142857 | Q12: -0.5163871206 | T12: 212 | U12: =COUNTIF(L7:L7,T12) -> 0 | V12: =U12/(W4-U13) -> 0 | W12: 0 | Y12: 212 | Z12: =COUNTIF(L8:L8,Y12) -> 0 | AA12: =Z12/(AB4-Z13) -> 0 | AB12: 0 | AD12: 212 | AE12: =COUNTIF(L9:L10,AD12) -> 1 | AF12: =AE12/(AG4-AE13) -> 0.5 | AG12: -0.5 | AI12: 212 | AJ12: =COUNTIF(L11:L11,AI12) -> 1 | AK12: =AJ12/(AL4-AJ13) -> 1 | AL12: 0 | AN12: 212 | AO12: =COUNTIF(L12:L12,AN12) -> 0 | AP12: =AO12/(AQ4-AO13) -> 0 | AQ12: 0 | AS12: 212 | AT12: =COUNTIF(L13:L13,AS12) -> 0 | AU12: =AT12/(AV4-AT13) -> 0 | AV12: 0
A13: 11 | B13: 17977 | C13: 21 | D13: 17986 | E13: 11 | F13: 18094 | K13: 0 | L13: 121 | N13: 221 | O13: 0 | P13: 0 | Q13: 0 | T13: 221 | U13: =COUNTIF(L7:L7,T13) -> 0 | Y13: 221 | Z13: =COUNTIF(L8:L8,Y13) -> 0 | AD13: 221 | AE13: =COUNTIF(L9:L10,AD13) -> 0 | AI13: 221 | AJ13: =COUNTIF(L11:L11,AI13) -> 0 | AN13: 221 | AO13: =COUNTIF(L12:L12,AN13) -> 0 | AS13: 221 | AT13: =COUNTIF(L13:L13,AS13) -> 0
N14: 222 | O14: 2 | P14: 0.2857142857 | Q14: -0.5163871206 | T14: 222 | U14: =COUNTIF(L7:L7,T14) -> 1 | V14: =U14/(W4-U13) -> 1 | W14: =IF(V14=0,0,(V14*((LOG(V14))/LOG(2)))) -> 0 | Y14: 222 | Z14: =COUNTIF(L8:L8,Y14) -> 0 | AA14: =Z14/(AB4-Z13) -> 0 | AB14: =IF(AA14=0,0,(AA14*((LOG(AA14))/LOG(2)))) -> 0 | AD14: 222 | AE14: =COUNTIF(L9:L10,AD14) -> 1 | AF14: =AE14/(AG4-AE13) -> 0.5 | AG14: =IF(AF14=0,0,(AF14*((LOG(AF14))/LOG(2)))) -> -0.5 | AI14: 222 | AJ14: =COUNTIF(L11:L11,AI14) -> 0 | AK14: =AJ14/(AL4-AJ13) -> 0 | AL14: =IF(AK14=0,0,(AK14*((LOG(AK14))/LOG(2)))) -> 0 | AN14: 222 | AO14: =COUNTIF(L12:L12,AN14) -> 0 | AP14: =AO14/(AQ4-AO13) -> 0 | AQ14: =IF(AP14=0,0,(AP14*((LOG(AP14))/LOG(2)))) -> 0 | AS14: 222 | AT14: =COUNTIF(L13:L13,AS14) -> 0 | AU14: =AT14/(AV4-AT13) -> 0 | AV14: =IF(AU14=0,0,(AU14*((LOG(AU14))/LOG(2)))) -> 0
P15: =SUM(P7:P14) -> 1 | Q15: =-SUM(Q7:Q14) -> 1.950212065 | V15: =SUM(V7:V14) -> 1 | W15: =-SUM(W7:W14) -> 0 | AA15: =SUM(AA7:AA14) -> 1 | AB15: =-SUM(AB7:AB14) -> 0 | AF15: =SUM(AF7:AF14) -> 1 | AG15: =-SUM(AG7:AG14) -> 1 | AK15: =SUM(AK7:AK14) -> 1 | AL15: =-SUM(AL7:AL14) -> 0 | AP15: =SUM(AP7:AP14) -> 1 | AQ15: =-SUM(AQ7:AQ14) -> 0 | AU15: =SUM(AU7:AU14) -> 1 | AV15: =-SUM(AV7:AV14) -> 0
P16: U= | Q16: =Q15/(LOG(Q4)/LOG(2)) -> 0.6946795539 | V16: U1= | W16: =W15/(LOG(W4)/LOG(2)) ->  | AA16: U2= | AB16: =AB15/(LOG(AB4)/LOG(2)) ->  | AF16: U3= | AG16: =AG15/(LOG(AG4)/LOG(2)) -> 1 | AK16: U4= | AL16: =AL15/(LOG(AL4)/LOG(2)) ->  | AP16: U5= | AQ16: =AQ15/(LOG(AQ4)/LOG(2)) ->  | AU16: U6= | AV16: =AV15/(LOG(AV4)/LOG(2)) -> 
N19: Total Target Seq
N20: =COUNTIF(L7:L13,G3) -> 0 | P20: 1 | Q20: 1 | R20: 2 | S20: 1 | T20: 1 | U20: 1
P21: % of reinforcement given in 6 equal intervals based on number of trials
P22: %_1 | Q22: %_2 | R22: %_3 | S22: %_4 | T22: %_5 | U22: %_6
O23: target sequence | P23: =$G$3 -> 221 | Q23: 221 | R23: 221 | S23: 221 | T23: 221 | U23: 221
O24: total reinforcement | P24: =U13 -> 0 | Q24: =Z13 -> 0 | R24: =AE13 -> 0 | S24: =AJ13 -> 0 | T24: =AO13 -> 0 | U24: =AT13 -> 0
O25: % target
O26: CCRF
O27: % CCRf
O28: average response rate | P28: =F7/P20 -> 3474 | Q28: =(F8-F7)/Q20 -> 1504 | R28: =(F10-F8)/R20 -> 2273 | S28: =(F11-F10)/S20 -> 2425 | T28: =(F12-F11)/T20 -> 4664 | U28: =(F13-F12)/U20 -> 1481

Sheet !M919A3B.AXT
A1: Report for:!M919A3B.AXT
A2: Date: | B2: <date>
A3: Hen: | B3: <hen> | F3: Correct Sequence | G3: =Start!J2 -> 221 | P3: Total Sequences in Data | Q3: =4994-COUNTBLANK(L7:L5000) -> 1 | V3: Total Sequences in Block Data | W3: =COUNTA(L6:L7) -> 2 | AA3: Total Sequences in Block Data | AB3: =COUNTA(L6:L7) -> 2 | AF3: Total Sequences in Block Data | AG3: =COUNTA(L7:L7) -> 1 | AK3: Total Sequences in Block Data | AL3: =COUNTA(L7:L8) -> 1 | AP3: Total Sequences in Block Data | AQ3: =COUNTA(L7:L8) -> 1 | AU3: Total Sequences in Block Data | AV3: =COUNTA(L7:L8) -> 1
P4: Total Sequences in Summary | Q4: =SUM(O7:O14) -> 0 | V4: Total Sequences in Block Summary | W4: =SUM(U7:U14) -> 0 | AA4: Total Sequences in Block Summary | AB4: =SUM(Z7:Z14) -> 0 | AF4: Total Sequences in Block Summary | AG4: =SUM(AE7:AE14) -> 0 | AK4: Total Sequences in Block Summary | AL4: =SUM(AJ7:AJ14) -> 0 | AP4: Total Sequences in Block Summary | AQ4: =SUM(AO7:AO14) -> 0 | AU4: Total Sequences in Block Summary | AV4: =SUM(AT7:AT14) -> 0
T5: Block 1 | Y5: Block 2 | AD5: Block 3 | AI5: Block 4 | AN5: Block 5 | AS5: Block 6
A6: Sequence Component 1 | B6: Time 1 | C6: Sequence Component 2 | D6: Time 2 | E6: Sequence Component 3 | F6: Time 3 | G6: Sequence Component 4 | H6: Time 4 | I6: Sequence Component 5 | J6: Time 5 | K6: Correct? 0=No 1=Yes | L6: Sequence | N6: Frequency | P6: Relative Frequency | Q6: Variability | T6: Frequency | V6: Relative Frequency | W6: Variability | Y6: Frequency | AA6: Relative Frequency | AB6: Variability | AD6: Frequency | AF6: Relative Frequency | AG6: Variability | AI6: Frequency | AK6: Relative Frequency | AL6: Variability | AN6: Frequency | AP6: Relative Frequency | AQ6: Variability | AS6: Frequency | AU6: Relative Frequency | AV6: Variability
A7: 22 | B7: 22387 | L7: 2 | N7: 111 | O7: =COUNTIF($L$7:$L$500,N7) -> 0 | P7: =O7/$Q$4 ->  | Q7: =IF(P7=0,0,(P7*((LOG(P7))/LOG(2)))) ->  | T7: =N7 -> 111 | U7: =COUNTIF(L6:L7,T7) -> 0 | V7: =U7/(W4-U13) ->  | W7: =IF(V7=0,0,(V7*((LOG(V7))/LOG(2)))) ->  | Y7: =N7 -> 111 | Z7: =COUNTIF(L6:L7,Y7) -> 0 | AA7: =Z7/(AB4-Z13) ->  | AB7: =IF(AA7=0,0,(AA7*((LOG(AA7))/LOG(2)))) ->  | AD7: =N7 -> 111 | AE7: =COUNTIF(L7:L7,AD7) -> 0 | AF7: =AE7/(AG4-AE13) ->  | AG7: =IF(AF7=0,0,(AF7*((LOG(AF7))/LOG(2)))) ->  | AI7: =N7 -> 111 | AJ7: =COUNTIF(L7:L8,AI7) -> 0 | AK7: =AJ7/(AL4-AJ13) ->  | AL7: =IF(AK7=0,0,(AK7*((LOG(AK7))/LOG(2)))) ->  | AN7: =N7 -> 111 | AO7: =COUNTIF(L7:L8,AN7) -> 0 | AP7: =AO7/(AQ4-AO13) ->  | AQ7: =IF(AP7=0,0,(AP7*((LOG(AP7))/LOG(2)))) ->  | AS7: =N7 -> 111 | AT7: =COUNTIF(L7:L8,AS7) -> 0 | AU7: =AT7/(AV4-AT13) ->  | AV7: =IF(AU7=0,0,(AU7*((LOG(AU7))/LOG(2)))) -> 
N8: 112 | O8: 0 | T8: 112 | U8: =COUNTIF(L6:L7,T8) -> 0 | V8: =U8/(W4-U13) ->  | Y8: 112 | Z8: =COUNTIF(L6:L7,Y8) -> 0 | AA8: =Z8/(AB4-Z13) ->  | AD8: 112 | AE8: =COUNTIF(L7:L7,AD8) -> 0 | AF8: =AE8/(AG4-AE13) ->  | AI8: 112 | AJ8: =COUNTIF(L7:L8,AI8) -> 0 | AK8: =AJ8/(AL4-AJ13) ->  | AN8: 112 | AO8: =COUNTIF(L7:L8,AN8) -> 0 | AP8: =AO8/(AQ4-AO13) ->  | AS8: 112 | AT8: =COUNTIF(L7:L8,AS8) -> 0 | AU8: =AT8/(AV4-AT13) -> 
N9: 121 | O9: 0 | T9: 121 | U9: =COUNTIF(L6:L7,T9) -> 0 | V9: =U9/(W4-U13) ->  | Y9: 121 | Z9: =COUNTIF(L6:L7,Y9) -> 0 | AA9: =Z9/(AB4-Z13) ->  | AD9: 121 | AE9: =COUNTIF(L7:L7,AD9) -> 0 | AF9: =AE9/(AG4-AE13) ->  | AI9: 121 | AJ9: =COUNTIF(L7:L8,AI9) -> 0 | AK9: =AJ9/(AL4-AJ13) ->  | AN9: 121 | AO9: =COUNTIF(L7:L8,AN9) -> 0 | AP9: =AO9/(AQ4-AO13) ->  | AS9: 121 | AT9: =COUNTIF(L7:L8,AS9) -> 0 | AU9: =AT9/(AV4-AT13) -> 
N10: 122 | O10: 0 | T10: 122 | U10: =COUNTIF(L6:L7,T10) -> 0 | V10: =U10/(W4-U13) ->  | Y10: 122 | Z10: =COUNTIF(L6:L7,Y10) -> 0 | AA10: =Z10/(AB4-Z13) ->  | AD10: 122 | AE10: =COUNTIF(L7:L7,AD10) -> 0 | AF10: =AE10/(AG4-AE13) ->  | AI10: 122 | AJ10: =COUNTIF(L7:L8,AI10) -> 0 | AK10: =AJ10/(AL4-AJ13) ->  | AN10: 122 | AO10: =COUNTIF(L7:L8,AN10) -> 0 | AP10: =AO10/(AQ4-AO13) ->  | AS10: 122 | AT10: =COUNTIF(L7:L8,AS10) -> 0 | AU10: =AT10/(AV4-AT13) -> 
N11: 211 | O11: 0 | T11: 211 | U11: =COUNTIF(L6:L7,T11) -> 0 | V11: =U11/(W4-U13) ->  | Y11: 211 | Z11: =COUNTIF(L6:L7,Y11) -> 0 | AA11: =Z11/(AB4-Z13) ->  | AD11: 211 | AE11: =COUNTIF(L7:L7,AD11) -> 0 | AF11: =AE11/(AG4-AE13) ->  | AI11: 211 | AJ11: =COUNTIF(L7:L8,AI11) -> 0 | AK11: =AJ11/(AL4-AJ13) ->  | AN11: 211 | AO11: =COUNTIF(L7:L8,AN11) -> 0 | AP11: =AO11/(AQ4-AO13) ->  | AS11: 211 | AT11: =COUNTIF(L7:L8,AS11) -> 0 | AU11: =AT11/(AV4-AT13) -> 
N12: 212 | O12: 0 | T12: 212 | U12: =COUNTIF(L6:L7,T12) -> 0 | V12: =U12/(W4-U13) ->  | Y12: 212 | Z12: =COUNTIF(L6:L7,Y12) -> 0 | AA12: =Z12/(AB4-Z13) ->  | AD12: 212 | AE12: =COUNTIF(L7:L7,AD12) -> 0 | AF12: =AE12/(AG4-AE13) ->  | AI12: 212 | AJ12: =COUNTIF(L7:L8,AI12) -> 0 | AK12: =AJ12/(AL4-AJ13) ->  | AN12: 212 | AO12: =COUNTIF(L7:L8,AN12) -> 0 | AP12: =AO12/(AQ4-AO13) ->  | AS12: 212 | AT12: =COUNTIF(L7:L8,AS12) -> 0 | AU12: =AT12/(AV4-AT13) -> 
N13: 221 | O13: 0 | T13: 221 | U13: =COUNTIF(L6:L7,T13) -> 0 | Y13: 221 | Z13: =COUNTIF(L6:L7,Y13) -> 0 | AD13: 221 | AE13: =COUNTIF(L7:L7,AD13) -> 0 | AI13: 221 | AJ13: =COUNTIF(L7:L8,AI13) -> 0 | AN13: 221 | AO13: =COUNTIF(L7:L8,AN13) -> 0 | AS13: 221 | AT13: =COUNTIF(L7:L8,AS13) -> 0
N14: 222 | O14: 0 | T14: 222 | U14: =COUNTIF(L6:L7,T14) -> 0 | V14: =U14/(W4-U13) ->  | W14: =IF(V14=0,0,(V14*((LOG(V14))/LOG(2)))) ->  | Y14: 222 | Z14: =COUNTIF(L6:L7,Y14) -> 0 | AA14: =Z14/(AB4-Z13) ->  | AB14: =IF(AA14=0,0,(AA14*((LOG(AA14))/LOG(2)))) ->  | AD14: 222 | AE14: =COUNTIF(L7:L7,AD14) -> 0 | AF14: =AE14/(AG4-AE13) ->  | AG14: =IF(AF14=0,0,(AF14*((LOG(AF14))/LOG(2)))) ->  | AI14: 222 | AJ14: =COUNTIF(L7:L8,AI14) -> 0 | AK14: =AJ14/(AL4-AJ13) ->  | AL14: =IF(AK14=0,0,(AK14*((LOG(AK14))/LOG(2)))) ->  | AN14: 222 | AO14: =COUNTIF(L7:L8,AN14) -> 0 | AP14: =AO14/(AQ4-AO13) ->  | AQ14: =IF(AP14=0,0,(AP14*((LOG(AP14))/LOG(2)))) ->  | AS14: 222 | AT14: =COUNTIF(L7:L8,AS14) -> 0 | AU14: =AT14/(AV4-AT13) ->  | AV14: =IF(AU14=0,0,(AU14*((LOG(AU14))/LOG(2)))) -> 
P15: =SUM(P7:P14) ->  | Q15: =-SUM(Q7:Q14) ->  | V15: =SUM(V7:V14) ->  | W15: =-SUM(W7:W14) ->  | AA15: =SUM(AA7:AA14) ->  | AB15: =-SUM(AB7:AB14) ->  | AF15: =SUM(AF7:AF14) ->  | AG15: =-SUM(AG7:AG14) ->  | AK15: =SUM(AK7:AK14) ->  | AL15: =-SUM(AL7:AL14) ->  | AP15: =SUM(AP7:AP14) ->  | AQ15: =-SUM(AQ7:AQ14) ->  | AU15: =SUM(AU7:AU14) ->  | AV15: =-SUM(AV7:AV14) -> 
P16: U= | Q16: =Q15/(LOG(Q4)/LOG(2)) ->  | V16: U1= | W16: =W15/(LOG(W4)/LOG(2)) ->  | AA16: U2= | AB16: =AB15/(LOG(AB4)/LOG(2)) ->  | AF16: U3= | AG16: =AG15/(LOG(AG4)/LOG(2)) ->  | AK16: U4= | AL16: =AL15/(LOG(AL4)/LOG(2)) ->  | AP16: U5= | AQ16: =AQ15/(LOG(AQ4)/LOG(2)) ->  | AU16: U6= | AV16: =AV15/(LOG(AV4)/LOG(2)) -> 
N19: Total Target Seq
N20: =COUNTIF(L7:L7,G3) -> 0 | P20: 0 | Q20: 0 | R20: 1 | S20: 0 | T20: 0 | U20: 0
P21: % of reinforcement given in 6 equal intervals based on number of trials
P22: %_1 | Q22: %_2 | R22: %_3 | S22: %_4 | T22: %_5 | U22: %_6
O23: target sequence | P23: =$G$3 -> 221 | Q23: 221 | R23: 221 | S23: 221 | T23: 221 | U23: 221
O24: total reinforcement | P24: =U13 -> 0 | Q24: =Z13 -> 0 | R24: =AE13 -> 0 | S24: =AJ13 -> 0 | T24: =AO13 -> 0 | U24: =AT13 -> 0
O25: % target
O26: CCRF
O27: % CCRf
O28: average response rate | P28: =F6/P20 ->  | Q28: =(F6-F6)/Q20 ->  | R28: =(F7-F6)/R20 ->  | S28: =(F7-F7)/S20 ->  | T28: =(F7-F7)/T20 ->  | U28: =(F7-F7)/U20 -> 

Sheet !M92095B.AXT
A1: Report for:!M92095B.AXT
A2: Date: | B2: <date>
A3: Hen: | B3: <hen> | F3: Correct Sequence | G3: =Start!J2 -> 221 | P3: Total Sequences in Data | Q3: =4994-COUNTBLANK(L7:L5000) -> 3 | V3: Total Sequences in Block Data | W3: =COUNTA(L7:L7) -> 1 | AA3: Total Sequences in Block Data | AB3: =COUNTA(L7:L8) -> 2 | AF3: Total Sequences in Block Data | AG3: =COUNTA(L8:L8) -> 1 | AK3: Total Sequences in Block Data | AL3: =COUNTA(L8:L9) -> 2 | AP3: Total Sequences in Block Data | AQ3: =COUNTA(L9:L9) -> 1 | AU3: Total Sequences in Block Data | AV3: =COUNTA(L9:L10) -> 1
P4: Total Sequences in Summary | Q4: =SUM(O7:O14) -> 3 | V4: Total Sequences in Block Summary | W4: =SUM(U7:U14) -> 1 | AA4: Total Sequences in Block Summary | AB4: =SUM(Z7:Z14) -> 2 | AF4: Total Sequences in Block Summary | AG4: =SUM(AE7:AE14) -> 1 | AK4: Total Sequences in Block Summary | AL4: =SUM(AJ7:AJ14) -> 2 | AP4: Total Sequences in Block Summary | AQ4: =SUM(AO7:AO14) -> 1 | AU4: Total Sequences in Block Summary | AV4: =SUM(AT7:AT14) -> 1
T5: Block 1 | Y5: Block 2 | AD5: Block 3 | AI5: Block 4 | AN5: Block 5 | AS5: Block 6
A6: Sequence Component 1 | B6: Time 1 | C6: Sequence Component 2 | D6: Time 2 | E6: Sequence Component 3 | F6: Time 3 | G6: Sequence Component 4 | H6: Time 4 | I6: Sequence Component 5 | J6: Time 5 | K6: Correct? 0=No 1=Yes | L6: Sequence | N6: Frequency | P6: Relative Frequency | Q6: Variability | T6: Frequency | V6: Relative Frequency | W6: Variability | Y6: Frequency | AA6: Relative Frequency | AB6: Variability | AD6: Frequency | AF6: Relative Frequency | AG6: Variability | AI6: Frequency | AK6: Relative Frequency | AL6: Variability | AN6: Frequency | AP6: Relative Frequency | AQ6: Variability | AS6: Frequency | AU6: Relative Frequency | AV6: Variability
A7: 22 | B7: 6 | C7: 23 | D7: 15 | E7: 24 | F7: 25 | K7: 0 | L7: 222 | N7: 111 | O7: =COUNTIF($L$7:$L$500,N7) -> 0 | P7: =O7/$Q$4 -> 0 | Q7: =IF(P7=0,0,(P7*((LOG(P7))/LOG(2)))) -> 0 | T7: =N7 -> 111 | U7: =COUNTIF(L7:L7,T7) -> 0 | V7: =U7/(W4-U13) -> 0 | W7: =IF(V7=0,0,(V7*((LOG(V7))/LOG(2)))) -> 0 | Y7: =N7 -> 111 | Z7: =COUNTIF(L7:L8,Y7) -> 0 | AA7: =Z7/(AB4-Z13) -> 0 | AB7: =IF(AA7=0,0,(AA7*((LOG(AA7))/LOG(2)))) -> 0 | AD7: =N7 -> 111 | AE7: =COUNTIF(L8:L8,AD7) -> 0 | AF7: =AE7/(AG4-AE13) -> 0 | AG7: =IF(AF7=0,0,(AF7*((LOG(AF7))/LOG(2)))) -> 0 | AI7: =N7 -> 111 | AJ7: =COUNTIF(L8:L9,AI7) -> 0 | AK7: =AJ7/(AL4-AJ13) -> 0 | AL7: =IF(AK7=0,0,(AK7*((LOG(AK7))/LOG(2)))) -> 0 | AN7: =N7 -> 111 | AO7: =COUNTIF(L9:L9,AN7) -> 0 | AP7: =AO7/(AQ4-AO13) -> 0 | AQ7: =IF(AP7=0,0,(AP7*((LOG(AP7))/LOG(2)))) -> 0 | AS7: =N7 -> 111 | AT7: =COUNTIF(L9:L10,AS7) -> 0 | AU7: =AT7/(AV4-AT13) -> 0 | AV7: =IF(AU7=0,0,(AU7*((LOG(AU7))/LOG(2)))) -> 0
A8: 22 | B8: 125 | C8: 23 | D8: 134 | E8: 24 | F8: 149 | K8: 0 | L8: 222 | N8: 112 | O8: 0 | P8: 0 | Q8: 0 | T8: 112 | U8: =COUNTIF(L7:L7,T8) -> 0 | V8: =U8/(W4-U13) -> 0 | W8: 0 | Y8: 112 | Z8: =COUNTIF(L7:L8,Y8) -> 0 | AA8: =Z8/(AB4-Z13) -> 0 | AB8: 0 | AD8: 112 | AE8: =COUNTIF(L8:L8,AD8) -> 0 | AF8: =AE8/(AG4-AE13) -> 0 | AG8: 0 | AI8: 112 | AJ8: =COUNTIF(L8:L9,AI8) -> 0 | AK8: =AJ8/(AL4-AJ13) -> 0 | AL8: 0 | AN8: 112 | AO8: =COUNTIF(L9:L9,AN8) -> 0 | AP8: =AO8/(AQ4-AO13) -> 0 | AQ8: 0 | AS8: 112 | AT8: =COUNTIF(L9:L10,AS8) -> 0 | AU8: =AT8/(AV4-AT13) -> 0 | AV8: 0
A9: 11 | B9: 5515 | C9: 21 | D9: 5537 | E9: 22 | F9: 5548 | K9: 0 | L9: 122 | N9: 121 | O9: 0 | P9: 0 | Q9: 0 | T9: 121 | U9: =COUNTIF(L7:L7,T9) -> 0 | V9: =U9/(W4-U13) -> 0 | W9: 0 | Y9: 121 | Z9: =COUNTIF(L7:L8,Y9) -> 0 | AA9: =Z9/(AB4-Z13) -> 0 | AB9: 0 | AD9: 121 | AE9: =COUNTIF(L8:L8,AD9) -> 0 | AF9: =AE9/(AG4-AE13) -> 0 | AG9: 0 | AI9: 121 | AJ9: =COUNTIF(L8:L9,AI9) -> 0 | AK9: =AJ9/(AL4-AJ13) -> 0 | AL9: 0 | AN9: 121 | AO9: =COUNTIF(L9:L9,AN9) -> 0 | AP9: =AO9/(AQ4-AO13) -> 0 | AQ9: 0 | AS9: 121 | AT9: =COUNTIF(L9:L10,AS9) -> 0 | AU9: =AT9/(AV4-AT13) -> 0 | AV9: 0
N10: 122 | O10: 1 | P10: 0.3333333333 | Q10: -0.5283208336 | T10: 122 | U10: =COUNTIF(L7:L7,T10) -> 0 | V10: =U10/(W4-U13) -> 0 | W10: 0 | Y10: 122 | Z10: =COUNTIF(L7:L8,Y10) -> 0 | AA10: =Z10/(AB4-Z13) -> 0 | AB10: 0 | AD10: 122 | AE10: =COUNTIF(L8:L8,AD10) -> 0 | AF10: =AE10/(AG4-AE13) -> 0 | AG10: 0 | AI10: 122 | AJ10: =COUNTIF(L8:L9,AI10) -> 1 | AK10: =AJ10/(AL4-AJ13) -> 0.5 | AL10: -0.5 | AN10: 122 | AO10: =COUNTIF(L9:L9,AN10) -> 1 | AP10: =AO10/(AQ4-AO13) -> 1 | AQ10: 0 | AS10: 122 | AT10: =COUNTIF(L9:L10,AS10) -> 1 | AU10: =AT10/(AV4-AT13) -> 1 | AV10: 0
N11: 211 | O11: 0 | P11: 0 | Q11: 0 | T11: 211 | U11: =COUNTIF(L7:L7,T11) -> 0 | V11: =U11/(W4-U13) -> 0 | W11: 0 | Y11: 211 | Z11: =COUNTIF(L7:L8,Y11) -> 0 | AA11: =Z11/(AB4-Z13) -> 0 | AB11: 0 | AD11: 211 | AE11: =COUNTIF(L8:L8,AD11) -> 0 | AF11: =AE11/(AG4-AE13) -> 0 | AG11: 0 | AI11: 211 | AJ11: =COUNTIF(L8:L9,AI11) -> 0 | AK11: =AJ11/(AL4-AJ13) -> 0 | AL11: 0 | AN11: 211 | AO11: =COUNTIF(L9:L9,AN11) -> 0 | AP11: =AO11/(AQ4-AO13) -> 0 | AQ11: 0 | AS11: 211 | AT11: =COUNTIF(L9:L10,AS11) -> 0 | AU11: =AT11/(AV4-AT13) -> 0 | AV11: 0
N12: 212 | O12: 0 | P12: 0 | Q12: 0 | T12: 212 | U12: =COUNTIF(L7:L7,T12) -> 0 | V12: =U12/(W4-U13) -> 0 | W12: 0 | Y12: 212 | Z12: =COUNTIF(L7:L8,Y12) -> 0 | AA12: =Z12/(AB4-Z13) -> 0 | AB12: 0 | AD12: 212 | AE12: =COUNTIF(L8:L8,AD12) -> 0 | AF12: =AE12/(AG4-AE13) -> 0 | AG12: 0 | AI12: 212 | AJ12: =COUNTIF(L8:L9,AI12) -> 0 | AK12: =AJ12/(AL4-AJ13) -> 0 | AL12: 0 | AN12: 212 | AO12: =COUNTIF(L9:L9,AN12) -> 0 | AP12: =AO12/(AQ4-AO13) -> 0 | AQ12: 0 | AS12: 212 | AT12: =COUNTIF(L9:L10,AS12) -> 0 | AU12: =AT12/(AV4-AT13) -> 0 | AV12: 0
N13: 221 | O13: 0 | P13: 0 | Q13: 0 | T13: 221 | U13: =COUNTIF(L7:L7,T13) -> 0 | Y13: 221 | Z13: =COUNTIF(L7:L8,Y13) -> 0 | AD13: 221 | AE13: =COUNTIF(L8:L8,AD13) -> 0 | AI13: 221 | AJ13: =COUNTIF(L8:L9,AI13) -> 0 | AN13: 221 | AO13: =COUNTIF(L9:L9,AN13) -> 0 | AS13: 221 | AT13: =COUNTIF(L9:L10,AS13) -> 0
N14: 222 | O14: 2 | P14: 0.6666666667 | Q14: -0.3899750005 | T14: 222 | U14: =COUNTIF(L7:L7,T14) -> 1 | V14: =U14/(W4-U13) -> 1 | W14: =IF(V14=0,0,(V14*((LOG(V14))/LOG(2)))) -> 0 | Y14: 222 | Z14: =COUNTIF(L7:L8,Y14) -> 2 | AA14: =Z14/(AB4-Z13) -> 1 | AB14: =IF(AA14=0,0,(AA14*((LOG(AA14))/LOG(2)))) -> 0 | AD14: 222 | AE14: =COUNTIF(L8:L8,AD14) -> 1 | AF14: =AE14/(AG4-AE13) -> 1 | AG14: =IF(AF14=0,0,(AF14*((LOG(AF14))/LOG(2)))) -> 0 | AI14: 222 | AJ14: =COUNTIF(L8:L9,AI14) -> 1 | AK14: =AJ14/(AL4-AJ13) -> 0.5 | AL14: =IF(AK14=0,0,(AK14*((LOG(AK14))/LOG(2)))) -> -0.5 | AN14: 222 | AO14: =COUNTIF(L9:L9,AN14) -> 0 | AP14: =AO14/(AQ4-AO13) -> 0 | AQ14: =IF(AP14=0,0,(AP14*((LOG(AP14))/LOG(2)))) -> 0 | AS14: 222 | AT14: =COUNTIF(L9:L10,AS14) -> 0 | AU14: =AT14/(AV4-AT13) -> 0 | AV14: =IF(AU14=0,0,(AU14*((LOG(AU14))/LOG(2)))) -> 0
P15: =SUM(P7:P14) -> 1 | Q15: =-SUM(Q7:Q14) -> 0.9182958341 | V15: =SUM(V7:V14) -> 1 | W15: =-SUM(W7:W14) -> 0 | AA15: =SUM(AA7:AA14) -> 1 | AB15: =-SUM(AB7:AB14) -> 0 | AF15: =SUM(AF7:AF14) -> 1 | AG15: =-SUM(AG7:AG14) -> 0 | AK15: =SUM(AK7:AK14) -> 1 | AL15: =-SUM(AL7:AL14) -> 1 | AP15: =SUM(AP7:AP14) -> 1 | AQ15: =-SUM(AQ7:AQ14) -> 0 | AU15: =SUM(AU7:AU14) -> 1 | AV15: =-SUM(AV7:AV14) -> 0
P16: U= | Q16: =Q15/(LOG(Q4)/LOG(2)) -> 0.5793801643 | V16: U1= | W16: =W15/(LOG(W4)/LOG(2)) ->  | AA16: U2= | AB16: =AB15/(LOG(AB4)/LOG(2)) -> 0 | AF16: U3= | AG16: =AG15/(LOG(AG4)/LOG(2)) ->  | AK16: U4= | AL16: =AL15/(LOG(AL4)/LOG(2)) -> 1 | AP16: U5= | AQ16: =AQ15/(LOG(AQ4)/LOG(2)) ->  | AU16: U6= | AV16: =AV15/(LOG(AV4)/LOG(2)) -> 
N19: Total Target Seq
N20: =COUNTIF(L7:L9,G3) -> 0 | P20: 1 | Q20: 0 | R20: 1 | S20: 0 | T20: 1 | U20: 0
P21: % of reinforcement given in 6 equal intervals based on number of trials
P22: %_1 | Q22: %_2 | R22: %_3 | S22: %_4 | T22: %_5 | U22: %_6
O23: target sequence | P23: =$G$3 -> 221 | Q23: 221 | R23: 221 | S23: 221 | T23: 221 | U23: 221
O24: total reinforcement | P24: =U13 -> 0 | Q24: =Z13 -> 0 | R24: =AE13 -> 0 | S24: =AJ13 -> 0 | T24: =AO13 -> 0 | U24: =AT13 -> 0
O25: % target
O26: CCRF
O27: % CCRf
O28: average response rate | P28: =F7/P20 -> 25 | Q28: =(F7-F7)/Q20 ->  | R28: =(F8-F7)/R20 -> 124 | S28: =(F8-F8)/S20 ->  | T28: =(F9-F8)/T20 -> 5399 | U28: =(F9-F9)/U20 -> 

Sheet !M92190B.AXT
A1: Report for:!M92190B.AXT
A2: Date: | B2: <date>
A3: Hen: | B3: <hen> | F3: Correct Sequence | G3: =Start!J2 -> 221 | P3: Total Sequences in Data | Q3: =4994-COUNTBLANK(L7:L5000) -> 2 | V3: Total Sequences in Block Data | W3: =COUNTA(L6:L7) -> 2 | AA3: Total Sequences in Block Data | AB3: =COUNTA(L7:L7) -> 1 | AF3: Total Sequences in Block Data | AG3: =COUNTA(L7:L8) -> 2 | AK3: Total Sequences in Block Data | AL3: =COUNTA(L7:L8) -> 2 | AP3: Total Sequences in Block Data | AQ3: =COUNTA(L8:L8) -> 1 | AU3: Total Sequences in Block Data | AV3: =COUNTA(L8:L9) -> 1
P4: Total Sequences in Summary | Q4: =SUM(O7:O14) -> 1 | V4: Total Sequences in Block Summary | W4: =SUM(U7:U14) -> 1 | AA4: Total Sequences in Block Summary | AB4: =SUM(Z7:Z14) -> 1 | AF4: Total Sequences in Block Summary | AG4: =SUM(AE7:AE14) -> 1 | AK4: Total Sequences in Block Summary | AL4: =SUM(AJ7:AJ14) -> 1 | AP4: Total Sequences in Block Summary | AQ4: =SUM(AO7:AO14) -> 0 | AU4: Total Sequences in Block Summary | AV4: =SUM(AT7:AT14) -> 0
T5: Block 1 | Y5: Block 2 | AD5: Block 3 | AI5: Block 4 | AN5: Block 5 | AS5: Block 6
A6: Sequence Component 1 | B6: Time 1 | C6: Sequence Component 2 | D6: Time 2 | E6: Sequence Component 3 | F6: Time 3 | G6: Sequence Component 4 | H6: Time 4 | I6: Sequence Component 5 | J6: Time 5 | K6: Correct? 0=No 1=Yes | L6: Sequence | N6: Frequency | P6: Relative Frequency | Q6: Variability | T6: Frequency | V6: Relative Frequency | W6: Variability | Y6: Frequency | AA6: Relative Frequency | AB6: Variability | AD6: Frequency | AF6: Relative Frequency | AG6: Variability | AI6: Frequency | AK6: Relative Frequency | AL6: Variability | AN6: Frequency | AP6: Relative Frequency | AQ6: Variability | AS6: Frequency | AU6: Relative Frequency | AV6: Variability
A7: 22 | B7: 477 | C7: 23 | D7: 480 | E7: 24 | F7: 2892 | K7: 0 | L7: 222 | N7: 111 | O7: =COUNTIF($L$7:$L$500,N7) -> 0 | P7: =O7/$Q$4 -> 0 | Q7: =IF(P7=0,0,(P7*((LOG(P7))/LOG(2)))) -> 0 | T7: =N7 -> 111 | U7: =COUNTIF(L6:L7,T7) -> 0 | V7: =U7/(W4-U13) -> 0 | W7: =IF(V7=0,0,(V7*((LOG(V7))/LOG(2)))) -> 0 | Y7: =N7 -> 111 | Z7: =COUNTIF(L7:L7,Y7) -> 0 | AA7: =Z7/(AB4-Z13) -> 0 | AB7: =IF(AA7=0,0,(AA7*((LOG(AA7))/LOG(2)))) -> 0 | AD7: =N7 -> 111 | AE7: =COUNTIF(L7:L8,AD7) -> 0 | AF7: =AE7/(AG4-AE13) -> 0 | AG7: =IF(AF7=0,0,(AF7*((LOG(AF7))/LOG(2)))) -> 0 | AI7: =N7 -> 111 | AJ7: =COUNTIF(L7:L8,AI7) -> 0 | AK7: =AJ7/(AL4-AJ13) -> 0 | AL7: =IF(AK7=0,0,(AK7*((LOG(AK7))/LOG(2)))) -> 0 | AN7: =N7 -> 111 | AO7: =COUNTIF(L8:L8,AN7) -> 0 | AP7: =AO7/(AQ4-AO13) ->  | AQ7: =IF(AP7=0,0,(AP7*((LOG(AP7))/LOG(2)))) ->  | AS7: =N7 -> 111 | AT7: =COUNTIF(L8:L9,AS7) -> 0 | AU7: =AT7/(AV4-AT13) ->  | AV7: =IF(AU7=0,0,(AU7*((LOG(AU7))/LOG(2)))) -> 
A8: 22 | B8: 17835 | L8: 2 | N8: 112 | O8: 0 | P8: 0 | Q8: 0 | T8: 112 | U8: =COUNTIF(L6:L7,T8) -> 0 | V8: =U8/(W4-U13) -> 0 | W8: 0 | Y8: 112 | Z8: =COUNTIF(L7:L7,Y8) -> 0 | AA8: =Z8/(AB4-Z13) -> 0 | AB8: 0 | AD8: 112 | AE8: =COUNTIF(L7:L8,AD8) -> 0 | AF8: =AE8/(AG4-AE13) -> 0 | AG8: 0 | AI8: 112 | AJ8: =COUNTIF(L7:L8,AI8) -> 0 | AK8: =AJ8/(AL4-AJ13) -> 0 | AL8: 0 | AN8: 112 | AO8: =COUNTIF(L8:L8,AN8) -> 0 | AP8: =AO8/(AQ4-AO13) ->  | AS8: 112 | AT8: =COUNTIF(L8:L9,AS8) -> 0 | AU8: =AT8/(AV4-AT13) -> 
N9: 121 | O9: 0 | P9: 0 | Q9: 0 | T9: 121 | U9: =COUNTIF(L6:L7,T9) -> 0 | V9: =U9/(W4-U13) -> 0 | W9: 0 | Y9: 121 | Z9: =COUNTIF(L7:L7,Y9) -> 0 | AA9: =Z9/(AB4-Z13) -> 0 | AB9: 0 | AD9: 121 | AE9: =COUNTIF(L7:L8,AD9) -> 0 | AF9: =AE9/(AG4-AE13) -> 0 | AG9: 0 | AI9: 121 | AJ9: =COUNTIF(L7:L8,AI9) -> 0 | AK9: =AJ9/(AL4-AJ13) -> 0 | AL9: 0 | AN9: 121 | AO9: =COUNTIF(L8:L8,AN9) -> 0 | AP9: =AO9/(AQ4-AO13) ->  | AS9: 121 | AT9: =COUNTIF(L8:L9,AS9) -> 0 | AU9: =AT9/(AV4-AT13) -> 
N10: 122 | O10: 0 | P10: 0 | Q10: 0 | T10: 122 | U10: =COUNTIF(L6:L7,T10) -> 0 | V10: =U10/(W4-U13) -> 0 | W10: 0 | Y10: 122 | Z10: =COUNTIF(L7:L7,Y10) -> 0 | AA10: =Z10/(AB4-Z13) -> 0 | AB10: 0 | AD10: 122 | AE10: =COUNTIF(L7:L8,AD10) -> 0 | AF10: =AE10/(AG4-AE13) -> 0 | AG10: 0 | AI10: 122 | AJ10: =COUNTIF(L7:L8,AI10) -> 0 | AK10: =AJ10/(AL4-AJ13) -> 0 | AL10: 0 | AN10: 122 | AO10: =COUNTIF(L8:L8,AN10) -> 0 | AP10: =AO10/(AQ4-AO13) ->  | AS10: 122 | AT10: =COUNTIF(L8:L9,AS10) -> 0 | AU10: =AT10/(AV4-AT13) -> 
N11: 211 | O11: 0 | P11: 0 | Q11: 0 | T11: 211 | U11: =COUNTIF(L6:L7,T11) -> 0 | V11: =U11/(W4-U13) -> 0 | W11: 0 | Y11: 211 | Z11: =COUNTIF(L7:L7,Y11) -> 0 | AA11: =Z11/(AB4-Z13) -> 0 | AB11: 0 | AD11: 211 | AE11: =COUNTIF(L7:L8,AD11) -> 0 | AF11: =AE11/(AG4-AE13) -> 0 | AG11: 0 | AI11: 211 | AJ11: =COUNTIF(L7:L8,AI11) -> 0 | AK11: =AJ11/(AL4-AJ13) -> 0 | AL11: 0 | AN11: 211 | AO11: =COUNTIF(L8:L8,AN11) -> 0 | AP11: =AO11/(AQ4-AO13) ->  | AS11: 211 | AT11: =COUNTIF(L8:L9,AS11) -> 0 | AU11: =AT11/(AV4-AT13) -> 
N12: 212 | O12: 0 | P12: 0 | Q12: 0 | T12: 212 | U12: =COUNTIF(L6:L7,T12) -> 0 | V12: =U12/(W4-U13) -> 0 | W12: 0 | Y12: 212 | Z12: =COUNTIF(L7:L7,Y12) -> 0 | AA12: =Z12/(AB4-Z13) -> 0 | AB12: 0 | AD12: 212 | AE12: =COUNTIF(L7:L8,AD12) -> 0 | AF12: =AE12/(AG4-AE13) -> 0 | AG12: 0 | AI12: 212 | AJ12: =COUNTIF(L7:L8,AI12) -> 0 | AK12: =AJ12/(AL4-AJ13) -> 0 | AL12: 0 | AN12: 212 | AO12: =COUNTIF(L8:L8,AN12) -> 0 | AP12: =AO12/(AQ4-AO13) ->  | AS12: 212 | AT12: =COUNTIF(L8:L9,AS12) -> 0 | AU12: =AT12/(AV4-AT13) -> 
N13: 221 | O13: 0 | P13: 0 | Q13: 0 | T13: 221 | U13: =COUNTIF(L6:L7,T13) -> 0 | Y13: 221 | Z13: =COUNTIF(L7:L7,Y13) -> 0 | AD13: 221 | AE13: =COUNTIF(L7:L8,AD13) -> 0 | AI13: 221 | AJ13: =COUNTIF(L7:L8,AI13) -> 0 | AN13: 221 | AO13: =COUNTIF(L8:L8,AN13) -> 0 | AS13: 221 | AT13: =COUNTIF(L8:L9,AS13) -> 0
N14: 222 | O14: 1 | P14: 1 | Q14: 0 | T14: 222 | U14: =COUNTIF(L6:L7,T14) -> 1 | V14: =U14/(W4-U13) -> 1 | W14: =IF(V14=0,0,(V14*((LOG(V14))/LOG(2)))) -> 0 | Y14: 222 | Z14: =COUNTIF(L7:L7,Y14) -> 1 | AA14: =Z14/(AB4-Z13) -> 1 | AB14: =IF(AA14=0,0,(AA14*((LOG(AA14))/LOG(2)))) -> 0 | AD14: 222 | AE14: =COUNTIF(L7:L8,AD14) -> 1 | AF14: =AE14/(AG4-AE13) -> 1 | AG14: =IF(AF14=0,0,(AF14*((LOG(AF14))/LOG(2)))) -> 0 | AI14: 222 | AJ14: =COUNTIF(L7:L8,AI14) -> 1 | AK14: =AJ14/(AL4-AJ13) -> 1 | AL14: =IF(AK14=0,0,(AK14*((LOG(AK14))/LOG(2)))) -> 0 | AN14: 222 | AO14: =COUNTIF(L8:L8,AN14) -> 0 | AP14: =AO14/(AQ4-AO13) ->  | AQ14: =IF(AP14=0,0,(AP14*((LOG(AP14))/LOG(2)))) ->  | AS14: 222 | AT14: =COUNTIF(L8:L9,AS14) -> 0 | AU14: =AT14/(AV4-AT13) ->  | AV14: =IF(AU14=0,0,(AU14*((LOG(AU14))/LOG(2)))) -> 
P15: =SUM(P7:P14) -> 1 | Q15: =-SUM(Q7:Q14) -> 0 | V15: =SUM(V7:V14) -> 1 | W15: =-SUM(W7:W14) -> 0 | AA15: =SUM(AA7:AA14) -> 1 | AB15: =-SUM(AB7:AB14) -> 0 | AF15: =SUM(AF7:AF14) -> 1 | AG15: =-SUM(AG7:AG14) -> 0 | AK15: =SUM(AK7:AK14) -> 1 | AL15: =-SUM(AL7:AL14) -> 0 | AP15: =SUM(AP7:AP14) ->  | AQ15: =-SUM(AQ7:AQ14) ->  | AU15: =SUM(AU7:AU14) ->  | AV15: =-SUM(AV7:AV14) -> 
P16: U= | Q16: =Q15/(LOG(Q4)/LOG(2)) ->  | V16: U1= | W16: =W15/(LOG(W4)/LOG(2)) ->  | AA16: U2= | AB16: =AB15/(LOG(AB4)/LOG(2)) ->  | AF16: U3= | AG16: =AG15/(LOG(AG4)/LOG(2)) ->  | AK16: U4= | AL16: =AL15/(LOG(AL4)/LOG(2)) ->  | AP16: U5= | AQ16: =AQ15/(LOG(AQ4)/LOG(2)) ->  | AU16: U6= | AV16: =AV15/(LOG(AV4)/LOG(2)) -> 
N19: Total Target Seq
N20: =COUNTIF(L7:L8,G3) -> 0 | P20: 0 | Q20: 1 | R20: 0 | S20: 0 | T20: 1 | U20: 0
P21: % of reinforcement given in 6 equal intervals based on number of trials
P22: %_1 | Q22: %_2 | R22: %_3 | S22: %_4 | T22: %_5 | U22: %_6
O23: target sequence | P23: =$G$3 -> 221 | Q23: 221 | R23: 221 | S23: 221 | T23: 221 | U23: 221
O24: total reinforcement | P24: =U13 -> 0 | Q24: =Z13 -> 0 | R24: =AE13 -> 0 | S24: =AJ13 -> 0 | T24: =AO13 -> 0 | U24: =AT13 -> 0
O25: % target
O26: CCRF
O27: % CCRf
O28: average response rate | P28: =F6/P20 ->  | Q28: =(F7-F6)/Q20 ->  | R28: =(F7-F7)/R20 ->  | S28: =(F7-F7)/S20 ->  | T28: =(F8-F7)/T20 -> -2892 | U28: =(F8-F8)/U20 -> 

Sheet !M922B2B.AXT
A1: Report for:!M922B2B.AXT
A2: Date: | B2: <date>
A3: Hen: | B3: <hen> | F3: Correct Sequence | G3: =Start!J2 -> 221 | P3: Total Sequences in Data | Q3: =4994-COUNTBLANK(L7:L5000) -> 5 | V3: Total Sequences in Block Data | W3: =COUNTA(L7:L7) -> 1 | AA3: Total Sequences in Block Data | AB3: =COUNTA(L8:L8) -> 1 | AF3: Total Sequences in Block Data | AG3: =COUNTA(L8:L9) -> 2 | AK3: Total Sequences in Block Data | AL3: =COUNTA(L9:L9) -> 1 | AP3: Total Sequences in Block Data | AQ3: =COUNTA(L10:L10) -> 1 | AU3: Total Sequences in Block Data | AV3: =COUNTA(L11:L11) -> 1
P4: Total Sequences in Summary | Q4: =SUM(O7:O14) -> 5 | V4: Total Sequences in Block Summary | W4: =SUM(U7:U14) -> 1 | AA4: Total Sequences in Block Summary | AB4: =SUM(Z7:Z14) -> 1 | AF4: Total Sequences in Block Summary | AG4: =SUM(AE7:AE14) -> 2 | AK4: Total Sequences in Block Summary | AL4: =SUM(AJ7:AJ14) -> 1 | AP4: Total Sequences in Block Summary | AQ4: =SUM(AO7:AO14) -> 1 | AU4: Total Sequences in Block Summary | AV4: =SUM(AT7:AT14) -> 1
T5: Block 1 | Y5: Block 2 | AD5: Block 3 | AI5: Block 4 | AN5: Block 5 | AS5: Block 6
A6: Sequence Component 1 | B6: Time 1 | C6: Sequence Component 2 | D6: Time 2 | E6: Sequence Component 3 | F6: Time 3 | G6: Sequence Component 4 | H6: Time 4 | I6: Sequence Component 5 | J6: Time 5 | K6: Correct? 0=No 1=Yes | L6: Sequence | N6: Frequency | P6: Relative Frequency | Q6: Variability | T6: Frequency | V6: Relative Frequency | W6: Variability | Y6: Frequency | AA6: Relative Frequency | AB6: Variability | AD6: Frequency | AF6: Relative Frequency | AG6: Variability | AI6: Frequency | AK6: Relative Frequency | AL6: Variability | AN6: Frequency | AP6: Relative Frequency | AQ6: Variability | AS6: Frequency | AU6: Relative Frequency | AV6: Variability
A7: 21 | B7: 44 | C7: 21 | D7: 53 | E7: 22 | F7: 65 | K7: 0 | L7: 222 | N7: 111 | O7: =COUNTIF($L$7:$L$500,N7) -> 0 | P7: =O7/$Q$4 -> 0 | Q7: =IF(P7=0,0,(P7*((LOG(P7))/LOG(2)))) -> 0 | T7: =N7 -> 111 | U7: =COUNTIF(L7:L7,T7) -> 0 | V7: =U7/(W4-U13) -> 0 | W7: =IF(V7=0,0,(V7*((LOG(V7))/LOG(2)))) -> 0 | Y7: =N7 -> 111 | Z7: =COUNTIF(L8:L8,Y7) -> 0 | AA7: =Z7/(AB4-Z13) ->  | AB7: =IF(AA7=0,0,(AA7*((LOG(AA7))/LOG(2)))) ->  | AD7: =N7 -> 111 | AE7: =COUNTIF(L8:L9,AD7) -> 0 | AF7: =AE7/(AG4-AE13) -> 0 | AG7: =IF(AF7=0,0,(AF7*((LOG(AF7))/LOG(2)))) -> 0 | AI7: =N7 -> 111 | AJ7: =COUNTIF(L9:L9,AI7) -> 0 | AK7: =AJ7/(AL4-AJ13) -> 0 | AL7: =IF(AK7=0,0,(AK7*((LOG(AK7))/LOG(2)))) -> 0 | AN7: =N7 -> 111 | AO7: =COUNTIF(L10:L10,AN7) -> 0 | AP7: =AO7/(AQ4-AO13) -> 0 | AQ7: =IF(AP7=0,0,(AP7*((LOG(AP7))/LOG(2)))) -> 0 | AS7: =N7 -> 111 | AT7: =COUNTIF(L11:L11,AS7) -> 0 | AU7: =AT7/(AV4-AT13) -> 0 | AV7: =IF(AU7=0,0,(AU7*((LOG(AU7))/LOG(2)))) -> 0
A8: 21 | B8: 776 | C8: 21 | D8: 16488 | E8: 11 | F8: 21119 | K8: 0 | L8: 221 | N8: 112 | O8: 0 | P8: 0 | Q8: 0 | T8: 112 | U8: =COUNTIF(L7:L7,T8) -> 0 | V8: =U8/(W4-U13) -> 0 | W8: 0 | Y8: 112 | Z8: =COUNTIF(L8:L8,Y8) -> 0 | AA8: =Z8/(AB4-Z13) ->  | AD8: 112 | AE8: =COUNTIF(L8:L9,AD8) -> 0 | AF8: =AE8/(AG4-AE13) -> 0 | AG8: 0 | AI8: 112 | AJ8: =COUNTIF(L9:L9,AI8) -> 0 | AK8: =AJ8/(AL4-AJ13) -> 0 | AL8: 0 | AN8: 112 | AO8: =COUNTIF(L10:L10,AN8) -> 0 | AP8: =AO8/(AQ4-AO13) -> 0 | AQ8: 0 | AS8: 112 | AT8: =COUNTIF(L11:L11,AS8) -> 0 | AU8: =AT8/(AV4-AT13) -> 0 | AV8: 0
A9: 21 | B9: 21226 | C9: 21 | D9: 21243 | E9: 22 | F9: 21251 | K9: 0 | L9: 222 | N9: 121 | O9: 0 | P9: 0 | Q9: 0 | T9: 121 | U9: =COUNTIF(L7:L7,T9) -> 0 | V9: =U9/(W4-U13) -> 0 | W9: 0 | Y9: 121 | Z9: =COUNTIF(L8:L8,Y9) -> 0 | AA9: =Z9/(AB4-Z13) ->  | AD9: 121 | AE9: =COUNTIF(L8:L9,AD9) -> 0 | AF9: =AE9/(AG4-AE13) -> 0 | AG9: 0 | AI9: 121 | AJ9: =COUNTIF(L9:L9,AI9) -> 0 | AK9: =AJ9/(AL4-AJ13) -> 0 | AL9: 0 | AN9: 121 | AO9: =COUNTIF(L10:L10,AN9) -> 0 | AP9: =AO9/(AQ4-AO13) -> 0 | AQ9: 0 | AS9: 121 | AT9: =COUNTIF(L11:L11,AS9) -> 0 | AU9: =AT9/(AV4-AT13) -> 0 | AV9: 0
A10: 21 | B10: 21375 | C10: 21 | D10: 21383 | E10: 22 | F10: 21391 | K10: 0 | L10: 222 | N10: 122 | O10: 0 | P10: 0 | Q10: 0 | T10: 122 | U10: =COUNTIF(L7:L7,T10) -> 0 | V10: =U10/(W4-U13) -> 0 | W10: 0 | Y10: 122 | Z10: =COUNTIF(L8:L8,Y10) -> 0 | AA10: =Z10/(AB4-Z13) ->  | AD10: 122 | AE10: =COUNTIF(L8:L9,AD10) -> 0 | AF10: =AE10/(AG4-AE13) -> 0 | AG10: 0 | AI10: 122 | AJ10: =COUNTIF(L9:L9,AI10) -> 0 | AK10: =AJ10/(AL4-AJ13) -> 0 | AL10: 0 | AN10: 122 | AO10: =COUNTIF(L10:L10,AN10) -> 0 | AP10: =AO10/(AQ4-AO13) -> 0 | AQ10: 0 | AS10: 122 | AT10: =COUNTIF(L11:L11,AS10) -> 0 | AU10: =AT10/(AV4-AT13) -> 0 | AV10: 0
A11: 21 | B11: 21568 | C11: 12 | D11: 21595 | E11: 13 | F11: 21599 | K11: 0 | L11: 211 | N11: 211 | O11: 1 | P11: 0.2 | Q11: -0.464385619 | T11: 211 | U11: =COUNTIF(L7:L7,T11) -> 0 | V11: =U11/(W4-U13) -> 0 | W11: 0 | Y11: 211 | Z11: =COUNTIF(L8:L8,Y11) -> 0 | AA11: =Z11/(AB4-Z13) ->  | AD11: 211 | AE11: =COUNTIF(L8:L9,AD11) -> 0 | AF11: =AE11/(AG4-AE13) -> 0 | AG11: 0 | AI11: 211 | AJ11: =COUNTIF(L9:L9,AI11) -> 0 | AK11: =AJ11/(AL4-AJ13) -> 0 | AL11: 0 | AN11: 211 | AO11: =COUNTIF(L10:L10,AN11) -> 0 | AP11: =AO11/(AQ4-AO13) -> 0 | AQ11: 0 | AS11: 211 | AT11: =COUNTIF(L11:L11,AS11) -> 1 | AU11: =AT11/(AV4-AT13) -> 1 | AV11: 0
N12: 212 | O12: 0 | P12: 0 | Q12: 0 | T12: 212 | U12: =COUNTIF(L7:L7,T12) -> 0 | V12: =U12/(W4-U13) -> 0 | W12: 0 | Y12: 212 | Z12: =COUNTIF(L8:L8,Y12) -> 0 | AA12: =Z12/(AB4-Z13) ->  | AD12: 212 | AE12: =COUNTIF(L8:L9,AD12) -> 0 | AF12: =AE12/(AG4-AE13) -> 0 | AG12: 0 | AI12: 212 | AJ12: =COUNTIF(L9:L9,AI12) -> 0 | AK12: =AJ12/(AL4-AJ13) -> 0 | AL12: 0 | AN12: 212 | AO12: =COUNTIF(L10:L10,AN12) -> 0 | AP12: =AO12/(AQ4-AO13) -> 0 | AQ12: 0 | AS12: 212 | AT12: =COUNTIF(L11:L11,AS12) -> 0 | AU12: =AT12/(AV4-AT13) -> 0 | AV12: 0
N13: 221 | O13: 1 | P13: 0.2 | Q13: -0.464385619 | T13: 221 | U13: =COUNTIF(L7:L7,T13) -> 0 | Y13: 221 | Z13: =COUNTIF(L8:L8,Y13) -> 1 | AD13: 221 | AE13: =COUNTIF(L8:L9,AD13) -> 1 | AI13: 221 | AJ13: =COUNTIF(L9:L9,AI13) -> 0 | AN13: 221 | AO13: =COUNTIF(L10:L10,AN13) -> 0 | AS13: 221 | AT13: =COUNTIF(L11:L11,AS13) -> 0
N14: 222 | O14: 3 | P14: 0.6 | Q14: -0.4421793565 | T14: 222 | U14: =COUNTIF(L7:L7,T14) -> 1 | V14: =U14/(W4-U13) -> 1 | W14: =IF(V14=0,0,(V14*((LOG(V14))/LOG(2)))) -> 0 | Y14: 222 | Z14: =COUNTIF(L8:L8,Y14) -> 0 | AA14: =Z14/(AB4-Z13) ->  | AB14: =IF(AA14=0,0,(AA14*((LOG(AA14))/LOG(2)))) ->  | AD14: 222 | AE14: =COUNTIF(L8:L9,AD14) -> 1 | AF14: =AE14/(AG4-AE13) -> 1 | AG14: =IF(AF14=0,0,(AF14*((LOG(AF14))/LOG(2)))) -> 0 | AI14: 222 | AJ14: =COUNTIF(L9:L9,AI14) -> 1 | AK14: =AJ14/(AL4-AJ13) -> 1 | AL14: =IF(AK14=0,0,(AK14*((LOG(AK14))/LOG(2)))) -> 0 | AN14: 222 | AO14: =COUNTIF(L10:L10,AN14) -> 1 | AP14: =AO14/(AQ4-AO13) -> 1 | AQ14: =IF(AP14=0,0,(AP14*((LOG(AP14))/LOG(2)))) -> 0 | AS14: 222 | AT14: =COUNTIF(L11:L11,AS14) -> 0 | AU14: =AT14/(AV4-AT13) -> 0 | AV14: =IF(AU14=0,0,(AU14*((LOG(AU14))/LOG(2)))) -> 0
P15: =SUM(P7:P14) -> 1 | Q15: =-SUM(Q7:Q14) -> 1.370950594 | V15: =SUM(V7:V14) -> 1 | W15: =-SUM(W7:W14) -> 0 | AA15: =SUM(AA7:AA14) ->  | AB15: =-SUM(AB7:AB14) ->  | AF15: =SUM(AF7:AF14) -> 1 | AG15: =-SUM(AG7:AG14) -> 0 | AK15: =SUM(AK7:AK14) -> 1 | AL15: =-SUM(AL7:AL14) -> 0 | AP15: =SUM(AP7:AP14) -> 1 | AQ15: =-SUM(AQ7:AQ14) -> 0 | AU15: =SUM(AU7:AU14) -> 1 | AV15: =-SUM(AV7:AV14) -> 0
P16: U= | Q16: =Q15/(LOG(Q4)/LOG(2)) -> 0.5904362833 | V16: U1= | W16: =W15/(LOG(W4)/LOG(2)) ->  | AA16: U2= | AB16: =AB15/(LOG(AB4)/LOG(2)) ->  | AF16: U3= | AG16: =AG15/(LOG(AG4)/LOG(2)) -> 0 | AK16: U4= | AL16: =AL15/(LOG(AL4)/LOG(2)) ->  | AP16: U5= | AQ16: =AQ15/(LOG(AQ4)/LOG(2)) ->  | AU16: U6= | AV16: =AV15/(LOG(AV4)/LOG(2)) -> 
N19: Total Target Seq
N20: =COUNTIF(L7:L11,G3) -> 1 | P20: 1 | Q20: 1 | R20: 0 | S20: 1 | T20: 1 | U20: 1
P21: % of reinforcement given in 6 equal intervals based on number of trials
P22: %_1 | Q22: %_2 | R22: %_3 | S22: %_4 | T22: %_5 | U22: %_6
O23: target sequence | P23: =$G$3 -> 221 | Q23: 221 | R23: 221 | S23: 221 | T23: 221 | U23: 221
O24: total reinforcement | P24: =U13 -> 0 | Q24: =Z13 -> 1 | R24: =AE13 -> 1 | S24: =AJ13 -> 0 | T24: =AO13 -> 0 | U24: =AT13 -> 0
O25: % target
O26: CCRF
O27: % CCRf
O28: average response rate | P28: =F7/P20 -> 65 | Q28: =(F8-F7)/Q20 -> 21054 | R28: =(F8-F8)/R20 ->  | S28: =(F9-F8)/S20 -> 132 | T28: =(F10-F9)/T20 -> 140 | U28: =(F11-F10)/U20 -> 208

Sheet !M922C1B.AXT
A1: Report for:!M922C1B.AXT
A2: Date: | B2: <date>
A3: Hen: | B3: <hen> | F3: Correct Sequence | G3: =Start!J2 -> 221 | P3: Total Sequences in Data | Q3: =4994-COUNTBLANK(L7:L5000) -> 0 | V3: Total Sequences in Block Data | W3: =COUNTA(L6:L7) -> 1 | AA3: Total Sequences in Block Data | AB3: =COUNTA(L6:L7) -> 1 | AF3: Total Sequences in Block Data | AG3: =COUNTA(L6:L7) -> 1 | AK3: Total Sequences in Block Data | AL3: =COUNTA(L6:L7) -> 1 | AP3: Total Sequences in Block Data | AQ3: =COUNTA(L6:L7) -> 1 | AU3: Total Sequences in Block Data | AV3: =COUNTA(L6:L7) -> 1
P4: Total Sequences in Summary | Q4: =SUM(O7:O14) -> 0 | V4: Total Sequences in Block Summary | W4: =SUM(U7:U14) -> 0 | AA4: Total Sequences in Block Summary | AB4: =SUM(Z7:Z14) -> 0 | AF4: Total Sequences in Block Summary | AG4: =SUM(AE7:AE14) -> 0 | AK4: Total Sequences in Block Summary | AL4: =SUM(AJ7:AJ14) -> 0 | AP4: Total Sequences in Block Summary | AQ4: =SUM(AO7:AO14) -> 0 | AU4: Total Sequences in Block Summary | AV4: =SUM(AT7:AT14) -> 0
T5: Block 1 | Y5: Block 2 | AD5: Block 3 | AI5: Block 4 | AN5: Block 5 | AS5: Block 6
A6: Sequence Component 1 | B6: Time 1 | C6: Sequence Component 2 | D6: Time 2 | E6: Sequence Component 3 | F6: Time 3 | G6: Sequence Component 4 | H6: Time 4 | I6: Sequence Component 5 | J6: Time 5 | K6: Correct? 0=No 1=Yes | L6: Sequence | N6: Frequency | P6: Relative Frequency | Q6: Variability | T6: Frequency | V6: Relative Frequency | W6: Variability | Y6: Frequency | AA6: Relative Frequency | AB6: Variability | AD6: Frequency | AF6: Relative Frequency | AG6: Variability | AI6: Frequency | AK6: Relative Frequency | AL6: Variability | AN6: Frequency | AP6: Relative Frequency | AQ6: Variability | AS6: Frequency | AU6: Relative Frequency | AV6: Variability
N7: 111 | O7: =COUNTIF($L$7:$L$500,N7) -> 0 | P7: =O7/$Q$4 ->  | Q7: =IF(P7=0,0,(P7*((LOG(P7))/LOG(2)))) ->  | T7: =N7 -> 111 | U7: =COUNTIF(L6:L7,T7) -> 0 | V7: =U7/(W4-U13) ->  | W7: =IF(V7=0,0,(V7*((LOG(V7))/LOG(2)))) ->  | Y7: =N7 -> 111 | Z7: =COUNTIF(L6:L7,Y7) -> 0 | AA7: =Z7/(AB4-Z13) ->  | AB7: =IF(AA7=0,0,(AA7*((LOG(AA7))/LOG(2)))) ->  | AD7: =N7 -> 111 | AE7: =COUNTIF(L6:L7,AD7) -> 0 | AF7: =AE7/(AG4-AE13) ->  | AG7: =IF(AF7=0,0,(AF7*((LOG(AF7))/LOG(2)))) ->  | AI7: =N7 -> 111 | AJ7: =COUNTIF(L6:L7,AI7) -> 0 | AK7: =AJ7/(AL4-AJ13) ->  | AL7: =IF(AK7=0,0,(AK7*((LOG(AK7))/LOG(2)))) ->  | AN7: =N7 -> 111 | AO7: =COUNTIF(L6:L7,AN7) -> 0 | AP7: =AO7/(AQ4-AO13) ->  | AQ7: =IF(AP7=0,0,(AP7*((LOG(AP7))/LOG(2)))) ->  | AS7: =N7 -> 111 | AT7: =COUNTIF(L6:L7,AS7) -> 0 | AU7: =AT7/(AV4-AT13) ->  | AV7: =IF(AU7=0,0,(AU7*((LOG(AU7))/LOG(2)))) -> 
N8: 112 | O8: 0 | T8: 112 | U8: =COUNTIF(L6:L7,T8) -> 0 | V8: =U8/(W4-U13) ->  | Y8: 112 | Z8: =COUNTIF(L6:L7,Y8) -> 0 | AA8: =Z8/(AB4-Z13) ->  | AD8: 112 | AE8: =COUNTIF(L6:L7,AD8) -> 0 | AF8: =AE8/(AG4-AE13) ->  | AI8: 112 | AJ8: =COUNTIF(L6:L7,AI8) -> 0 | AK8: =AJ8/(AL4-AJ13) ->  | AN8: 112 | AO8: =COUNTIF(L6:L7,AN8) -> 0 | AP8: =AO8/(AQ4-AO13) ->  | AS8: 112 | AT8: =COUNTIF(L6:L7,AS8) -> 0 | AU8: =AT8/(AV4-AT13) -> 
N9: 121 | O9: 0 | T9: 121 | U9: =COUNTIF(L6:L7,T9) -> 0 | V9: =U9/(W4-U13) ->  | Y9: 121 | Z9: =COUNTIF(L6:L7,Y9) -> 0 | AA9: =Z9/(AB4-Z13) ->  | AD9: 121 | AE9: =COUNTIF(L6:L7,AD9) -> 0 | AF9: =AE9/(AG4-AE13) ->  | AI9: 121 | AJ9: =COUNTIF(L6:L7,AI9) -> 0 | AK9: =AJ9/(AL4-AJ13) ->  | AN9: 121 | AO9: =COUNTIF(L6:L7,AN9) -> 0 | AP9: =AO9/(AQ4-AO13) ->  | AS9: 121 | AT9: =COUNTIF(L6:L7,AS9) -> 0 | AU9: =AT9/(AV4-AT13) -> 
N10: 122 | O10: 0 | T10: 122 | U10: =COUNTIF(L6:L7,T10) -> 0 | V10: =U10/(W4-U13) ->  | Y10: 122 | Z10: =COUNTIF(L6:L7,Y10) -> 0 | AA10: =Z10/(AB4-Z13) ->  | AD10: 122 | AE10: =COUNTIF(L6:L7,AD10) -> 0 | AF10: =AE10/(AG4-AE13) ->  | AI10: 122 | AJ10: =COUNTIF(L6:L7,AI10) -> 0 | AK10: =AJ10/(AL4-AJ13) ->  | AN10: 122 | AO10: =COUNTIF(L6:L7,AN10) -> 0 | AP10: =AO10/(AQ4-AO13) ->  | AS10: 122 | AT10: =COUNTIF(L6:L7,AS10) -> 0 | AU10: =AT10/(AV4-AT13) -> 
N11: 211 | O11: 0 | T11: 211 | U11: =COUNTIF(L6:L7,T11) -> 0 | V11: =U11/(W4-U13) ->  | Y11: 211 | Z11: =COUNTIF(L6:L7,Y11) -> 0 | AA11: =Z11/(AB4-Z13) ->  | AD11: 211 | AE11: =COUNTIF(L6:L7,AD11) -> 0 | AF11: =AE11/(AG4-AE13) ->  | AI11: 211 | AJ11: =COUNTIF(L6:L7,AI11) -> 0 | AK11: =AJ11/(AL4-AJ13) ->  | AN11: 211 | AO11: =COUNTIF(L6:L7,AN11) -> 0 | AP11: =AO11/(AQ4-AO13) ->  | AS11: 211 | AT11: =COUNTIF(L6:L7,AS11) -> 0 | AU11: =AT11/(AV4-AT13) -> 
N12: 212 | O12: 0 | T12: 212 | U12: =COUNTIF(L6:L7,T12) -> 0 | V12: =U12/(W4-U13) ->  | Y12: 212 | Z12: =COUNTIF(L6:L7,Y12) -> 0 | AA12: =Z12/(AB4-Z13) ->  | AD12: 212 | AE12: =COUNTIF(L6:L7,AD12) -> 0 | AF12: =AE12/(AG4-AE13) ->  | AI12: 212 | AJ12: =COUNTIF(L6:L7,AI12) -> 0 | AK12: =AJ12/(AL4-AJ13) ->  | AN12: 212 | AO12: =COUNTIF(L6:L7,AN12) -> 0 | AP12: =AO12/(AQ4-AO13) ->  | AS12: 212 | AT12: =COUNTIF(L6:L7,AS12) -> 0 | AU12: =AT12/(AV4-AT13) -> 
N13: 221 | O13: 0 | T13: 221 | U13: =COUNTIF(L6:L7,T13) -> 0 | Y13: 221 | Z13: =COUNTIF(L6:L7,Y13) -> 0 | AD13: 221 | AE13: =COUNTIF(L6:L7,AD13) -> 0 | AI13: 221 | AJ13: =COUNTIF(L6:L7,AI13) -> 0 | AN13: 221 | AO13: =COUNTIF(L6:L7,AN13) -> 0 | AS13: 221 | AT13: =COUNTIF(L6:L7,AS13) -> 0
N14: 222 | O14: 0 | T14: 222 | U14: =COUNTIF(L6:L7,T14) -> 0 | V14: =U14/(W4-U13) ->  | W14: =IF(V14=0,0,(V14*((LOG(V14))/LOG(2)))) ->  | Y14: 222 | Z14: =COUNTIF(L6:L7,Y14) -> 0 | AA14: =Z14/(AB4-Z13) ->  | AB14: =IF(AA14=0,0,(AA14*((LOG(AA14))/LOG(2)))) ->  | AD14: 222 | AE14: =COUNTIF(L6:L7,AD14) -> 0 | AF14: =AE14/(AG4-AE13) ->  | AG14: =IF(AF14=0,0,(AF14*((LOG(AF14))/LOG(2)))) ->  | AI14: 222 | AJ14: =COUNTIF(L6:L7,AI14) -> 0 | AK14: =AJ14/(AL4-AJ13) ->  | AL14: =IF(AK14=0,0,(AK14*((LOG(AK14))/LOG(2)))) ->  | AN14: 222 | AO14: =COUNTIF(L6:L7,AN14) -> 0 | AP14: =AO14/(AQ4-AO13) ->  | AQ14: =IF(AP14=0,0,(AP14*((LOG(AP14))/LOG(2)))) ->  | AS14: 222 | AT14: =COUNTIF(L6:L7,AS14) -> 0 | AU14: =AT14/(AV4-AT13) ->  | AV14: =IF(AU14=0,0,(AU14*((LOG(AU14))/LOG(2)))) -> 
P15: =SUM(P7:P14) ->  | Q15: =-SUM(Q7:Q14) ->  | V15: =SUM(V7:V14) ->  | W15: =-SUM(W7:W14) ->  | AA15: =SUM(AA7:AA14) ->  | AB15: =-SUM(AB7:AB14) ->  | AF15: =SUM(AF7:AF14) ->  | AG15: =-SUM(AG7:AG14) ->  | AK15: =SUM(AK7:AK14) ->  | AL15: =-SUM(AL7:AL14) ->  | AP15: =SUM(AP7:AP14) ->  | AQ15: =-SUM(AQ7:AQ14) ->  | AU15: =SUM(AU7:AU14) ->  | AV15: =-SUM(AV7:AV14) -> 
P16: U= | Q16: =Q15/(LOG(Q4)/LOG(2)) ->  | V16: U1= | W16: =W15/(LOG(W4)/LOG(2)) ->  | AA16: U2= | AB16: =AB15/(LOG(AB4)/LOG(2)) ->  | AF16: U3= | AG16: =AG15/(LOG(AG4)/LOG(2)) ->  | AK16: U4= | AL16: =AL15/(LOG(AL4)/LOG(2)) ->  | AP16: U5= | AQ16: =AQ15/(LOG(AQ4)/LOG(2)) ->  | AU16: U6= | AV16: =AV15/(LOG(AV4)/LOG(2)) -> 
N19: Total Target Seq
N20: =COUNTIF(L6:L7,G3) -> 0 | P20: 0 | Q20: 0 | R20: 0 | S20: 0 | T20: 0 | U20: 0
P21: % of reinforcement given in 6 equal intervals based on number of trials
P22: %_1 | Q22: %_2 | R22: %_3 | S22: %_4 | T22: %_5 | U22: %_6
O23: target sequence | P23: =$G$3 -> 221 | Q23: 221 | R23: 221 | S23: 221 | T23: 221 | U23: 221
O24: total reinforcement | P24: =U13 -> 0 | Q24: =Z13 -> 0 | R24: =AE13 -> 0 | S24: =AJ13 -> 0 | T24: =AO13 -> 0 | U24: =AT13 -> 0
O25: % target
O26: CCRF
O27: % CCRf
O28: average response rate | P28: =F6/P20 ->  | Q28: =(F6-F6)/Q20 ->  | R28: =(F6-F6)/R20 ->  | S28: =(F6-F6)/S20 ->  | T28: =(F6-F6)/T20 ->  | U28: =(F6-F6)/U20 -> 

Sheet !M923A0B.AXT
A1: Report for:!M923A0B.AXT
A2: Date: | B2: <date>
A3: Hen: | B3: <hen> | F3: Correct Sequence | G3: =Start!J2 -> 221 | P3: Total Sequences in Data | Q3: =4994-COUNTBLANK(L7:L5000) -> 2 | V3: Total Sequences in Block Data | W3: =COUNTA(L6:L7) -> 2 | AA3: Total Sequences in Block Data | AB3: =COUNTA(L7:L7) -> 1 | AF3: Total Sequences in Block Data | AG3: =COUNTA(L7:L8) -> 2 | AK3: Total Sequences in Block Data | AL3: =COUNTA(L7:L8) -> 2 | AP3: Total Sequences in Block Data | AQ3: =COUNTA(L8:L8) -> 1 | AU3: Total Sequences in Block Data | AV3: =COUNTA(L8:L9) -> 1
P4: Total Sequences in Summary | Q4: =SUM(O7:O14) -> 2 | V4: Total Sequences in Block Summary | W4: =SUM(U7:U14) -> 1 | AA4: Total Sequences in Block Summary | AB4: =SUM(Z7:Z14) -> 1 | AF4: Total Sequences in Block Summary | AG4: =SUM(AE7:AE14) -> 2 | AK4: Total Sequences in Block Summary | AL4: =SUM(AJ7:AJ14) -> 2 | AP4: Total Sequences in Block Summary | AQ4: =SUM(AO7:AO14) -> 1 | AU4: Total Sequences in Block Summary | AV4: =SUM(AT7:AT14) -> 1
T5: Block 1 | Y5: Block 2 | AD5: Block 3 | AI5: Block 4 | AN5: Block 5 | AS5: Block 6
A6: Sequence Component 1 | B6: Time 1 | C6: Sequence Component 2 | D6: Time 2 | E6: Sequence Component 3 | F6: Time 3 | G6: Sequence Component 4 | H6: Time 4 | I6: Sequence Component 5 | J6: Time 5 | K6: Correct? 0=No 1=Yes | L6: Sequence | N6: Frequency | P6: Relative Frequency | Q6: Variability | T6: Frequency | V6: Relative Frequency | W6: Variability | Y6: Frequency | AA6: Relative Frequency | AB6: Variability | AD6: Frequency | AF6: Relative Frequency | AG6: Variability | AI6: Frequency | AK6: Relative Frequency | AL6: Variability | AN6: Frequency | AP6: Relative Frequency | AQ6: Variability | AS6: Frequency | AU6: Relative Frequency | AV6: Variability
A7: 21 | B7: 43 | C7: 21 | D7: 53 | E7: 22 | F7: 57 | K7: 0 | L7: 222 | N7: 111 | O7: =COUNTIF($L$7:$L$500,N7) -> 0 | P7: =O7/$Q$4 -> 0 | Q7: =IF(P7=0,0,(P7*((LOG(P7))/LOG(2)))) -> 0 | T7: =N7 -> 111 | U7: =COUNTIF(L6:L7,T7) -> 0 | V7: =U7/(W4-U13) -> 0 | W7: =IF(V7=0,0,(V7*((LOG(V7))/LOG(2)))) -> 0 | Y7: =N7 -> 111 | Z7: =COUNTIF(L7:L7,Y7) -> 0 | AA7: =Z7/(AB4-Z13) -> 0 | AB7: =IF(AA7=0,0,(AA7*((LOG(AA7))/LOG(2)))) -> 0 | AD7: =N7 -> 111 | AE7: =COUNTIF(L7:L8,AD7) -> 0 | AF7: =AE7/(AG4-AE13) -> 0 | AG7: =IF(AF7=0,0,(AF7*((LOG(AF7))/LOG(2)))) -> 0 | AI7: =N7 -> 111 | AJ7: =COUNTIF(L7:L8,AI7) -> 0 | AK7: =AJ7/(AL4-AJ13) -> 0 | AL7: =IF(AK7=0,0,(AK7*((LOG(AK7))/LOG(2)))) -> 0 | AN7: =N7 -> 111 | AO7: =COUNTIF(L8:L8,AN7) -> 0 | AP7: =AO7/(AQ4-AO13) -> 0 | AQ7: =IF(AP7=0,0,(AP7*((LOG(AP7))/LOG(2)))) -> 0 | AS7: =N7 -> 111 | AT7: =COUNTIF(L8:L9,AS7) -> 0 | AU7: =AT7/(AV4-AT13) -> 0 | AV7: =IF(AU7=0,0,(AU7*((LOG(AU7))/LOG(2)))) -> 0
A8: 12 | B8: 222 | C8: 23 | D8: 231 | E8: 24 | F8: 244 | K8: 0 | L8: 122 | N8: 112 | O8: 0 | P8: 0 | Q8: 0 | T8: 112 | U8: =COUNTIF(L6:L7,T8) -> 0 | V8: =U8/(W4-U13) -> 0 | W8: 0 | Y8: 112 | Z8: =COUNTIF(L7:L7,Y8) -> 0 | AA8: =Z8/(AB4-Z13) -> 0 | AB8: 0 | AD8: 112 | AE8: =COUNTIF(L7:L8,AD8) -> 0 | AF8: =AE8/(AG4-AE13) -> 0 | AG8: 0 | AI8: 112 | AJ8: =COUNTIF(L7:L8,AI8) -> 0 | AK8: =AJ8/(AL4-AJ13) -> 0 | AL8: 0 | AN8: 112 | AO8: =COUNTIF(L8:L8,AN8) -> 0 | AP8: =AO8/(AQ4-AO13) -> 0 | AQ8: 0 | AS8: 112 | AT8: =COUNTIF(L8:L9,AS8) -> 0 | AU8: =AT8/(AV4-AT13) -> 0 | AV8: 0
N9: 121 | O9: 0 | P9: 0 | Q9: 0 | T9: 121 | U9: =COUNTIF(L6:L7,T9) -> 0 | V9: =U9/(W4-U13) -> 0 | W9: 0 | Y9: 121 | Z9: =COUNTIF(L7:L7,Y9) -> 0 | AA9: =Z9/(AB4-Z13) -> 0 | AB9: 0 | AD9: 121 | AE9: =COUNTIF(L7:L8,AD9) -> 0 | AF9: =AE9/(AG4-AE13) -> 0 | AG9: 0 | AI9: 121 | AJ9: =COUNTIF(L7:L8,AI9) -> 0 | AK9: =AJ9/(AL4-AJ13) -> 0 | AL9: 0 | AN9: 121 | AO9: =COUNTIF(L8:L8,AN9) -> 0 | AP9: =AO9/(AQ4-AO13) -> 0 | AQ9: 0 | AS9: 121 | AT9: =COUNTIF(L8:L9,AS9) -> 0 | AU9: =AT9/(AV4-AT13) -> 0 | AV9: 0
N10: 122 | O10: 1 | P10: 0.5 | Q10: -0.5 | T10: 122 | U10: =COUNTIF(L6:L7,T10) -> 0 | V10: =U10/(W4-U13) -> 0 | W10: 0 | Y10: 122 | Z10: =COUNTIF(L7:L7,Y10) -> 0 | AA10: =Z10/(AB4-Z13) -> 0 | AB10: 0 | AD10: 122 | AE10: =COUNTIF(L7:L8,AD10) -> 1 | AF10: =AE10/(AG4-AE13) -> 0.5 | AG10: -0.5 | AI10: 122 | AJ10: =COUNTIF(L7:L8,AI10) -> 1 | AK10: =AJ10/(AL4-AJ13) -> 0.5 | AL10: -0.5 | AN10: 122 | AO10: =COUNTIF(L8:L8,AN10) -> 1 | AP10: =AO10/(AQ4-AO13) -> 1 | AQ10: 0 | AS10: 122 | AT10: =COUNTIF(L8:L9,AS10) -> 1 | AU10: =AT10/(AV4-AT13) -> 1 | AV10: 0
N11: 211 | O11: 0 | P11: 0 | Q11: 0 | T11: 211 | U11: =COUNTIF(L6:L7,T11) -> 0 | V11: =U11/(W4-U13) -> 0 | W11: 0 | Y11: 211 | Z11: =COUNTIF(L7:L7,Y11) -> 0 | AA11: =Z11/(AB4-Z13) -> 0 | AB11: 0 | AD11: 211 | AE11: =COUNTIF(L7:L8,AD11) -> 0 | AF11: =AE11/(AG4-AE13) -> 0 | AG11: 0 | AI11: 211 | AJ11: =COUNTIF(L7:L8,AI11) -> 0 | AK11: =AJ11/(AL4-AJ13) -> 0 | AL11: 0 | AN11: 211 | AO11: =COUNTIF(L8:L8,AN11) -> 0 | AP11: =AO11/(AQ4-AO13) -> 0 | AQ11: 0 | AS11: 211 | AT11: =COUNTIF(L8:L9,AS11) -> 0 | AU11: =AT11/(AV4-AT13) -> 0 | AV11: 0
N12: 212 | O12: 0 | P12: 0 | Q12: 0 | T12: 212 | U12: =COUNTIF(L6:L7,T12) -> 0 | V12: =U12/(W4-U13) -> 0 | W12: 0 | Y12: 212 | Z12: =COUNTIF(L7:L7,Y12) -> 0 | AA12: =Z12/(AB4-Z13) -> 0 | AB12: 0 | AD12: 212 | AE12: =COUNTIF(L7:L8,AD12) -> 0 | AF12: =AE12/(AG4-AE13) -> 0 | AG12: 0 | AI12: 212 | AJ12: =COUNTIF(L7:L8,AI12) -> 0 | AK12: =AJ12/(AL4-AJ13) -> 0 | AL12: 0 | AN12: 212 | AO12: =COUNTIF(L8:L8,AN12) -> 0 | AP12: =AO12/(AQ4-AO13) -> 0 | AQ12: 0 | AS12: 212 | AT12: =COUNTIF(L8:L9,AS12) -> 0 | AU12: =AT12/(AV4-AT13) -> 0 | AV12: 0
N13: 221 | O13: 0 | P13: 0 | Q13: 0 | T13: 221 | U13: =COUNTIF(L6:L7,T13) -> 0 | Y13: 221 | Z13: =COUNTIF(L7:L7,Y13) -> 0 | AD13: 221 | AE13: =COUNTIF(L7:L8,AD13) -> 0 | AI13: 221 | AJ13: =COUNTIF(L7:L8,AI13) -> 0 | AN13: 221 | AO13: =COUNTIF(L8:L8,AN13) -> 0 | AS13: 221 | AT13: =COUNTIF(L8:L9,AS13) -> 0
N14: 222 | O14: 1 | P14: 0.5 | Q14: -0.5 | T14: 222 | U14: =COUNTIF(L6:L7,T14) -> 1 | V14: =U14/(W4-U13) -> 1 | W14: =IF(V14=0,0,(V14*((LOG(V14))/LOG(2)))) -> 0 | Y14: 222 | Z14: =COUNTIF(L7:L7,Y14) -> 1 | AA14: =Z14/(AB4-Z13) -> 1 | AB14: =IF(AA14=0,0,(AA14*((LOG(AA14))/LOG(2)))) -> 0 | AD14: 222 | AE14: =COUNTIF(L7:L8,AD14) -> 1 | AF14: =AE14/(AG4-AE13) -> 0.5 | AG14: =IF(AF14=0,0,(AF14*((LOG(AF14))/LOG(2)))) -> -0.5 | AI14: 222 | AJ14: =COUNTIF(L7:L8,AI14) -> 1 | AK14: =AJ14/(AL4-AJ13) -> 0.5 | AL14: =IF(AK14=0,0,(AK14*((LOG(AK14))/LOG(2)))) -> -0.5 | AN14: 222 | AO14: =COUNTIF(L8:L8,AN14) -> 0 | AP14: =AO14/(AQ4-AO13) -> 0 | AQ14: =IF(AP14=0,0,(AP14*((LOG(AP14))/LOG(2)))) -> 0 | AS14: 222 | AT14: =COUNTIF(L8:L9,AS14) -> 0 | AU14: =AT14/(AV4-AT13) -> 0 | AV14: =IF(AU14=0,0,(AU14*((LOG(AU14))/LOG(2)))) -> 0
P15: =SUM(P7:P14) -> 1 | Q15: =-SUM(Q7:Q14) -> 1 | V15: =SUM(V7:V14) -> 1 | W15: =-SUM(W7:W14) -> 0 | AA15: =SUM(AA7:AA14) -> 1 | AB15: =-SUM(AB7:AB14) -> 0 | AF15: =SUM(AF7:AF14) -> 1 | AG15: =-SUM(AG7:AG14) -> 1 | AK15: =SUM(AK7:AK14) -> 1 | AL15: =-SUM(AL7:AL14) -> 1 | AP15: =SUM(AP7:AP14) -> 1 | AQ15: =-SUM(AQ7:AQ14) -> 0 | AU15: =SUM(AU7:AU14) -> 1 | AV15: =-SUM(AV7:AV14) -> 0
P16: U= | Q16: =Q15/(LOG(Q4)/LOG(2)) -> 1 | V16: U1= | W16: =W15/(LOG(W4)/LOG(2)) ->  | AA16: U2= | AB16: =AB15/(LOG(AB4)/LOG(2)) ->  | AF16: U3= | AG16: =AG15/(LOG(AG4)/LOG(2)) -> 1 | AK16: U4= | AL16: =AL15/(LOG(AL4)/LOG(2)) -> 1 | AP16: U5= | AQ16: =AQ15/(LOG(AQ4)/LOG(2)) ->  | AU16: U6= | AV16: =AV15/(LOG(AV4)/LOG(2)) -> 
N19: Total Target Seq
N20: =COUNTIF(L7:L8,G3) -> 0 | P20: 0 | Q20: 1 | R20: 0 | S20: 0 | T20: 1 | U20: 0
P21: % of reinforcement given in 6 equal intervals based on number of trials
P22: %_1 | Q22: %_2 | R22: %_3 | S22: %_4 | T22: %_5 | U22: %_6
O23: target sequence | P23: =$G$3 -> 221 | Q23: 221 | R23: 221 | S23: 221 | T23: 221 | U23: 221
O24: total reinforcement | P24: =U13 -> 0 | Q24: =Z13 -> 0 | R24: =AE13 -> 0 | S24: =AJ13 -> 0 | T24: =AO13 -> 0 | U24: =AT13 -> 0
O25: % target
O26: CCRF
O27: % CCRf
O28: average response rate | P28: =F6/P20 ->  | Q28: =(F7-F6)/Q20 ->  | R28: =(F7-F7)/R20 ->  | S28: =(F7-F7)/S20 ->  | T28: =(F8-F7)/T20 -> 187 | U28: =(F8-F8)/U20 -> 

Sheet !M924B0B.AXT
A1: Report for:!M924B0B.AXT
A2: Date: | B2: <date>
A3: Hen: | B3: <hen> | F3: Correct Sequence | G3: =Start!J2 -> 221 | P3: Total Sequences in Data | Q3: =4994-COUNTBLANK(L7:L5000) -> 6 | V3: Total Sequences in Block Data | W3: =COUNTA(L7:L7) -> 1 | AA3: Total Sequences in Block Data | AB3: =COUNTA(L8:L8) -> 1 | AF3: Total Sequences in Block Data | AG3: =COUNTA(L9:L9) -> 1 | AK3: Total Sequences in Block Data | AL3: =COUNTA(L10:L10) -> 1 | AP3: Total Sequences in Block Data | AQ3: =COUNTA(L11:L11) -> 1 | AU3: Total Sequences in Block Data | AV3: =COUNTA(L12:L12) -> 1
P4: Total Sequences in Summary | Q4: =SUM(O7:O14) -> 6 | V4: Total Sequences in Block Summary | W4: =SUM(U7:U14) -> 1 | AA4: Total Sequences in Block Summary | AB4: =SUM(Z7:Z14) -> 1 | AF4: Total Sequences in Block Summary | AG4: =SUM(AE7:AE14) -> 1 | AK4: Total Sequences in Block Summary | AL4: =SUM(AJ7:AJ14) -> 1 | AP4: Total Sequences in Block Summary | AQ4: =SUM(AO7:AO14) -> 1 | AU4: Total Sequences in Block Summary | AV4: =SUM(AT7:AT14) -> 1
T5: Block 1 | Y5: Block 2 | AD5: Block 3 | AI5: Block 4 | AN5: Block 5 | AS5: Block 6
A6: Sequence Component 1 | B6: Time 1 | C6: Sequence Component 2 | D6: Time 2 | E6: Sequence Component 3 | F6: Time 3 | G6: Sequence Component 4 | H6: Time 4 | I6: Sequence Component 5 | J6: Time 5 | K6: Correct? 0=No 1=Yes | L6: Sequence | N6: Frequency | P6: Relative Frequency | Q6: Variability | T6: Frequency | V6: Relative Frequency | W6: Variability | Y6: Frequency | AA6: Relative Frequency | AB6: Variability | AD6: Frequency | AF6: Relative Frequency | AG6: Variability | AI6: Frequency | AK6: Relative Frequency | AL6: Variability | AN6: Frequency | AP6: Relative Frequency | AQ6: Variability | AS6: Frequency | AU6: Relative Frequency | AV6: Variability
A7: 12 | B7: 67 | C7: 23 | D7: 84 | E7: 24 | F7: 91 | K7: 0 | L7: 122 | N7: 111 | O7: =COUNTIF($L$7:$L$500,N7) -> 1 | P7: =O7/$Q$4 -> 0.1666666667 | Q7: =IF(P7=0,0,(P7*((LOG(P7))/LOG(2)))) -> -0.4308270835 | T7: =N7 -> 111 | U7: =COUNTIF(L7:L7,T7) -> 0 | V7: =U7/(W4-U13) -> 0 | W7: =IF(V7=0,0,(V7*((LOG(V7))/LOG(2)))) -> 0 | Y7: =N7 -> 111 | Z7: =COUNTIF(L8:L8,Y7) -> 0 | AA7: =Z7/(AB4-Z13) -> 0 | AB7: =IF(AA7=0,0,(AA7*((LOG(AA7))/LOG(2)))) -> 0 | AD7: =N7 -> 111 | AE7: =COUNTIF(L9:L9,AD7) -> 0 | AF7: =AE7/(AG4-AE13) -> 0 | AG7: =IF(AF7=0,0,(AF7*((LOG(AF7))/LOG(2)))) -> 0 | AI7: =N7 -> 111 | AJ7: =COUNTIF(L10:L10,AI7) -> 1 | AK7: =AJ7/(AL4-AJ13) -> 1 | AL7: =IF(AK7=0,0,(AK7*((LOG(AK7))/LOG(2)))) -> 0 | AN7: =N7 -> 111 | AO7: =COUNTIF(L11:L11,AN7) -> 0 | AP7: =AO7/(AQ4-AO13) -> 0 | AQ7: =IF(AP7=0,0,(AP7*((LOG(AP7))/LOG(2)))) -> 0 | AS7: =N7 -> 111 | AT7: =COUNTIF(L12:L12,AS7) -> 0 | AU7: =AT7/(AV4-AT13) -> 0 | AV7: =IF(AU7=0,0,(AU7*((LOG(AU7))/LOG(2)))) -> 0
A8: 12 | B8: 290 | C8: 23 | D8: 320 | E8: 24 | F8: 325 | K8: 0 | L8: 122 | N8: 112 | O8: 0 | P8: 0 | Q8: 0 | T8: 112 | U8: =COUNTIF(L7:L7,T8) -> 0 | V8: =U8/(W4-U13) -> 0 | W8: 0 | Y8: 112 | Z8: =COUNTIF(L8:L8,Y8) -> 0 | AA8: =Z8/(AB4-Z13) -> 0 | AB8: 0 | AD8: 112 | AE8: =COUNTIF(L9:L9,AD8) -> 0 | AF8: =AE8/(AG4-AE13) -> 0 | AG8: 0 | AI8: 112 | AJ8: =COUNTIF(L10:L10,AI8) -> 0 | AK8: =AJ8/(AL4-AJ13) -> 0 | AL8: 0 | AN8: 112 | AO8: =COUNTIF(L11:L11,AN8) -> 0 | AP8: =AO8/(AQ4-AO13) -> 0 | AQ8: 0 | AS8: 112 | AT8: =COUNTIF(L12:L12,AS8) -> 0 | AU8: =AT8/(AV4-AT13) -> 0 | AV8: 0
A9: 21 | B9: 423 | C9: 21 | D9: 443 | E9: 22 | F9: 447 | K9: 0 | L9: 222 | N9: 121 | O9: 0 | P9: 0 | Q9: 0 | T9: 121 | U9: =COUNTIF(L7:L7,T9) -> 0 | V9: =U9/(W4-U13) -> 0 | W9: 0 | Y9: 121 | Z9: =COUNTIF(L8:L8,Y9) -> 0 | AA9: =Z9/(AB4-Z13) -> 0 | AB9: 0 | AD9: 121 | AE9: =COUNTIF(L9:L9,AD9) -> 0 | AF9: =AE9/(AG4-AE13) -> 0 | AG9: 0 | AI9: 121 | AJ9: =COUNTIF(L10:L10,AI9) -> 0 | AK9: =AJ9/(AL4-AJ13) -> 0 | AL9: 0 | AN9: 121 | AO9: =COUNTIF(L11:L11,AN9) -> 0 | AP9: =AO9/(AQ4-AO13) -> 0 | AQ9: 0 | AS9: 121 | AT9: =COUNTIF(L12:L12,AS9) -> 0 | AU9: =AT9/(AV4-AT13) -> 0 | AV9: 0
A10: 12 | B10: 566 | C10: 14 | D10: 577 | E10: 13 | F10: 597 | K10: 0 | L10: 111 | N10: 122 | O10: 3 | P10: 0.5 | Q10: -0.5 | T10: 122 | U10: =COUNTIF(L7:L7,T10) -> 1 | V10: =U10/(W4-U13) -> 1 | W10: 0 | Y10: 122 | Z10: =COUNTIF(L8:L8,Y10) -> 1 | AA10: =Z10/(AB4-Z13) -> 1 | AB10: 0 | AD10: 122 | AE10: =COUNTIF(L9:L9,AD10) -> 0 | AF10: =AE10/(AG4-AE13) -> 0 | AG10: 0 | AI10: 122 | AJ10: =COUNTIF(L10:L10,AI10) -> 0 | AK10: =AJ10/(AL4-AJ13) -> 0 | AL10: 0 | AN10: 122 | AO10: =COUNTIF(L11:L11,AN10) -> 1 | AP10: =AO10/(AQ4-AO13) -> 1 | AQ10: 0 | AS10: 122 | AT10: =COUNTIF(L12:L12,AS10) -> 0 | AU10: =AT10/(AV4-AT13) -> 0 | AV10: 0
A11: 12 | B11: 13879 | C11: 23 | D11: 13894 | E11: 24 | F11: 13901 | K11: 0 | L11: 122 | N11: 211 | O11: 0 | P11: 0 | Q11: 0 | T11: 211 | U11: =COUNTIF(L7:L7,T11) -> 0 | V11: =U11/(W4-U13) -> 0 | W11: 0 | Y11: 211 | Z11: =COUNTIF(L8:L8,Y11) -> 0 | AA11: =Z11/(AB4-Z13) -> 0 | AB11: 0 | AD11: 211 | AE11: =COUNTIF(L9:L9,AD11) -> 0 | AF11: =AE11/(AG4-AE13) -> 0 | AG11: 0 | AI11: 211 | AJ11: =COUNTIF(L10:L10,AI11) -> 0 | AK11: =AJ11/(AL4-AJ13) -> 0 | AL11: 0 | AN11: 211 | AO11: =COUNTIF(L11:L11,AN11) -> 0 | AP11: =AO11/(AQ4-AO13) -> 0 | AQ11: 0 | AS11: 211 | AT11: =COUNTIF(L12:L12,AS11) -> 0 | AU11: =AT11/(AV4-AT13) -> 0 | AV11: 0
A12: 21 | B12: 14005 | C12: 21 | D12: 14008 | E12: 22 | F12: 14018 | K12: 0 | L12: 222 | N12: 212 | O12: 0 | P12: 0 | Q12: 0 | T12: 212 | U12: =COUNTIF(L7:L7,T12) -> 0 | V12: =U12/(W4-U13) -> 0 | W12: 0 | Y12: 212 | Z12: =COUNTIF(L8:L8,Y12) -> 0 | AA12: =Z12/(AB4-Z13) -> 0 | AB12: 0 | AD12: 212 | AE12: =COUNTIF(L9:L9,AD12) -> 0 | AF12: =AE12/(AG4-AE13) -> 0 | AG12: 0 | AI12: 212 | AJ12: =COUNTIF(L10:L10,AI12) -> 0 | AK12: =AJ12/(AL4-AJ13) -> 0 | AL12: 0 | AN12: 212 | AO12: =COUNTIF(L11:L11,AN12) -> 0 | AP12: =AO12/(AQ4-AO13) -> 0 | AQ12: 0 | AS12: 212 | AT12: =COUNTIF(L12:L12,AS12) -> 0 | AU12: =AT12/(AV4-AT13) -> 0 | AV12: 0
N13: 221 | O13: 0 | P13: 0 | Q13: 0 | T13: 221 | U13: =COUNTIF(L7:L7,T13) -> 0 | Y13: 221 | Z13: =COUNTIF(L8:L8,Y13) -> 0 | AD13: 221 | AE13: =COUNTIF(L9:L9,AD13) -> 0 | AI13: 221 | AJ13: =COUNTIF(L10:L10,AI13) -> 0 | AN13: 221 | AO13: =COUNTIF(L11:L11,AN13) -> 0 | AS13: 221 | AT13: =COUNTIF(L12:L12,AS13) -> 0
N14: 222 | O14: 2 | P14: 0.3333333333 | Q14: -0.5283208336 | T14: 222 | U14: =COUNTIF(L7:L7,T14) -> 0 | V14: =U14/(W4-U13) -> 0 | W14: =IF(V14=0,0,(V14*((LOG(V14))/LOG(2)))) -> 0 | Y14: 222 | Z14: =COUNTIF(L8:L8,Y14) -> 0 | AA14: =Z14/(AB4-Z13) -> 0 | AB14: =IF(AA14=0,0,(AA14*((LOG(AA14))/LOG(2)))) -> 0 | AD14: 222 | AE14: =COUNTIF(L9:L9,AD14) -> 1 | AF14: =AE14/(AG4-AE13) -> 1 | AG14: =IF(AF14=0,0,(AF14*((LOG(AF14))/LOG(2)))) -> 0 | AI14: 222 | AJ14: =COUNTIF(L10:L10,AI14) -> 0 | AK14: =AJ14/(AL4-AJ13) -> 0 | AL14: =IF(AK14=0,0,(AK14*((LOG(AK14))/LOG(2)))) -> 0 | AN14: 222 | AO14: =COUNTIF(L11:L11,AN14) -> 0 | AP14: =AO14/(AQ4-AO13) -> 0 | AQ14: =IF(AP14=0,0,(AP14*((LOG(AP14))/LOG(2)))) -> 0 | AS14: 222 | AT14: =COUNTIF(L12:L12,AS14) -> 1 | AU14: =AT14/(AV4-AT13) -> 1 | AV14: =IF(AU14=0,0,(AU14*((LOG(AU14))/LOG(2)))) -> 0
P15: =SUM(P7:P14) -> 1 | Q15: =-SUM(Q7:Q14) -> 1.459147917 | V15: =SUM(V7:V14) -> 1 | W15: =-SUM(W7:W14) -> 0 | AA15: =SUM(AA7:AA14) -> 1 | AB15: =-SUM(AB7:AB14) -> 0 | AF15: =SUM(AF7:AF14) -> 1 | AG15: =-SUM(AG7:AG14) -> 0 | AK15: =SUM(AK7:AK14) -> 1 | AL15: =-SUM(AL7:AL14) -> 0 | AP15: =SUM(AP7:AP14) -> 1 | AQ15: =-SUM(AQ7:AQ14) -> 0 | AU15: =SUM(AU7:AU14) -> 1 | AV15: =-SUM(AV7:AV14) -> 0
P16: U= | Q16: =Q15/(LOG(Q4)/LOG(2)) -> 0.5644754679 | V16: U1= | W16: =W15/(LOG(W4)/LOG(2)) ->  | AA16: U2= | AB16: =AB15/(LOG(AB4)/LOG(2)) ->  | AF16: U3= | AG16: =AG15/(LOG(AG4)/LOG(2)) ->  | AK16: U4= | AL16: =AL15/(LOG(AL4)/LOG(2)) ->  | AP16: U5= | AQ16: =AQ15/(LOG(AQ4)/LOG(2)) ->  | AU16: U6= | AV16: =AV15/(LOG(AV4)/LOG(2)) -> 
N19: Total Target Seq
N20: =COUNTIF(L7:L12,G3) -> 0 | P20: 1 | Q20: 1 | R20: 1 | S20: 1 | T20: 1 | U20: 1
P21: % of reinforcement given in 6 equal intervals based on number of trials
P22: %_1 | Q22: %_2 | R22: %_3 | S22: %_4 | T22: %_5 | U22: %_6
O23: target sequence | P23: =$G$3 -> 221 | Q23: 221 | R23: 221 | S23: 221 | T23: 221 | U23: 221
O24: total reinforcement | P24: =U13 -> 0 | Q24: =Z13 -> 0 | R24: =AE13 -> 0 | S24: =AJ13 -> 0 | T24: =AO13 -> 0 | U24: =AT13 -> 0
O25: % target
O26: CCRF
O27: % CCRf
O28: average response rate | P28: =F7/P20 -> 91 | Q28: =(F8-F7)/Q20 -> 234 | R28: =(F9-F8)/R20 -> 122 | S28: =(F10-F9)/S20 -> 150 | T28: =(F11-F10)/T20 -> 13304 | U28: =(F12-F11)/U20 -> 117

Sheet !M92592B.AXT
A1: Report for:!M92592B.AXT
A2: Date: | B2: <date>
A3: Hen: | B3: <hen> | F3: Correct Sequence | G3: =Start!J2 -> 221 | P3: Total Sequences in Data | Q3: =4994-COUNTBLANK(L7:L5000) -> 0 | V3: Total Sequences in Block Data | W3: =COUNTA(L6:L7) -> 1 | AA3: Total Sequences in Block Data | AB3: =COUNTA(L6:L7) -> 1 | AF3: Total Sequences in Block Data | AG3: =COUNTA(L6:L7) -> 1 | AK3: Total Sequences in Block Data | AL3: =COUNTA(L6:L7) -> 1 | AP3: Total Sequences in Block Data | AQ3: =COUNTA(L6:L7) -> 1 | AU3: Total Sequences in Block Data | AV3: =COUNTA(L6:L7) -> 1
P4: Total Sequences in Summary | Q4: =SUM(O7:O14) -> 0 | V4: Total Sequences in Block Summary | W4: =SUM(U7:U14) -> 0 | AA4: Total Sequences in Block Summary | AB4: =SUM(Z7:Z14) -> 0 | AF4: Total Sequences in Block Summary | AG4: =SUM(AE7:AE14) -> 0 | AK4: Total Sequences in Block Summary | AL4: =SUM(AJ7:AJ14) -> 0 | AP4: Total Sequences in Block Summary | AQ4: =SUM(AO7:AO14) -> 0 | AU4: Total Sequences in Block Summary | AV4: =SUM(AT7:AT14) -> 0
T5: Block 1 | Y5: Block 2 | AD5: Block 3 | AI5: Block 4 | AN5: Block 5 | AS5: Block 6
A6: Sequence Component 1 | B6: Time 1 | C6: Sequence Component 2 | D6: Time 2 | E6: Sequence Component 3 | F6: Time 3 | G6: Sequence Component 4 | H6: Time 4 | I6: Sequence Component 5 | J6: Time 5 | K6: Correct? 0=No 1=Yes | L6: Sequence | N6: Frequency | P6: Relative Frequency | Q6: Variability | T6: Frequency | V6: Relative Frequency | W6: Variability | Y6: Frequency | AA6: Relative Frequency | AB6: Variability | AD6: Frequency | AF6: Relative Frequency | AG6: Variability | AI6: Frequency | AK6: Relative Frequency | AL6: Variability | AN6: Frequency | AP6: Relative Frequency | AQ6: Variability | AS6: Frequency | AU6: Relative Frequency | AV6: Variability
N7: 111 | O7: =COUNTIF($L$7:$L$500,N7) -> 0 | P7: =O7/$Q$4 ->  | Q7: =IF(P7=0,0,(P7*((LOG(P7))/LOG(2)))) ->  | T7: =N7 -> 111 | U7: =COUNTIF(L6:L7,T7) -> 0 | V7: =U7/(W4-U13) ->  | W7: =IF(V7=0,0,(V7*((LOG(V7))/LOG(2)))) ->  | Y7: =N7 -> 111 | Z7: =COUNTIF(L6:L7,Y7) -> 0 | AA7: =Z7/(AB4-Z13) ->  | AB7: =IF(AA7=0,0,(AA7*((LOG(AA7))/LOG(2)))) ->  | AD7: =N7 -> 111 | AE7: =COUNTIF(L6:L7,AD7) -> 0 | AF7: =AE7/(AG4-AE13) ->  | AG7: =IF(AF7=0,0,(AF7*((LOG(AF7))/LOG(2)))) ->  | AI7: =N7 -> 111 | AJ7: =COUNTIF(L6:L7,AI7) -> 0 | AK7: =AJ7/(AL4-AJ13) ->  | AL7: =IF(AK7=0,0,(AK7*((LOG(AK7))/LOG(2)))) ->  | AN7: =N7 -> 111 | AO7: =COUNTIF(L6:L7,AN7) -> 0 | AP7: =AO7/(AQ4-AO13) ->  | AQ7: =IF(AP7=0,0,(AP7*((LOG(AP7))/LOG(2)))) ->  | AS7: =N7 -> 111 | AT7: =COUNTIF(L6:L7,AS7) -> 0 | AU7: =AT7/(AV4-AT13) ->  | AV7: =IF(AU7=0,0,(AU7*((LOG(AU7))/LOG(2)))) -> 
N8: 112 | O8: 0 | T8: 112 | U8: =COUNTIF(L6:L7,T8) -> 0 | V8: =U8/(W4-U13) ->  | Y8: 112 | Z8: =COUNTIF(L6:L7,Y8) -> 0 | AA8: =Z8/(AB4-Z13) ->  | AD8: 112 | AE8: =COUNTIF(L6:L7,AD8) -> 0 | AF8: =AE8/(AG4-AE13) ->  | AI8: 112 | AJ8: =COUNTIF(L6:L7,AI8) -> 0 | AK8: =AJ8/(AL4-AJ13) ->  | AN8: 112 | AO8: =COUNTIF(L6:L7,AN8) -> 0 | AP8: =AO8/(AQ4-AO13) ->  | AS8: 112 | AT8: =COUNTIF(L6:L7,AS8) -> 0 | AU8: =AT8/(AV4-AT13) -> 
N9: 121 | O9: 0 | T9: 121 | U9: =COUNTIF(L6:L7,T9) -> 0 | V9: =U9/(W4-U13) ->  | Y9: 121 | Z9: =COUNTIF(L6:L7,Y9) -> 0 | AA9: =Z9/(AB4-Z13) ->  | AD9: 121 | AE9: =COUNTIF(L6:L7,AD9) -> 0 | AF9: =AE9/(AG4-AE13) ->  | AI9: 121 | AJ9: =COUNTIF(L6:L7,AI9) -> 0 | AK9: =AJ9/(AL4-AJ13) ->  | AN9: 121 | AO9: =COUNTIF(L6:L7,AN9) -> 0 | AP9: =AO9/(AQ4-AO13) ->  | AS9: 121 | AT9: =COUNTIF(L6:L7,AS9) -> 0 | AU9: =AT9/(AV4-AT13) -> 
N10: 122 | O10: 0 | T10: 122 | U10: =COUNTIF(L6:L7,T10) -> 0 | V10: =U10/(W4-U13) ->  | Y10: 122 | Z10: =COUNTIF(L6:L7,Y10) -> 0 | AA10: =Z10/(AB4-Z13) ->  | AD10: 122 | AE10: =COUNTIF(L6:L7,AD10) -> 0 | AF10: =AE10/(AG4-AE13) ->  | AI10: 122 | AJ10: =COUNTIF(L6:L7,AI10) -> 0 | AK10: =AJ10/(AL4-AJ13) ->  | AN10: 122 | AO10: =COUNTIF(L6:L7,AN10) -> 0 | AP10: =AO10/(AQ4-AO13) ->  | AS10: 122 | AT10: =COUNTIF(L6:L7,AS10) -> 0 | AU10: =AT10/(AV4-AT13) -> 
N11: 211 | O11: 0 | T11: 211 | U11: =COUNTIF(L6:L7,T11) -> 0 | V11: =U11/(W4-U13) ->  | Y11: 211 | Z11: =COUNTIF(L6:L7,Y11) -> 0 | AA11: =Z11/(AB4-Z13) ->  | AD11: 211 | AE11: =COUNTIF(L6:L7,AD11) -> 0 | AF11: =AE11/(AG4-AE13) ->  | AI11: 211 | AJ11: =COUNTIF(L6:L7,AI11) -> 0 | AK11: =AJ11/(AL4-AJ13) ->  | AN11: 211 | AO11: =COUNTIF(L6:L7,AN11) -> 0 | AP11: =AO11/(AQ4-AO13) ->  | AS11: 211 | AT11: =COUNTIF(L6:L7,AS11) -> 0 | AU11: =AT11/(AV4-AT13) -> 
N12: 212 | O12: 0 | T12: 212 | U12: =COUNTIF(L6:L7,T12) -> 0 | V12: =U12/(W4-U13) ->  | Y12: 212 | Z12: =COUNTIF(L6:L7,Y12) -> 0 | AA12: =Z12/(AB4-Z13) ->  | AD12: 212 | AE12: =COUNTIF(L6:L7,AD12) -> 0 | AF12: =AE12/(AG4-AE13) ->  | AI12: 212 | AJ12: =COUNTIF(L6:L7,AI12) -> 0 | AK12: =AJ12/(AL4-AJ13) ->  | AN12: 212 | AO12: =COUNTIF(L6:L7,AN12) -> 0 | AP12: =AO12/(AQ4-AO13) ->  | AS12: 212 | AT12: =COUNTIF(L6:L7,AS12) -> 0 | AU12: =AT12/(AV4-AT13) -> 
N13: 221 | O13: 0 | T13: 221 | U13: =COUNTIF(L6:L7,T13) -> 0 | Y13: 221 | Z13: =COUNTIF(L6:L7,Y13) -> 0 | AD13: 221 | AE13: =COUNTIF(L6:L7,AD13) -> 0 | AI13: 221 | AJ13: =COUNTIF(L6:L7,AI13) -> 0 | AN13: 221 | AO13: =COUNTIF(L6:L7,AN13) -> 0 | AS13: 221 | AT13: =COUNTIF(L6:L7,AS13) -> 0
N14: 222 | O14: 0 | T14: 222 | U14: =COUNTIF(L6:L7,T14) -> 0 | V14: =U14/(W4-U13) ->  | W14: =IF(V14=0,0,(V14*((LOG(V14))/LOG(2)))) ->  | Y14: 222 | Z14: =COUNTIF(L6:L7,Y14) -> 0 | AA14: =Z14/(AB4-Z13) ->  | AB14: =IF(AA14=0,0,(AA14*((LOG(AA14))/LOG(2)))) ->  | AD14: 222 | AE14: =COUNTIF(L6:L7,AD14) -> 0 | AF14: =AE14/(AG4-AE13) ->  | AG14: =IF(AF14=0,0,(AF14*((LOG(AF14))/LOG(2)))) ->  | AI14: 222 | AJ14: =COUNTIF(L6:L7,AI14) -> 0 | AK14: =AJ14/(AL4-AJ13) ->  | AL14: =IF(AK14=0,0,(AK14*((LOG(AK14))/LOG(2)))) ->  | AN14: 222 | AO14: =COUNTIF(L6:L7,AN14) -> 0 | AP14: =AO14/(AQ4-AO13) ->  | AQ14: =IF(AP14=0,0,(AP14*((LOG(AP14))/LOG(2)))) ->  | AS14: 222 | AT14: =COUNTIF(L6:L7,AS14) -> 0 | AU14: =AT14/(AV4-AT13) ->  | AV14: =IF(AU14=0,0,(AU14*((LOG(AU14))/LOG(2)))) -> 
P15: =SUM(P7:P14) ->  | Q15: =-SUM(Q7:Q14) ->  | V15: =SUM(V7:V14) ->  | W15: =-SUM(W7:W14) ->  | AA15: =SUM(AA7:AA14) ->  | AB15: =-SUM(AB7:AB14) ->  | AF15: =SUM(AF7:AF14) ->  | AG15: =-SUM(AG7:AG14) ->  | AK15: =SUM(AK7:AK14) ->  | AL15: =-SUM(AL7:AL14) ->  | AP15: =SUM(AP7:AP14) ->  | AQ15: =-SUM(AQ7:AQ14) ->  | AU15: =SUM(AU7:AU14) ->  | AV15: =-SUM(AV7:AV14) -> 
P16: U= | Q16: =Q15/(LOG(Q4)/LOG(2)) ->  | V16: U1= | W16: =W15/(LOG(W4)/LOG(2)) ->  | AA16: U2= | AB16: =AB15/(LOG(AB4)/LOG(2)) ->  | AF16: U3= | AG16: =AG15/(LOG(AG4)/LOG(2)) ->  | AK16: U4= | AL16: =AL15/(LOG(AL4)/LOG(2)) ->  | AP16: U5= | AQ16: =AQ15/(LOG(AQ4)/LOG(2)) ->  | AU16: U6= | AV16: =AV15/(LOG(AV4)/LOG(2)) -> 
N19: Total Target Seq
N20: =COUNTIF(L6:L7,G3) -> 0 | P20: 0 | Q20: 0 | R20: 0 | S20: 0 | T20: 0 | U20: 0
P21: % of reinforcement given in 6 equal intervals based on number of trials
P22: %_1 | Q22: %_2 | R22: %_3 | S22: %_4 | T22: %_5 | U22: %_6
O23: target sequence | P23: =$G$3 -> 221 | Q23: 221 | R23: 221 | S23: 221 | T23: 221 | U23: 221
O24: total reinforcement | P24: =U13 -> 0 | Q24: =Z13 -> 0 | R24: =AE13 -> 0 | S24: =AJ13 -> 0 | T24: =AO13 -> 0 | U24: =AT13 -> 0
O25: % target
O26: CCRF
O27: % CCRf
O28: average response rate | P28: =F6/P20 ->  | Q28: =(F6-F6)/Q20 ->  | R28: =(F6-F6)/R20 ->  | S28: =(F6-F6)/S20 ->  | T28: =(F6-F6)/T20 ->  | U28: =(F6-F6)/U20 -> 

Sheet !M92693B.AXT
A1: Report for:!M92693B.AXT
A2: Date: | B2: <date>
A3: Hen: | B3: <hen> | F3: Correct Sequence | G3: =Start!J2 -> 221 | P3: Total Sequences in Data | Q3: =4994-COUNTBLANK(L7:L5000) -> 0 | V3: Total Sequences in Block Data | W3: =COUNTA(L6:L7) -> 1 | AA3: Total Sequences in Block Data | AB3: =COUNTA(L6:L7) -> 1 | AF3: Total Sequences in Block Data | AG3: =COUNTA(L6:L7) -> 1 | AK3: Total Sequences in Block Data | AL3: =COUNTA(L6:L7) -> 1 | AP3: Total Sequences in Block Data | AQ3: =COUNTA(L6:L7) -> 1 | AU3: Total Sequences in Block Data | AV3: =COUNTA(L6:L7) -> 1
P4: Total Sequences in Summary | Q4: =SUM(O7:O14) -> 0 | V4: Total Sequences in Block Summary | W4: =SUM(U7:U14) -> 0 | AA4: Total Sequences in Block Summary | AB4: =SUM(Z7:Z14) -> 0 | AF4: Total Sequences in Block Summary | AG4: =SUM(AE7:AE14) -> 0 | AK4: Total Sequences in Block Summary | AL4: =SUM(AJ7:AJ14) -> 0 | AP4: Total Sequences in Block Summary | AQ4: =SUM(AO7:AO14) -> 0 | AU4: Total Sequences in Block Summary | AV4: =SUM(AT7:AT14) -> 0
T5: Block 1 | Y5: Block 2 | AD5: Block 3 | AI5: Block 4 | AN5: Block 5 | AS5: Block 6
A6: Sequence Component 1 | B6: Time 1 | C6: Sequence Component 2 | D6: Time 2 | E6: Sequence Component 3 | F6: Time 3 | G6: Sequence Component 4 | H6: Time 4 | I6: Sequence Component 5 | J6: Time 5 | K6: Correct? 0=No 1=Yes | L6: Sequence | N6: Frequency | P6: Relative Frequency | Q6: Variability | T6: Frequency | V6: Relative Frequency | W6: Variability | Y6: Frequency | AA6: Relative Frequency | AB6: Variability | AD6: Frequency | AF6: Relative Frequency | AG6: Variability | AI6: Frequency | AK6: Relative Frequency | AL6: Variability | AN6: Frequency | AP6: Relative Frequency | AQ6: Variability | AS6: Frequency | AU6: Relative Frequency | AV6: Variability
N7: 111 | O7: =COUNTIF($L$7:$L$500,N7) -> 0 | P7: =O7/$Q$4 ->  | Q7: =IF(P7=0,0,(P7*((LOG(P7))/LOG(2)))) ->  | T7: =N7 -> 111 | U7: =COUNTIF(L6:L7,T7) -> 0 | V7: =U7/(W4-U13) ->  | W7: =IF(V7=0,0,(V7*((LOG(V7))/LOG(2)))) ->  | Y7: =N7 -> 111 | Z7: =COUNTIF(L6:L7,Y7) -> 0 | AA7: =Z7/(AB4-Z13) ->  | AB7: =IF(AA7=0,0,(AA7*((LOG(AA7))/LOG(2)))) ->  | AD7: =N7 -> 111 | AE7: =COUNTIF(L6:L7,AD7) -> 0 | AF7: =AE7/(AG4-AE13) ->  | AG7: =IF(AF7=0,0,(AF7*((LOG(AF7))/LOG(2)))) ->  | AI7: =N7 -> 111 | AJ7: =COUNTIF(L6:L7,AI7) -> 0 | AK7: =AJ7/(AL4-AJ13) ->  | AL7: =IF(AK7=0,0,(AK7*((LOG(AK7))/LOG(2)))) ->  | AN7: =N7 -> 111 | AO7: =COUNTIF(L6:L7,AN7) -> 0 | AP7: =AO7/(AQ4-AO13) ->  | AQ7: =IF(AP7=0,0,(AP7*((LOG(AP7))/LOG(2)))) ->  | AS7: =N7 -> 111 | AT7: =COUNTIF(L6:L7,AS7) -> 0 | AU7: =AT7/(AV4-AT13) ->  | AV7: =IF(AU7=0,0,(AU7*((LOG(AU7))/LOG(2)))) -> 
N8: 112 | O8: 0 | T8: 112 | U8: =COUNTIF(L6:L7,T8) -> 0 | V8: =U8/(W4-U13) ->  | Y8: 112 | Z8: =COUNTIF(L6:L7,Y8) -> 0 | AA8: =Z8/(AB4-Z13) ->  | AD8: 112 | AE8: =COUNTIF(L6:L7,AD8) -> 0 | AF8: =AE8/(AG4-AE13) ->  | AI8: 112 | AJ8: =COUNTIF(L6:L7,AI8) -> 0 | AK8: =AJ8/(AL4-AJ13) ->  | AN8: 112 | AO8: =COUNTIF(L6:L7,AN8) -> 0 | AP8: =AO8/(AQ4-AO13) ->  | AS8: 112 | AT8: =COUNTIF(L6:L7,AS8) -> 0 | AU8: =AT8/(AV4-AT13) -> 
N9: 121 | O9: 0 | T9: 121 | U9: =COUNTIF(L6:L7,T9) -> 0 | V9: =U9/(W4-U13) ->  | Y9: 121 | Z9: =COUNTIF(L6:L7,Y9) -> 0 | AA9: =Z9/(AB4-Z13) ->  | AD9: 121 | AE9: =COUNTIF(L6:L7,AD9) -> 0 | AF9: =AE9/(AG4-AE13) ->  | AI9: 121 | AJ9: =COUNTIF(L6:L7,AI9) -> 0 | AK9: =AJ9/(AL4-AJ13) ->  | AN9: 121 | AO9: =COUNTIF(L6:L7,AN9) -> 0 | AP9: =AO9/(AQ4-AO13) ->  | AS9: 121 | AT9: =COUNTIF(L6:L7,AS9) -> 0 | AU9: =AT9/(AV4-AT13) -> 
N10: 122 | O10: 0 | T10: 122 | U10: =COUNTIF(L6:L7,T10) -> 0 | V10: =U10/(W4-U13) ->  | Y10: 122 | Z10: =COUNTIF(L6:L7,Y10) -> 0 | AA10: =Z10/(AB4-Z13) ->  | AD10: 122 | AE10: =COUNTIF(L6:L7,AD10) -> 0 | AF10: =AE10/(AG4-AE13) ->  | AI10: 122 | AJ10: =COUNTIF(L6:L7,AI10) -> 0 | AK10: =AJ10/(AL4-AJ13) ->  | AN10: 122 | AO10: =COUNTIF(L6:L7,AN10) -> 0 | AP10: =AO10/(AQ4-AO13) ->  | AS10: 122 | AT10: =COUNTIF(L6:L7,AS10) -> 0 | AU10: =AT10/(AV4-AT13) -> 
N11: 211 | O11: 0 | T11: 211 | U11: =COUNTIF(L6:L7,T11) -> 0 | V11: =U11/(W4-U13) ->  | Y11: 211 | Z11: =COUNTIF(L6:L7,Y11) -> 0 | AA11: =Z11/(AB4-Z13) ->  | AD11: 211 | AE11: =COUNTIF(L6:L7,AD11) -> 0 | AF11: =AE11/(AG4-AE13) ->  | AI11: 211 | AJ11: =COUNTIF(L6:L7,AI11) -> 0 | AK11: =AJ11/(AL4-AJ13) ->  | AN11: 211 | AO11: =COUNTIF(L6:L7,AN11) -> 0 | AP11: =AO11/(AQ4-AO13) ->  | AS11: 211 | AT11: =COUNTIF(L6:L7,AS11) -> 0 | AU11: =AT11/(AV4-AT13) -> 
N12: 212 | O12: 0 | T12: 212 | U12: =COUNTIF(L6:L7,T12) -> 0 | V12: =U12/(W4-U13) ->  | Y12: 212 | Z12: =COUNTIF(L6:L7,Y12) -> 0 | AA12: =Z12/(AB4-Z13) ->  | AD12: 212 | AE12: =COUNTIF(L6:L7,AD12) -> 0 | AF12: =AE12/(AG4-AE13) ->  | AI12: 212 | AJ12: =COUNTIF(L6:L7,AI12) -> 0 | AK12: =AJ12/(AL4-AJ13) ->  | AN12: 212 | AO12: =COUNTIF(L6:L7,AN12) -> 0 | AP12: =AO12/(AQ4-AO13) ->  | AS12: 212 | AT12: =COUNTIF(L6:L7,AS12) -> 0 | AU12: =AT12/(AV4-AT13) -> 
N13: 221 | O13: 0 | T13: 221 | U13: =COUNTIF(L6:L7,T13) -> 0 | Y13: 221 | Z13: =COUNTIF(L6:L7,Y13) -> 0 | AD13: 221 | AE13: =COUNTIF(L6:L7,AD13) -> 0 | AI13: 221 | AJ13: =COUNTIF(L6:L7,AI13) -> 0 | AN13: 221 | AO13: =COUNTIF(L6:L7,AN13) -> 0 | AS13: 221 | AT13: =COUNTIF(L6:L7,AS13) -> 0
N14: 222 | O14: 0 | T14: 222 | U14: =COUNTIF(L6:L7,T14) -> 0 | V14: =U14/(W4-U13) ->  | W14: =IF(V14=0,0,(V14*((LOG(V14))/LOG(2)))) ->  | Y14: 222 | Z14: =COUNTIF(L6:L7,Y14) -> 0 | AA14: =Z14/(AB4-Z13) ->  | AB14: =IF(AA14=0,0,(AA14*((LOG(AA14))/LOG(2)))) ->  | AD14: 222 | AE14: =COUNTIF(L6:L7,AD14) -> 0 | AF14: =AE14/(AG4-AE13) ->  | AG14: =IF(AF14=0,0,(AF14*((LOG(AF14))/LOG(2)))) ->  | AI14: 222 | AJ14: =COUNTIF(L6:L7,AI14) -> 0 | AK14: =AJ14/(AL4-AJ13) ->  | AL14: =IF(AK14=0,0,(AK14*((LOG(AK14))/LOG(2)))) ->  | AN14: 222 | AO14: =COUNTIF(L6:L7,AN14) -> 0 | AP14: =AO14/(AQ4-AO13) ->  | AQ14: =IF(AP14=0,0,(AP14*((LOG(AP14))/LOG(2)))) ->  | AS14: 222 | AT14: =COUNTIF(L6:L7,AS14) -> 0 | AU14: =AT14/(AV4-AT13) ->  | AV14: =IF(AU14=0,0,(AU14*((LOG(AU14))/LOG(2)))) -> 
P15: =SUM(P7:P14) ->  | Q15: =-SUM(Q7:Q14) ->  | V15: =SUM(V7:V14) ->  | W15: =-SUM(W7:W14) ->  | AA15: =SUM(AA7:AA14) ->  | AB15: =-SUM(AB7:AB14) ->  | AF15: =SUM(AF7:AF14) ->  | AG15: =-SUM(AG7:AG14) ->  | AK15: =SUM(AK7:AK14) ->  | AL15: =-SUM(AL7:AL14) ->  | AP15: =SUM(AP7:AP14) ->  | AQ15: =-SUM(AQ7:AQ14) ->  | AU15: =SUM(AU7:AU14) ->  | AV15: =-SUM(AV7:AV14) -> 
P16: U= | Q16: =Q15/(LOG(Q4)/LOG(2)) ->  | V16: U1= | W16: =W15/(LOG(W4)/LOG(2)) ->  | AA16: U2= | AB16: =AB15/(LOG(AB4)/LOG(2)) ->  | AF16: U3= | AG16: =AG15/(LOG(AG4)/LOG(2)) ->  | AK16: U4= | AL16: =AL15/(LOG(AL4)/LOG(2)) ->  | AP16: U5= | AQ16: =AQ15/(LOG(AQ4)/LOG(2)) ->  | AU16: U6= | AV16: =AV15/(LOG(AV4)/LOG(2)) -> 
N19: Total Target Seq
N20: =COUNTIF(L6:L7,G3) -> 0 | P20: 0 | Q20: 0 | R20: 0 | S20: 0 | T20: 0 | U20: 0
P21: % of reinforcement given in 6 equal intervals based on number of trials
P22: %_1 | Q22: %_2 | R22: %_3 | S22: %_4 | T22: %_5 | U22: %_6
O23: target sequence | P23: =$G$3 -> 221 | Q23: 221 | R23: 221 | S23: 221 | T23: 221 | U23: 221
O24: total reinforcement | P24: =U13 -> 0 | Q24: =Z13 -> 0 | R24: =AE13 -> 0 | S24: =AJ13 -> 0 | T24: =AO13 -> 0 | U24: =AT13 -> 0
O25: % target
O26: CCRF
O27: % CCRf
O28: average response rate | P28: =F6/P20 ->  | Q28: =(F6-F6)/Q20 ->  | R28: =(F6-F6)/R20 ->  | S28: =(F6-F6)/S20 ->  | T28: =(F6-F6)/T20 ->  | U28: =(F6-F6)/U20 -> 

Sheet !M927A2B.AXT
A1: Report for:!M927A2B.AXT
A2: Date: | B2: <date>
A3: Hen: | B3: <hen> | F3: Correct Sequence | G3: =Start!J2 -> 221 | P3: Total Sequences in Data | Q3: =4994-COUNTBLANK(L7:L5000) -> 25 | V3: Total Sequences in Block Data | W3: =COUNTA(L7:L10) -> 4 | AA3: Total Sequences in Block Data | AB3: =COUNTA(L11:L14) -> 4 | AF3: Total Sequences in Block Data | AG3: =COUNTA(L15:L19) -> 5 | AK3: Total Sequences in Block Data | AL3: =COUNTA(L20:L23) -> 4 | AP3: Total Sequences in Block Data | AQ3: =COUNTA(L24:L27) -> 4 | AU3: Total Sequences in Block Data | AV3: =COUNTA(L28:L31) -> 4
P4: Total Sequences in Summary | Q4: =SUM(O7:O14) -> 25 | V4: Total Sequences in Block Summary | W4: =SUM(U7:U14) -> 4 | AA4: Total Sequences in Block Summary | AB4: =SUM(Z7:Z14) -> 4 | AF4: Total Sequences in Block Summary | AG4: =SUM(AE7:AE14) -> 5 | AK4: Total Sequences in Block Summary | AL4: =SUM(AJ7:AJ14) -> 4 | AP4: Total Sequences in Block Summary | AQ4: =SUM(AO7:AO14) -> 4 | AU4: Total Sequences in Block Summary | AV4: =SUM(AT7:AT14) -> 4
T5: Block 1 | Y5: Block 2 | AD5: Block 3 | AI5: Block 4 | AN5: Block 5 | AS5: Block 6
A6: Sequence Component 1 | B6: Time 1 | C6: Sequence Component 2 | D6: Time 2 | E6: Sequence Component 3 | F6: Time 3 | G6: Sequence Component 4 | H6: Time 4 | I6: Sequence Component 5 | J6: Time 5 | K6: Correct? 0=No 1=Yes | L6: Sequence | N6: Frequency | P6: Relative Frequency | Q6: Variability | T6: Frequency | V6: Relative Frequency | W6: Variability | Y6: Frequency | AA6: Relative Frequency | AB6: Variability | AD6: Frequency | AF6: Relative Frequency | AG6: Variability | AI6: Frequency | AK6: Relative Frequency | AL6: Variability | AN6: Frequency | AP6: Relative Frequency | AQ6: Variability | AS6: Frequency | AU6: Relative Frequency | AV6: Variability
A7: 12 | B7: 4246 | C7: 23 | D7: 4251 | E7: 24 | F7: 4263 | K7: 0 | L7: 122 | N7: 111 | O7: =COUNTIF($L$7:$L$500,N7) -> 3 | P7: =O7/$Q$4 -> 0.12 | Q7: =IF(P7=0,0,(P7*((LOG(P7))/LOG(2)))) -> -0.3670672427 | T7: =N7 -> 111 | U7: =COUNTIF(L7:L10,T7) -> 0 | V7: =U7/(W4-U13) -> 0 | W7: =IF(V7=0,0,(V7*((LOG(V7))/LOG(2)))) -> 0 | Y7: =N7 -> 111 | Z7: =COUNTIF(L11:L14,Y7) -> 1 | AA7: =Z7/(AB4-Z13) -> 0.25 | AB7: =IF(AA7=0,0,(AA7*((LOG(AA7))/LOG(2)))) -> -0.5 | AD7: =N7 -> 111 | AE7: =COUNTIF(L15:L19,AD7) -> 0 | AF7: =AE7/(AG4-AE13) -> 0 | AG7: =IF(AF7=0,0,(AF7*((LOG(AF7))/LOG(2)))) -> 0 | AI7: =N7 -> 111 | AJ7: =COUNTIF(L20:L23,AI7) -> 0 | AK7: =AJ7/(AL4-AJ13) -> 0 | AL7: =IF(AK7=0,0,(AK7*((LOG(AK7))/LOG(2)))) -> 0 | AN7: =N7 -> 111 | AO7: =COUNTIF(L24:L27,AN7) -> 0 | AP7: =AO7/(AQ4-AO13) -> 0 | AQ7: =IF(AP7=0,0,(AP7*((LOG(AP7))/LOG(2)))) -> 0 | AS7: =N7 -> 111 | AT7: =COUNTIF(L28:L31,AS7) -> 2 | AU7: =AT7/(AV4-AT13) -> 0.5 | AV7: =IF(AU7=0,0,(AU7*((LOG(AU7))/LOG(2)))) -> -0.5
A8: 21 | B8: 4566 | C8: 21 | D8: 4577 | E8: 11 | F8: 4598 | K8: 0 | L8: 221 | N8: 112 | O8: 4 | P8: 0.16 | Q8: -0.4230169904 | T8: 112 | U8: =COUNTIF(L7:L10,T8) -> 0 | V8: =U8/(W4-U13) -> 0 | W8: 0 | Y8: 112 | Z8: =COUNTIF(L11:L14,Y8) -> 0 | AA8: =Z8/(AB4-Z13) -> 0 | AB8: 0 | AD8: 112 | AE8: =COUNTIF(L15:L19,AD8) -> 1 | AF8: =AE8/(AG4-AE13) -> 0.25 | AG8: -0.5 | AI8: 112 | AJ8: =COUNTIF(L20:L23,AI8) -> 1 | AK8: =AJ8/(AL4-AJ13) -> 0.25 | AL8: -0.5 | AN8: 112 | AO8: =COUNTIF(L24:L27,AN8) -> 1 | AP8: =AO8/(AQ4-AO13) -> 0.25 | AQ8: -0.5 | AS8: 112 | AT8: =COUNTIF(L28:L31,AS8) -> 1 | AU8: =AT8/(AV4-AT13) -> 0.25 | AV8: -0.5
A9: 21 | B9: 4690 | C9: 21 | D9: 4706 | E9: 11 | F9: 4722 | K9: 0 | L9: 221 | N9: 121 | O9: 1 | P9: 0.04 | Q9: -0.1857542476 | T9: 121 | U9: =COUNTIF(L7:L10,T9) -> 0 | V9: =U9/(W4-U13) -> 0 | W9: 0 | Y9: 121 | Z9: =COUNTIF(L11:L14,Y9) -> 0 | AA9: =Z9/(AB4-Z13) -> 0 | AB9: 0 | AD9: 121 | AE9: =COUNTIF(L15:L19,AD9) -> 0 | AF9: =AE9/(AG4-AE13) -> 0 | AG9: 0 | AI9: 121 | AJ9: =COUNTIF(L20:L23,AI9) -> 1 | AK9: =AJ9/(AL4-AJ13) -> 0.25 | AL9: -0.5 | AN9: 121 | AO9: =COUNTIF(L24:L27,AN9) -> 0 | AP9: =AO9/(AQ4-AO13) -> 0 | AQ9: 0 | AS9: 121 | AT9: =COUNTIF(L28:L31,AS9) -> 0 | AU9: =AT9/(AV4-AT13) -> 0 | AV9: 0
A10: 21 | B10: 4850 | C10: 21 | D10: 4857 | E10: 22 | F10: 4863 | K10: 0 | L10: 222 | N10: 122 | O10: 9 | P10: 0.36 | Q10: -0.5306152278 | T10: 122 | U10: =COUNTIF(L7:L10,T10) -> 1 | V10: =U10/(W4-U13) -> 0.5 | W10: -0.5 | Y10: 122 | Z10: =COUNTIF(L11:L14,Y10) -> 2 | AA10: =Z10/(AB4-Z13) -> 0.5 | AB10: -0.5 | AD10: 122 | AE10: =COUNTIF(L15:L19,AD10) -> 2 | AF10: =AE10/(AG4-AE13) -> 0.5 | AG10: -0.5 | AI10: 122 | AJ10: =COUNTIF(L20:L23,AI10) -> 1 | AK10: =AJ10/(AL4-AJ13) -> 0.25 | AL10: -0.5 | AN10: 122 | AO10: =COUNTIF(L24:L27,AN10) -> 3 | AP10: =AO10/(AQ4-AO13) -> 0.75 | AQ10: -0.3112781245 | AS10: 122 | AT10: =COUNTIF(L28:L31,AS10) -> 0 | AU10: =AT10/(AV4-AT13) -> 0 | AV10: 0
A11: 21 | B11: 4987 | C11: 21 | D11: 5016 | E11: 22 | F11: 5095 | K11: 0 | L11: 222 | N11: 211 | O11: 0 | P11: 0 | Q11: 0 | T11: 211 | U11: =COUNTIF(L7:L10,T11) -> 0 | V11: =U11/(W4-U13) -> 0 | W11: 0 | Y11: 211 | Z11: =COUNTIF(L11:L14,Y11) -> 0 | AA11: =Z11/(AB4-Z13) -> 0 | AB11: 0 | AD11: 211 | AE11: =COUNTIF(L15:L19,AD11) -> 0 | AF11: =AE11/(AG4-AE13) -> 0 | AG11: 0 | AI11: 211 | AJ11: =COUNTIF(L20:L23,AI11) -> 0 | AK11: =AJ11/(AL4-AJ13) -> 0 | AL11: 0 | AN11: 211 | AO11: =COUNTIF(L24:L27,AN11) -> 0 | AP11: =AO11/(AQ4-AO13) -> 0 | AQ11: 0 | AS11: 211 | AT11: =COUNTIF(L28:L31,AS11) -> 0 | AU11: =AT11/(AV4-AT13) -> 0 | AV11: 0
A12: 12 | B12: 5202 | C12: 23 | D12: 5210 | E12: 24 | F12: 5222 | K12: 0 | L12: 122 | N12: 212 | O12: 1 | P12: 0.04 | Q12: -0.1857542476 | T12: 212 | U12: =COUNTIF(L7:L10,T12) -> 0 | V12: =U12/(W4-U13) -> 0 | W12: 0 | Y12: 212 | Z12: =COUNTIF(L11:L14,Y12) -> 0 | AA12: =Z12/(AB4-Z13) -> 0 | AB12: 0 | AD12: 212 | AE12: =COUNTIF(L15:L19,AD12) -> 0 | AF12: =AE12/(AG4-AE13) -> 0 | AG12: 0 | AI12: 212 | AJ12: =COUNTIF(L20:L23,AI12) -> 1 | AK12: =AJ12/(AL4-AJ13) -> 0.25 | AL12: -0.5 | AN12: 212 | AO12: =COUNTIF(L24:L27,AN12) -> 0 | AP12: =AO12/(AQ4-AO13) -> 0 | AQ12: 0 | AS12: 212 | AT12: =COUNTIF(L28:L31,AS12) -> 0 | AU12: =AT12/(AV4-AT13) -> 0 | AV12: 0
A13: 12 | B13: 5324 | C13: 23 | D13: 5335 | E13: 24 | F13: 5359 | K13: 0 | L13: 122 | N13: 221 | O13: 3 | P13: 0.12 | Q13: -0.3670672427 | T13: 221 | U13: =COUNTIF(L7:L10,T13) -> 2 | Y13: 221 | Z13: =COUNTIF(L11:L14,Y13) -> 0 | AD13: 221 | AE13: =COUNTIF(L15:L19,AD13) -> 1 | AI13: 221 | AJ13: =COUNTIF(L20:L23,AI13) -> 0 | AN13: 221 | AO13: =COUNTIF(L24:L27,AN13) -> 0 | AS13: 221 | AT13: =COUNTIF(L28:L31,AS13) -> 0
A14: 12 | B14: 5544 | C14: 14 | D14: 5558 | E14: 13 | F14: 5568 | K14: 0 | L14: 111 | N14: 222 | O14: 4 | P14: 0.16 | Q14: -0.4230169904 | T14: 222 | U14: =COUNTIF(L7:L10,T14) -> 1 | V14: =U14/(W4-U13) -> 0.5 | W14: =IF(V14=0,0,(V14*((LOG(V14))/LOG(2)))) -> -0.5 | Y14: 222 | Z14: =COUNTIF(L11:L14,Y14) -> 1 | AA14: =Z14/(AB4-Z13) -> 0.25 | AB14: =IF(AA14=0,0,(AA14*((LOG(AA14))/LOG(2)))) -> -0.5 | AD14: 222 | AE14: =COUNTIF(L15:L19,AD14) -> 1 | AF14: =AE14/(AG4-AE13) -> 0.25 | AG14: =IF(AF14=0,0,(AF14*((LOG(AF14))/LOG(2)))) -> -0.5 | AI14: 222 | AJ14: =COUNTIF(L20:L23,AI14) -> 0 | AK14: =AJ14/(AL4-AJ13) -> 0 | AL14: =IF(AK14=0,0,(AK14*((LOG(AK14))/LOG(2)))) -> 0 | AN14: 222 | AO14: =COUNTIF(L24:L27,AN14) -> 0 | AP14: =AO14/(AQ4-AO13) -> 0 | AQ14: =IF(AP14=0,0,(AP14*((LOG(AP14))/LOG(2)))) -> 0 | AS14: 222 | AT14: =COUNTIF(L28:L31,AS14) -> 1 | AU14: =AT14/(AV4-AT13) -> 0.25 | AV14: =IF(AU14=0,0,(AU14*((LOG(AU14))/LOG(2)))) -> -0.5
A15: 21 | B15: 5837 | C15: 21 | D15: 5845 | E15: 11 | F15: 5857 | K15: 0 | L15: 221 | P15: =SUM(P7:P14) -> 1 | Q15: =-SUM(Q7:Q14) -> 2.482292189 | V15: =SUM(V7:V14) -> 1 | W15: =-SUM(W7:W14) -> 1 | AA15: =SUM(AA7:AA14) -> 1 | AB15: =-SUM(AB7:AB14) -> 1.5 | AF15: =SUM(AF7:AF14) -> 1 | AG15: =-SUM(AG7:AG14) -> 1.5 | AK15: =SUM(AK7:AK14) -> 1 | AL15: =-SUM(AL7:AL14) -> 2 | AP15: =SUM(AP7:AP14) -> 1 | AQ15: =-SUM(AQ7:AQ14) -> 0.8112781245 | AU15: =SUM(AU7:AU14) -> 1 | AV15: =-SUM(AV7:AV14) -> 1.5
A16: 12 | B16: 5950 | C16: 23 | D16: 5967 | E16: 24 | F16: 5979 | K16: 0 | L16: 122 | P16: U= | Q16: =Q15/(LOG(Q4)/LOG(2)) -> 0.5345325281 | V16: U1= | W16: =W15/(LOG(W4)/LOG(2)) -> 0.5 | AA16: U2= | AB16: =AB15/(LOG(AB4)/LOG(2)) -> 0.75 | AF16: U3= | AG16: =AG15/(LOG(AG4)/LOG(2)) -> 0.6460148371 | AK16: U4= | AL16: =AL15/(LOG(AL4)/LOG(2)) -> 1 | AP16: U5= | AQ16: =AQ15/(LOG(AQ4)/LOG(2)) -> 0.4056390622 | AU16: U6= | AV16: =AV15/(LOG(AV4)/LOG(2)) -> 0.75
A17: 12 | B17: 6134 | C17: 14 | D17: 6138 | E17: 24 | F17: 6151 | K17: 0 | L17: 112
A18: 21 | B18: 6243 | C18: 21 | D18: 6247 | E18: 22 | F18: 6254 | K18: 0 | L18: 222
A19: 12 | B19: 6358 | C19: 23 | D19: 6362 | E19: 24 | F19: 6376 | K19: 0 | L19: 122 | N19: Total Target Seq
A20: 12 | B20: 6708 | C20: 23 | D20: 6714 | E20: 13 | F20: 6728 | K20: 0 | L20: 121 | N20: =COUNTIF(L7:L31,G3) -> 3 | P20: 4 | Q20: 4 | R20: 5 | S20: 4 | T20: 4 | U20: 4
A21: 12 | B21: 6957 | C21: 14 | D21: 6965 | E21: 24 | F21: 6968 | K21: 0 | L21: 112 | P21: % of reinforcement given in 6 equal intervals based on number of trials
A22: 21 | B22: 7137 | C22: 12 | D22: 7140 | E22: 24 | F22: 7151 | K22: 0 | L22: 212 | P22: %_1 | Q22: %_2 | R22: %_3 | S22: %_4 | T22: %_5 | U22: %_6
A23: 12 | B23: 7249 | C23: 23 | D23: 7256 | E23: 24 | F23: 7273 | K23: 0 | L23: 122 | O23: target sequence | P23: =$G$3 -> 221 | Q23: 221 | R23: 221 | S23: 221 | T23: 221 | U23: 221
A24: 12 | B24: 7370 | C24: 23 | D24: 7382 | E24: 24 | F24: 7385 | K24: 0 | L24: 122 | O24: total reinforcement | P24: =U13 -> 2 | Q24: =Z13 -> 0 | R24: =AE13 -> 1 | S24: =AJ13 -> 0 | T24: =AO13 -> 0 | U24: =AT13 -> 0
A25: 12 | B25: 7493 | C25: 23 | D25: 7500 | E25: 24 | F25: 7513 | K25: 0 | L25: 122 | O25: % target
A26: 12 | B26: 7998 | C26: 23 | D26: 8014 | E26: 24 | F26: 8027 | K26: 0 | L26: 122 | O26: CCRF
A27: 12 | B27: 21540 | C27: 14 | D27: 21559 | E27: 24 | F27: 21581 | K27: 0 | L27: 112 | O27: % CCRf
A28: 12 | B28: 21902 | C28: 14 | D28: 21911 | E28: 13 | F28: 21925 | K28: 0 | L28: 111 | O28: average response rate | P28: =F10/P20 -> 1215.75 | Q28: =(F14-F10)/Q20 -> 176.25 | R28: =(F19-F14)/R20 -> 161.6 | S28: =(F23-F19)/S20 -> 224.25 | T28: =(F27-F23)/T20 -> 3577 | U28: =(F31-F27)/U20 -> 298.5
A29: 12 | B29: 22144 | C29: 14 | D29: 22154 | E29: 24 | F29: 22177 | K29: 0 | L29: 112
A30: 21 | B30: 22275 | C30: 21 | D30: 22278 | E30: 22 | F30: 22283 | K30: 0 | L30: 222
A31: 12 | B31: 22747 | C31: 14 | D31: 22769 | E31: 13 | F31: 22775 | K31: 0 | L31: 111

Sheet !M92891B.AXT
A1: Report for:!M92891B.AXT
A2: Date: | B2: <date>
A3: Hen: | B3: <hen> | F3: Correct Sequence | G3: =Start!J2 -> 221 | P3: Total Sequences in Data | Q3: =4994-COUNTBLANK(L7:L5000) -> 8 | V3: Total Sequences in Block Data | W3: =COUNTA(L7:L7) -> 1 | AA3: Total Sequences in Block Data | AB3: =COUNTA(L8:L9) -> 2 | AF3: Total Sequences in Block Data | AG3: =COUNTA(L10:L10) -> 1 | AK3: Total Sequences in Block Data | AL3: =COUNTA(L11:L11) -> 1 | AP3: Total Sequences in Block Data | AQ3: =COUNTA(L12:L13) -> 2 | AU3: Total Sequences in Block Data | AV3: =COUNTA(L14:L14) -> 1
P4: Total Sequences in Summary | Q4: =SUM(O7:O14) -> 7 | V4: Total Sequences in Block Summary | W4: =SUM(U7:U14) -> 1 | AA4: Total Sequences in Block Summary | AB4: =SUM(Z7:Z14) -> 2 | AF4: Total Sequences in Block Summary | AG4: =SUM(AE7:AE14) -> 1 | AK4: Total Sequences in Block Summary | AL4: =SUM(AJ7:AJ14) -> 1 | AP4: Total Sequences in Block Summary | AQ4: =SUM(AO7:AO14) -> 2 | AU4: Total Sequences in Block Summary | AV4: =SUM(AT7:AT14) -> 0
T5: Block 1 | Y5: Block 2 | AD5: Block 3 | AI5: Block 4 | AN5: Block 5 | AS5: Block 6
A6: Sequence Component 1 | B6: Time 1 | C6: Sequence Component 2 | D6: Time 2 | E6: Sequence Component 3 | F6: Time 3 | G6: Sequence Component 4 | H6: Time 4 | I6: Sequence Component 5 | J6: Time 5 | K6: Correct? 0=No 1=Yes | L6: Sequence | N6: Frequency | P6: Relative Frequency | Q6: Variability | T6: Frequency | V6: Relative Frequency | W6: Variability | Y6: Frequency | AA6: Relative Frequency | AB6: Variability | AD6: Frequency | AF6: Relative Frequency | AG6: Variability | AI6: Frequency | AK6: Relative Frequency | AL6: Variability | AN6: Frequency | AP6: Relative Frequency | AQ6: Variability | AS6: Frequency | AU6: Relative Frequency | AV6: Variability
A7: 12 | B7: 16 | C7: 23 | D7: 19 | E7: 24 | F7: 22 | K7: 0 | L7: 122 | N7: 111 | O7: =COUNTIF($L$7:$L$500,N7) -> 0 | P7: =O7/$Q$4 -> 0 | Q7: =IF(P7=0,0,(P7*((LOG(P7))/LOG(2)))) -> 0 | T7: =N7 -> 111 | U7: =COUNTIF(L7:L7,T7) -> 0 | V7: =U7/(W4-U13) -> 0 | W7: =IF(V7=0,0,(V7*((LOG(V7))/LOG(2)))) -> 0 | Y7: =N7 -> 111 | Z7: =COUNTIF(L8:L9,Y7) -> 0 | AA7: =Z7/(AB4-Z13) -> 0 | AB7: =IF(AA7=0,0,(AA7*((LOG(AA7))/LOG(2)))) -> 0 | AD7: =N7 -> 111 | AE7: =COUNTIF(L10:L10,AD7) -> 0 | AF7: =AE7/(AG4-AE13) -> 0 | AG7: =IF(AF7=0,0,(AF7*((LOG(AF7))/LOG(2)))) -> 0 | AI7: =N7 -> 111 | AJ7: =COUNTIF(L11:L11,AI7) -> 0 | AK7: =AJ7/(AL4-AJ13) -> 0 | AL7: =IF(AK7=0,0,(AK7*((LOG(AK7))/LOG(2)))) -> 0 | AN7: =N7 -> 111 | AO7: =COUNTIF(L12:L13,AN7) -> 0 | AP7: =AO7/(AQ4-AO13) -> 0 | AQ7: =IF(AP7=0,0,(AP7*((LOG(AP7))/LOG(2)))) -> 0 | AS7: =N7 -> 111 | AT7: =COUNTIF(L14:L14,AS7) -> 0 | AU7: =AT7/(AV4-AT13) ->  | AV7: =IF(AU7=0,0,(AU7*((LOG(AU7))/LOG(2)))) -> 
A8: 21 | B8: 120 | C8: 12 | D8: 134 | E8: 13 | F8: 137 | K8: 0 | L8: 211 | N8: 112 | O8: 1 | P8: 0.1428571429 | Q8: -0.4010507032 | T8: 112 | U8: =COUNTIF(L7:L7,T8) -> 0 | V8: =U8/(W4-U13) -> 0 | W8: 0 | Y8: 112 | Z8: =COUNTIF(L8:L9,Y8) -> 0 | AA8: =Z8/(AB4-Z13) -> 0 | AB8: 0 | AD8: 112 | AE8: =COUNTIF(L10:L10,AD8) -> 0 | AF8: =AE8/(AG4-AE13) -> 0 | AG8: 0 | AI8: 112 | AJ8: =COUNTIF(L11:L11,AI8) -> 1 | AK8: =AJ8/(AL4-AJ13) -> 1 | AL8: 0 | AN8: 112 | AO8: =COUNTIF(L12:L13,AN8) -> 0 | AP8: =AO8/(AQ4-AO13) -> 0 | AQ8: 0 | AS8: 112 | AT8: =COUNTIF(L14:L14,AS8) -> 0 | AU8: =AT8/(AV4-AT13) -> 
A9: 12 | B9: 266 | C9: 23 | D9: 272 | E9: 24 | F9: 281 | K9: 0 | L9: 122 | N9: 121 | O9: 0 | P9: 0 | Q9: 0 | T9: 121 | U9: =COUNTIF(L7:L7,T9) -> 0 | V9: =U9/(W4-U13) -> 0 | W9: 0 | Y9: 121 | Z9: =COUNTIF(L8:L9,Y9) -> 0 | AA9: =Z9/(AB4-Z13) -> 0 | AB9: 0 | AD9: 121 | AE9: =COUNTIF(L10:L10,AD9) -> 0 | AF9: =AE9/(AG4-AE13) -> 0 | AG9: 0 | AI9: 121 | AJ9: =COUNTIF(L11:L11,AI9) -> 0 | AK9: =AJ9/(AL4-AJ13) -> 0 | AL9: 0 | AN9: 121 | AO9: =COUNTIF(L12:L13,AN9) -> 0 | AP9: =AO9/(AQ4-AO13) -> 0 | AQ9: 0 | AS9: 121 | AT9: =COUNTIF(L14:L14,AS9) -> 0 | AU9: =AT9/(AV4-AT13) -> 
A10: 12 | B10: 942 | C10: 23 | D10: 954 | E10: 24 | F10: 958 | K10: 0 | L10: 122 | N10: 122 | O10: 3 | P10: 0.4285714286 | Q10: -0.5238824663 | T10: 122 | U10: =COUNTIF(L7:L7,T10) -> 1 | V10: =U10/(W4-U13) -> 1 | W10: 0 | Y10: 122 | Z10: =COUNTIF(L8:L9,Y10) -> 1 | AA10: =Z10/(AB4-Z13) -> 0.5 | AB10: -0.5 | AD10: 122 | AE10: =COUNTIF(L10:L10,AD10) -> 1 | AF10: =AE10/(AG4-AE13) -> 1 | AG10: 0 | AI10: 122 | AJ10: =COUNTIF(L11:L11,AI10) -> 0 | AK10: =AJ10/(AL4-AJ13) -> 0 | AL10: 0 | AN10: 122 | AO10: =COUNTIF(L12:L13,AN10) -> 0 | AP10: =AO10/(AQ4-AO13) -> 0 | AQ10: 0 | AS10: 122 | AT10: =COUNTIF(L14:L14,AS10) -> 0 | AU10: =AT10/(AV4-AT13) -> 
A11: 12 | B11: 1570 | C11: 14 | D11: 1594 | E11: 24 | F11: 1602 | K11: 0 | L11: 112 | N11: 211 | O11: 1 | P11: 0.1428571429 | Q11: -0.4010507032 | T11: 211 | U11: =COUNTIF(L7:L7,T11) -> 0 | V11: =U11/(W4-U13) -> 0 | W11: 0 | Y11: 211 | Z11: =COUNTIF(L8:L9,Y11) -> 1 | AA11: =Z11/(AB4-Z13) -> 0.5 | AB11: -0.5 | AD11: 211 | AE11: =COUNTIF(L10:L10,AD11) -> 0 | AF11: =AE11/(AG4-AE13) -> 0 | AG11: 0 | AI11: 211 | AJ11: =COUNTIF(L11:L11,AI11) -> 0 | AK11: =AJ11/(AL4-AJ13) -> 0 | AL11: 0 | AN11: 211 | AO11: =COUNTIF(L12:L13,AN11) -> 0 | AP11: =AO11/(AQ4-AO13) -> 0 | AQ11: 0 | AS11: 211 | AT11: =COUNTIF(L14:L14,AS11) -> 0 | AU11: =AT11/(AV4-AT13) -> 
A12: 21 | B12: 1841 | C12: 21 | D12: 1845 | E12: 22 | F12: 1867 | K12: 0 | L12: 222 | N12: 212 | O12: 0 | P12: 0 | Q12: 0 | T12: 212 | U12: =COUNTIF(L7:L7,T12) -> 0 | V12: =U12/(W4-U13) -> 0 | W12: 0 | Y12: 212 | Z12: =COUNTIF(L8:L9,Y12) -> 0 | AA12: =Z12/(AB4-Z13) -> 0 | AB12: 0 | AD12: 212 | AE12: =COUNTIF(L10:L10,AD12) -> 0 | AF12: =AE12/(AG4-AE13) -> 0 | AG12: 0 | AI12: 212 | AJ12: =COUNTIF(L11:L11,AI12) -> 0 | AK12: =AJ12/(AL4-AJ13) -> 0 | AL12: 0 | AN12: 212 | AO12: =COUNTIF(L12:L13,AN12) -> 0 | AP12: =AO12/(AQ4-AO13) -> 0 | AQ12: 0 | AS12: 212 | AT12: =COUNTIF(L14:L14,AS12) -> 0 | AU12: =AT12/(AV4-AT13) -> 
A13: 21 | B13: 1889 | C13: 21 | D13: 1898 | E13: 22 | F13: 1904 | K13: 0 | L13: 222 | N13: 221 | O13: 0 | P13: 0 | Q13: 0 | T13: 221 | U13: =COUNTIF(L7:L7,T13) -> 0 | Y13: 221 | Z13: =COUNTIF(L8:L9,Y13) -> 0 | AD13: 221 | AE13: =COUNTIF(L10:L10,AD13) -> 0 | AI13: 221 | AJ13: =COUNTIF(L11:L11,AI13) -> 0 | AN13: 221 | AO13: =COUNTIF(L12:L13,AN13) -> 0 | AS13: 221 | AT13: =COUNTIF(L14:L14,AS13) -> 0
A14: 21 | B14: 23912 | L14: 2 | N14: 222 | O14: 2 | P14: 0.2857142857 | Q14: -0.5163871206 | T14: 222 | U14: =COUNTIF(L7:L7,T14) -> 0 | V14: =U14/(W4-U13) -> 0 | W14: =IF(V14=0,0,(V14*((LOG(V14))/LOG(2)))) -> 0 | Y14: 222 | Z14: =COUNTIF(L8:L9,Y14) -> 0 | AA14: =Z14/(AB4-Z13) -> 0 | AB14: =IF(AA14=0,0,(AA14*((LOG(AA14))/LOG(2)))) -> 0 | AD14: 222 | AE14: =COUNTIF(L10:L10,AD14) -> 0 | AF14: =AE14/(AG4-AE13) -> 0 | AG14: =IF(AF14=0,0,(AF14*((LOG(AF14))/LOG(2)))) -> 0 | AI14: 222 | AJ14: =COUNTIF(L11:L11,AI14) -> 0 | AK14: =AJ14/(AL4-AJ13) -> 0 | AL14: =IF(AK14=0,0,(AK14*((LOG(AK14))/LOG(2)))) -> 0 | AN14: 222 | AO14: =COUNTIF(L12:L13,AN14) -> 2 | AP14: =AO14/(AQ4-AO13) -> 1 | AQ14: =IF(AP14=0,0,(AP14*((LOG(AP14))/LOG(2)))) -> 0 | AS14: 222 | AT14: =COUNTIF(L14:L14,AS14) -> 0 | AU14: =AT14/(AV4-AT13) ->  | AV14: =IF(AU14=0,0,(AU14*((LOG(AU14))/LOG(2)))) -> 
P15: =SUM(P7:P14) -> 1 | Q15: =-SUM(Q7:Q14) -> 1.842370993 | V15: =SUM(V7:V14) -> 1 | W15: =-SUM(W7:W14) -> 0 | AA15: =SUM(AA7:AA14) -> 1 | AB15: =-SUM(AB7:AB14) -> 1 | AF15: =SUM(AF7:AF14) -> 1 | AG15: =-SUM(AG7:AG14) -> 0 | AK15: =SUM(AK7:AK14) -> 1 | AL15: =-SUM(AL7:AL14) -> 0 | AP15: =SUM(AP7:AP14) -> 1 | AQ15: =-SUM(AQ7:AQ14) -> 0 | AU15: =SUM(AU7:AU14) ->  | AV15: =-SUM(AV7:AV14) -> 
P16: U= | Q16: =Q15/(LOG(Q4)/LOG(2)) -> 0.6562657891 | V16: U1= | W16: =W15/(LOG(W4)/LOG(2)) ->  | AA16: U2= | AB16: =AB15/(LOG(AB4)/LOG(2)) -> 1 | AF16: U3= | AG16: =AG15/(LOG(AG4)/LOG(2)) ->  | AK16: U4= | AL16: =AL15/(LOG(AL4)/LOG(2)) ->  | AP16: U5= | AQ16: =AQ15/(LOG(AQ4)/LOG(2)) -> 0 | AU16: U6= | AV16: =AV15/(LOG(AV4)/LOG(2)) -> 
N19: Total Target Seq
N20: =COUNTIF(L7:L14,G3) -> 0 | P20: 1 | Q20: 2 | R20: 1 | S20: 1 | T20: 2 | U20: 1
P21: % of reinforcement given in 6 equal intervals based on number of trials
P22: %_1 | Q22: %_2 | R22: %_3 | S22: %_4 | T22: %_5 | U22: %_6
O23: target sequence | P23: =$G$3 -> 221 | Q23: 221 | R23: 221 | S23: 221 | T23: 221 | U23: 221
O24: total reinforcement | P24: =U13 -> 0 | Q24: =Z13 -> 0 | R24: =AE13 -> 0 | S24: =AJ13 -> 0 | T24: =AO13 -> 0 | U24: =AT13 -> 0
O25: % target
O26: CCRF
O27: % CCRf
O28: average response rate | P28: =F7/P20 -> 22 | Q28: =(F9-F7)/Q20 -> 129.5 | R28: =(F10-F9)/R20 -> 677 | S28: =(F11-F10)/S20 -> 644 | T28: =(F13-F11)/T20 -> 151 | U28: =(F14-F13)/U20 -> -1904
